Workbook

Sheet LDC Info
AA3: Algoma Power Inc.
AA4: Atikokan Hydro Inc.
AA5: Attawapiskat Power Corporation
AA6: Bluewater Power Distribution Corp.
AA7: Brant County Power
AA8: Brantford Power Inc.
AA9: Burlington Hydro Inc.
AA10: Cambridge and North Dumfries Hydro
AA11: Canadian Niagara Power Inc. – Eastern Ontario Power/Fort Erie/Port Colborne
AA12: Centre Wellington Hydro Ltd.
N13: Version 2.0 | AA13: Chapleau Public Utilities Corporation
D14: Utility Name | E14: Cambridge and North Dumfries Hydro Inc. | AA14: COLLUS Power Corp.
AA15: Cooperative Hydro Embrun Inc.
D16: Assigned EB Number | E16: EB-2013-0116 | AA16: E.L.K. Energy Inc.
AA17: Enersource Hydro Mississauga Inc.
D18: Name of Contact and Title | E18: Grant Brooker,Manager Regulatory Affairs | AA18: Entegrus Powerlines Inc.
AA19: ENWIN Utilities Ltd.
D20: Phone Number | E20: 519-621-8405 Ext 2340 | AA20: Erie Thames Powerlines Corp.
AA21: Espanola Regional Hydro Distribution Corporation
D22: Email Address | E22: gbrooker@camhydro.cpm | AA22: Essex Powerlines Corporation
AA23: Festival Hydro Inc.
D24: Test Year | E24: 2014 | AA24: Fort Albany Power Corporation
AA25: Fort Frances Power Corporation
D26: Bridge Year | E26: =E24-1 -> 2013 | AA26: Greater Sudbury Hydro Inc.
AA27: Grimsby Power Inc.
D28: Last Rebasing Year | E28: 2010 | AA28: Guelph Hydro Electric Systems Inc.
AA29: Haldimand County Hydro Inc.
A30: Identify the accounting standard used for the test year
E31: CGAAP
A33: Did you update your depreciation and capitalization policies?
E34: Yes
A36: When did you update your depreciation and capitalization policies?
E37: 2012-01-01
A39: Identify the year that the applicant has adopted or is expected to adopt IFRS for financial reporting purposes
E40: 2014 or Later
A42: Identify the year that the applicant has made the required changes to capitalization and depreciation expense policies under CGAAP or ASPE
E43: 2012
A45: Are you applying for cost recovery for the test and/or future year(s) for Green Energy initiatives?
E46: No
A48: ="Is " & E14 & " an embedded distributor?" -> Is Cambridge and North Dumfries Hydro Inc. an embedded distributor? | E48: No
A52: Once all selections have been made above, press the following button to reveal the appropriate worksheets.
A56: To unhide all worksheets in this workbook, press the following button:
B59: Notes | AA59: Guelph Hydro Electric Systems Inc.
AA60: Halton Hills Hydro Inc.
C61: Pale green cells represent input cells. | AA61: Hearst Power Distribution Co. Ltd.
AA62: Horizon Utilities Corporation
C63: Pale blue cells represent drop-down lists. The applicant should select the appropriate item from the drop-down list. | AA63: Hydro 2000 Inc.
AA64: Hydro Hawkesbury Inc.
C65: White cells contain fixed values, automatically generated values or formulae. | AA65: Hydro One Brampton Networks Inc.
AA66: Hydro One Networks Inc.
AA67: Hydro One Remote Communities Inc.
AA68: Hydro Ottawa Limited
AA69: Innisfil Hydro Dist. Systems Limited
AA70: Kashechewan Power Corporation
AA71: Kenora Hydro Electric Corporation Ltd.
AA72: Kingston Hydro Corporation
AA73: Kitchener-Wilmot Hydro Inc.
AA74: Lakefront Utilities Inc.
AA75: Lakeland Power Distribution Ltd.
AA76: London Hydro Inc.
AA77: Midland Power Utility Corporation
AA78: Milton Hydro Distribution Inc.
AA79: Newmarket – Tay Power Distribution Ltd.
AA80: Niagara Peninsula Energy Inc.
AA81: Niagara-on-the-Lake Hydro Inc.
AA82: Norfolk Power Distribution Ltd.
AA83: North Bay Hydro Distribution Limited
AA84: Northern Ontario Wires Inc.
AA85: Oakville Hydro Distribution Inc.
AA86: Orangeville Hydro Limited
AA87: Orillia Power Distribution Corp.
AA88: Oshawa PUC Networks Inc.
AA89: Ottawa River Power Corporation
AA90: Parry Sound Power Corporation
AA91: Peterborough Distribution Inc.
AA92: PowerStream Inc.
AA93: PUC Distribution Inc.
AA94: Renfrew Hydro Inc.
AA95: Rideau St. Lawrence Distribution Inc.
AA96: St. Thomas Energy Inc.
AA97: Sioux Lookout Hydro Inc.
AA98: Thunder Bay Hydro Electricity Distribution
AA99: Tillsonburg Hydro Inc.
AA100: Toronto Hydro-Electric System Limited
AA101: Veridian Connections Inc.
AA102: Wasaga Distribution Inc.
AA103: Waterloo North Hydro Inc.
AA104: Welland Hydro Electric System Corp.
AA105: Wellington North Power Inc.
AA106: West Coast Huron Energy Inc.
AA107: Westario Power Inc.
AA108: Whitby Hydro Electric Corporation
AA109: Woodstock Hydro Services Inc.

Sheet Table of Contents
A15: 1 | B15: LDC Information Sheet | E15: 35 | F15: Appendix 2-DB: Overhead Expense (CGAAP or ASPE)
A16: 2 | B16: Index | E16: 36 | F16: Appendix 2-EA: PP&E Deferral Account (2012 IFRS Adopters)
A17: 3 | B17: Cost of Service Application Flowchart | E17: 37 | F17: Appendix 2-EB: PP&E Deferral Account (2013 IFRS Adopters)
A18: 4 | B18: List of Key References | E18: 38 | F18: Appendix 2-EC: PP&E Deferral Account (2014 IFRS Adopters)
A19: 5 | B19: Appendix 2-AA: Capital Projects Table | E19: 39 | F19: Appendix 2-ED: Account 1576 - Accounting Changes Under CGAAP (2012 Changes)
A20: 6 | B20: Appendix 2-AB: Capital Expenditures | E20: 40 | F20: Appendix 2-EE: Account 1576 - Accounting Changes Under CGAAP (2013 Changes)
A21: 7 | B21: Appendix 2-BA1: Fixed Asset Continuity Schedule (CGAAP/ASPE/USGAAP) | E21: 41 | F21: Appendix 2-FA: Renewable Generation Connection Investment Summary
A22: 8 | B22: Appendix 2-BA2: Fixed Asset Continuity Schedule (MIFRS) | E22: 42 | F22: Appendix 2-FB: Calculation of Renewable Generation Connection Direct Benefits/Provincial Amount: Renewable Enabling Improvement Investments
A23: 9 | B23: Appendix 2-BB: Service Life Comparison | E23: 43 | F23: Appendix 2-FC: Calculation of Renewable Generation Connection Direct Benefits/Provincial Amount: Renewable Expansion Investments
A24: 10 | B24: General Instructions to MIFRS Appendices | E24: 44 | F24: Appendix 2-G: Service Reliability Indicators
A25: 11 | B25: Appendix 2-CA: 2011 Depreciation and Amortization Expense (CGAAP) | E25: 45 | F25: Appendix 2-H: Other Operating Revenue
A26: 12 | B26: Appendix 2-CB: 2011 Depreciation and Amortization Expense (MIFRS) | E26: 46 | F26: Appendix 2-I: Load Forecast CDM Adjustment Work Form
A27: 13 | B27: Appendix 2-CC: 2012 Depreciation and Amortization Expense (MIFRS) | E27: 47 | F27: Appendix 2-JA: Summary of Recoverable OM&A Expenses
A28: 14 | B28: Appendix 2-CD: 2013 Depreciation and Amortization Expense (MIFRS) | E28: 48 | F28: Appendix 2-JB: Recoverable OM&A Cost Driver Table
A29: 15 | B29: Appendix 2-CE: 2014 Depreciation and Amortization Expense (MIFRS) | E29: 49 | F29: Appendix 2-JC: OMA Programs Table
A30: 16 | B30: Appendix 2-CF: 2012 Depreciation and Amortization Expense (CGAAP) | E30: 50 | F30: Appendix 2-K: Employee Costs
A31: 17 | B31: Appendix 2-CG: 2012 Depreciation and Amortization Expense (MIFRS) | E31: 51 | F31: Appendix 2-L: Recoverable OM&A Cost per Customer and per FTE
A32: 18 | B32: Appendix 2-CH: 2013 Depreciation and Amortization Expense (MIFRS) | E32: 52 | F32: Appendix 2-M: Regulatory Cost Schedule
A33: 19 | B33: Appendix 2-CI: 2014 Depreciation and Amortization Expense (MIFRS) | E33: 53 | F33: Appendix 2-N: Shared Services and Corporate Cost Allocation
A34: 20 | B34: Appendix 2-CJ: 2012 Depreciation and Amortization Expense (CGAAP) | E34: 54 | F34: Appendix 2-OA: Capital Structure and Cost of Capital
A35: 21 | B35: Appendix 2-CK: 2013 Depreciation and Amortization Expense (CGAAP) | E35: 55 | F35: Appendix 2-OB: Debt Instruments
A36: 22 | B36: Appendix 2-CL: 2013 Depreciation and Amortization Expense (MIFRS) | E36: 56 | F36: Appendix 2-P: Cost Allocation
A37: 23 | B37: Appendix 2-CM: 2014 Depreciation and Amortization Expense (MIFRS) | E37: 57 | F37: Appendix 2-Q: Cost of Serving Embedded Distributor(s)
A38: 24 | B38: General Instructions to CGAAP-ASPE Appendices | E38: 58 | F38: Appendix 2-R: Loss Factors
A39: 25 | B39: Appendix 2-CN: 2012 Depreciation and Amortization Expense (Old CGAAP) | E39: 59 | F39: Appendix 2-S: Stranded Meter Treatment
A40: 26 | B40: Appendix 2-CO: 2012 Depreciation and Amortization Expense (New CGAAP) | E40: 60 | F40: Appendix 2-TA: Account 1592, PILs and Tax Variances
A41: 27 | B41: Appendix 2-CP: 2013 Depreciation and Amortization Expense (New CGAAP) | E41: 61 | F41: Appendix 2-TB: Account 1592, HST-OVAT Input Tax Credits
A42: 28 | B42: Appendix 2-CQ: 2014 Depreciation and Amortization Expense (New CGAAP) | E42: 62 | F42: Appendix 2-U: One-Time Incremental IFRS Transition Costs
A43: 29 | B43: Appendix 2-CR: 2012 Depreciation and Amortization Expense (Old CGAAP) | E43: 63 | F43: Appendix 2-V: Revenue Reconciliation
A44: 30 | B44: Appendix 2-CS: 2013 Depreciation and Amortization Expense (Old CGAAP) | E44: 64 | F44: Appendix 2-W: Bill Impacts
A45: 31 | B45: Appendix 2-CT: 2013 Depreciation and Amortization Expense (New CGAAP) | E45: 65 | F45: Appendix 2-YA: Transition to MIFRS Summary Impacts
A46: 32 | B46: Appendix 2-CU: 2014 Depreciation and Amortization Expense (New CGAAP) | E46: 66 | F46: Appendix 2-YB: Accounting Changes under CGAAP/ASPE Summary Impacts
A47: 33 | B47: Appendix 2-CV: Depreciation and Amortization Expense (USGAAP) | E47: 67 | F47: App.2-Z: Tariff Schedule
A48: 34 | B48: Appendix 2-DA: Overhead Expense (MIFRS)
B51: Legend
B52: To be completed by MIFRS filers
B53: To be completed by CGAAP and ASPE filers
B54: To be completed by USGAAP filers
B55: To be completed by both CGAAP, ASPE and USGAAP filers

Sheet COS Flowchart
B4: Cost of Service Rate Application Schematic
B6: The Cost of Service Rate Application Schematic is a flowchart appended to Chapter 2 of the Filing Requirements as a guide for the components of an application and how demand and costs interrelate to derive the revenue requirement and then how the revenue requirement is allocated between classes and through fixed/variable splits to derive rates that will be compensatory for the annual revenue requirement, based on the the forecasted demand. There is no form to be filled out; therefore, this Schedule is not required to be filed.

Sheet List of Key References
B3: List of Key References
A5: A list of key references for understanding the Filing Requirements has been embedded in the document below. To access the list of references and associated hyperlinks doublt click the icon below.

Sheet App.2-AA_Capital Projects
G1: Cambridge and North Dumfries Hydro Inc.
H2: File Number: | I2: =EBNUMBER -> EB-2013-0116
H3: Exhibit: | I3: 2
H4: Appendix: | I4: 2-10
H5: Page: | I5: 1 of 4
H7: Filed: | I7: October 1,2013
B9: Appendix 2-AA
B10: Capital Projects Table
B13: Projects | C13: =D13-1 -> 2008 | D13: =E13-1 -> 2009 | E13: =F13-1 -> 2010 | F13: =G13-1 -> 2011 | G13: =BridgeYear - 1 -> 2012 | H13: =BridgeYear & " Bridge Year" -> 2013 Bridge Year | I13: =TestYear & " Test Year" -> 2014 Test Year
B14: Reporting Basis | C14: CGAAP | D14: CGAAP | E14: CGAAP | F14: CGAAP | G14: CGAAP | H14: CGAAP | I14: CGAAP
B16: SYSTEM ACCESS
B17: Conestoga Blvd-MTS#1 to Railway Tracks South of Pinebush | C17: 199737
B18: Guelph Ave. - Relocations | C18: 259008
B19: Relocations - Wolseley Ct. | C19: 143807
B20: Subdivision Capital Investment (by developer) | C20: 82647 | D20: 1059862 | E20: 1163537 | F20: 423138 | G20: 850577 | H20: 1271000 | I20: 1271000
B21: Subdivision Capital Investment (by CND Hydro) | C21: 285819 | D21: 849704 | E21: 684915 | F21: 626388 | G21: 181310 | H21: 729000 | I21: 729000
B22: Kossuth Rd. - East of Chilligo Rd. to Fountain St. (last phase) | D22: 731584
B23: Servicing Industrial (Underground) | C23: 1175368 | D23: 784875 | E23: 976601 | F23: 1158403 | G23: 942813 | H23: 1000000 | I23: 1000000
B24: Maple Grove Rd. - Cherry Blossom Rd. to Fountain St. | D24: 143808
B25: Townline Rd. - Can Amera Parkway to Avenue Rd. | D25: 2543 | E25: 44450 | F25: 322783
B26: Servicing Industrial (Overhead) | C26: 60469 | D26: 189122 | E26: 53019 | F26: 106664 | G26: 95795 | H26: 250000 | I26: 250000
B27: Hespeler Rd. at CPR Overpass | E27: 76463 | F27: 317357
B28: Riverbank Dr. (in conjunction with Fairway Rd. bridge) | E28: 253847 | H28: 111000
B29: City Works Yard - 1310 Bishop St. - Relocate Overhead Lines to Underground | E29: 294786
B30: Other Projects (Underground) | E30: 179029
B31: Roundabout - Fountain St. at Dickie Settlement Rd. | E31: 121140
B32: Boxwood Industrial Subdivision | F32: 1660 | H32: 850000
B33: Pinebush Rd. | F33: 12126
B34: Two New 27.6kV Feeders in North West Industrial Area | G34: 246924 | H34: 4000000
B35: Purchase of Two 27.6kV Feeder Breakers | G35: 190752
B36: 46 Grand Ave. S. | G36: 153739
B37: Franklin Boulevard Roundabouts | I37: 2782600
B38: Double Circuit Existing 27.6kV Line - Fountain St. (Shantz Hill to Dickie Settlement Road) - 2.8km | I38: 926300
B39: Highway 401 Widening and Bridge Replacements | I39: 486955
B40: Triple Circuit Existing 27.6kV Line - Speedsville Rd. - North of Royal Oak to Boxwood Industrial Subdivision - 1km | I40: 370520
B42: Miscellaneous | C42: =47847+2690+45536+29674+1283+3605+2690-2990-10039-3316+67371+936+2174-2656+1590+43870+6446+1656+114846+7124+72083+4085+608+455-2020+2733+5265-1 -> 443545 | D42: 204705 | E42: 303857 | F42: 171774 | G42: 370481 | H42: 200000 | I42: 306850
B44: Sub-Total | C44: =SUM(C17:C43) -> 2650400 | D44: =SUM(D20:D43) -> 3966203 | E44: 4151644 | F44: 3140293 | G44: 3032391 | H44: 8411000 | I44: 8123225
G47: Cambridge and North Dumfries Hydro Inc.
H48: File Number: | I48: =EBNUMBER -> EB-2013-0116
H49: Exhibit: | I49: 2
H50: Appendix: | I50: 2-10
H51: Page: | I51: 2 of 4
H53: Filed: | I53: October 1,2013
B54: Projects | C54: =D54-1 -> 2008 | D54: =E54-1 -> 2009 | E54: =F54-1 -> 2010 | F54: =G54-1 -> 2011 | G54: =BridgeYear - 1 -> 2012 | H54: =BridgeYear & " Bridge Year" -> 2013 Bridge Year | I54: =TestYear & " Test Year" -> 2014 Test Year
B55: Reporting Basis | C55: CGAAP | D55: CGAAP | E55: CGAAP | F55: CGAAP | G55: CGAAP | H55: CGAAP | I55: CGAAP
B57: SYSTEM RENEWAL
B58: Area bounded by Cedar St,City Limits,Blenheim Rd,St Andrew St (Overhead) | C58: 1372358
B59: Area bounded by Cedar St,City Limits,Blenheim Rd,St Andrew St and George St (Underground) | C59: 795562
B60: 16kV Rebuild - Elgin St.N. (Overhead) | C60: 375815
B61: 16kV Rebuild - Elgin St.N. (Underground) | C61: 132363
B62: Area supplied by remaining three 4kV stations (Grand, Domm's and Wauchope) (Underground) | D62: 2140315 | E62: 479165
B63: Area Supplied by Remaining Three 4kV Stations (Grand, Domm's and Wauchope) (Overhead) | D63: 1458310 | E63: 210324
B64: Clyde Rd. - Extend 16kV to New Generation | D64: 203316
B65: Trussler Rd. - Brant Waterloo Rd. to Township Rd. 9 | D65: 174993
B66: Brant Waterloo Rd. (Swan St. to 4km East)/Reidsville Rd. (Brant Waterloo to 700m North / Spragues Rd -2Km East | E66: 141 | F66: 495403 | G66: =373795+293352 -> 667147
B67: Beke Rd. (West River Rd. to 500m West of Shouldice Rd./Shouldice Rd. to 700m South of Beke Rd.) | E67: 428896
B68: Hahn Ave./Scott Rd./Valerie Ct./Rudi Ct./Strome Ave./Chapman Ct. Area | E68: 948231
B69: Highman Ave./Ravine Dr./Glenview Ave. | E69: 540871 | F69: 363334
B70: Cameron Rd. (Roseville Rd. to New Dundee Rd.)/Roseville Rd. (Industrial Rd. to 1km East of Cameron Rd.) | E70: 354921
B71: Galt Core Area Upgrades | E71: 57995 | F71: 99397 | G71: 415770 | H71: 500000 | I71: 470520
B72: Pole Replacements | E72: 179864 | F72: 201827 | G72: 182002 | H72: 150000 | I72: 136600
B73: Vanier/Ripplewood/Davies | E73: 89808
B74: Edworthy Sideroad (Roseville Rd. to South of CPR) - 1km | E74: 17998 | F74: 151042
B75: Studiman Rd. (Existing 16kV to Southern Boundary) - 0.8km | E75: 98292
B76: Transformers in Inventory - Capitalized - Not in Capital Projects | E76: 431000 | F76: 378000 | G76: 532716
B77: Old Beverly Rd./Village Rd. Rebuild to East Boundary | E77: 307639
B78: Greenfield Rd./Reidsville Rd. from Stepdown Transformer | E78: 246253
B79: Alps Rd. (Northumberland St. to Dumfries Rd.)/part of Reidsville Rd. - 6.6km | F79: 612447
B80: Roseville Rd. (Dumfries Rd. to 700m West of King's Rd.)/King's Rd. - 3.2km | F80: 297208
B81: Upgrades in Various Areas (Underground) | F81: 158763 | G81: 48855 | H81: 250000 | I81: 243300
B82: Reidsville Rd. - Greenfield Rd. to Wrigley Rd. | F82: 8973 | G82: 238803
B83: West Alps Rd. and part of Trussler Rd. - 1.7km | F83: 228261
B84: Sheffield Rd. from Morrison Rd. to South Boundary | F84: 172886
B85: Preston Parkway Area Underground Rebuild | G85: 133072 | H85: 1000000
B86: Alps Rd. (Dumfries Rd. to 1.9km West) | G86: 146596
B87: Upgrade Half of Radios at existing SCADA Switch Installations | G87: 64929
G88: Cambridge and North Dumfries Hydro Inc.
H89: File Number: | I89: =EBNUMBER -> EB-2013-0116
H90: Exhibit: | I90: 2
H91: Appendix: | I91: 2-10
H92: Page: | I92: 3 of 4
H94: Filed: | I94: October 1,2013
B95: Projects | C95: =D95-1 -> 2008 | D95: =E95-1 -> 2009 | E95: =F95-1 -> 2010 | F95: =G95-1 -> 2011 | G95: =BridgeYear - 1 -> 2012 | H95: =BridgeYear & " Bridge Year" -> 2013 Bridge Year | I95: =TestYear & " Test Year" -> 2014 Test Year
B96: Reporting Basis | C96: CGAAP | D96: CGAAP | E96: CGAAP | F96: CGAAP | G96: CGAAP | H96: CGAAP | I96: CGAAP
B98: Roseville Rd. - West of Northumberland St. to Trussler Rd. - 0.8km | G98: 163427
B99: Spragues Rd. North of Wrigley Rd. - 2.2km | G99: 262672
B100: Rebuild -Sheffield F2 Feeder and Branchton Rabbits-parts of Maple Manor Rd., Morrison Rd., Branchton Rd., Cheese Factory Rd., Lockie Rd. - 18.3km Overhead | H100: 3500000
B101: Northview Acres Area Underground Rebuild | H101: 900000 | I101: 1475880
B102: Fischer Hallman Road - Paul Ave. to New Dundee Rd. - 1.4km Overhaed | H102: 225000
B103: Greenfield Road from West of Dumfries Rd. to East of Spragues Rd./parts of Edworthy Rd. and Alps Rd. – 10.1 km | I103: 1968000
B104: Shellard Road - Morrison Road to Gore Road - 5.1km | I104: 930300
B105: Pole Replacements on Franklin Boulevard not affected by Roundabout Relocations | I105: 463767
B106: Avonlea/Earlwood/Briarwood Area | I106: 389280
B107: Townline Road between River Road and Black Bridge Road - 0.8km - 9 customers (LTLT resolution) | I107: 232600
B108: Welsh Dr./Trussler Rd. Underground Rebuild | I108: 169640
B110: Miscellaneous | C110: =486419+32580+76844+2670-1326-6004+2656+19231+18385+5467+2008+8075+1-71000 -> 576006 | D110: 1264032 | E110: 1870734 | F110: =485680+345131 -> 830811 | G110: =29456-1 -> 29455 | H110: =260000+304000 -> 564000 | I110: 660380
B111: Sub-Total | C111: =SUM(C58:C110) -> 3254112 | D111: 5242975 | E111: 6264142 | F111: 4000363 | G111: 2887456 | H111: 7089000 | I111: 7140269
B112: SYSTEM SERVICE
B113: Installation of Voltage Regulators - Cedar Creek Road | C113: 204371
B114: SCADA Loadbreak Switches | C114: 256152 | E114: 412811 | F114: 560766 | G114: 315091 | H114: 300000 | I114: 286600
B115: Adjustments - South End Feeders to Improve Reliability | F115: 2170 | G115: 390762
B116: Upgrade Radios/Controllers at existing SCADA Switch Installations Overhead | H116: 200000 | I116: 490000
B117: 16kV Single Phase Reclosers Overhead | H117: 200000 | I117: 198700
B119: Miscellaneous | C119: =28668+20283+202+105986+10834+1 -> 165974 | D119: 53831 | E119: =12380+3 -> 12383 | F119: 153419 | G119: =129311+1 -> 129312 | H119: 60000
B121: Sub-Total | C121: =SUM(C113:C120) -> 626497 | D121: =SUM(D114:D120) -> 53831 | E121: 425194 | F121: 716355 | G121: 835165 | H121: 760000 | I121: 975300
B123: GENERAL PLANT
B124: Meter-Residential and General Services & Instrumentation Transformers | C124: 568954
B125: CIS - SAP Conversion Phase 1 | C125: 537503
B126: Single Bucket Vehicle Replacement | C126: 260829
B127: Four Vehicles Under Threshold | C127: 176138
B128: Meter Replacements | D128: 179346 | G128: 371961
B129: Aerial Device Double Bucket Truck - Replacement | D129: 350791
B130: Aerial Device Double Bucket Truck - Replacement | D130: 372960
B131: Clean up Substations | E131: 271964
B132: Uderground Cable Puller | E132: 112090
B133: Meter Capital Additions | F133: 172060 | H133: 503017 | I133: 513643
B134: CIS Replacement Hardware | F134: 126417
B135: CIS Replacement Software | F135: 890705
B136: Topobase GIS Enhancements | F136: 214778
B137: Digger Truck Replacement | F137: 397603
G138: Cambridge and North Dumfries Hydro Inc.
H139: File Number: | I139: =EBNUMBER -> EB-2013-0116
H140: Exhibit: | I140: 2
H141: Appendix: | I141: 2-10
H142: Page: | I142: 4 of 4
H144: Filed: | I144: October 1,2013
B145: Projects | C145: =D145-1 -> 2008 | D145: =E145-1 -> 2009 | E145: =F145-1 -> 2010 | F145: =G145-1 -> 2011 | G145: =BridgeYear - 1 -> 2012 | H145: =BridgeYear & " Bridge Year" -> 2013 Bridge Year | I145: =TestYear & " Test Year" -> 2014 Test Year
B146: Reporting Basis | C146: CGAAP | D146: CGAAP | E146: CGAAP | F146: CGAAP | G146: CGAAP | H146: CGAAP | I146: CGAAP
B148: Smart Meter Costs | G148: 7292744
B149: Roof Replacement | G149: 493500
B150: Control Room Digital Wall Display | G150: 245604
B151: Smart Meter Related Hardware | G151: 219274
B152: ERP Software | G152: 678597
B153: Smart Meter Related Software | G153: 275390
B154: Primary Meter Upgrade | H154: 160000 | I154: 240000
B155: Remotely Interrogated Meters | H155: 170000 | I155: 170000
B156: Generator | H156: 200000
B157: Single Bucket Aerial Truck Replacement | H157: 365000
B158: Business Continuity and Disaster Recovery | I158: 185000
B159: IVR Solution | I159: 150000
B160: Storage Upgrade | I160: 225000
B161: Distribution Management System | I161: 225000
B162: Outage Management System | I162: 445000
B163: Document Management System | I163: 124545
B164: GIS Enhancements | I164: 200000
B165: Bucket Truck Replacement | I165: 450000
B167: Miscellaneous | C167: =17496+144410+108278+71906+109486 -> 451576 | D167: =303557+50000 -> 353557 | E167: 1052153 | F167: 385395 | G167: =938615+123836+59566 -> 1122017 | H167: 1466136 | I167: =779403+109000 -> 888403
B169: Sub-Total | C169: =SUM(C124:C168) -> 1997008 | D169: =SUM(D128:D168) -> 1258663 | E169: 1438217 | F169: 2188969 | G169: 10701099 | H169: 2864153 | I169: 3816593
B171: CAPITAL CONTRIBUTIONS
B172: Contributions and Grants | C172: -658282 | D172: -2326000 | E172: -1804000 | F172: -1343000 | G172: -368000 | H172: -3041000 | I172: -2406000
B174: Sub-Total | C174: =SUM(C172:C173) -> -658282 | D174: -2326000 | E174: -1804000 | F174: -1343000 | G174: -368000 | H174: -3041000 | I174: -2406000
B176: Sub-Total | C176: =SUM(C175:C175) -> 0 | D176: 0 | E176: 0 | F176: 0 | G176: 0 | H176: 0 | I176: 0
B177: Miscellaneous | C177: 0 | D177: 0 | E177: 0
B178: Total | C178: =SUMPRODUCT(--($B15:$B177="Sub-Total"), C$15:C$177)+C177 -> 7869735 | D178: 8195672 | E178: 10475197 | F178: 8702980 | G178: 17088111 | H178: 16083153 | I178: 17649387
B179: Less Renewable Generation Facility Assets and Other Non Rate-Regulated Utility Assets (input as negative)
B180: Total | C180: =C178+C179 -> 7869735 | D180: =D178+D179 -> 8195672 | E180: 10475197 | F180: 8702980 | G180: 17088111 | H180: 16083153 | I180: 17649387
B184: Notes:
B186: 1 Please provide a breakdown of the major components of each capital project undertaken in each year. Please ensure that all projects below the materiality threshold are included in the miscellaneous line. Add more projects as required.
B187: 2 The applicant should group projects appropriately and avoid presentations that result in classification of significant components of the OM&A budget in the miscellaneous category.

Sheet App.2-AB_Capital Expenditures
R1: Cambridge and North Dumfries Hydro Inc.
S2: File Number: | U2: =EBNUMBER -> EB-2013-0116
S3: Exhibit: | U3: 2
S4: Appendix: | U4: 2-8B
S5: Page: | U5: 1 of 1
S7: Filed: | U7: October 1,2013
A9: Appendix 2-AB
A10: Table 2 - Capital Expenditure Summary from Chapter 5 Consolidated Distribution System Plan Filing Requirements
A12: First year of Forecast Period: | B12: =TestYear -> 2014
A13: CATEGORY | B13: Historical Period (previous plan1 & actual) | Q13: Forecast Period (planned)
B14: =E14-1 -> 2009 | E14: =H14-1 -> 2010 | H14: =K14-1 -> 2011 | K14: =N14-1 -> 2012 | N14: =Q14-1 -> 2013 | Q14: =B12 -> 2014 | R14: =Q14+1 -> 2015 | S14: =R14+1 -> 2016 | T14: =S14+1 -> 2017 | U14: 2018
B15: Plan | C15: Actual | D15: Var | E15: Plan | F15: Actual | G15: Var | H15: Plan | I15: Actual | J15: Var | K15: Plan | L15: Actual | M15: Var | N15: Plan | O15: Actual2 | P15: Var
B16: $ '000 | D16: % | E16: $ '000 | G16: % | H16: $ '000 | J16: % | K16: $ '000 | M16: % | N16: $ '000 | P16: % | Q16: $ '000
A17: System Access | B17: 0 | C17: 3966 | D17: =IF(ISERROR((C17-B17)/B17),"--",(C17-B17)/B17) -> -- | E17: 0 | F17: 4152 | G17: =IF(ISERROR((F17-E17)/E17),"--",(F17-E17)/E17) -> -- | H17: 0 | I17: 3140 | J17: =IF(ISERROR((I17-H17)/H17),"--",(I17-H17)/H17) -> -- | K17: 0 | L17: 3032 | M17: =IF(ISERROR((L17-K17)/K17),"--",(L17-K17)/K17) -> -- | N17: 8411 | O17: 0 | P17: =IF(ISERROR((O17-N17)/N17),"--",(O17-N17)/N17) -> -1 | Q17: 8123 | R17: 6857 | S17: 4143 | T17: 4020 | U17: 3496
A18: System Renewal | B18: 0 | C18: 5240 | D18: =IF(ISERROR((C18-B18)/B18),"--",(C18-B18)/B18) -> -- | E18: 0 | F18: 6262 | G18: =IF(ISERROR((F18-E18)/E18),"--",(F18-E18)/E18) -> -- | H18: 0 | I18: 3999 | J18: =IF(ISERROR((I18-H18)/H18),"--",(I18-H18)/H18) -> -- | K18: 0 | L18: 2886 | M18: =IF(ISERROR((L18-K18)/K18),"--",(L18-K18)/K18) -> -- | N18: 7089 | O18: 0 | P18: =IF(ISERROR((O18-N18)/N18),"--",(O18-N18)/N18) -> -1 | Q18: 7140 | R18: 7380 | S18: 4033 | T18: 3766 | U18: 3554
A19: System Service | B19: 0 | C19: 54 | D19: -- | E19: 0 | F19: 425 | G19: -- | H19: 0 | I19: 716 | J19: -- | K19: 0 | L19: 835 | M19: -- | N19: 760 | O19: 0 | P19: -1 | Q19: 975 | R19: 342 | S19: 342 | T19: 342 | U19: 16842
A20: General Plant | B20: 0 | C20: 1257 | D20: -- | E20: 0 | F20: 1436 | G20: -- | H20: 0 | I20: 2187 | J20: -- | K20: 0 | L20: 10699 | M20: -- | N20: 2864 | O20: 0 | P20: -1 | Q20: 3817 | R20: 2169 | S20: 2135 | T20: 2270 | U20: 2060
A21: Capital Contributions | B21: 0 | C21: -2326 | D21: -- | E21: 0 | F21: -1804 | G21: -- | H21: 0 | I21: -1342 | J21: -- | K21: 0 | L21: -368 | M21: -- | N21: -3041 | O21: 0 | P21: -1 | Q21: -2406 | R21: -3800 | S21: -2100 | T21: -2000 | U21: -1800
A22: Change in WIP | C22: -118 | F22: -576 | I22: -338 | K22: 0 | L22: -3602 | M22: --
A23: TOTAL EXPENDITURE | B23: =SUM(B17:B21) -> 0 | C23: =SUM(C17:C22) -> 8073 | D23: -- | E23: =SUM(E17:E21) -> 0 | F23: =SUM(F17:F22) -> 9895 | G23: -- | H23: 0 | I23: =SUM(I17:I22) -> 8362 | J23: -- | K23: =SUM(K17:K22) -> 0 | L23: =SUM(L17:L22) -> 13482 | M23: -- | N23: 16083 | O23: 0 | P23: -1 | Q23: 17649 | R23: 12948 | S23: 8553 | T23: 8398 | U23: =SUM(U17:U21) -> 24152
A24: System O&M | B24: 0 | C24: 3376 | D24: -- | E24: 0 | F24: 3448 | G24: -- | H24: 0 | I24: 3769 | J24: -- | K24: 0 | L24: 5428 | M24: -- | N24: 4665 | O24: 0 | P24: -1 | Q24: 5343 | R24: 5240 | S24: 5036 | T24: 4929 | U24: 4820
A26: Notes to the Table:
A27: 1. Historical “previous plan” data is not required unless a plan has previously been filed
A28: 2. Indicate the number of months of 'actual' data included in the last year of the Historical Period (normally a 'bridge' year): | N28: 0
A30: Explanatory Notes on Variances (complete only if applicable)
A31: Notes on shifts in forecast vs. histrical budgets by category
A34: Notes on year over year Plan vs. Actual variances for Total Expenditures
A37: Notes on Plan vs. Actual variance trends for individual expenditure categories

Sheet App.2-BA1_Fix Asset Cont.CGAAP
L1: Cambridge and North Dumfries Hydro Inc.
M2: File Number: | N2: =EBNUMBER -> EB-2013-0116
M3: Exhibit: | N3: 2
M4: Appendix: | N4: 2-6
M5: Page: | N5: 1 of 1
M7: Filed: | N7: October 1,2013
B9: Appendix 2-BA
B10: Fixed Asset Continuity Schedule - CGAAP/ASPE/USGAAP
F12: Year | G12: 2014
E14: Cost | K14: Accumulated Depreciation
B15: CCA Class | C15: OEB | D15: Description | E15: Opening Balance | F15: Additions | G15: Disposals | H15: Closing Balance | J15: Opening Balance | K15: Additions | L15: Disposals | M15: Closing Balance | N15: Net Book Value
B16: 12 | C16: 1611 | D16: Computer Software (Formally known as Account 1925) | E16: 3530240 | F16: 1334048 | H16: =E16+F16+G16 -> 4864288 | J16: -1999591 | K16: -677095 | M16: =J16+K16+L16 -> -2676686 | N16: =H16+M16 -> 2187602
B17: CEC | C17: 1612 | D17: Land Rights (Formally known as Account 1906) | H17: =E17+F17+G17 -> 0 | M17: =J17+K17+L17 -> 0 | N17: =H17+M17 -> 0
B18: N/A | C18: 1805 | D18: Land | E18: 252923 | H18: =E18+F18+G18 -> 252923 | M18: =J18+K18+L18 -> 0 | N18: =H18+M18 -> 252923
B19: 47 | C19: 1808 | D19: Buildings | E19: 1190197 | H19: =E19+F19+G19 -> 1190197 | J19: -284773 | K19: -21351 | M19: =J19+K19+L19 -> -306124 | N19: =H19+M19 -> 884073
B20: 13 | C20: 1810 | D20: Leasehold Improvements | H20: 0 | M20: 0 | N20: 0
B21: 47 | C21: 1815 | D21: Transformer Station Equipment >50 kV | E21: 10018180 | H21: 10018180 | J21: -3116556 | K21: -365445 | M21: -3482001 | N21: 6536179
B22: 47 | C22: 1820 | D22: Distribution Station Equipment <50 kV | H22: 0 | M22: 0 | N22: 0
B23: 47 | C23: 1825 | D23: Storage Battery Equipment | H23: 0 | M23: 0 | N23: 0
B24: 47 | C24: 1830 | D24: Poles, Towers & Fixtures | E24: 32506015 | F24: 4538305 | H24: 37044320 | J24: -14736022 | K24: -511463 | M24: -15247485 | N24: 21796835
B25: 47 | C25: 1835 | D25: Overhead Conductors & Devices | E25: 38113880 | F25: 5284867 | H25: 43398747 | J25: -17320197 | K25: -695537 | M25: -18015734 | N25: 25383013
B26: 47 | C26: 1840 | D26: Underground Conduit | E26: 27629524 | F26: 1831237 | H26: 29460761 | J26: -13324017 | K26: -212324 | M26: -13536341 | N26: 15924420
B27: 47 | C27: 1845 | D27: Underground Conductors & Devices | E27: 39539687 | F27: 2581383 | H27: 42121070 | J27: -19182722 | K27: -533968 | M27: -19716690 | N27: 22404380
B28: 47 | C28: 1850 | D28: Line Transformers | E28: 46162331 | F28: 2003000 | H28: 48165331 | J28: -22922739 | K28: -651246 | M28: -23573985 | N28: 24591346
B29: 47 | C29: 1855 | D29: Services (Overhead & Underground) | H29: 0 | M29: 0 | N29: 0
B30: 47 | C30: 1860 | D30: Meters | E30: 10430143 | F30: 966643 | H30: 11396786 | J30: -2438408 | K30: -717254 | M30: -3155662 | N30: 8241124
B31: 47 | C31: 1860 | D31: Meters (Smart Meters) | H31: 0 | M31: 0 | N31: 0
B32: N/A | C32: 1905 | D32: Land | E32: 213797 | H32: 213797 | M32: 0 | N32: 213797
B33: 47 | C33: 1908 | D33: Buildings & Fixtures | E33: 5635347 | F33: 55000 | H33: 5690347 | J33: -3682311 | K33: -155304 | M33: -3837615 | N33: 1852732
B34: 13 | C34: 1910 | D34: Leasehold Improvements | H34: 0 | M34: 0 | N34: 0
B35: 8 | C35: 1915 | D35: Office Furniture & Equipment (10 years) | E35: 798680 | F35: 80400 | H35: 879080 | J35: -529072 | K35: -40396 | M35: -569468 | N35: 309612
B36: 8 | C36: 1915 | D36: Office Furniture & Equipment (5 years) | H36: 0 | M36: 0 | N36: 0
B37: 10 | C37: 1920 | D37: Computer Equipment - Hardware | E37: 2680952 | F37: 751500 | H37: 3432452 | J37: -1983140 | K37: -514213 | M37: -2497353 | N37: 935099
B38: 45 | C38: 1920 | D38: Computer Equip.-Hardware(Post Mar. 22/04) | H38: 0 | M38: 0 | N38: 0
B39: 45.1 | C39: 1920 | D39: Computer Equip.-Hardware(Post Mar. 19/07) | H39: 0 | M39: 0 | N39: 0
B40: 10 | C40: 1930 | D40: Transportation Equipment | E40: 4455064 | F40: 520000 | H40: 4975064 | J40: -2798917 | K40: -233631 | M40: -3032548 | N40: 1942516
B41: 8 | C41: 1935 | D41: Stores Equipment | E41: 93729 | H41: 93729 | J41: -93729 | M41: -93729 | N41: 0
B42: 8 | C42: 1940 | D42: Tools, Shop & Garage Equipment | E42: 1200069 | F42: 109000 | H42: 1309069 | J42: -736842 | K42: -85910 | M42: -822752 | N42: 486317
B43: 8 | C43: 1945 | D43: Measurement & Testing Equipment | H43: 0 | M43: 0 | N43: 0
B44: 8 | C44: 1950 | D44: Power Operated Equipment | H44: 0 | M44: 0 | N44: 0
B45: 8 | C45: 1955 | D45: Communications Equipment | H45: 0 | M45: 0 | N45: 0
B46: 8 | C46: 1955 | D46: Communication Equipment (Smart Meters) | H46: 0 | M46: 0 | N46: 0
B47: 8 | C47: 1960 | D47: Miscellaneous Equipment | H47: 0 | M47: 0 | N47: 0
B48: 47 | C48: 1970 | D48: Load Management Controls Customer Premises | H48: 0 | M48: 0 | N48: 0
B49: 47 | C49: 1975 | D49: Load Management Controls Utility Premises | H49: 0 | M49: 0 | N49: 0
B50: 47 | C50: 1980 | D50: System Supervisor Equipment | E50: 714214 | H50: 714214 | J50: -714214 | M50: -714214 | N50: 0
B51: 47 | C51: 1985 | D51: Miscellaneous Fixed Assets | H51: 0 | M51: 0 | N51: 0
B52: 47 | C52: 1990 | D52: Other Tangible Property | H52: 0 | M52: 0 | N52: 0
B53: 47 | C53: 1995 | D53: Contributions & Grants | E53: -20300636 | F53: -2406000 | H53: -22706636 | J53: 5156966 | K53: 425260 | M53: 5582226 | N53: -17124410
C54: 2005 | D54: Property under Capital Lease | E54: 61873 | H54: 61873 | J54: -61873 | M54: =J54+K54+L54 -> -61873 | N54: =H54+M54 -> 0
D55: Work in Process | E55: 3798902 | H55: 3798902 | M55: 0 | N55: 3798902
C56: 2070 | D56: Other Utility Plant - assets not in use | E56: 28694 | H56: 28694 | M56: 0 | N56: 28694
D57: Sub-Total | E57: =SUM(E16:E56) -> 208753805 | F57: =SUM(F16:F56) -> 17649383 | G57: 0 | H57: 226403188 | J57: =SUM(J16:J56) -> -100768157 | K57: =SUM(K16:K56) -> -4989877 | L57: 0 | M57: -105758034 | N57: 120645154
D58: Less Socialized Renewable Energy Generation Investments (input as negative) | H58: =E58+F58+G58 -> 0 | M58: =J58+K58+L58 -> 0 | N58: =H58+M58 -> 0
D59: Less Other Non Rate-Regulated Utility Assets (input as negative) | H59: 0 | M59: =J59+K59+L59 -> 0 | N59: 0
D60: Total PP&E | E60: =SUM(E57:E59) -> 208753805 | F60: =SUM(F57:F59) -> 17649383 | G60: 0 | H60: 226403188 | J60: =SUM(J57:J59) -> -100768157 | K60: =SUM(K57:K59) -> -4989877 | L60: =SUM(L57:L59) -> 0 | M60: =SUM(M57:M59) -> -105758034 | N60: =SUM(N57:N59) -> 120645154
J62: Less: Fully Allocated Depreciation
B63: 10 | D63: Transportation | J63: Transportation | L63: -233631
B64: 8 | D64: Stores Equipment | J64: Stores Equipment
J65: Net Depreciation | L65: =K60-L63-L64 -> -4756246
B67: Notes:
B69: 1 | C69: Tables in the format outlined above covering all fixed asset accounts should be submitted for the Test Year, Bridge Year and all relevant historical years. At a minimum , the applicant must provide data for the earlier of: 1) all historical years back to its last rebasing; or 2) at least three years of historical actuals, in addition to Bridge Year and Test Year forecasts.
B72: 2 | C72: The "CCA Class" for fixed assets should agree with the CCA Class used for tax purposes in Tax Returns. Fixed Assets sub-components may be used where the underlying asset components are classified under multiple CCA Classes for tax purposes. If an applicant uses any different classes from those shown in the table, an explanation should be provided. (also see note 3 below).
B75: 3 | C75: The table may need to be customized for a utility's asset categories or for any new asset accounts announced or authorized by the Board.
B77: 4 | C77: The additions column (F) must not include construction work in progress (CWIP).

Sheet App.2-BA2_Fix Asset Cont.MIFRS (hidden)
L1: File Number: | M1: =EBNUMBER -> EB-2013-0116
L2: Exhibit:
L3: Tab:
L4: Schedule:
L5: Page:
L7: Date:
A9: Appendix 2-BA
A10: Fixed Asset Continuity Schedule - MIFRS
E12: Year
D14: Cost | J14: Accumulated Depreciation
A15: CCA Class | B15: OEB | C15: Description | D15: Opening Balance | E15: Additions | F15: Disposals | G15: Closing Balance | I15: Opening Balance | J15: Additions | K15: Disposals | L15: Closing Balance | M15: Net Book Value
A16: 12 | B16: 1611 | C16: Computer Software (Formally known as Account 1925) | G16: =D16+E16+F16 -> 0 | L16: =I16+J16+K16 -> 0 | M16: =G16+L16 -> 0
A17: CEC | B17: 1612 | C17: Land Rights (Formally known as Account 1906) | G17: =D17+E17+F17 -> 0 | L17: =I17+J17+K17 -> 0 | M17: =G17+L17 -> 0
A18: N/A | B18: 1805 | C18: Land | G18: =D18+E18+F18 -> 0 | L18: =I18+J18+K18 -> 0 | M18: =G18+L18 -> 0
A19: 47 | B19: 1808 | C19: Buildings | G19: =D19+E19+F19 -> 0 | L19: =I19+J19+K19 -> 0 | M19: =G19+L19 -> 0
A20: 13 | B20: 1810 | C20: Leasehold Improvements | G20: 0 | L20: 0 | M20: 0
A21: 47 | B21: 1815 | C21: Transformer Station Equipment >50 kV | G21: 0 | L21: 0 | M21: 0
A22: 47 | B22: 1820 | C22: Distribution Station Equipment <50 kV | G22: 0 | L22: 0 | M22: 0
A23: 47 | B23: 1825 | C23: Storage Battery Equipment | G23: 0 | L23: 0 | M23: 0
A24: 47 | B24: 1830 | C24: Poles, Towers & Fixtures | G24: 0 | L24: 0 | M24: 0
A25: 47 | B25: 1835 | C25: Overhead Conductors & Devices | G25: 0 | L25: 0 | M25: 0
A26: 47 | B26: 1840 | C26: Underground Conduit | G26: 0 | L26: 0 | M26: 0
A27: 47 | B27: 1845 | C27: Underground Conductors & Devices | G27: 0 | L27: 0 | M27: 0
A28: 47 | B28: 1850 | C28: Line Transformers | G28: 0 | L28: 0 | M28: 0
A29: 47 | B29: 1855 | C29: Services (Overhead & Underground) | G29: 0 | L29: 0 | M29: 0
A30: 47 | B30: 1860 | C30: Meters | G30: 0 | L30: 0 | M30: 0
A31: 47 | B31: 1860 | C31: Meters (Smart Meters) | G31: 0 | L31: 0 | M31: 0
A32: N/A | B32: 1905 | C32: Land | G32: 0 | L32: 0 | M32: 0
A33: 47 | B33: 1908 | C33: Buildings & Fixtures | G33: 0 | L33: 0 | M33: 0
A34: 13 | B34: 1910 | C34: Leasehold Improvements | G34: 0 | L34: 0 | M34: 0
A35: 8 | B35: 1915 | C35: Office Furniture & Equipment (10 years) | G35: 0 | L35: 0 | M35: 0
A36: 8 | B36: 1915 | C36: Office Furniture & Equipment (5 years) | G36: 0 | L36: 0 | M36: 0
A37: 10 | B37: 1920 | C37: Computer Equipment - Hardware | G37: 0 | L37: 0 | M37: 0
A38: 45 | B38: 1920 | C38: Computer Equip.-Hardware(Post Mar. 22/04) | G38: 0 | L38: 0 | M38: 0
A39: 45.1 | B39: 1920 | C39: Computer Equip.-Hardware(Post Mar. 19/07) | G39: 0 | L39: 0 | M39: 0
A40: 10 | B40: 1930 | C40: Transportation Equipment | G40: 0 | L40: 0 | M40: 0
A41: 8 | B41: 1935 | C41: Stores Equipment | G41: 0 | L41: 0 | M41: 0
A42: 8 | B42: 1940 | C42: Tools, Shop & Garage Equipment | G42: 0 | L42: 0 | M42: 0
A43: 8 | B43: 1945 | C43: Measurement & Testing Equipment | G43: 0 | L43: 0 | M43: 0
A44: 8 | B44: 1950 | C44: Power Operated Equipment | G44: 0 | L44: 0 | M44: 0
A45: 8 | B45: 1955 | C45: Communications Equipment | G45: 0 | L45: 0 | M45: 0
A46: 8 | B46: 1955 | C46: Communication Equipment (Smart Meters) | G46: 0 | L46: 0 | M46: 0
A47: 8 | B47: 1960 | C47: Miscellaneous Equipment | G47: 0 | L47: 0 | M47: 0
A48: 47 | B48: 1970 | C48: Load Management Controls Customer Premises | G48: 0 | L48: 0 | M48: 0
A49: 47 | B49: 1975 | C49: Load Management Controls Utility Premises | G49: 0 | L49: 0 | M49: 0
A50: 47 | B50: 1980 | C50: System Supervisor Equipment | G50: 0 | L50: 0 | M50: 0
A51: 47 | B51: 1985 | C51: Miscellaneous Fixed Assets | G51: 0 | L51: 0 | M51: 0
A52: 47 | B52: 1990 | C52: Other Tangible Property | G52: 0 | L52: 0 | M52: 0
A53: 47 | B53: 1995 | C53: Contributions & Grants | G53: 0 | L53: 0 | M53: 0
B54: etc. | G54: 0 | L54: 0 | M54: 0
G55: 0 | L55: 0 | M55: 0
C56: Sub-Total | D56: =SUM(D16:D55) -> 0 | E56: =SUM(E16:E55) -> 0 | F56: 0 | G56: 0 | I56: =SUM(I16:I55) -> 0 | J56: =SUM(J16:J55) -> 0 | K56: 0 | L56: 0 | M56: 0
C57: Less Socialized Renewable Energy Generation Investments (input as negative) | G57: =D57+E57+F57 -> 0 | L57: =I57+J57+K57 -> 0 | M57: =G57+L57 -> 0
C58: Less Other Non Rate-Regulated Utility Assets (input as negative) | G58: 0 | L58: 0 | M58: 0
C59: Total PP&E | D59: =SUM(D56:D58) -> 0 | E59: =SUM(E56:E58) -> 0 | F59: 0 | G59: 0 | I59: =SUM(I56:I58) -> 0 | J59: 0 | K59: 0 | L59: 0 | M59: 0
C60: Depreciation Expense adj. from gain or loss on the retirement of assets (pool of like assets)
C61: Total | J61: =J59+J60 -> 0
I63: Less: Fully Allocated Depreciation
A64: 10 | C64: Transportation | I64: Transportation
A65: 8 | C65: Stores Equipment | I65: Stores Equipment
I66: Net Depreciation | K66: =J61-K64-K65 -> 0
A68: Notes:
A70: 1 | B70: Tables in the format outlined above covering all fixed asset accounts should be submitted for the Test Year, Bridge Year and all relevant historical years. At a minimum , the applicant must provide data for the earlier of: 1) all historical years back to its last rebasing; or 2) at least three years of historical actuals, in addition to Bridge Year and Test Year forecasts.
A73: 2 | B73: The "CCA Class" for fixed assets should agree with the CCA Class used for tax purposes in Tax Returns. Fixed Assets sub-components may be used where the underlying asset components are classified under multiple CCA Classes for tax purposes. If an applicant uses any different classes from those shown in the table, an explanation should be provided. (also see note 3 below).
A76: 3 | B76: The table may need to be customized for a utility's asset categories or for any new asset accounts announced or authorized by the Board.
A78: 4 | B78: The additions column (F) must not include construction work in progress (CWIP).

Sheet Appendix 2-BB Service Life Comp
L1: Cambridge and North Dumfries Hydro Inc.
M2: File Number: | O2: =EBNUMBER -> EB-2013-0116
M3: Exhibit: | O3: 4
M4: Appendix: | O4: 4-16
M5: Page: | O5: 1 of 1
M7: Filed: | O7: October 1,2013
A9: Appendix 2-BB
A10: Service Life Comparison
A11: Table F-1 from Kinetrics Report1
C15: Asset Details | F15: Useful Life | J15: USoA Account Number | K15: USoA Account Description | L15: Current | N15: Proposed
A16: Parent* | B16: # | C16: Category| Component | Type | F16: MIN UL | G16: TUL | H16: MAX UL | L16: Years | M16: Rate | N16: Years | O16: Rate
A17: OH | B17: 1 | C17: Fully Dressed Wood Poles | D17: Overall | F17: 35 | G17: 45 | H17: 75 | J17: 1830 | K17: Poles, Towers and Fixtures | L17: 25 | M17: =IF(ISERROR(1/L17), "", 1/L17) -> 0.04 | N17: 50 | O17: =IF(ISERROR(1/N17), "", 1/N17) -> 0.02
D18: Cross Arm | E18: Wood | F18: 20 | G18: 40 | H18: 55 | M18: =IF(ISERROR(1/L18), "", 1/L18) ->  | O18: =IF(ISERROR(1/N18), "", 1/N18) -> 
E19: Steel | F19: 30 | G19: 70 | H19: 95
B20: 2 | C20: Fully Dressed Concrete Poles | D20: Overall | F20: 50 | G20: 60 | H20: 80 | J20: 1830 | K20: Poles, Towers and Fixtures | L20: 25 | M20: 0.04 | N20: 35 | O20: 0.02857142857
D21: Cross Arm | E21: Wood | F21: 20 | G21: 40 | H21: 55
E22: Steel | F22: 30 | G22: 70 | H22: 95
B23: 3 | C23: Fully Dressed Steel Poles | D23: Overall | F23: 60 | G23: 60 | H23: 80
D24: Cross Arm | E24: Wood | F24: 20 | G24: 40 | H24: 55
E25: Steel | F25: 30 | G25: 70 | H25: 95
B26: 4 | C26: OH Line Switch | F26: 30 | G26: 45 | H26: 55 | J26: 1835 | K26: OH Conductors and Devices | L26: 25 | M26: 0.04 | N26: 30 | O26: 0.03333333333
B27: 5 | C27: OH Line Switch Motor | F27: 15 | G27: 25 | H27: 25 | J27: 1835 | K27: OH Conductors and Devices | L27: 25 | M27: 0.04 | N27: 20 | O27: 0.05
B28: 6 | C28: OH Line Switch RTU | F28: 15 | G28: 20 | H28: 20 | J28: 1835 | K28: OH Conductors and Devices | L28: 25 | M28: 0.04 | N28: 15 | O28: 0.06666666667
B29: 7 | C29: OH Integral Switches | F29: 35 | G29: 45 | H29: 60
B30: 8 | C30: OH Conductors | F30: 50 | G30: 60 | H30: 75 | J30: 1835 | K30: OH Conductors and Devices | L30: 25 | M30: 0.04 | N30: 50 | O30: 0.02
B31: 9 | C31: OH Transformers & Voltage Regulators | F31: 30 | G31: 40 | H31: 60 | J31: 1835 | K31: OH Conductors and Devices | L31: 25 | M31: 0.04 | N31: 20 | O31: 0.05
B32: 10 | C32: OH Shunt Capacitor Banks | F32: 25 | G32: 30 | H32: 40 | J32: 1850 | K32: Line Transformers | L32: 25 | M32: 0.04 | N32: 25 | O32: 0.04
B33: 11 | C33: Reclosers | F33: 25 | G33: 40 | H33: 55 | J33: 1835 | K33: OH Conductors and Devices | L33: 25 | M33: 0.04 | N33: 50 | O33: 0.02
A34: TS & MS | B34: 12 | C34: Power Transformers | D34: Overall | F34: 30 | G34: 45 | H34: 60 | J34: 1815 | K34: TS Equipment | L34: 40 | M34: 0.025 | N34: 55 | O34: 0.01818181818
D35: Bushing | F35: 10 | G35: 20 | H35: 30
D36: Tap Changer | F36: 20 | G36: 30 | H36: 60
B37: 13 | C37: Station Service Transformer | F37: 30 | G37: 45 | H37: 55 | J37: 1850 | K37: Line Transformers | L37: 40 | M37: 0.025 | N37: 50 | O37: 0.02
B38: 14 | C38: Station Grounding Transformer | F38: 30 | G38: 40 | H38: 40
B39: 15 | C39: Station DC System | D39: Overall | F39: 10 | G39: 20 | H39: 30 | J39: 1815 | K39: TS Equipment | L39: 40 | M39: 0.025 | N39: 30 | O39: 0.03333333333
D40: Battery Bank | F40: 10 | G40: 15 | H40: 15 | J40: 1815 | K40: TS Equipment | L40: 40 | M40: 0.025 | N40: 15 | O40: 0.06666666667
D41: Charger | F41: 20 | G41: 20 | H41: 30 | J41: 1815 | K41: TS Equipment | L41: 40 | M41: 0.025 | N41: 20 | O41: 0.05
B42: 16 | C42: Station Metal Clad Switchgear | D42: Overall | F42: 30 | G42: 40 | H42: 60 | J42: 1815 | K42: TS Equipment | L42: 40 | M42: 0.025 | N42: 60 | O42: 0.01666666667
D43: Removable Breaker | F43: 25 | G43: 40 | H43: 60 | J43: 1815 | K43: TS Equipment | L43: 40 | M43: 0.025 | N43: 40 | O43: 0.025
B44: 17 | C44: Station Independent Breakers | F44: 35 | G44: 45 | H44: 65
B45: 18 | C45: Station Switch | F45: 30 | G45: 50 | H45: 60 | J45: 1815 | K45: TS Equipment | L45: 40 | M45: 0.025 | N45: 30 | O45: 0.03333333333
B46: 19 | C46: Electromechanical Relays | F46: 25 | G46: 35 | H46: 50
B47: 20 | C47: Solid State Relays | F47: 10 | G47: 30 | H47: 45
B48: 21 | C48: Digital & Numeric Relays | F48: 15 | G48: 20 | H48: 20 | J48: 1815 | K48: TS Equipment | L48: 40 | M48: 0.025 | N48: 15 | O48: 0.06666666667
B49: 22 | C49: Rigid Busbars | F49: 30 | G49: 55 | H49: 60 | J49: 1815 | K49: TS Equipment | L49: 40 | M49: 0.025 | N49: 55 | O49: 0.01818181818
B50: 23 | C50: Steel Structure | F50: 35 | G50: 50 | H50: 90 | J50: 1815 | K50: TS Equipment | L50: 50 | M50: 0.02 | N50: 80 | O50: 0.0125
A51: UG | B51: 24 | C51: Primary Paper Insulated Lead Covered (PILC) Cables | F51: 60 | G51: 65 | H51: 75
B52: 25 | C52: Primary Ethylene-Propylene Rubber (EPR) Cables | F52: 20 | G52: 25 | H52: 25
B53: 26 | C53: Primary Non-Tree Retardant (TR) Cross Linked Polyethylene (XLPE) Cables Direct Buried | F53: 20 | G53: 25 | H53: 30
B54: 27 | C54: Primary Non-TR XLPE Cables in Duct | F54: 20 | G54: 25 | H54: 30
B55: 28 | C55: Primary TR XLPE Cables Direct Buried | F55: 25 | G55: 30 | H55: 35 | J55: 1845 | K55: UG Conductors and Devices | L55: 25 | M55: 0.04 | N55: 35 | O55: 0.02857142857
B56: 29 | C56: Primary TR XLPE Cables in Duct | F56: 35 | G56: 40 | H56: 55 | J56: 1845 | K56: UG Conductors and Devices | L56: 25 | M56: 0.04 | N56: 50 | O56: 0.02
B57: 30 | C57: Secondary PILC Cables | F57: 70 | G57: 75 | H57: 80
B58: 31 | C58: Secondary Cables Direct Buried | F58: 25 | G58: 35 | H58: 40 | J58: 1845 | K58: UG Conductors and Devices | L58: 25 | M58: 0.04 | N58: 60 | O58: 0.01666666667
B59: 32 | C59: Secondary Cables in Duct | F59: 35 | G59: 40 | H59: 60 | J59: 1845 | K59: UG Conductors and Devices | L59: 25 | M59: 0.04 | N59: 60 | O59: 0.01666666667
B60: 33 | C60: Network Tranformers | D60: Overall | F60: 20 | G60: 35 | H60: 50
D61: Protector | F61: 20 | G61: 35 | H61: 40
B62: 34 | C62: Pad-Mounted Transformers | F62: 25 | G62: 40 | H62: 45 | J62: 1850 | K62: Line Transformers | L62: 25 | M62: 0.04 | N62: 50 | O62: 0.02
B63: 35 | C63: Submersible/Vault Transformers | F63: 25 | G63: 35 | H63: 45 | J63: 1850 | K63: Line Transformers | L63: 25 | M63: 0.04 | N63: 25 | O63: 0.04
B64: 36 | C64: UG Foundation | F64: 35 | G64: 55 | H64: 70 | J64: 1840 | K64: UG Conduit | L64: 25 | M64: 0.04 | N64: 60 | O64: 0.01666666667
B65: 37 | C65: UG Vaults | D65: Overall | F65: 40 | G65: 60 | H65: 80 | J65: 1840 | K65: UG Conduit | L65: 25 | M65: 0.04 | N65: 60 | O65: 0.01666666667
D66: Roof | F66: 20 | G66: 30 | H66: 45 | J66: 1850 | K66: Line Transformers | L66: 25 | M66: 0.04 | N66: 40 | O66: 0.025
B67: 38 | C67: UG Vault Switches | F67: 20 | G67: 35 | H67: 50 | J67: 1845 | K67: UG Conduit and Devices | L67: 25 | M67: 0.04 | N67: 30 | O67: 0.03333333333
B68: 39 | C68: Pad-Mounted Switchgear | F68: 20 | G68: 30 | H68: 45 | J68: 1845 | K68: UG Conduit and Devices | L68: 25 | M68: 0.04 | N68: 30 | O68: 0.03333333333
B69: 40 | C69: Ducts | F69: 30 | G69: 50 | H69: 85 | J69: 1840 | K69: UG Conduit | L69: 25 | M69: 0.04 | N69: 75 | O69: 0.01333333333
B70: 41 | C70: Concrete Encased Duct Banks | F70: 35 | G70: 55 | H70: 80 | J70: 1840 | K70: UG Conduit | L70: 25 | M70: 0.04 | N70: 80 | O70: 0.0125
B71: 42 | C71: Cable Chambers | F71: 50 | G71: 60 | H71: 80 | J71: 1840 | K71: UG Conduit | L71: 25 | M71: 0.04 | N71: 60 | O71: 0.01666666667
A72: S | B72: 43 | C72: Remote SCADA | F72: 15 | G72: 20 | H72: 30 | J72: 1980 | K72: System Supervisory Equipment | L72: 15 | M72: 0.06666666667 | N72: 15 | O72: 0.06666666667
A75: Table F-2 from Kinetrics Report1
C77: Asset Details | F77: Useful Life Range | J77: USoA Account Number | K77: USoA Account Description | L77: Current | N77: Proposed
B78: # | C78: Category| Component | Type | L78: Years | M78: Rate | N78: Years | O78: Rate
B79: 1 | C79: Office Equipment | F79: 5-15 | J79: 1915 | K79: Office Equipment and Furniture | L79: 10 | M79: =IF(ISERROR(1/L79), "", 1/L79) -> 0.1 | N79: 10 | O79: =IF(ISERROR(1/N79), "", 1/N79) -> 0.1
B80: 2 | C80: Vehicles | D80: Trucks & Buckets | F80: 5-15 | J80: 1930 | K80: Transportation Equipment | L80: 8 | M80: =IF(ISERROR(1/L80), "", 1/L80) -> 0.125 | N80: 12 | O80: =IF(ISERROR(1/N80), "", 1/N80) -> 0.08333333333
D81: Trailers | F81: 5-20 | J81: 1930 | K81: Transportation Equipment | L81: 8 | M81: 0.125 | N81: 20 | O81: 0.05
D82: Vans | F82: 5-10 | J82: 1930 | K82: Transportation Equipment | L82: 5 | M82: 0.2 | N82: 8 | O82: 0.125
B83: 3 | C83: Administrative Buildings | F83: 50-75 | J83: 1908 | K83: Building and Fixtures | L83: 50 | M83: 0.02 | N83: 80 | O83: 0.0125
B84: 4 | C84: Leasehold Improvements | F84: Lease dependent
B85: 5 | C85: Station Buildings | D85: Station Buildings | F85: 50-75 | J85: 1808 | K85: Building and Fixtures | L85: 50 | M85: 0.02 | N85: 80 | O85: 0.0125
D86: Parking | F86: 25-30 | J86: 1808 | K86: Building and Fixtures | L86: 50 | M86: 0.02 | N86: 25 | O86: 0.04
D87: Fence | F87: 25-60 | J87: 1808 | K87: Building and Fixtures | L87: 50 | M87: 0.02 | N87: 35 | O87: 0.02857142857
D88: Roof | F88: 20-30 | J88: 1808 | K88: Building and Fixtures | L88: 50 | M88: 0.02 | N88: 20 | O88: 0.05
B89: 6 | C89: Computer Equipment | D89: Hardware | F89: 3-5 | J89: 1920 | K89: Computer Hardware | L89: 5 | M89: 0.2 | N89: 3 | O89: 0.3333333333
D90: Software | F90: 2-5 | J90: 1925 | K90: Computer Software | L90: 5 | M90: 0.2 | N90: 5 | O90: 0.2
B91: 7 | C91: Equipment | D91: Power Operated | F91: 5-10 | J91: 1940 | K91: Tools,Shop and Garage Equipment | L91: 10 | M91: 0.1 | N91: 10 | O91: 0.1
D92: Stores | F92: 5-10 | J92: 1940 | K92: Tools,Shop and Garage Equipment | L92: 10 | M92: 0.1 | N92: 10 | O92: 0.1
D93: Tools, Shop, Garage Equipment | F93: 5-10 | J93: 1940 | K93: Tools,Shop and Garage Equipment | L93: 10 | M93: 0.1 | N93: 10 | O93: 0.1
D94: Measurement & Testing Equipment | F94: 5-10
B95: 8 | C95: Communication | D95: Towers | F95: 60-70
D96: Wireless | F96: 2-10
B97: 9 | C97: Residential Energy Meters | F97: 25-35
B98: 10 | C98: Industrial/Commercial Energy Meters | F98: 25-35 | J98: 1860 | K98: Meters | L98: 25 | M98: 0.04 | N98: 25 | O98: 0.04
B99: 11 | C99: Wholesale Energy Meters | F99: 15-30 | J99: 1860 | K99: Meters | L99: 25 | M99: 0.04 | N99: 20 | O99: 0.05
B100: 12 | C100: Current & Potential Transformer (CT & PT) | F100: 35-50 | J100: 1860 | K100: Meters | L100: 25 | M100: 0.04 | N100: 45 | O100: 0.02222222222
B101: 13 | C101: Smart Meters | F101: 5-15 | J101: 1860 | K101: Meters | L101: 15 | M101: 0.06666666667 | N101: 15 | O101: 0.06666666667
B102: 14 | C102: Repeaters - Smart Metering | F102: 10-15
B103: 15 | C103: Data Collectors - Smart Metering | F103: 15-20
A106: * TS & MS = Transformer and Municipal Stations UG = Underground Systems S = Monitoring and Control Systems
A108: Note 1: | B108: Tables F-1 and F-2 above are to be used as a reference in order to complete columns J, K, L and N.
B109: See pages 17-19 of Kinetrics Report

Sheet Instruction for App. 2-C MIFRS (hidden)
A1: General Instructions to MIFRS Appendices
A2: Types of Schedules to File
A4: The purpose of this tab is to provide general instructions. The specific instructions to each appendix are listed in footnotes to each appendix.
A6: Applicants filing a MIFRS application should provide the following information regarding Appendix 2-B and Appendix 2-C:
A8: · If an applicant chooses to adopt IFRS for financial reporting in 2012, in its 2014 cost of service application it must file information for the historic year (2012),modified IFRS and also provide forecasts for the bridge year (2013) and test year (2014) information in modified IFRS format. The years required to be filed prior to the historic year 2012 may be provided in CGAAP only, except for the year 2011 which must also be presented in modified IFRS format.
A11: · If an applicant chooses to adopt IFRS for financial reporting in 2013, in its 2014 cost of service application it must file information for the year prior (i.e. 2012 – the historic year) in both CGAAP and modified IFRS format, and present modified IFRS based forecasts for the bridge (2013) and test years (2014). The years required to be filed prior to the historic year 2012 may be provided in CGAAP only.
A14: · If an applicant chooses to adopt IFRS for financial reporting in 2014, in its 2014 cost of service application it must provide the required actual years (2012) and the bridge year (2013) in CGAAP based format. An applicant must present modified IFRS based forecasts for the bridge (2013) and test years (2014).
E18: Date of Adoption of IFRS
E19: for Financial Reporting Purposes:
E20: January 1, 2012 | F20: January 1, 2013 | G20: January 1, 2014
A21: Information | C21: 2010 H & Prior | E21: CGAAP | F21: CGAAP | G21: CGAAP
A22: Required to be | C22: 2011 H | E22: MIFRS & CGAAP | F22: CGAAP | G22: CGAAP
A23: Filed in 2014 | C23: 2012 H | E23: MIFRS | F23: MIFRS & CGAAP | G23: CGAAP
A24: CoS Application: | C24: 2013 B | E24: MIFRS | F24: MIFRS | G24: MIFRS & CGAAP
C25: 2014 T | E25: MIFRS | F25: MIFRS | G25: MIFRS
A27: Date of Transition to IFRS | E27: January 1, 2011 | F27: January 1, 2012 | G27: January 1, 2013
A29: H - historic year regulatory financial information
A30: B - bridge year regulatory financial information
A31: T - test year regulatory financial information
B32: Year in which both CGAAP and MIFRS information required
A34: For those applicants that adopted IFRS on January 1, 2012 for financial reporting purposes, the date of transition is January 1, 2011. For those applicants that adopted IFRS on January 1, 2013 for financial reporting purposes, the date of transition is January 1, 2012. For those applicants that adopted IFRS on January 1, 2014 for financial reporting purposes, the date of transition is January 1, 2013.
A39: Summary of Impacts to Revenue Requirement from Transition to MIFRS - Appendix 2-YA
A40: For modified IFRS applications, the applicants must provide a summary of the dollar impacts of modified IFRS to each component of the revenue requirement (e.g. rate base, operating costs, etc), including the overall impact on the proposed revenue requirement. Accordingly, the applicants must identify financial differences and resulting revenue requirement impacts arising from the adoption of modified IFRS accounting.
A45: Depreciation and Amortization - Appendix 2-C
A46: If an applicant chooses to adopt IFRS for financial reporting in 2012, the applicant must complete Appendix 2-CA to Appendix 2-CE (inclusive).
A47: If an applicant chooses to adopt IFRS for financial reporting in 2013, the applicant must complete Appendix 2-CF to Appendix 2-CI (inclusive).
A48: If an applicant chooses to adopt IFRS for financial reporting in 2014, the applicant must complete Appendix 2-CJ to Appendix 2-CM (inclusive).
A51: Continuity of Historic Cost under MIFRS - Appendix 2-BA2
A53: Regulatory Gross Assets of Property, Plant and Equipment
A54: For an applicant that adopted IFRS on January 1, 2012 for financial reporting purposes, the applicant must establish the continuity of historic cost by using the December 31, 2010 regulatory gross assets of property, plant and equipment as the opening January 1, 2011 regulatory gross assets. The applicant must provide schedules (including Appendix 2-BA2, Fixed Asset Continuity Schedule) which must identify the following details to substantiate the continuity of historic cost for regulatory purposes:
A58: · December 31, 2010 regulatory gross assets of property, plant and equipment, by asset class; and
A59: · January 1, 2011 regulatory gross assets of property, plant and equipment, by asset class.
A61: For an applicant that adopts IFRS on January 1, 2013 for financial reporting purposes, the applicant must establish the continuity of historic cost by using the December 31, 2011 regulatory gross assets of property, plant and equipment as the opening January 1, 2012 regulatory gross assets. The applicant must provide schedules (including Appendix 2-BA2, Fixed Asset Continuity Schedule) which must identify the following details to substantiate the continuity of historic cost for regulatory purposes:
A65: · December 31, 2011 regulatory gross assets of property, plant and equipment, by asset class; and
A66: · January 1, 2012 regulatory gross assets of property, plant and equipment, by asset class.
A68: For an applicant that adopts IFRS on January 1, 2014 for financial reporting purposes, the applicant must establish the continuity of historic cost by using the December 31, 2012 regulatory gross assets of property, plant and equipment as the opening January 1, 2013 regulatory gross assets. The applicant must provide schedules (including Appendix 2-BA2, Fixed Asset Continuity Schedule) which must identify the following details to substantiate the continuity of historic cost for regulatory purposes:
A72: · December 31, 2012 regulatory gross assets of property, plant and equipment, by asset class; and
A73: · January 1, 2013 regulatory gross assets of property, plant and equipment, by asset class.
A75: Accumulated Depreciation
A76: For an applicant that adopted IFRS on January 1, 2012 for financial reporting purposes, the applicant must establish the continuity of historic cost by using the December 31, 2010 regulatory accumulated depreciation as the opening January 1, 2011 regulatory accumulated depreciation. The applicant must provide schedules (including Appendix 2-BA2, Fixed Asset Continuity Schedule) which must identify the following details to substantiate the continuity of historic cost for regulatory purposes:
A79: · December 31, 2010 regulatory accumulated depreciation, by asset class; and
A80: · January 1, 2011 regulatory accumulated depreciation, by asset class.
A82: For an applicant that adopted IFRS on January 1, 2013 for financial reporting purposes, the applicant must establish the continuity of historic cost by using the December 31, 2011 regulatory accumulated depreciation as the opening January 1, 2012 regulatory accumulated depreciation. The applicant must provide schedules (including Appendix 2-BA2, Fixed Asset Continuity Schedule) which must identify the following details to substantiate the continuity of historic cost for regulatory purposes:
A85: · December 31, 2011 regulatory accumulated depreciation, by asset class; and
A86: · January 1, 2012 regulatory accumulated depreciation, by asset class.
A88: For an applicant that adopted IFRS on January 1, 2014 for financial reporting purposes, the applicant must establish the continuity of historic cost by using the December 31, 2012 regulatory accumulated depreciation as the opening January 1, 2013 regulatory accumulated depreciation. The applicant must provide schedules (including Appendix 2-BA2, Fixed Asset Continuity Schedule) which must identify the following details to substantiate the continuity of historic cost for regulatory purposes:
A91: · December 31, 2012 regulatory accumulated depreciation, by asset class; and
A92: · January 1, 2013 regulatory accumulated depreciation, by asset class.
A94: Account 1575, IFRS-CGAAP Transitional PP&E Amounts - Appendix 2-EA, Appendix 2-EB, Appendix 2-EC
A95: Please refer to section 2.12.4 of the Filing Requirements.
A97: Account 1576, Accounting Changes Under CGAAP - Appendix 2-ED, Appendix 2-EE
A98: Please refer to section 2.12.5 of the Filing Requirements.

Sheet App.2-CA_CGAAP_DepExp_2011 (hidden)
K1: File Number: | L1: =EBNUMBER -> EB-2013-0116
K2: Exhibit:
K3: Tab:
K4: Schedule:
K5: Page:
K7: Date:
A9: Appendix 2-CA
A10: Depreciation and Amortization Expense
A11: Assumes the applicant adopted IFRS for financial reporting purposes January 1, 2012
C12: Year | D12: 2011 | E12: CGAAP
A14: Account | B14: Description | C14: Opening Regulatory Gross PP&E as at Jan 1, 2011 | D14: Less Fully Depreciated | E14: Net for Depreciation | F14: Additions | G14: Total for Depreciation | H14: Years | I14: Depreciation Rate | J14: Depreciation Expense | K14: 2011 Depreciation Expense per Appendix 2-B Fixed Assets, Column K (l) | L14: Variance 2
C15: (a) | D15: (b) | E15: (c) | F15: (d) | G15: (e) = (c) + ½ x (d) 1 | H15: (f) | I15: (g) = 1 / (f) | J15: (h) = (e) / (f) | L15: (m) = (h) - (l)
A16: 1611 | B16: Computer Software (Formally known as Account 1925) | E16: =C16-D16 -> 0 | G16: =E16+0.5*F16 -> 0 | I16: =IF(H16=0,0,1/H16) -> 0 | J16: =IF(H16=0,0,G16/H16) -> 0 | L16: =IF(ISERROR(+J16-K16), 0, +J16-K16) -> 0
A17: 1612 | B17: Land Rights (Formally known as Account 1906) | E17: =C17-D17 -> 0 | G17: =E17+0.5*F17 -> 0 | I17: 0 | J17: 0 | L17: 0
A18: 1805 | B18: Land | E18: 0 | G18: 0 | I18: 0 | J18: 0 | L18: 0
A19: 1808 | B19: Buildings | E19: 0 | G19: 0 | I19: 0 | J19: 0 | L19: 0
A20: 1810 | B20: Leasehold Improvements | E20: 0 | G20: 0 | I20: 0 | J20: 0 | L20: 0
A21: 1815 | B21: Transformer Station Equipment >50 kV | E21: 0 | G21: 0 | I21: 0 | J21: 0 | L21: 0
A22: 1820 | B22: Distribution Station Equipment <50 kV | E22: 0 | G22: 0 | I22: 0 | J22: 0 | L22: 0
A23: 1825 | B23: Storage Battery Equipment | E23: 0 | G23: 0 | I23: 0 | J23: 0 | L23: 0
A24: 1830 | B24: Poles, Towers & Fixtures | E24: 0 | G24: 0 | I24: 0 | J24: 0 | L24: 0
A25: 1835 | B25: Overhead Conductors & Devices | E25: 0 | G25: 0 | I25: 0 | J25: 0 | L25: 0
A26: 1840 | B26: Underground Conduit | E26: 0 | G26: 0 | I26: 0 | J26: 0 | L26: 0
A27: 1845 | B27: Underground Conductors & Devices | E27: 0 | G27: 0 | I27: 0 | J27: 0 | L27: 0
A28: 1850 | B28: Line Transformers | E28: 0 | G28: 0 | I28: 0 | J28: 0 | L28: 0
A29: 1855 | B29: Services (Overhead & Underground) | E29: 0 | G29: 0 | I29: 0 | J29: 0 | L29: 0
A30: 1860 | B30: Meters | E30: 0 | G30: 0 | I30: 0 | J30: 0 | L30: 0
A31: 1860 | B31: Meters (Smart Meters) | E31: 0 | G31: 0 | I31: 0 | J31: 0 | L31: 0
A32: 1905 | B32: Land | E32: 0 | G32: 0 | I32: 0 | J32: 0 | L32: 0
A33: 1908 | B33: Buildings & Fixtures | E33: 0 | G33: 0 | I33: 0 | J33: 0 | L33: 0
A34: 1910 | B34: Leasehold Improvements | E34: 0 | G34: 0 | I34: 0 | J34: 0 | L34: 0
A35: 1915 | B35: Office Furniture & Equipment (10 years) | E35: 0 | G35: 0 | I35: 0 | J35: 0 | L35: 0
A36: 1915 | B36: Office Furniture & Equipment (5 years) | E36: 0 | G36: 0 | I36: 0 | J36: 0 | L36: 0
A37: 1920 | B37: Computer Equipment - Hardware | E37: 0 | G37: 0 | I37: 0 | J37: 0 | L37: 0
A38: 1920 | B38: Computer Equip.-Hardware(Post Mar. 22/04) | E38: 0 | G38: 0 | I38: 0 | J38: 0 | L38: 0
A39: 1920 | B39: Computer Equip.-Hardware(Post Mar. 19/07) | E39: 0 | G39: 0 | I39: 0 | J39: 0 | L39: 0
A40: 1930 | B40: Transportation Equipment | E40: 0 | G40: 0 | I40: 0 | J40: 0 | L40: 0
A41: 1935 | B41: Stores Equipment | E41: 0 | G41: 0 | I41: 0 | J41: 0 | L41: 0
A42: 1940 | B42: Tools, Shop & Garage Equipment | E42: 0 | G42: 0 | I42: 0 | J42: 0 | L42: 0
A43: 1945 | B43: Measurement & Testing Equipment | E43: 0 | G43: 0 | I43: 0 | J43: 0 | L43: 0
A44: 1950 | B44: Power Operated Equipment | E44: 0 | G44: 0 | I44: 0 | J44: 0 | L44: 0
A45: 1955 | B45: Communications Equipment | E45: 0 | G45: 0 | I45: 0 | J45: 0 | L45: 0
A46: 1955 | B46: Communication Equipment (Smart Meters) | E46: 0 | G46: 0 | I46: 0 | J46: 0 | L46: 0
A47: 1960 | B47: Miscellaneous Equipment | E47: 0 | G47: 0 | I47: 0 | J47: 0 | L47: 0
A48: 1970 | B48: Load Management Controls Customer Premises | E48: 0 | G48: 0 | I48: 0 | J48: 0 | L48: 0
A49: 1975 | B49: Load Management Controls Utility Premises | E49: 0 | G49: 0 | I49: 0 | J49: 0 | L49: 0
A50: 1980 | B50: System Supervisor Equipment | E50: 0 | G50: 0 | I50: 0 | J50: 0 | L50: 0
A51: 1985 | B51: Miscellaneous Fixed Assets | E51: 0 | G51: 0 | I51: 0 | J51: 0 | L51: 0
A52: 1990 | B52: Other Tangible Property | E52: 0 | G52: 0 | I52: 0 | J52: 0 | L52: 0
A53: 1995 | B53: Contributions & Grants | E53: 0 | G53: 0 | I53: 0 | J53: 0 | L53: 0
A54: etc. | E54: 0 | G54: 0 | I54: 0 | J54: 0 | L54: 0
E55: 0 | G55: 0 | I55: 0 | J55: 0 | L55: 0
B56: Total | C56: =SUM(C16:C55) -> 0 | D56: =SUM(D16:D55) -> 0 | E56: =SUM(E16:E55) -> 0 | F56: =SUM(F16:F55) -> 0 | G56: =SUM(G16:G55) -> 0 | J56: =SUM(J16:J55) -> 0 | K56: =SUM(K16:K55) -> 0 | L56: =SUM(L16:L55) -> 0
A58: Notes:
A60: 1 | B60: Board policy of the "half-year" rule - the applicant must ensure that additions in the year attract a half-year depreciation expense in the first year. Deviations from this standard practice must be supported in the application.
A61: 2 | B61: The applicant must provide an explanation of material variances in evidence.
A63: General | B63: Applicants must provide a breakdown of depreciation and amortization expense in the above format for all relevant accounts. Asset Retirement Obligations (AROs), depreciation and accretion expense should be disclosed separately consistent with the Notes of historical Audited Financial Statements.

Sheet App.2-CB_MIFRS_DepExp_2011 (hidden)
N1: File Number: | O1: =EBNUMBER -> EB-2013-0116
N2: Exhibit:
N3: Tab:
N4: Schedule:
N5: Page:
N7: Date:
A9: Appendix 2-CB
A10: Depreciation and Amortization Expense
A11: Assumes the applicant adopted IFRS for financial reporting purposes January 1, 2012
C12: Year | D12: 2011 | E12: MIFRS
A14: Account | B14: Description | C14: Opening NBV as at Jan 1, 2011 5 | D14: Additions | E14: Average Remaining Life of Opening NBV 4 | F14: Years (new additions only) 3 | G14: Depreciation Rate on New Additions | H14: Depreciation Expense on Opening NBV | I14: Depreciation Expense on Additions 1 | J14: 2011 Depreciation Expense | K14: 2011 Depreciation Expense per Appendix 2-B Fixed Assets, Column K (l) | L14: Variance 2 | M14: Depreciation Expense on 2011 Full Year Additions | N14: Less Depreciation Expense on Assets Fully Depreciated during the year (o) | O14: 2011 Full Year Depreciation 6
C15: (a) | D15: (d) | E15: (i) | F15: (f) | G15: (g) = 1 / (f) | H15: (j) = (a) / (i) | I15: (h)=((d)*0.5)/(f) | J15: (k) = (j) + (h) | L15: (m) = (k) - (l) | M15: (n) = (d)/(f) | O15: (p) = (j) + (n) - (o)
A16: 1611 | B16: Computer Software (Formally known as Account 1925) | G16: =IF(F16=0,0,1/F16) -> 0 | H16: =IF(E16=0,0,+C16/E16) -> 0 | I16: =IF(F16=0,0,+(D16*0.5)/F16) -> 0 | J16: =IF(ISERROR(+H16+I16), 0, +H16+I16) -> 0 | L16: =IF(ISERROR(+J16-K16), 0, +J16-K16) -> 0 | M16: =IF(F16=0,0,+(D16)/F16) -> 0 | O16: =IF(ISERROR(+M16+H16-N16), 0, +M16+H16-N16) -> 0
A17: 1612 | B17: Land Rights (Formally known as Account 1906) | G17: 0 | H17: 0 | I17: 0 | J17: 0 | L17: 0 | M17: 0 | O17: =IF(ISERROR(+M17+H17-N17), 0, +M17+H17-N17) -> 0
A18: 1805 | B18: Land | G18: 0 | H18: 0 | I18: 0 | J18: 0 | L18: 0 | M18: 0 | O18: 0
A19: 1808 | B19: Buildings | G19: 0 | H19: 0 | I19: 0 | J19: 0 | L19: 0 | M19: 0 | O19: 0
A20: 1810 | B20: Leasehold Improvements | G20: 0 | H20: 0 | I20: 0 | J20: 0 | L20: 0 | M20: 0 | O20: 0
A21: 1815 | B21: Transformer Station Equipment >50 kV | G21: 0 | H21: 0 | I21: 0 | J21: 0 | L21: 0 | M21: 0 | O21: 0
A22: 1820 | B22: Distribution Station Equipment <50 kV | G22: 0 | H22: 0 | I22: 0 | J22: 0 | L22: 0 | M22: 0 | O22: 0
A23: 1825 | B23: Storage Battery Equipment | G23: 0 | H23: 0 | I23: 0 | J23: 0 | L23: 0 | M23: 0 | O23: 0
A24: 1830 | B24: Poles, Towers & Fixtures | G24: 0 | H24: 0 | I24: 0 | J24: 0 | L24: 0 | M24: 0 | O24: 0
A25: 1835 | B25: Overhead Conductors & Devices | G25: 0 | H25: 0 | I25: 0 | J25: 0 | L25: 0 | M25: 0 | O25: 0
A26: 1840 | B26: Underground Conduit | G26: 0 | H26: 0 | I26: 0 | J26: 0 | L26: 0 | M26: 0 | O26: 0
A27: 1845 | B27: Underground Conductors & Devices | G27: 0 | H27: 0 | I27: 0 | J27: 0 | L27: 0 | M27: 0 | O27: 0
A28: 1850 | B28: Line Transformers | G28: 0 | H28: 0 | I28: 0 | J28: 0 | L28: 0 | M28: 0 | O28: 0
A29: 1855 | B29: Services (Overhead & Underground) | G29: 0 | H29: 0 | I29: 0 | J29: 0 | L29: 0 | M29: 0 | O29: 0
A30: 1860 | B30: Meters | G30: 0 | H30: 0 | I30: 0 | J30: 0 | L30: 0 | M30: 0 | O30: 0
A31: 1860 | B31: Meters (Smart Meters) | G31: 0 | H31: 0 | I31: 0 | J31: 0 | L31: 0 | M31: 0 | O31: 0
A32: 1905 | B32: Land | G32: 0 | H32: 0 | I32: 0 | J32: 0 | L32: 0 | M32: 0 | O32: 0
A33: 1908 | B33: Buildings & Fixtures | G33: 0 | H33: 0 | I33: 0 | J33: 0 | L33: 0 | M33: 0 | O33: 0
A34: 1910 | B34: Leasehold Improvements | G34: 0 | H34: 0 | I34: 0 | J34: 0 | L34: 0 | M34: 0 | O34: 0
A35: 1915 | B35: Office Furniture & Equipment (10 years) | G35: 0 | H35: 0 | I35: 0 | J35: 0 | L35: 0 | M35: 0 | O35: 0
A36: 1915 | B36: Office Furniture & Equipment (5 years) | G36: 0 | H36: 0 | I36: 0 | J36: 0 | L36: 0 | M36: 0 | O36: 0
A37: 1920 | B37: Computer Equipment - Hardware | G37: 0 | H37: 0 | I37: 0 | J37: 0 | L37: 0 | M37: 0 | O37: 0
A38: 1920 | B38: Computer Equip.-Hardware(Post Mar. 22/04) | G38: 0 | H38: 0 | I38: 0 | J38: 0 | L38: 0 | M38: 0 | O38: 0
A39: 1920 | B39: Computer Equip.-Hardware(Post Mar. 19/07) | G39: 0 | H39: 0 | I39: 0 | J39: 0 | L39: 0 | M39: 0 | O39: 0
A40: 1930 | B40: Transportation Equipment | G40: 0 | H40: 0 | I40: 0 | J40: 0 | L40: 0 | M40: 0 | O40: 0
A41: 1935 | B41: Stores Equipment | G41: 0 | H41: 0 | I41: 0 | J41: 0 | L41: 0 | M41: 0 | O41: 0
A42: 1940 | B42: Tools, Shop & Garage Equipment | G42: 0 | H42: 0 | I42: 0 | J42: 0 | L42: 0 | M42: 0 | O42: 0
A43: 1945 | B43: Measurement & Testing Equipment | G43: 0 | H43: 0 | I43: 0 | J43: 0 | L43: 0 | M43: 0 | O43: 0
A44: 1950 | B44: Power Operated Equipment | G44: 0 | H44: 0 | I44: 0 | J44: 0 | L44: 0 | M44: 0 | O44: 0
A45: 1955 | B45: Communications Equipment | G45: 0 | H45: 0 | I45: 0 | J45: 0 | L45: 0 | M45: 0 | O45: 0
A46: 1955 | B46: Communication Equipment (Smart Meters) | G46: 0 | H46: 0 | I46: 0 | J46: 0 | L46: 0 | M46: 0 | O46: 0
A47: 1960 | B47: Miscellaneous Equipment | G47: 0 | H47: 0 | I47: 0 | J47: 0 | L47: 0 | M47: 0 | O47: 0
A48: 1970 | B48: Load Management Controls Customer Premises | G48: 0 | H48: 0 | I48: 0 | J48: 0 | L48: 0 | M48: 0 | O48: 0
A49: 1975 | B49: Load Management Controls Utility Premises | G49: 0 | H49: 0 | I49: 0 | J49: 0 | L49: 0 | M49: 0 | O49: 0
A50: 1980 | B50: System Supervisor Equipment | G50: 0 | H50: 0 | I50: 0 | J50: 0 | L50: 0 | M50: 0 | O50: 0
A51: 1985 | B51: Miscellaneous Fixed Assets | G51: 0 | H51: 0 | I51: 0 | J51: 0 | L51: 0 | M51: 0 | O51: 0
A52: 1990 | B52: Other Tangible Property | G52: 0 | H52: 0 | I52: 0 | J52: 0 | L52: 0 | M52: 0 | O52: 0
A53: 1995 | B53: Contributions & Grants | G53: 0 | H53: 0 | I53: 0 | J53: 0 | L53: 0 | M53: 0 | O53: 0
A54: etc. | G54: 0 | H54: 0 | I54: 0 | J54: 0 | L54: 0 | M54: 0 | O54: 0
G55: 0 | H55: 0 | I55: 0 | J55: 0 | L55: 0 | M55: 0 | O55: 0
B56: Total | C56: =SUM(C16:C55) -> 0 | D56: =SUM(D16:D55) -> 0 | H56: =SUM(H16:H55) -> 0 | I56: 0 | J56: 0 | K56: 0 | L56: 0 | M56: 0 | N56: =SUM(N16:N55) -> 0 | O56: 0
B57: Depreciation exp. adj. from gain or loss on the retirement of assets (pool of like assets) | J57: 0
B58: Total | J58: =+J57+J56 -> 0
A59: Notes:
A61: 1 | B61: Board policy of the "half-year" rule - the applicant must ensure that additions in the year attract a half-year depreciation expense in the first year. Deviations from this standard practice must be supported in the application.
A62: 2 | B62: The applicant must provide an explanation of material variances in evidence.
A63: 3 | B63: The applicant should ensure that the years for new additions of assets are the asset useful lives determined by management in accordance with IFRS.
A64: 4 | B64: A recalculation should be performed to determine the average remaining life of opening balance of assets (i.e. excluding 2011 additions) under IFRS. For example, Asset A had a useful life of 20 years under CGAAP. On January 1, 2011, the date of transition, Asset A was 3 years depreciated. As a result, Asset A would have a remaining service life of 17 years (20 years less 3 years) under CGAAP as of January 1, 2011. Due to the transition to IFRS, management re-assessed the asset useful lives under IFRS principles and concluded that the revised useful life of Asset A is now 30 years. Therefore, the average remaining useful life of opening balance of Asset A is determined to be 27 years (30 years less 3 years) under IFRS as of January 1, 2011.
A65: 5 | B65: NBV must exclude assets still on the books but which have been fully amortized or depreciated.
A66: 6 | B66: This column refers to the calculated full year depreciation but excludes the depreciation expense on assets fully depreciated during the year. This column is used for the purpose of calculating depreciation expense in the following year on the next worksheet.
A68: General: | B68: Applicants must provide a breakdown of depreciation and amortization expense in the above format for all relevant accounts. Asset Retirement Obligations (AROs), depreciation and accretion expense should be disclosed separately consistent with the Notes of historical Audited Financial Statements.

Sheet App.2-CC_MIFRS_DepExp_2012 (hidden)
J1: File Number: | K1: =EBNUMBER -> EB-2013-0116
J2: Exhibit:
J3: Tab:
J4: Schedule:
J5: Page:
J7: Date:
A9: Appendix 2-CC
A10: Depreciation and Amortization Expense
A11: Assumes the applicant adopted IFRS for financial reporting purposes January 1, 2012
C12: 2012 | D12: MIFRS
A14: Account | B14: Description | C14: Additions | D14: Years (new additions only) | E14: Depreciation Rate on New Additions | F14: 2012 Depreciation Expense 1 | G14: 2012 Depreciation Expense per Apppendix 2-B Fixed Assets, Column K (l) | H14: Variance 2 | I14: Depreciation Expense on 2012 Full Year Additions | J14: Less Depreciation Expense on Assets Fully Depreciated during the year (o) | K14: 2012 Full Year Depreciation 3
C15: (d) | D15: (f) | E15: (g) = 1 / (f) | F15: (h)=2011 Full Year Deprecation + ((d)*0.5)/(f) | H15: (m) = (h) - (l) | I15: (n)=((d))/(f) | K15: (p) = 2011 Full Year Depreciation + (n) - (o)
A16: 1611 | B16: Computer Software (Formally known as Account 1925) | E16: =IF(D16=0,0,1/D16) -> 0 | F16: =IF(D16=0,+'App.2-CB_MIFRS_DepExp_2011'!O16,+'App.2-CB_MIFRS_DepExp_2011'!O16+((C16*0.5)/D16)) -> 0 | H16: =IF(ISERROR(+F16-G16), 0, +F16-G16) -> 0 | I16: =IF(D16=0,0,+(C16)/D16) -> 0 | K16: =IF(ISERROR(+I16+'App.2-CB_MIFRS_DepExp_2011'!O16-J16), 0, +I16+'App.2-CB_MIFRS_DepExp_2011'!O16-J16) -> 0
A17: 1612 | B17: Land Rights (Formally known as Account 1906) | E17: 0 | F17: =IF(D17=0,+'App.2-CB_MIFRS_DepExp_2011'!O17,+'App.2-CB_MIFRS_DepExp_2011'!O17+((C17*0.5)/D17)) -> 0 | H17: 0 | I17: 0 | K17: =IF(ISERROR(+I17+'App.2-CB_MIFRS_DepExp_2011'!O17-J17), 0, +I17+'App.2-CB_MIFRS_DepExp_2011'!O17-J17) -> 0
A18: 1805 | B18: Land | E18: 0 | F18: =IF(D18=0,+'App.2-CB_MIFRS_DepExp_2011'!O18,+'App.2-CB_MIFRS_DepExp_2011'!O18+((C18*0.5)/D18)) -> 0 | H18: 0 | I18: 0 | K18: =IF(ISERROR(+I18+'App.2-CB_MIFRS_DepExp_2011'!O18-J18), 0, +I18+'App.2-CB_MIFRS_DepExp_2011'!O18-J18) -> 0
A19: 1808 | B19: Buildings | E19: 0 | F19: =IF(D19=0,+'App.2-CB_MIFRS_DepExp_2011'!O19,+'App.2-CB_MIFRS_DepExp_2011'!O19+((C19*0.5)/D19)) -> 0 | H19: 0 | I19: 0 | K19: =IF(ISERROR(+I19+'App.2-CB_MIFRS_DepExp_2011'!O19-J19), 0, +I19+'App.2-CB_MIFRS_DepExp_2011'!O19-J19) -> 0
A20: 1810 | B20: Leasehold Improvements | E20: 0 | F20: =IF(D20=0,+'App.2-CB_MIFRS_DepExp_2011'!O20,+'App.2-CB_MIFRS_DepExp_2011'!O20+((C20*0.5)/D20)) -> 0 | H20: 0 | I20: 0 | K20: =IF(ISERROR(+I20+'App.2-CB_MIFRS_DepExp_2011'!O20-J20), 0, +I20+'App.2-CB_MIFRS_DepExp_2011'!O20-J20) -> 0
A21: 1815 | B21: Transformer Station Equipment >50 kV | E21: 0 | F21: =IF(D21=0,+'App.2-CB_MIFRS_DepExp_2011'!O21,+'App.2-CB_MIFRS_DepExp_2011'!O21+((C21*0.5)/D21)) -> 0 | H21: 0 | I21: 0 | K21: =IF(ISERROR(+I21+'App.2-CB_MIFRS_DepExp_2011'!O21-J21), 0, +I21+'App.2-CB_MIFRS_DepExp_2011'!O21-J21) -> 0
A22: 1820 | B22: Distribution Station Equipment <50 kV | E22: 0 | F22: =IF(D22=0,+'App.2-CB_MIFRS_DepExp_2011'!O22,+'App.2-CB_MIFRS_DepExp_2011'!O22+((C22*0.5)/D22)) -> 0 | H22: 0 | I22: 0 | K22: =IF(ISERROR(+I22+'App.2-CB_MIFRS_DepExp_2011'!O22-J22), 0, +I22+'App.2-CB_MIFRS_DepExp_2011'!O22-J22) -> 0
A23: 1825 | B23: Storage Battery Equipment | E23: 0 | F23: =IF(D23=0,+'App.2-CB_MIFRS_DepExp_2011'!O23,+'App.2-CB_MIFRS_DepExp_2011'!O23+((C23*0.5)/D23)) -> 0 | H23: 0 | I23: 0 | K23: =IF(ISERROR(+I23+'App.2-CB_MIFRS_DepExp_2011'!O23-J23), 0, +I23+'App.2-CB_MIFRS_DepExp_2011'!O23-J23) -> 0
A24: 1830 | B24: Poles, Towers & Fixtures | E24: 0 | F24: =IF(D24=0,+'App.2-CB_MIFRS_DepExp_2011'!O24,+'App.2-CB_MIFRS_DepExp_2011'!O24+((C24*0.5)/D24)) -> 0 | H24: 0 | I24: 0 | K24: =IF(ISERROR(+I24+'App.2-CB_MIFRS_DepExp_2011'!O24-J24), 0, +I24+'App.2-CB_MIFRS_DepExp_2011'!O24-J24) -> 0
A25: 1835 | B25: Overhead Conductors & Devices | E25: 0 | F25: =IF(D25=0,+'App.2-CB_MIFRS_DepExp_2011'!O25,+'App.2-CB_MIFRS_DepExp_2011'!O25+((C25*0.5)/D25)) -> 0 | H25: 0 | I25: 0 | K25: =IF(ISERROR(+I25+'App.2-CB_MIFRS_DepExp_2011'!O25-J25), 0, +I25+'App.2-CB_MIFRS_DepExp_2011'!O25-J25) -> 0
A26: 1840 | B26: Underground Conduit | E26: 0 | F26: =IF(D26=0,+'App.2-CB_MIFRS_DepExp_2011'!O26,+'App.2-CB_MIFRS_DepExp_2011'!O26+((C26*0.5)/D26)) -> 0 | H26: 0 | I26: 0 | K26: =IF(ISERROR(+I26+'App.2-CB_MIFRS_DepExp_2011'!O26-J26), 0, +I26+'App.2-CB_MIFRS_DepExp_2011'!O26-J26) -> 0
A27: 1845 | B27: Underground Conductors & Devices | E27: 0 | F27: =IF(D27=0,+'App.2-CB_MIFRS_DepExp_2011'!O27,+'App.2-CB_MIFRS_DepExp_2011'!O27+((C27*0.5)/D27)) -> 0 | H27: 0 | I27: 0 | K27: =IF(ISERROR(+I27+'App.2-CB_MIFRS_DepExp_2011'!O27-J27), 0, +I27+'App.2-CB_MIFRS_DepExp_2011'!O27-J27) -> 0
A28: 1850 | B28: Line Transformers | E28: 0 | F28: =IF(D28=0,+'App.2-CB_MIFRS_DepExp_2011'!O28,+'App.2-CB_MIFRS_DepExp_2011'!O28+((C28*0.5)/D28)) -> 0 | H28: 0 | I28: 0 | K28: =IF(ISERROR(+I28+'App.2-CB_MIFRS_DepExp_2011'!O28-J28), 0, +I28+'App.2-CB_MIFRS_DepExp_2011'!O28-J28) -> 0
A29: 1855 | B29: Services (Overhead & Underground) | E29: 0 | F29: =IF(D29=0,+'App.2-CB_MIFRS_DepExp_2011'!O29,+'App.2-CB_MIFRS_DepExp_2011'!O29+((C29*0.5)/D29)) -> 0 | H29: 0 | I29: 0 | K29: =IF(ISERROR(+I29+'App.2-CB_MIFRS_DepExp_2011'!O29-J29), 0, +I29+'App.2-CB_MIFRS_DepExp_2011'!O29-J29) -> 0
A30: 1860 | B30: Meters | E30: 0 | F30: =IF(D30=0,+'App.2-CB_MIFRS_DepExp_2011'!O30,+'App.2-CB_MIFRS_DepExp_2011'!O30+((C30*0.5)/D30)) -> 0 | H30: 0 | I30: 0 | K30: =IF(ISERROR(+I30+'App.2-CB_MIFRS_DepExp_2011'!O30-J30), 0, +I30+'App.2-CB_MIFRS_DepExp_2011'!O30-J30) -> 0
A31: 1860 | B31: Meters (Smart Meters) | E31: 0 | F31: =IF(D31=0,+'App.2-CB_MIFRS_DepExp_2011'!O31,+'App.2-CB_MIFRS_DepExp_2011'!O31+((C31*0.5)/D31)) -> 0 | H31: 0 | I31: 0 | K31: =IF(ISERROR(+I31+'App.2-CB_MIFRS_DepExp_2011'!O31-J31), 0, +I31+'App.2-CB_MIFRS_DepExp_2011'!O31-J31) -> 0
A32: 1905 | B32: Land | E32: 0 | F32: =IF(D32=0,+'App.2-CB_MIFRS_DepExp_2011'!O32,+'App.2-CB_MIFRS_DepExp_2011'!O32+((C32*0.5)/D32)) -> 0 | H32: 0 | I32: 0 | K32: =IF(ISERROR(+I32+'App.2-CB_MIFRS_DepExp_2011'!O32-J32), 0, +I32+'App.2-CB_MIFRS_DepExp_2011'!O32-J32) -> 0
A33: 1908 | B33: Buildings & Fixtures | E33: 0 | F33: =IF(D33=0,+'App.2-CB_MIFRS_DepExp_2011'!O33,+'App.2-CB_MIFRS_DepExp_2011'!O33+((C33*0.5)/D33)) -> 0 | H33: 0 | I33: 0 | K33: =IF(ISERROR(+I33+'App.2-CB_MIFRS_DepExp_2011'!O33-J33), 0, +I33+'App.2-CB_MIFRS_DepExp_2011'!O33-J33) -> 0
A34: 1910 | B34: Leasehold Improvements | E34: 0 | F34: =IF(D34=0,+'App.2-CB_MIFRS_DepExp_2011'!O34,+'App.2-CB_MIFRS_DepExp_2011'!O34+((C34*0.5)/D34)) -> 0 | H34: 0 | I34: 0 | K34: =IF(ISERROR(+I34+'App.2-CB_MIFRS_DepExp_2011'!O34-J34), 0, +I34+'App.2-CB_MIFRS_DepExp_2011'!O34-J34) -> 0
A35: 1915 | B35: Office Furniture & Equipment (10 years) | E35: 0 | F35: =IF(D35=0,+'App.2-CB_MIFRS_DepExp_2011'!O35,+'App.2-CB_MIFRS_DepExp_2011'!O35+((C35*0.5)/D35)) -> 0 | H35: 0 | I35: 0 | K35: =IF(ISERROR(+I35+'App.2-CB_MIFRS_DepExp_2011'!O35-J35), 0, +I35+'App.2-CB_MIFRS_DepExp_2011'!O35-J35) -> 0
A36: 1915 | B36: Office Furniture & Equipment (5 years) | E36: 0 | F36: =IF(D36=0,+'App.2-CB_MIFRS_DepExp_2011'!O36,+'App.2-CB_MIFRS_DepExp_2011'!O36+((C36*0.5)/D36)) -> 0 | H36: 0 | I36: 0 | K36: =IF(ISERROR(+I36+'App.2-CB_MIFRS_DepExp_2011'!O36-J36), 0, +I36+'App.2-CB_MIFRS_DepExp_2011'!O36-J36) -> 0
A37: 1920 | B37: Computer Equipment - Hardware | E37: 0 | F37: =IF(D37=0,+'App.2-CB_MIFRS_DepExp_2011'!O37,+'App.2-CB_MIFRS_DepExp_2011'!O37+((C37*0.5)/D37)) -> 0 | H37: 0 | I37: 0 | K37: =IF(ISERROR(+I37+'App.2-CB_MIFRS_DepExp_2011'!O37-J37), 0, +I37+'App.2-CB_MIFRS_DepExp_2011'!O37-J37) -> 0
A38: 1920 | B38: Computer Equip.-Hardware(Post Mar. 22/04) | E38: 0 | F38: =IF(D38=0,+'App.2-CB_MIFRS_DepExp_2011'!O38,+'App.2-CB_MIFRS_DepExp_2011'!O38+((C38*0.5)/D38)) -> 0 | H38: 0 | I38: 0 | K38: =IF(ISERROR(+I38+'App.2-CB_MIFRS_DepExp_2011'!O38-J38), 0, +I38+'App.2-CB_MIFRS_DepExp_2011'!O38-J38) -> 0
A39: 1920 | B39: Computer Equip.-Hardware(Post Mar. 19/07) | E39: 0 | F39: =IF(D39=0,+'App.2-CB_MIFRS_DepExp_2011'!O39,+'App.2-CB_MIFRS_DepExp_2011'!O39+((C39*0.5)/D39)) -> 0 | H39: 0 | I39: 0 | K39: =IF(ISERROR(+I39+'App.2-CB_MIFRS_DepExp_2011'!O39-J39), 0, +I39+'App.2-CB_MIFRS_DepExp_2011'!O39-J39) -> 0
A40: 1930 | B40: Transportation Equipment | E40: 0 | F40: =IF(D40=0,+'App.2-CB_MIFRS_DepExp_2011'!O40,+'App.2-CB_MIFRS_DepExp_2011'!O40+((C40*0.5)/D40)) -> 0 | H40: 0 | I40: 0 | K40: =IF(ISERROR(+I40+'App.2-CB_MIFRS_DepExp_2011'!O40-J40), 0, +I40+'App.2-CB_MIFRS_DepExp_2011'!O40-J40) -> 0
A41: 1935 | B41: Stores Equipment | E41: 0 | F41: =IF(D41=0,+'App.2-CB_MIFRS_DepExp_2011'!O41,+'App.2-CB_MIFRS_DepExp_2011'!O41+((C41*0.5)/D41)) -> 0 | H41: 0 | I41: 0 | K41: =IF(ISERROR(+I41+'App.2-CB_MIFRS_DepExp_2011'!O41-J41), 0, +I41+'App.2-CB_MIFRS_DepExp_2011'!O41-J41) -> 0
A42: 1940 | B42: Tools, Shop & Garage Equipment | E42: 0 | F42: =IF(D42=0,+'App.2-CB_MIFRS_DepExp_2011'!O42,+'App.2-CB_MIFRS_DepExp_2011'!O42+((C42*0.5)/D42)) -> 0 | H42: 0 | I42: 0 | K42: =IF(ISERROR(+I42+'App.2-CB_MIFRS_DepExp_2011'!O42-J42), 0, +I42+'App.2-CB_MIFRS_DepExp_2011'!O42-J42) -> 0
A43: 1945 | B43: Measurement & Testing Equipment | E43: 0 | F43: =IF(D43=0,+'App.2-CB_MIFRS_DepExp_2011'!O43,+'App.2-CB_MIFRS_DepExp_2011'!O43+((C43*0.5)/D43)) -> 0 | H43: 0 | I43: 0 | K43: =IF(ISERROR(+I43+'App.2-CB_MIFRS_DepExp_2011'!O43-J43), 0, +I43+'App.2-CB_MIFRS_DepExp_2011'!O43-J43) -> 0
A44: 1950 | B44: Power Operated Equipment | E44: 0 | F44: =IF(D44=0,+'App.2-CB_MIFRS_DepExp_2011'!O44,+'App.2-CB_MIFRS_DepExp_2011'!O44+((C44*0.5)/D44)) -> 0 | H44: 0 | I44: 0 | K44: =IF(ISERROR(+I44+'App.2-CB_MIFRS_DepExp_2011'!O44-J44), 0, +I44+'App.2-CB_MIFRS_DepExp_2011'!O44-J44) -> 0
A45: 1955 | B45: Communications Equipment | E45: 0 | F45: =IF(D45=0,+'App.2-CB_MIFRS_DepExp_2011'!O45,+'App.2-CB_MIFRS_DepExp_2011'!O45+((C45*0.5)/D45)) -> 0 | H45: 0 | I45: 0 | K45: =IF(ISERROR(+I45+'App.2-CB_MIFRS_DepExp_2011'!O45-J45), 0, +I45+'App.2-CB_MIFRS_DepExp_2011'!O45-J45) -> 0
A46: 1955 | B46: Communication Equipment (Smart Meters) | E46: 0 | F46: =IF(D46=0,+'App.2-CB_MIFRS_DepExp_2011'!O46,+'App.2-CB_MIFRS_DepExp_2011'!O46+((C46*0.5)/D46)) -> 0 | H46: 0 | I46: 0 | K46: =IF(ISERROR(+I46+'App.2-CB_MIFRS_DepExp_2011'!O46-J46), 0, +I46+'App.2-CB_MIFRS_DepExp_2011'!O46-J46) -> 0
A47: 1960 | B47: Miscellaneous Equipment | E47: 0 | F47: =IF(D47=0,+'App.2-CB_MIFRS_DepExp_2011'!O47,+'App.2-CB_MIFRS_DepExp_2011'!O47+((C47*0.5)/D47)) -> 0 | H47: 0 | I47: 0 | K47: =IF(ISERROR(+I47+'App.2-CB_MIFRS_DepExp_2011'!O47-J47), 0, +I47+'App.2-CB_MIFRS_DepExp_2011'!O47-J47) -> 0
A48: 1970 | B48: Load Management Controls Customer Premises | E48: 0 | F48: =IF(D48=0,+'App.2-CB_MIFRS_DepExp_2011'!O48,+'App.2-CB_MIFRS_DepExp_2011'!O48+((C48*0.5)/D48)) -> 0 | H48: 0 | I48: 0 | K48: =IF(ISERROR(+I48+'App.2-CB_MIFRS_DepExp_2011'!O48-J48), 0, +I48+'App.2-CB_MIFRS_DepExp_2011'!O48-J48) -> 0
A49: 1975 | B49: Load Management Controls Utility Premises | E49: 0 | F49: =IF(D49=0,+'App.2-CB_MIFRS_DepExp_2011'!O49,+'App.2-CB_MIFRS_DepExp_2011'!O49+((C49*0.5)/D49)) -> 0 | H49: 0 | I49: 0 | K49: =IF(ISERROR(+I49+'App.2-CB_MIFRS_DepExp_2011'!O49-J49), 0, +I49+'App.2-CB_MIFRS_DepExp_2011'!O49-J49) -> 0
A50: 1980 | B50: System Supervisor Equipment | E50: 0 | F50: =IF(D50=0,+'App.2-CB_MIFRS_DepExp_2011'!O50,+'App.2-CB_MIFRS_DepExp_2011'!O50+((C50*0.5)/D50)) -> 0 | H50: 0 | I50: 0 | K50: =IF(ISERROR(+I50+'App.2-CB_MIFRS_DepExp_2011'!O50-J50), 0, +I50+'App.2-CB_MIFRS_DepExp_2011'!O50-J50) -> 0
A51: 1985 | B51: Miscellaneous Fixed Assets | E51: 0 | F51: =IF(D51=0,+'App.2-CB_MIFRS_DepExp_2011'!O51,+'App.2-CB_MIFRS_DepExp_2011'!O51+((C51*0.5)/D51)) -> 0 | H51: 0 | I51: 0 | K51: =IF(ISERROR(+I51+'App.2-CB_MIFRS_DepExp_2011'!O51-J51), 0, +I51+'App.2-CB_MIFRS_DepExp_2011'!O51-J51) -> 0
A52: 1990 | B52: Other Tangible Property | E52: 0 | F52: =IF(D52=0,+'App.2-CB_MIFRS_DepExp_2011'!O52,+'App.2-CB_MIFRS_DepExp_2011'!O52+((C52*0.5)/D52)) -> 0 | H52: 0 | I52: 0 | K52: =IF(ISERROR(+I52+'App.2-CB_MIFRS_DepExp_2011'!O52-J52), 0, +I52+'App.2-CB_MIFRS_DepExp_2011'!O52-J52) -> 0
A53: 1995 | B53: Contributions & Grants | E53: 0 | F53: =IF(D53=0,+'App.2-CB_MIFRS_DepExp_2011'!O53,+'App.2-CB_MIFRS_DepExp_2011'!O53+((C53*0.5)/D53)) -> 0 | H53: 0 | I53: 0 | K53: =IF(ISERROR(+I53+'App.2-CB_MIFRS_DepExp_2011'!O53-J53), 0, +I53+'App.2-CB_MIFRS_DepExp_2011'!O53-J53) -> 0
A54: etc. | E54: 0 | F54: =IF(D54=0,+'App.2-CB_MIFRS_DepExp_2011'!O54,+'App.2-CB_MIFRS_DepExp_2011'!O54+((C54*0.5)/D54)) -> 0 | H54: 0 | I54: 0 | K54: =IF(ISERROR(+I54+'App.2-CB_MIFRS_DepExp_2011'!O54-J54), 0, +I54+'App.2-CB_MIFRS_DepExp_2011'!O54-J54) -> 0
E55: 0 | F55: =IF(D55=0,+'App.2-CB_MIFRS_DepExp_2011'!O55,+'App.2-CB_MIFRS_DepExp_2011'!O55+((C55*0.5)/D55)) -> 0 | H55: 0 | I55: 0 | K55: =IF(ISERROR(+I55+'App.2-CB_MIFRS_DepExp_2011'!O55-J55), 0, +I55+'App.2-CB_MIFRS_DepExp_2011'!O55-J55) -> 0
B56: Total | C56: =SUM(C16:C55) -> 0 | F56: =SUM(F16:F55) -> 0 | G56: 0 | H56: 0 | I56: 0 | J56: 0 | K56: 0
B57: Depreciation exp. adj. from gain or loss on the retirement of assets (pool of like assets) | F57: 0
B58: Total | F58: =+F56+F57 -> 0
A59: Notes:
A60: 1 | B60: Board policy of the "half-year" rule - the applicant must ensure that additions in the year attract a half-year depreciation expense in the first year. Deviations from this standard practice must be supported in the application.
A61: 2 | B61: The applicant must provide an explanation of material variances in evidence.
A62: 3 | B62: This column refers to the calculated full year depreciation but excludes the depreciation expense on assets fully depreciated during the year. This column is used for the purpose of calculating depreciation expense in the following year on the next worksheet.
A64: General: | B64: Applicants must provide a breakdown of depreciation and amortization expense in the above format for all relevant accounts. Asset Retirement Obligations (AROs), depreciation and accretion expense should be disclosed separately consistent with the Notes of historical Audited Financial Statements.

Sheet App.2-CD_MIFRS_DepExp_2013 (hidden)
J1: File Number: | K1: =EBNUMBER -> EB-2013-0116
J2: Exhibit:
J3: Tab:
J4: Schedule:
J5: Page:
J7: Date:
A9: Appendix 2-CD
A10: Depreciation and Amortization Expense
A11: Assumes the applicant adopted IFRS for financial reporting purposes January 1, 2012
C12: 2013 | D12: MIFRS
A14: Account | B14: Description | C14: Additions | D14: Years (new additions only) | E14: Depreciation Rate on New Additions | F14: 2013 Depreciation Expense 1 | G14: 2013 Depreciation Expense per Apppendix 2-B Fixed Assets, Column K (l) | H14: Variance 2 | I14: Depreciation Expense on 2013 Full Year Additions | J14: Less Depreciation Expense on Assets Fully Depreciated during the year (o) | K14: 2013 Full Year Depreciation 3
C15: (d) | D15: (f) | E15: (g) = 1 / (f) | F15: (h)=2012 Full Year Deprecation + ((d)*0.5)/(f) | H15: (m) = (h) - (l) | I15: (n)=((d))/(f) | K15: (p) = 2012 Full Year Depreciation + (n) - (o)
A16: 1611 | B16: Computer Software (Formally known as Account 1925) | E16: =IF(D16=0,0,1/D16) -> 0 | F16: =IF(D16=0,+'App.2-CC_MIFRS_DepExp_2012'!K16,+'App.2-CC_MIFRS_DepExp_2012'!K16+((C16*0.5)/D16)) -> 0 | H16: =IF(ISERROR(+F16-G16), 0, +F16-G16) -> 0 | I16: =IF(D16=0,0,+(C16)/D16) -> 0 | K16: =IF(ISERROR(+I16+'App.2-CC_MIFRS_DepExp_2012'!K16-J16), 0, +I16+'App.2-CC_MIFRS_DepExp_2012'!K16-J16) -> 0
A17: 1612 | B17: Land Rights (Formally known as Account 1906) | E17: 0 | F17: =IF(D17=0,+'App.2-CC_MIFRS_DepExp_2012'!K17,+'App.2-CC_MIFRS_DepExp_2012'!K17+((C17*0.5)/D17)) -> 0 | H17: 0 | I17: 0 | K17: =IF(ISERROR(+I17+'App.2-CC_MIFRS_DepExp_2012'!K17-J17), 0, +I17+'App.2-CC_MIFRS_DepExp_2012'!K17-J17) -> 0
A18: 1805 | B18: Land | E18: 0 | F18: =IF(D18=0,+'App.2-CC_MIFRS_DepExp_2012'!K18,+'App.2-CC_MIFRS_DepExp_2012'!K18+((C18*0.5)/D18)) -> 0 | H18: 0 | I18: 0 | K18: =IF(ISERROR(+I18+'App.2-CC_MIFRS_DepExp_2012'!K18-J18), 0, +I18+'App.2-CC_MIFRS_DepExp_2012'!K18-J18) -> 0
A19: 1808 | B19: Buildings | E19: 0 | F19: =IF(D19=0,+'App.2-CC_MIFRS_DepExp_2012'!K19,+'App.2-CC_MIFRS_DepExp_2012'!K19+((C19*0.5)/D19)) -> 0 | H19: 0 | I19: 0 | K19: =IF(ISERROR(+I19+'App.2-CC_MIFRS_DepExp_2012'!K19-J19), 0, +I19+'App.2-CC_MIFRS_DepExp_2012'!K19-J19) -> 0
A20: 1810 | B20: Leasehold Improvements | E20: 0 | F20: =IF(D20=0,+'App.2-CC_MIFRS_DepExp_2012'!K20,+'App.2-CC_MIFRS_DepExp_2012'!K20+((C20*0.5)/D20)) -> 0 | H20: 0 | I20: 0 | K20: =IF(ISERROR(+I20+'App.2-CC_MIFRS_DepExp_2012'!K20-J20), 0, +I20+'App.2-CC_MIFRS_DepExp_2012'!K20-J20) -> 0
A21: 1815 | B21: Transformer Station Equipment >50 kV | E21: 0 | F21: =IF(D21=0,+'App.2-CC_MIFRS_DepExp_2012'!K21,+'App.2-CC_MIFRS_DepExp_2012'!K21+((C21*0.5)/D21)) -> 0 | H21: 0 | I21: 0 | K21: =IF(ISERROR(+I21+'App.2-CC_MIFRS_DepExp_2012'!K21-J21), 0, +I21+'App.2-CC_MIFRS_DepExp_2012'!K21-J21) -> 0
A22: 1820 | B22: Distribution Station Equipment <50 kV | E22: 0 | F22: =IF(D22=0,+'App.2-CC_MIFRS_DepExp_2012'!K22,+'App.2-CC_MIFRS_DepExp_2012'!K22+((C22*0.5)/D22)) -> 0 | H22: 0 | I22: 0 | K22: =IF(ISERROR(+I22+'App.2-CC_MIFRS_DepExp_2012'!K22-J22), 0, +I22+'App.2-CC_MIFRS_DepExp_2012'!K22-J22) -> 0
A23: 1825 | B23: Storage Battery Equipment | E23: 0 | F23: =IF(D23=0,+'App.2-CC_MIFRS_DepExp_2012'!K23,+'App.2-CC_MIFRS_DepExp_2012'!K23+((C23*0.5)/D23)) -> 0 | H23: 0 | I23: 0 | K23: =IF(ISERROR(+I23+'App.2-CC_MIFRS_DepExp_2012'!K23-J23), 0, +I23+'App.2-CC_MIFRS_DepExp_2012'!K23-J23) -> 0
A24: 1830 | B24: Poles, Towers & Fixtures | E24: 0 | F24: =IF(D24=0,+'App.2-CC_MIFRS_DepExp_2012'!K24,+'App.2-CC_MIFRS_DepExp_2012'!K24+((C24*0.5)/D24)) -> 0 | H24: 0 | I24: 0 | K24: =IF(ISERROR(+I24+'App.2-CC_MIFRS_DepExp_2012'!K24-J24), 0, +I24+'App.2-CC_MIFRS_DepExp_2012'!K24-J24) -> 0
A25: 1835 | B25: Overhead Conductors & Devices | E25: 0 | F25: =IF(D25=0,+'App.2-CC_MIFRS_DepExp_2012'!K25,+'App.2-CC_MIFRS_DepExp_2012'!K25+((C25*0.5)/D25)) -> 0 | H25: 0 | I25: 0 | K25: =IF(ISERROR(+I25+'App.2-CC_MIFRS_DepExp_2012'!K25-J25), 0, +I25+'App.2-CC_MIFRS_DepExp_2012'!K25-J25) -> 0
A26: 1840 | B26: Underground Conduit | E26: 0 | F26: =IF(D26=0,+'App.2-CC_MIFRS_DepExp_2012'!K26,+'App.2-CC_MIFRS_DepExp_2012'!K26+((C26*0.5)/D26)) -> 0 | H26: 0 | I26: 0 | K26: =IF(ISERROR(+I26+'App.2-CC_MIFRS_DepExp_2012'!K26-J26), 0, +I26+'App.2-CC_MIFRS_DepExp_2012'!K26-J26) -> 0
A27: 1845 | B27: Underground Conductors & Devices | E27: 0 | F27: =IF(D27=0,+'App.2-CC_MIFRS_DepExp_2012'!K27,+'App.2-CC_MIFRS_DepExp_2012'!K27+((C27*0.5)/D27)) -> 0 | H27: 0 | I27: 0 | K27: =IF(ISERROR(+I27+'App.2-CC_MIFRS_DepExp_2012'!K27-J27), 0, +I27+'App.2-CC_MIFRS_DepExp_2012'!K27-J27) -> 0
A28: 1850 | B28: Line Transformers | E28: 0 | F28: =IF(D28=0,+'App.2-CC_MIFRS_DepExp_2012'!K28,+'App.2-CC_MIFRS_DepExp_2012'!K28+((C28*0.5)/D28)) -> 0 | H28: 0 | I28: 0 | K28: =IF(ISERROR(+I28+'App.2-CC_MIFRS_DepExp_2012'!K28-J28), 0, +I28+'App.2-CC_MIFRS_DepExp_2012'!K28-J28) -> 0
A29: 1855 | B29: Services (Overhead & Underground) | E29: 0 | F29: =IF(D29=0,+'App.2-CC_MIFRS_DepExp_2012'!K29,+'App.2-CC_MIFRS_DepExp_2012'!K29+((C29*0.5)/D29)) -> 0 | H29: 0 | I29: 0 | K29: =IF(ISERROR(+I29+'App.2-CC_MIFRS_DepExp_2012'!K29-J29), 0, +I29+'App.2-CC_MIFRS_DepExp_2012'!K29-J29) -> 0
A30: 1860 | B30: Meters | E30: 0 | F30: =IF(D30=0,+'App.2-CC_MIFRS_DepExp_2012'!K30,+'App.2-CC_MIFRS_DepExp_2012'!K30+((C30*0.5)/D30)) -> 0 | H30: 0 | I30: 0 | K30: =IF(ISERROR(+I30+'App.2-CC_MIFRS_DepExp_2012'!K30-J30), 0, +I30+'App.2-CC_MIFRS_DepExp_2012'!K30-J30) -> 0
A31: 1860 | B31: Meters (Smart Meters) | E31: 0 | F31: =IF(D31=0,+'App.2-CC_MIFRS_DepExp_2012'!K31,+'App.2-CC_MIFRS_DepExp_2012'!K31+((C31*0.5)/D31)) -> 0 | H31: 0 | I31: 0 | K31: =IF(ISERROR(+I31+'App.2-CC_MIFRS_DepExp_2012'!K31-J31), 0, +I31+'App.2-CC_MIFRS_DepExp_2012'!K31-J31) -> 0
A32: 1905 | B32: Land | E32: 0 | F32: =IF(D32=0,+'App.2-CC_MIFRS_DepExp_2012'!K32,+'App.2-CC_MIFRS_DepExp_2012'!K32+((C32*0.5)/D32)) -> 0 | H32: 0 | I32: 0 | K32: =IF(ISERROR(+I32+'App.2-CC_MIFRS_DepExp_2012'!K32-J32), 0, +I32+'App.2-CC_MIFRS_DepExp_2012'!K32-J32) -> 0
A33: 1908 | B33: Buildings & Fixtures | E33: 0 | F33: =IF(D33=0,+'App.2-CC_MIFRS_DepExp_2012'!K33,+'App.2-CC_MIFRS_DepExp_2012'!K33+((C33*0.5)/D33)) -> 0 | H33: 0 | I33: 0 | K33: =IF(ISERROR(+I33+'App.2-CC_MIFRS_DepExp_2012'!K33-J33), 0, +I33+'App.2-CC_MIFRS_DepExp_2012'!K33-J33) -> 0
A34: 1910 | B34: Leasehold Improvements | E34: 0 | F34: =IF(D34=0,+'App.2-CC_MIFRS_DepExp_2012'!K34,+'App.2-CC_MIFRS_DepExp_2012'!K34+((C34*0.5)/D34)) -> 0 | H34: 0 | I34: 0 | K34: =IF(ISERROR(+I34+'App.2-CC_MIFRS_DepExp_2012'!K34-J34), 0, +I34+'App.2-CC_MIFRS_DepExp_2012'!K34-J34) -> 0
A35: 1915 | B35: Office Furniture & Equipment (10 years) | E35: 0 | F35: =IF(D35=0,+'App.2-CC_MIFRS_DepExp_2012'!K35,+'App.2-CC_MIFRS_DepExp_2012'!K35+((C35*0.5)/D35)) -> 0 | H35: 0 | I35: 0 | K35: =IF(ISERROR(+I35+'App.2-CC_MIFRS_DepExp_2012'!K35-J35), 0, +I35+'App.2-CC_MIFRS_DepExp_2012'!K35-J35) -> 0
A36: 1915 | B36: Office Furniture & Equipment (5 years) | E36: 0 | F36: =IF(D36=0,+'App.2-CC_MIFRS_DepExp_2012'!K36,+'App.2-CC_MIFRS_DepExp_2012'!K36+((C36*0.5)/D36)) -> 0 | H36: 0 | I36: 0 | K36: =IF(ISERROR(+I36+'App.2-CC_MIFRS_DepExp_2012'!K36-J36), 0, +I36+'App.2-CC_MIFRS_DepExp_2012'!K36-J36) -> 0
A37: 1920 | B37: Computer Equipment - Hardware | E37: 0 | F37: =IF(D37=0,+'App.2-CC_MIFRS_DepExp_2012'!K37,+'App.2-CC_MIFRS_DepExp_2012'!K37+((C37*0.5)/D37)) -> 0 | H37: 0 | I37: 0 | K37: =IF(ISERROR(+I37+'App.2-CC_MIFRS_DepExp_2012'!K37-J37), 0, +I37+'App.2-CC_MIFRS_DepExp_2012'!K37-J37) -> 0
A38: 1920 | B38: Computer Equip.-Hardware(Post Mar. 22/04) | E38: 0 | F38: =IF(D38=0,+'App.2-CC_MIFRS_DepExp_2012'!K38,+'App.2-CC_MIFRS_DepExp_2012'!K38+((C38*0.5)/D38)) -> 0 | H38: 0 | I38: 0 | K38: =IF(ISERROR(+I38+'App.2-CC_MIFRS_DepExp_2012'!K38-J38), 0, +I38+'App.2-CC_MIFRS_DepExp_2012'!K38-J38) -> 0
A39: 1920 | B39: Computer Equip.-Hardware(Post Mar. 19/07) | E39: 0 | F39: =IF(D39=0,+'App.2-CC_MIFRS_DepExp_2012'!K39,+'App.2-CC_MIFRS_DepExp_2012'!K39+((C39*0.5)/D39)) -> 0 | H39: 0 | I39: 0 | K39: =IF(ISERROR(+I39+'App.2-CC_MIFRS_DepExp_2012'!K39-J39), 0, +I39+'App.2-CC_MIFRS_DepExp_2012'!K39-J39) -> 0
A40: 1930 | B40: Transportation Equipment | E40: 0 | F40: =IF(D40=0,+'App.2-CC_MIFRS_DepExp_2012'!K40,+'App.2-CC_MIFRS_DepExp_2012'!K40+((C40*0.5)/D40)) -> 0 | H40: 0 | I40: 0 | K40: =IF(ISERROR(+I40+'App.2-CC_MIFRS_DepExp_2012'!K40-J40), 0, +I40+'App.2-CC_MIFRS_DepExp_2012'!K40-J40) -> 0
A41: 1935 | B41: Stores Equipment | E41: 0 | F41: =IF(D41=0,+'App.2-CC_MIFRS_DepExp_2012'!K41,+'App.2-CC_MIFRS_DepExp_2012'!K41+((C41*0.5)/D41)) -> 0 | H41: 0 | I41: 0 | K41: =IF(ISERROR(+I41+'App.2-CC_MIFRS_DepExp_2012'!K41-J41), 0, +I41+'App.2-CC_MIFRS_DepExp_2012'!K41-J41) -> 0
A42: 1940 | B42: Tools, Shop & Garage Equipment | E42: 0 | F42: =IF(D42=0,+'App.2-CC_MIFRS_DepExp_2012'!K42,+'App.2-CC_MIFRS_DepExp_2012'!K42+((C42*0.5)/D42)) -> 0 | H42: 0 | I42: 0 | K42: =IF(ISERROR(+I42+'App.2-CC_MIFRS_DepExp_2012'!K42-J42), 0, +I42+'App.2-CC_MIFRS_DepExp_2012'!K42-J42) -> 0
A43: 1945 | B43: Measurement & Testing Equipment | E43: 0 | F43: =IF(D43=0,+'App.2-CC_MIFRS_DepExp_2012'!K43,+'App.2-CC_MIFRS_DepExp_2012'!K43+((C43*0.5)/D43)) -> 0 | H43: 0 | I43: 0 | K43: =IF(ISERROR(+I43+'App.2-CC_MIFRS_DepExp_2012'!K43-J43), 0, +I43+'App.2-CC_MIFRS_DepExp_2012'!K43-J43) -> 0
A44: 1950 | B44: Power Operated Equipment | E44: 0 | F44: =IF(D44=0,+'App.2-CC_MIFRS_DepExp_2012'!K44,+'App.2-CC_MIFRS_DepExp_2012'!K44+((C44*0.5)/D44)) -> 0 | H44: 0 | I44: 0 | K44: =IF(ISERROR(+I44+'App.2-CC_MIFRS_DepExp_2012'!K44-J44), 0, +I44+'App.2-CC_MIFRS_DepExp_2012'!K44-J44) -> 0
A45: 1955 | B45: Communications Equipment | E45: 0 | F45: =IF(D45=0,+'App.2-CC_MIFRS_DepExp_2012'!K45,+'App.2-CC_MIFRS_DepExp_2012'!K45+((C45*0.5)/D45)) -> 0 | H45: 0 | I45: 0 | K45: =IF(ISERROR(+I45+'App.2-CC_MIFRS_DepExp_2012'!K45-J45), 0, +I45+'App.2-CC_MIFRS_DepExp_2012'!K45-J45) -> 0
A46: 1955 | B46: Communication Equipment (Smart Meters) | E46: 0 | F46: =IF(D46=0,+'App.2-CC_MIFRS_DepExp_2012'!K46,+'App.2-CC_MIFRS_DepExp_2012'!K46+((C46*0.5)/D46)) -> 0 | H46: 0 | I46: 0 | K46: =IF(ISERROR(+I46+'App.2-CC_MIFRS_DepExp_2012'!K46-J46), 0, +I46+'App.2-CC_MIFRS_DepExp_2012'!K46-J46) -> 0
A47: 1960 | B47: Miscellaneous Equipment | E47: 0 | F47: =IF(D47=0,+'App.2-CC_MIFRS_DepExp_2012'!K47,+'App.2-CC_MIFRS_DepExp_2012'!K47+((C47*0.5)/D47)) -> 0 | H47: 0 | I47: 0 | K47: =IF(ISERROR(+I47+'App.2-CC_MIFRS_DepExp_2012'!K47-J47), 0, +I47+'App.2-CC_MIFRS_DepExp_2012'!K47-J47) -> 0
A48: 1970 | B48: Load Management Controls Customer Premises | E48: 0 | F48: =IF(D48=0,+'App.2-CC_MIFRS_DepExp_2012'!K48,+'App.2-CC_MIFRS_DepExp_2012'!K48+((C48*0.5)/D48)) -> 0 | H48: 0 | I48: 0 | K48: =IF(ISERROR(+I48+'App.2-CC_MIFRS_DepExp_2012'!K48-J48), 0, +I48+'App.2-CC_MIFRS_DepExp_2012'!K48-J48) -> 0
A49: 1975 | B49: Load Management Controls Utility Premises | E49: 0 | F49: =IF(D49=0,+'App.2-CC_MIFRS_DepExp_2012'!K49,+'App.2-CC_MIFRS_DepExp_2012'!K49+((C49*0.5)/D49)) -> 0 | H49: 0 | I49: 0 | K49: =IF(ISERROR(+I49+'App.2-CC_MIFRS_DepExp_2012'!K49-J49), 0, +I49+'App.2-CC_MIFRS_DepExp_2012'!K49-J49) -> 0
A50: 1980 | B50: System Supervisor Equipment | E50: 0 | F50: =IF(D50=0,+'App.2-CC_MIFRS_DepExp_2012'!K50,+'App.2-CC_MIFRS_DepExp_2012'!K50+((C50*0.5)/D50)) -> 0 | H50: 0 | I50: 0 | K50: =IF(ISERROR(+I50+'App.2-CC_MIFRS_DepExp_2012'!K50-J50), 0, +I50+'App.2-CC_MIFRS_DepExp_2012'!K50-J50) -> 0
A51: 1985 | B51: Miscellaneous Fixed Assets | E51: 0 | F51: =IF(D51=0,+'App.2-CC_MIFRS_DepExp_2012'!K51,+'App.2-CC_MIFRS_DepExp_2012'!K51+((C51*0.5)/D51)) -> 0 | H51: 0 | I51: 0 | K51: =IF(ISERROR(+I51+'App.2-CC_MIFRS_DepExp_2012'!K51-J51), 0, +I51+'App.2-CC_MIFRS_DepExp_2012'!K51-J51) -> 0
A52: 1990 | B52: Other Tangible Property | E52: 0 | F52: =IF(D52=0,+'App.2-CC_MIFRS_DepExp_2012'!K52,+'App.2-CC_MIFRS_DepExp_2012'!K52+((C52*0.5)/D52)) -> 0 | H52: 0 | I52: 0 | K52: =IF(ISERROR(+I52+'App.2-CC_MIFRS_DepExp_2012'!K52-J52), 0, +I52+'App.2-CC_MIFRS_DepExp_2012'!K52-J52) -> 0
A53: 1995 | B53: Contributions & Grants | E53: 0 | F53: =IF(D53=0,+'App.2-CC_MIFRS_DepExp_2012'!K53,+'App.2-CC_MIFRS_DepExp_2012'!K53+((C53*0.5)/D53)) -> 0 | H53: 0 | I53: 0 | K53: =IF(ISERROR(+I53+'App.2-CC_MIFRS_DepExp_2012'!K53-J53), 0, +I53+'App.2-CC_MIFRS_DepExp_2012'!K53-J53) -> 0
A54: etc. | E54: 0 | F54: =IF(D54=0,+'App.2-CC_MIFRS_DepExp_2012'!K54,+'App.2-CC_MIFRS_DepExp_2012'!K54+((C54*0.5)/D54)) -> 0 | H54: 0 | I54: 0 | K54: =IF(ISERROR(+I54+'App.2-CC_MIFRS_DepExp_2012'!K54-J54), 0, +I54+'App.2-CC_MIFRS_DepExp_2012'!K54-J54) -> 0
E55: 0 | F55: =IF(D55=0,+'App.2-CC_MIFRS_DepExp_2012'!K55,+'App.2-CC_MIFRS_DepExp_2012'!K55+((C55*0.5)/D55)) -> 0 | H55: 0 | I55: 0 | K55: =IF(ISERROR(+I55+'App.2-CC_MIFRS_DepExp_2012'!K55-J55), 0, +I55+'App.2-CC_MIFRS_DepExp_2012'!K55-J55) -> 0
B56: Total | C56: =SUM(C16:C55) -> 0 | F56: =SUM(F16:F55) -> 0 | G56: 0 | H56: 0 | I56: 0 | J56: 0 | K56: 0
B57: Depreciation exp. adj. from gain or loss on the retirement of assets (pool of like assets) | F57: 0
B58: Total | F58: =+F57+F56 -> 0
A59: Notes:
A60: 1 | B60: Board policy of the "half-year" rule - the applicant must ensure that additions in the year attract a half-year depreciation expense in the first year. Deviations from this standard practice must be supported in the application.
A61: 2 | B61: The applicant must provide an explanation of material variances in evidence.
A62: 3 | B62: This column refers to the calculated full year depreciation but excludes the depreciation expense on assets fully depreciated during the year. This column is used for the purpose of calculating depreciation expense in the following year on the next worksheet.
A64: General: | B64: Applicants must provide a breakdown of depreciation and amortization expense in the above format for all relevant accounts. Asset Retirement Obligations (AROs), depreciation and accretion expense should be disclosed separately consistent with the Notes of historical Audited Financial Statements.

Sheet App.2-CE_MIFRS_DepExp_2014 (hidden)
G1: File Number: | H1: =EBNUMBER -> EB-2013-0116
G2: Exhibit:
G3: Tab:
G4: Schedule:
G5: Page:
G7: Date:
A9: Appendix 2-CE
A10: Depreciation and Amortization Expense
A11: Assumes the applicant adopted IFRS for financial reporting purposes January 1, 2012
C12: 2014 | D12: MIFRS
A14: Account | B14: Description | C14: Additions | D14: Years (new additions only) | E14: Depreciation Rate on New Additions | F14: 2014 Depreciation Expense 1 | G14: 2014 Depreciation Expense per Appendix 2-B Fixed Assets, Column K (l) | H14: Variance 2
C15: (d) | D15: (f) | E15: (g) = 1 / (f) | F15: (h)=2013 Full Year Depreciation + ((d)*0.5)/(f) | H15: (m) = (h) - (l)
A16: 1611 | B16: Computer Software (Formally known as Account 1925) | E16: =IF(D16=0,0,1/D16) -> 0 | F16: =IF(D16=0,'App.2-CD_MIFRS_DepExp_2013'!K16,+'App.2-CD_MIFRS_DepExp_2013'!K16+((C16*0.5)/D16)) -> 0 | H16: =IF(ISERROR(+F16-G16), 0, +F16-G16) -> 0
A17: 1612 | B17: Land Rights (Formally known as Account 1906) | E17: 0 | F17: =IF(D17=0,'App.2-CD_MIFRS_DepExp_2013'!K17,+'App.2-CD_MIFRS_DepExp_2013'!K17+((C17*0.5)/D17)) -> 0 | H17: 0
A18: 1805 | B18: Land | E18: 0 | F18: =IF(D18=0,'App.2-CD_MIFRS_DepExp_2013'!K18,+'App.2-CD_MIFRS_DepExp_2013'!K18+((C18*0.5)/D18)) -> 0 | H18: 0
A19: 1808 | B19: Buildings | E19: 0 | F19: =IF(D19=0,'App.2-CD_MIFRS_DepExp_2013'!K19,+'App.2-CD_MIFRS_DepExp_2013'!K19+((C19*0.5)/D19)) -> 0 | H19: 0
A20: 1810 | B20: Leasehold Improvements | E20: 0 | F20: =IF(D20=0,'App.2-CD_MIFRS_DepExp_2013'!K20,+'App.2-CD_MIFRS_DepExp_2013'!K20+((C20*0.5)/D20)) -> 0 | H20: 0
A21: 1815 | B21: Transformer Station Equipment >50 kV | E21: 0 | F21: =IF(D21=0,'App.2-CD_MIFRS_DepExp_2013'!K21,+'App.2-CD_MIFRS_DepExp_2013'!K21+((C21*0.5)/D21)) -> 0 | H21: 0
A22: 1820 | B22: Distribution Station Equipment <50 kV | E22: 0 | F22: =IF(D22=0,'App.2-CD_MIFRS_DepExp_2013'!K22,+'App.2-CD_MIFRS_DepExp_2013'!K22+((C22*0.5)/D22)) -> 0 | H22: 0
A23: 1825 | B23: Storage Battery Equipment | E23: 0 | F23: =IF(D23=0,'App.2-CD_MIFRS_DepExp_2013'!K23,+'App.2-CD_MIFRS_DepExp_2013'!K23+((C23*0.5)/D23)) -> 0 | H23: 0
A24: 1830 | B24: Poles, Towers & Fixtures | E24: 0 | F24: =IF(D24=0,'App.2-CD_MIFRS_DepExp_2013'!K24,+'App.2-CD_MIFRS_DepExp_2013'!K24+((C24*0.5)/D24)) -> 0 | H24: 0
A25: 1835 | B25: Overhead Conductors & Devices | E25: 0 | F25: =IF(D25=0,'App.2-CD_MIFRS_DepExp_2013'!K25,+'App.2-CD_MIFRS_DepExp_2013'!K25+((C25*0.5)/D25)) -> 0 | H25: 0
A26: 1840 | B26: Underground Conduit | E26: 0 | F26: =IF(D26=0,'App.2-CD_MIFRS_DepExp_2013'!K26,+'App.2-CD_MIFRS_DepExp_2013'!K26+((C26*0.5)/D26)) -> 0 | H26: 0
A27: 1845 | B27: Underground Conductors & Devices | E27: 0 | F27: =IF(D27=0,'App.2-CD_MIFRS_DepExp_2013'!K27,+'App.2-CD_MIFRS_DepExp_2013'!K27+((C27*0.5)/D27)) -> 0 | H27: 0
A28: 1850 | B28: Line Transformers | E28: 0 | F28: =IF(D28=0,'App.2-CD_MIFRS_DepExp_2013'!K28,+'App.2-CD_MIFRS_DepExp_2013'!K28+((C28*0.5)/D28)) -> 0 | H28: 0
A29: 1855 | B29: Services (Overhead & Underground) | E29: 0 | F29: =IF(D29=0,'App.2-CD_MIFRS_DepExp_2013'!K29,+'App.2-CD_MIFRS_DepExp_2013'!K29+((C29*0.5)/D29)) -> 0 | H29: 0
A30: 1860 | B30: Meters | E30: 0 | F30: =IF(D30=0,'App.2-CD_MIFRS_DepExp_2013'!K30,+'App.2-CD_MIFRS_DepExp_2013'!K30+((C30*0.5)/D30)) -> 0 | H30: 0
A31: 1860 | B31: Meters (Smart Meters) | E31: 0 | F31: =IF(D31=0,'App.2-CD_MIFRS_DepExp_2013'!K31,+'App.2-CD_MIFRS_DepExp_2013'!K31+((C31*0.5)/D31)) -> 0 | H31: 0
A32: 1905 | B32: Land | E32: 0 | F32: =IF(D32=0,'App.2-CD_MIFRS_DepExp_2013'!K32,+'App.2-CD_MIFRS_DepExp_2013'!K32+((C32*0.5)/D32)) -> 0 | H32: 0
A33: 1908 | B33: Buildings & Fixtures | E33: 0 | F33: =IF(D33=0,'App.2-CD_MIFRS_DepExp_2013'!K33,+'App.2-CD_MIFRS_DepExp_2013'!K33+((C33*0.5)/D33)) -> 0 | H33: 0
A34: 1910 | B34: Leasehold Improvements | E34: 0 | F34: =IF(D34=0,'App.2-CD_MIFRS_DepExp_2013'!K34,+'App.2-CD_MIFRS_DepExp_2013'!K34+((C34*0.5)/D34)) -> 0 | H34: 0
A35: 1915 | B35: Office Furniture & Equipment (10 years) | E35: 0 | F35: =IF(D35=0,'App.2-CD_MIFRS_DepExp_2013'!K35,+'App.2-CD_MIFRS_DepExp_2013'!K35+((C35*0.5)/D35)) -> 0 | H35: 0
A36: 1915 | B36: Office Furniture & Equipment (5 years) | E36: 0 | F36: =IF(D36=0,'App.2-CD_MIFRS_DepExp_2013'!K36,+'App.2-CD_MIFRS_DepExp_2013'!K36+((C36*0.5)/D36)) -> 0 | H36: 0
A37: 1920 | B37: Computer Equipment - Hardware | E37: 0 | F37: =IF(D37=0,'App.2-CD_MIFRS_DepExp_2013'!K37,+'App.2-CD_MIFRS_DepExp_2013'!K37+((C37*0.5)/D37)) -> 0 | H37: 0
A38: 1920 | B38: Computer Equip.-Hardware(Post Mar. 22/04) | E38: 0 | F38: =IF(D38=0,'App.2-CD_MIFRS_DepExp_2013'!K38,+'App.2-CD_MIFRS_DepExp_2013'!K38+((C38*0.5)/D38)) -> 0 | H38: 0
A39: 1920 | B39: Computer Equip.-Hardware(Post Mar. 19/07) | E39: 0 | F39: =IF(D39=0,'App.2-CD_MIFRS_DepExp_2013'!K39,+'App.2-CD_MIFRS_DepExp_2013'!K39+((C39*0.5)/D39)) -> 0 | H39: 0
A40: 1930 | B40: Transportation Equipment | E40: 0 | F40: =IF(D40=0,'App.2-CD_MIFRS_DepExp_2013'!K40,+'App.2-CD_MIFRS_DepExp_2013'!K40+((C40*0.5)/D40)) -> 0 | H40: 0
A41: 1935 | B41: Stores Equipment | E41: 0 | F41: =IF(D41=0,'App.2-CD_MIFRS_DepExp_2013'!K41,+'App.2-CD_MIFRS_DepExp_2013'!K41+((C41*0.5)/D41)) -> 0 | H41: 0
A42: 1940 | B42: Tools, Shop & Garage Equipment | E42: 0 | F42: =IF(D42=0,'App.2-CD_MIFRS_DepExp_2013'!K42,+'App.2-CD_MIFRS_DepExp_2013'!K42+((C42*0.5)/D42)) -> 0 | H42: 0
A43: 1945 | B43: Measurement & Testing Equipment | E43: 0 | F43: =IF(D43=0,'App.2-CD_MIFRS_DepExp_2013'!K43,+'App.2-CD_MIFRS_DepExp_2013'!K43+((C43*0.5)/D43)) -> 0 | H43: 0
A44: 1950 | B44: Power Operated Equipment | E44: 0 | F44: =IF(D44=0,'App.2-CD_MIFRS_DepExp_2013'!K44,+'App.2-CD_MIFRS_DepExp_2013'!K44+((C44*0.5)/D44)) -> 0 | H44: 0
A45: 1955 | B45: Communications Equipment | E45: 0 | F45: =IF(D45=0,'App.2-CD_MIFRS_DepExp_2013'!K45,+'App.2-CD_MIFRS_DepExp_2013'!K45+((C45*0.5)/D45)) -> 0 | H45: 0
A46: 1955 | B46: Communication Equipment (Smart Meters) | E46: 0 | F46: =IF(D46=0,'App.2-CD_MIFRS_DepExp_2013'!K46,+'App.2-CD_MIFRS_DepExp_2013'!K46+((C46*0.5)/D46)) -> 0 | H46: 0
A47: 1960 | B47: Miscellaneous Equipment | E47: 0 | F47: =IF(D47=0,'App.2-CD_MIFRS_DepExp_2013'!K47,+'App.2-CD_MIFRS_DepExp_2013'!K47+((C47*0.5)/D47)) -> 0 | H47: 0
A48: 1970 | B48: Load Management Controls Customer Premises | E48: 0 | F48: =IF(D48=0,'App.2-CD_MIFRS_DepExp_2013'!K48,+'App.2-CD_MIFRS_DepExp_2013'!K48+((C48*0.5)/D48)) -> 0 | H48: 0
A49: 1975 | B49: Load Management Controls Utility Premises | E49: 0 | F49: =IF(D49=0,'App.2-CD_MIFRS_DepExp_2013'!K49,+'App.2-CD_MIFRS_DepExp_2013'!K49+((C49*0.5)/D49)) -> 0 | H49: 0
A50: 1980 | B50: System Supervisor Equipment | E50: 0 | F50: =IF(D50=0,'App.2-CD_MIFRS_DepExp_2013'!K50,+'App.2-CD_MIFRS_DepExp_2013'!K50+((C50*0.5)/D50)) -> 0 | H50: 0
A51: 1985 | B51: Miscellaneous Fixed Assets | E51: 0 | F51: =IF(D51=0,'App.2-CD_MIFRS_DepExp_2013'!K51,+'App.2-CD_MIFRS_DepExp_2013'!K51+((C51*0.5)/D51)) -> 0 | H51: 0
A52: 1990 | B52: Other Tangible Property | E52: 0 | F52: =IF(D52=0,'App.2-CD_MIFRS_DepExp_2013'!K52,+'App.2-CD_MIFRS_DepExp_2013'!K52+((C52*0.5)/D52)) -> 0 | H52: 0
A53: 1995 | B53: Contributions & Grants | E53: 0 | F53: =IF(D53=0,'App.2-CD_MIFRS_DepExp_2013'!K53,+'App.2-CD_MIFRS_DepExp_2013'!K53+((C53*0.5)/D53)) -> 0 | H53: 0
A54: etc. | E54: 0 | F54: =IF(D54=0,'App.2-CD_MIFRS_DepExp_2013'!K54,+'App.2-CD_MIFRS_DepExp_2013'!K54+((C54*0.5)/D54)) -> 0 | H54: 0
E55: 0 | F55: =IF(D55=0,'App.2-CD_MIFRS_DepExp_2013'!K55,+'App.2-CD_MIFRS_DepExp_2013'!K55+((C55*0.5)/D55)) -> 0 | H55: 0
B56: Total | C56: =SUM(C16:C55) -> 0 | F56: =SUM(F16:F55) -> 0 | G56: =SUM(G16:G55) -> 0 | H56: =SUM(H16:H55) -> 0
B57: Depreciation exp. adj. from gain or loss on the retirement of assets (pool of like assets)
B58: Total Depreciation expense to be included in the test year revenue requirement | F58: =SUM(F56:F57) -> 0
A59: Notes:
A60: 1 | B60: Board policy of the "half-year" rule - the applicant must ensure that additions in the year attract a half-year depreciation expense in the first year. Deviations from this standard practice must be supported in the application.
A61: 2 | B61: The applicant must provide an explanation of material variances in evidence.
A63: General: | B63: Applicants must provide a breakdown of depreciation and amortization expense in the above format for all relevant accounts. Asset Retirement Obligations (AROs), depreciation and accretion expense should be disclosed separately consistent with the Notes of historical Audited Financial Statements.

Sheet App.2-CF_CGAAP_DepExp_2012 (hidden)
K1: File Number: | L1: =EBNUMBER -> EB-2013-0116
K2: Exhibit:
K3: Tab:
K4: Schedule:
K5: Page:
K7: Date:
A9: Appendix 2-CF
A10: Depreciation and Amortization Expense
A11: Assumes the applicant adopted IFRS for financial reporting purposes January 1, 2013
C12: Year | D12: 2012 | E12: CGAAP
A14: Account | B14: Description | C14: Opening Regulatory Gross PP&E as at Jan 1, 2012 | D14: Less Fully Depreciated | E14: Net for Depreciation | F14: Additions | G14: Total for Depreciation | H14: Years | I14: Depreciation Rate | J14: Depreciation Expense | K14: 2012 Depreciation Expense per Appendix 2-B Fixed Assets, Column K (l) | L14: Variance 2
C15: (a) | D15: (b) | E15: (c) | F15: (d) | G15: (e) = (c) + ½ x (d) 1 | H15: (f) | I15: (g) = 1 / (f) | J15: (h) = (e) / (f) | L15: (m) = (h) - (l)
A16: 1611 | B16: Computer Software (Formally known as Account 1925) | E16: =C16-D16 -> 0 | G16: =E16+0.5*F16 -> 0 | I16: =IF(H16=0,0,1/H16) -> 0 | J16: =IF(H16=0,0,G16/H16) -> 0 | L16: =IF(ISERROR(+J16-K16), 0, +J16-K16) -> 0
A17: 1612 | B17: Land Rights (Formally known as Account 1906) | E17: =C17-D17 -> 0 | G17: =E17+0.5*F17 -> 0 | I17: 0 | J17: 0 | L17: 0
A18: 1805 | B18: Land | E18: 0 | G18: 0 | I18: 0 | J18: 0 | L18: 0
A19: 1808 | B19: Buildings | E19: 0 | G19: 0 | I19: 0 | J19: 0 | L19: 0
A20: 1810 | B20: Leasehold Improvements | E20: 0 | G20: 0 | I20: 0 | J20: 0 | L20: 0
A21: 1815 | B21: Transformer Station Equipment >50 kV | E21: 0 | G21: 0 | I21: 0 | J21: 0 | L21: 0
A22: 1820 | B22: Distribution Station Equipment <50 kV | E22: 0 | G22: 0 | I22: 0 | J22: 0 | L22: 0
A23: 1825 | B23: Storage Battery Equipment | E23: 0 | G23: 0 | I23: 0 | J23: 0 | L23: 0
A24: 1830 | B24: Poles, Towers & Fixtures | E24: 0 | G24: 0 | I24: 0 | J24: 0 | L24: 0
A25: 1835 | B25: Overhead Conductors & Devices | E25: 0 | G25: 0 | I25: 0 | J25: 0 | L25: 0
A26: 1840 | B26: Underground Conduit | E26: 0 | G26: 0 | I26: 0 | J26: 0 | L26: 0
A27: 1845 | B27: Underground Conductors & Devices | E27: 0 | G27: 0 | I27: 0 | J27: 0 | L27: 0
A28: 1850 | B28: Line Transformers | E28: 0 | G28: 0 | I28: 0 | J28: 0 | L28: 0
A29: 1855 | B29: Services (Overhead & Underground) | E29: 0 | G29: 0 | I29: 0 | J29: 0 | L29: 0
A30: 1860 | B30: Meters | E30: 0 | G30: 0 | I30: 0 | J30: 0 | L30: 0
A31: 1860 | B31: Meters (Smart Meters) | E31: 0 | G31: 0 | I31: 0 | J31: 0 | L31: 0
A32: 1905 | B32: Land | E32: 0 | G32: 0 | I32: 0 | J32: 0 | L32: 0
A33: 1908 | B33: Buildings & Fixtures | E33: 0 | G33: 0 | I33: 0 | J33: 0 | L33: 0
A34: 1910 | B34: Leasehold Improvements | E34: 0 | G34: 0 | I34: 0 | J34: 0 | L34: 0
A35: 1915 | B35: Office Furniture & Equipment (10 years) | E35: 0 | G35: 0 | I35: 0 | J35: 0 | L35: 0
A36: 1915 | B36: Office Furniture & Equipment (5 years) | E36: 0 | G36: 0 | I36: 0 | J36: 0 | L36: 0
A37: 1920 | B37: Computer Equipment - Hardware | E37: 0 | G37: 0 | I37: 0 | J37: 0 | L37: 0
A38: 1920 | B38: Computer Equip.-Hardware(Post Mar. 22/04) | E38: 0 | G38: 0 | I38: 0 | J38: 0 | L38: 0
A39: 1920 | B39: Computer Equip.-Hardware(Post Mar. 19/07) | E39: 0 | G39: 0 | I39: 0 | J39: 0 | L39: 0
A40: 1930 | B40: Transportation Equipment | E40: 0 | G40: 0 | I40: 0 | J40: 0 | L40: 0
A41: 1935 | B41: Stores Equipment | E41: 0 | G41: 0 | I41: 0 | J41: 0 | L41: 0
A42: 1940 | B42: Tools, Shop & Garage Equipment | E42: 0 | G42: 0 | I42: 0 | J42: 0 | L42: 0
A43: 1945 | B43: Measurement & Testing Equipment | E43: 0 | G43: 0 | I43: 0 | J43: 0 | L43: 0
A44: 1950 | B44: Power Operated Equipment | E44: 0 | G44: 0 | I44: 0 | J44: 0 | L44: 0
A45: 1955 | B45: Communications Equipment | E45: 0 | G45: 0 | I45: 0 | J45: 0 | L45: 0
A46: 1955 | B46: Communication Equipment (Smart Meters) | E46: 0 | G46: 0 | I46: 0 | J46: 0 | L46: 0
A47: 1960 | B47: Miscellaneous Equipment | E47: 0 | G47: 0 | I47: 0 | J47: 0 | L47: 0
A48: 1970 | B48: Load Management Controls Customer Premises | E48: 0 | G48: 0 | I48: 0 | J48: 0 | L48: 0
A49: 1975 | B49: Load Management Controls Utility Premises | E49: 0 | G49: 0 | I49: 0 | J49: 0 | L49: 0
A50: 1980 | B50: System Supervisor Equipment | E50: 0 | G50: 0 | I50: 0 | J50: 0 | L50: 0
A51: 1985 | B51: Miscellaneous Fixed Assets | E51: 0 | G51: 0 | I51: 0 | J51: 0 | L51: 0
A52: 1990 | B52: Other Tangible Property | E52: 0 | G52: 0 | I52: 0 | J52: 0 | L52: 0
A53: 1995 | B53: Contributions & Grants | E53: 0 | G53: 0 | I53: 0 | J53: 0 | L53: 0
A54: etc. | E54: 0 | G54: 0 | I54: 0 | J54: 0 | L54: 0
E55: 0 | G55: 0 | I55: 0 | J55: 0 | L55: 0
B56: Total | C56: =SUM(C16:C55) -> 0 | D56: =SUM(D16:D55) -> 0 | E56: =SUM(E16:E55) -> 0 | F56: =SUM(F16:F55) -> 0 | G56: =SUM(G16:G55) -> 0 | J56: =SUM(J16:J55) -> 0 | K56: =SUM(K16:K55) -> 0 | L56: =SUM(L16:L55) -> 0
A58: Notes:
A60: 1 | B60: Board policy of the "half-year" rule - the applicant must ensure that additions in the year attract a half-year depreciation expense in the first year. Deviations from this standard practice must be supported in the application.
A61: 2 | B61: The applicant must provide an explanation of material variances in evidence.
A63: General | B63: Applicants must provide a breakdown of depreciation and amortization expense in the above format for all relevant accounts. Asset Retirement Obligations (AROs), depreciation and accretion expense should be disclosed separately consistent with the Notes of historical Audited Financial Statements.

Sheet App.2-CG_MIFRS_DepExp_2012 (hidden)
N1: File Number: | O1: =EBNUMBER -> EB-2013-0116
N2: Exhibit:
N3: Tab:
N4: Schedule:
N5: Page:
N7: Date:
A9: Appendix 2-CG
A10: Depreciation and Amortization Expense
A11: Assumes the applicant adopted IFRS for financial reporting purposes January 1, 2013
C12: Year | D12: 2012 | E12: MIFRS
A14: Account | B14: Description | C14: Opening NBV as at Jan 1, 2012 5 | D14: Additions | E14: Average Remaining Life of Opening NBV 4 | F14: Years (new additions only) 3 | G14: Depreciation Rate on New Additions | H14: Depreciation Expense on Opening NBV | I14: Depreciation Expense on Additions 1 | J14: 2012 Depreciation Expense | K14: 2012 Depreciation Expense per Appendix 2-B Fixed Assets, Column K (l) | L14: Variance 2 | M14: Depreciation Expense on 2012 Full Year Additions | N14: Less Depreciation Expense on Assets Fully Depreciated during the year (o) | O14: 2012 Full Year Depreciation 6
C15: (a) | D15: (d) | E15: (i) | F15: (f) | G15: (g) = 1 / (f) | H15: (j) = (a) / (i) | I15: (h)=((d)*0.5)/(f) | J15: (k) = (j) + (h) | L15: (m) = (k) - (l) | M15: (n) = (d)/(f) | O15: (p) = (j) + (n) - (o)
A16: 1611 | B16: Computer Software (Formally known as Account 1925) | G16: =IF(F16=0,0,1/F16) -> 0 | H16: =IF(E16=0,0,+C16/E16) -> 0 | I16: =IF(F16=0,0,+(D16*0.5)/F16) -> 0 | J16: =IF(ISERROR(+H16+I16), 0, +H16+I16) -> 0 | L16: =IF(ISERROR(+J16-K16), 0, +J16-K16) -> 0 | M16: =IF(F16=0,0,+(D16)/F16) -> 0 | O16: =IF(ISERROR(+M16+H16-N16), 0, +M16+H16-N16) -> 0
A17: 1612 | B17: Land Rights (Formally known as Account 1906) | G17: 0 | H17: 0 | I17: 0 | J17: 0 | L17: 0 | M17: 0 | O17: =IF(ISERROR(+M17+H17-N17), 0, +M17+H17-N17) -> 0
A18: 1805 | B18: Land | G18: 0 | H18: 0 | I18: 0 | J18: 0 | L18: 0 | M18: 0 | O18: 0
A19: 1808 | B19: Buildings | G19: 0 | H19: 0 | I19: 0 | J19: 0 | L19: 0 | M19: 0 | O19: 0
A20: 1810 | B20: Leasehold Improvements | G20: 0 | H20: 0 | I20: 0 | J20: 0 | L20: 0 | M20: 0 | O20: 0
A21: 1815 | B21: Transformer Station Equipment >50 kV | G21: 0 | H21: 0 | I21: 0 | J21: 0 | L21: 0 | M21: 0 | O21: 0
A22: 1820 | B22: Distribution Station Equipment <50 kV | G22: 0 | H22: 0 | I22: 0 | J22: 0 | L22: 0 | M22: 0 | O22: 0
A23: 1825 | B23: Storage Battery Equipment | G23: 0 | H23: 0 | I23: 0 | J23: 0 | L23: 0 | M23: 0 | O23: 0
A24: 1830 | B24: Poles, Towers & Fixtures | G24: 0 | H24: 0 | I24: 0 | J24: 0 | L24: 0 | M24: 0 | O24: 0
A25: 1835 | B25: Overhead Conductors & Devices | G25: 0 | H25: 0 | I25: 0 | J25: 0 | L25: 0 | M25: 0 | O25: 0
A26: 1840 | B26: Underground Conduit | G26: 0 | H26: 0 | I26: 0 | J26: 0 | L26: 0 | M26: 0 | O26: 0
A27: 1845 | B27: Underground Conductors & Devices | G27: 0 | H27: 0 | I27: 0 | J27: 0 | L27: 0 | M27: 0 | O27: 0
A28: 1850 | B28: Line Transformers | G28: 0 | H28: 0 | I28: 0 | J28: 0 | L28: 0 | M28: 0 | O28: 0
A29: 1855 | B29: Services (Overhead & Underground) | G29: 0 | H29: 0 | I29: 0 | J29: 0 | L29: 0 | M29: 0 | O29: 0
A30: 1860 | B30: Meters | G30: 0 | H30: 0 | I30: 0 | J30: 0 | L30: 0 | M30: 0 | O30: 0
A31: 1860 | B31: Meters (Smart Meters) | G31: 0 | H31: 0 | I31: 0 | J31: 0 | L31: 0 | M31: 0 | O31: 0
A32: 1905 | B32: Land | G32: 0 | H32: 0 | I32: 0 | J32: 0 | L32: 0 | M32: 0 | O32: 0
A33: 1908 | B33: Buildings & Fixtures | G33: 0 | H33: 0 | I33: 0 | J33: 0 | L33: 0 | M33: 0 | O33: 0
A34: 1910 | B34: Leasehold Improvements | G34: 0 | H34: 0 | I34: 0 | J34: 0 | L34: 0 | M34: 0 | O34: 0
A35: 1915 | B35: Office Furniture & Equipment (10 years) | G35: 0 | H35: 0 | I35: 0 | J35: 0 | L35: 0 | M35: 0 | O35: 0
A36: 1915 | B36: Office Furniture & Equipment (5 years) | G36: 0 | H36: 0 | I36: 0 | J36: 0 | L36: 0 | M36: 0 | O36: 0
A37: 1920 | B37: Computer Equipment - Hardware | G37: 0 | H37: 0 | I37: 0 | J37: 0 | L37: 0 | M37: 0 | O37: 0
A38: 1920 | B38: Computer Equip.-Hardware(Post Mar. 22/04) | G38: 0 | H38: 0 | I38: 0 | J38: 0 | L38: 0 | M38: 0 | O38: 0
A39: 1920 | B39: Computer Equip.-Hardware(Post Mar. 19/07) | G39: 0 | H39: 0 | I39: 0 | J39: 0 | L39: 0 | M39: 0 | O39: 0
A40: 1930 | B40: Transportation Equipment | G40: 0 | H40: 0 | I40: 0 | J40: 0 | L40: 0 | M40: 0 | O40: 0
A41: 1935 | B41: Stores Equipment | G41: 0 | H41: 0 | I41: 0 | J41: 0 | L41: 0 | M41: 0 | O41: 0
A42: 1940 | B42: Tools, Shop & Garage Equipment | G42: 0 | H42: 0 | I42: 0 | J42: 0 | L42: 0 | M42: 0 | O42: 0
A43: 1945 | B43: Measurement & Testing Equipment | G43: 0 | H43: 0 | I43: 0 | J43: 0 | L43: 0 | M43: 0 | O43: 0
A44: 1950 | B44: Power Operated Equipment | G44: 0 | H44: 0 | I44: 0 | J44: 0 | L44: 0 | M44: 0 | O44: 0
A45: 1955 | B45: Communications Equipment | G45: 0 | H45: 0 | I45: 0 | J45: 0 | L45: 0 | M45: 0 | O45: 0
A46: 1955 | B46: Communication Equipment (Smart Meters) | G46: 0 | H46: 0 | I46: 0 | J46: 0 | L46: 0 | M46: 0 | O46: 0
A47: 1960 | B47: Miscellaneous Equipment | G47: 0 | H47: 0 | I47: 0 | J47: 0 | L47: 0 | M47: 0 | O47: 0
A48: 1970 | B48: Load Management Controls Customer Premises | G48: 0 | H48: 0 | I48: 0 | J48: 0 | L48: 0 | M48: 0 | O48: 0
A49: 1975 | B49: Load Management Controls Utility Premises | G49: 0 | H49: 0 | I49: 0 | J49: 0 | L49: 0 | M49: 0 | O49: 0
A50: 1980 | B50: System Supervisor Equipment | G50: 0 | H50: 0 | I50: 0 | J50: 0 | L50: 0 | M50: 0 | O50: 0
A51: 1985 | B51: Miscellaneous Fixed Assets | G51: 0 | H51: 0 | I51: 0 | J51: 0 | L51: 0 | M51: 0 | O51: 0
A52: 1990 | B52: Other Tangible Property | G52: 0 | H52: 0 | I52: 0 | J52: 0 | L52: 0 | M52: 0 | O52: 0
A53: 1995 | B53: Contributions & Grants | G53: 0 | H53: 0 | I53: 0 | J53: 0 | L53: 0 | M53: 0 | O53: 0
A54: etc. | G54: 0 | H54: 0 | I54: 0 | J54: 0 | L54: 0 | M54: 0 | O54: 0
G55: 0 | H55: 0 | I55: 0 | J55: 0 | L55: 0 | M55: 0 | O55: 0
B56: Total | C56: =SUM(C16:C55) -> 0 | D56: =SUM(D16:D55) -> 0 | H56: =SUM(H16:H55) -> 0 | I56: 0 | J56: 0 | K56: 0 | L56: 0 | M56: 0 | N56: =SUM(N16:N55) -> 0 | O56: 0
B57: Depreciation exp. adj. from gain or loss on the retirement of assets (pool of like assets) | J57: 0
B58: Total | J58: =+J56+J57 -> 0
A59: Notes:
A61: 1 | B61: Board policy of the "half-year" rule - the applicant must ensure that additions in the year attract a half-year depreciation expense in the first year. Deviations from this standard practice must be supported in the application.
A62: 2 | B62: The applicant must provide an explanation of material variances in evidence.
A63: 3 | B63: The applicant should ensure that the years for new additions of assets are the asset useful lives determined by management in accordance with IFRS.
A64: 4 | B64: A recalculation should be performed to determine the average remaining life of opening balance of assets (i.e. excluding 2012 additions) under IFRS. For example, Asset A had a useful life of 20 years under CGAAP. On January 1, 2012, the date of transition, Asset A was 3 years depreciated. As a result, Asset A would have a remaining service life of 17 years (20 years less 3 years) under CGAAP as of January 1, 2012. Due to the transition to IFRS, management re-assessed the asset useful lives under IFRS principles and concluded that the revised useful life of Asset A is now 30 years. Therefore, the average remaining useful life of opening balance of Asset A is determined to be 27 years (30 years less 3 years) under IFRS as of January 1, 2012.
A65: 5 | B65: NBV must exclude assets still on the books but which have been fully amortized or depreciated.
A66: 6 | B66: This column refers to the calculated full year depreciation but excludes the depreciation expense on assets fully depreciated during the year. This column is used for the purpose of calculating depreciation expense in the following year on the next worksheet.
A68: General: | B68: Applicants must provide a breakdown of depreciation and amortization expense in the above format for all relevant accounts. Asset Retirement Obligations (AROs), depreciation and accretion expense should be disclosed separately consistent with the Notes of historical Audited Financial Statements.

Sheet App.2-CH_MIFRS_DepExp_2013 (hidden)
J1: File Number: | K1: =EBNUMBER -> EB-2013-0116
J2: Exhibit:
J3: Tab:
J4: Schedule:
J5: Page:
J7: Date:
A9: Appendix 2-CH
A10: Depreciation and Amortization Expense
A11: Assumes the applicant adopted IFRS for financial reporting purposes January 1, 2013
C12: 2013 | D12: MIFRS
A14: Account | B14: Description | C14: Additions | D14: Years (new additions only) | E14: Depreciation Rate on New Additions | F14: 2013 Depreciation Expense 1 | G14: 2013 Depreciation Expense per Apppendix 2-B Fixed Assets, Column K (l) | H14: Variance 2 | I14: Depreciation Expense on 2013 Full Year Additions | J14: Less Depreciation Expense on Assets Fully Depreciated during the year (o) | K14: 2013 Full Year Depreciation 3
C15: (d) | D15: (f) | E15: (g) = 1 / (f) | F15: (h)=2012 Full Year Deprecation + ((d)*0.5)/(f) | H15: (m) = (h) - (l) | I15: (n)=((d))/(f) | K15: (p) = 2012 Full Year Depreciation + (n) - (o)
A16: 1611 | B16: Computer Software (Formally known as Account 1925) | E16: =IF(D16=0,0,1/D16) -> 0 | F16: =IF(D16=0,+'App.2-CG_MIFRS_DepExp_2012'!O16,+'App.2-CG_MIFRS_DepExp_2012'!O16+((C16*0.5)/D16)) -> 0 | H16: =IF(ISERROR(+F16-G16), 0, +F16-G16) -> 0 | I16: =IF(D16=0,0,+(C16)/D16) -> 0 | K16: =IF(ISERROR(+I16+'App.2-CG_MIFRS_DepExp_2012'!O16-J16), 0, +I16+'App.2-CG_MIFRS_DepExp_2012'!O16-J16) -> 0
A17: 1612 | B17: Land Rights (Formally known as Account 1906) | E17: 0 | F17: =IF(D17=0,+'App.2-CG_MIFRS_DepExp_2012'!O17,+'App.2-CG_MIFRS_DepExp_2012'!O17+((C17*0.5)/D17)) -> 0 | H17: 0 | I17: 0 | K17: =IF(ISERROR(+I17+'App.2-CG_MIFRS_DepExp_2012'!O17-J17), 0, +I17+'App.2-CG_MIFRS_DepExp_2012'!O17-J17) -> 0
A18: 1805 | B18: Land | E18: 0 | F18: =IF(D18=0,+'App.2-CG_MIFRS_DepExp_2012'!O18,+'App.2-CG_MIFRS_DepExp_2012'!O18+((C18*0.5)/D18)) -> 0 | H18: 0 | I18: 0 | K18: =IF(ISERROR(+I18+'App.2-CG_MIFRS_DepExp_2012'!O18-J18), 0, +I18+'App.2-CG_MIFRS_DepExp_2012'!O18-J18) -> 0
A19: 1808 | B19: Buildings | E19: 0 | F19: =IF(D19=0,+'App.2-CG_MIFRS_DepExp_2012'!O19,+'App.2-CG_MIFRS_DepExp_2012'!O19+((C19*0.5)/D19)) -> 0 | H19: 0 | I19: 0 | K19: =IF(ISERROR(+I19+'App.2-CG_MIFRS_DepExp_2012'!O19-J19), 0, +I19+'App.2-CG_MIFRS_DepExp_2012'!O19-J19) -> 0
A20: 1810 | B20: Leasehold Improvements | E20: 0 | F20: =IF(D20=0,+'App.2-CG_MIFRS_DepExp_2012'!O20,+'App.2-CG_MIFRS_DepExp_2012'!O20+((C20*0.5)/D20)) -> 0 | H20: 0 | I20: 0 | K20: =IF(ISERROR(+I20+'App.2-CG_MIFRS_DepExp_2012'!O20-J20), 0, +I20+'App.2-CG_MIFRS_DepExp_2012'!O20-J20) -> 0
A21: 1815 | B21: Transformer Station Equipment >50 kV | E21: 0 | F21: =IF(D21=0,+'App.2-CG_MIFRS_DepExp_2012'!O21,+'App.2-CG_MIFRS_DepExp_2012'!O21+((C21*0.5)/D21)) -> 0 | H21: 0 | I21: 0 | K21: =IF(ISERROR(+I21+'App.2-CG_MIFRS_DepExp_2012'!O21-J21), 0, +I21+'App.2-CG_MIFRS_DepExp_2012'!O21-J21) -> 0
A22: 1820 | B22: Distribution Station Equipment <50 kV | E22: 0 | F22: =IF(D22=0,+'App.2-CG_MIFRS_DepExp_2012'!O22,+'App.2-CG_MIFRS_DepExp_2012'!O22+((C22*0.5)/D22)) -> 0 | H22: 0 | I22: 0 | K22: =IF(ISERROR(+I22+'App.2-CG_MIFRS_DepExp_2012'!O22-J22), 0, +I22+'App.2-CG_MIFRS_DepExp_2012'!O22-J22) -> 0
A23: 1825 | B23: Storage Battery Equipment | E23: 0 | F23: =IF(D23=0,+'App.2-CG_MIFRS_DepExp_2012'!O23,+'App.2-CG_MIFRS_DepExp_2012'!O23+((C23*0.5)/D23)) -> 0 | H23: 0 | I23: 0 | K23: =IF(ISERROR(+I23+'App.2-CG_MIFRS_DepExp_2012'!O23-J23), 0, +I23+'App.2-CG_MIFRS_DepExp_2012'!O23-J23) -> 0
A24: 1830 | B24: Poles, Towers & Fixtures | E24: 0 | F24: =IF(D24=0,+'App.2-CG_MIFRS_DepExp_2012'!O24,+'App.2-CG_MIFRS_DepExp_2012'!O24+((C24*0.5)/D24)) -> 0 | H24: 0 | I24: 0 | K24: =IF(ISERROR(+I24+'App.2-CG_MIFRS_DepExp_2012'!O24-J24), 0, +I24+'App.2-CG_MIFRS_DepExp_2012'!O24-J24) -> 0
A25: 1835 | B25: Overhead Conductors & Devices | E25: 0 | F25: =IF(D25=0,+'App.2-CG_MIFRS_DepExp_2012'!O25,+'App.2-CG_MIFRS_DepExp_2012'!O25+((C25*0.5)/D25)) -> 0 | H25: 0 | I25: 0 | K25: =IF(ISERROR(+I25+'App.2-CG_MIFRS_DepExp_2012'!O25-J25), 0, +I25+'App.2-CG_MIFRS_DepExp_2012'!O25-J25) -> 0
A26: 1840 | B26: Underground Conduit | E26: 0 | F26: =IF(D26=0,+'App.2-CG_MIFRS_DepExp_2012'!O26,+'App.2-CG_MIFRS_DepExp_2012'!O26+((C26*0.5)/D26)) -> 0 | H26: 0 | I26: 0 | K26: =IF(ISERROR(+I26+'App.2-CG_MIFRS_DepExp_2012'!O26-J26), 0, +I26+'App.2-CG_MIFRS_DepExp_2012'!O26-J26) -> 0
A27: 1845 | B27: Underground Conductors & Devices | E27: 0 | F27: =IF(D27=0,+'App.2-CG_MIFRS_DepExp_2012'!O27,+'App.2-CG_MIFRS_DepExp_2012'!O27+((C27*0.5)/D27)) -> 0 | H27: 0 | I27: 0 | K27: =IF(ISERROR(+I27+'App.2-CG_MIFRS_DepExp_2012'!O27-J27), 0, +I27+'App.2-CG_MIFRS_DepExp_2012'!O27-J27) -> 0
A28: 1850 | B28: Line Transformers | E28: 0 | F28: =IF(D28=0,+'App.2-CG_MIFRS_DepExp_2012'!O28,+'App.2-CG_MIFRS_DepExp_2012'!O28+((C28*0.5)/D28)) -> 0 | H28: 0 | I28: 0 | K28: =IF(ISERROR(+I28+'App.2-CG_MIFRS_DepExp_2012'!O28-J28), 0, +I28+'App.2-CG_MIFRS_DepExp_2012'!O28-J28) -> 0
A29: 1855 | B29: Services (Overhead & Underground) | E29: 0 | F29: =IF(D29=0,+'App.2-CG_MIFRS_DepExp_2012'!O29,+'App.2-CG_MIFRS_DepExp_2012'!O29+((C29*0.5)/D29)) -> 0 | H29: 0 | I29: 0 | K29: =IF(ISERROR(+I29+'App.2-CG_MIFRS_DepExp_2012'!O29-J29), 0, +I29+'App.2-CG_MIFRS_DepExp_2012'!O29-J29) -> 0
A30: 1860 | B30: Meters | E30: 0 | F30: =IF(D30=0,+'App.2-CG_MIFRS_DepExp_2012'!O30,+'App.2-CG_MIFRS_DepExp_2012'!O30+((C30*0.5)/D30)) -> 0 | H30: 0 | I30: 0 | K30: =IF(ISERROR(+I30+'App.2-CG_MIFRS_DepExp_2012'!O30-J30), 0, +I30+'App.2-CG_MIFRS_DepExp_2012'!O30-J30) -> 0
A31: 1860 | B31: Meters (Smart Meters) | E31: 0 | F31: =IF(D31=0,+'App.2-CG_MIFRS_DepExp_2012'!O31,+'App.2-CG_MIFRS_DepExp_2012'!O31+((C31*0.5)/D31)) -> 0 | H31: 0 | I31: 0 | K31: =IF(ISERROR(+I31+'App.2-CG_MIFRS_DepExp_2012'!O31-J31), 0, +I31+'App.2-CG_MIFRS_DepExp_2012'!O31-J31) -> 0
A32: 1905 | B32: Land | E32: 0 | F32: =IF(D32=0,+'App.2-CG_MIFRS_DepExp_2012'!O32,+'App.2-CG_MIFRS_DepExp_2012'!O32+((C32*0.5)/D32)) -> 0 | H32: 0 | I32: 0 | K32: =IF(ISERROR(+I32+'App.2-CG_MIFRS_DepExp_2012'!O32-J32), 0, +I32+'App.2-CG_MIFRS_DepExp_2012'!O32-J32) -> 0
A33: 1908 | B33: Buildings & Fixtures | E33: 0 | F33: =IF(D33=0,+'App.2-CG_MIFRS_DepExp_2012'!O33,+'App.2-CG_MIFRS_DepExp_2012'!O33+((C33*0.5)/D33)) -> 0 | H33: 0 | I33: 0 | K33: =IF(ISERROR(+I33+'App.2-CG_MIFRS_DepExp_2012'!O33-J33), 0, +I33+'App.2-CG_MIFRS_DepExp_2012'!O33-J33) -> 0
A34: 1910 | B34: Leasehold Improvements | E34: 0 | F34: =IF(D34=0,+'App.2-CG_MIFRS_DepExp_2012'!O34,+'App.2-CG_MIFRS_DepExp_2012'!O34+((C34*0.5)/D34)) -> 0 | H34: 0 | I34: 0 | K34: =IF(ISERROR(+I34+'App.2-CG_MIFRS_DepExp_2012'!O34-J34), 0, +I34+'App.2-CG_MIFRS_DepExp_2012'!O34-J34) -> 0
A35: 1915 | B35: Office Furniture & Equipment (10 years) | E35: 0 | F35: =IF(D35=0,+'App.2-CG_MIFRS_DepExp_2012'!O35,+'App.2-CG_MIFRS_DepExp_2012'!O35+((C35*0.5)/D35)) -> 0 | H35: 0 | I35: 0 | K35: =IF(ISERROR(+I35+'App.2-CG_MIFRS_DepExp_2012'!O35-J35), 0, +I35+'App.2-CG_MIFRS_DepExp_2012'!O35-J35) -> 0
A36: 1915 | B36: Office Furniture & Equipment (5 years) | E36: 0 | F36: =IF(D36=0,+'App.2-CG_MIFRS_DepExp_2012'!O36,+'App.2-CG_MIFRS_DepExp_2012'!O36+((C36*0.5)/D36)) -> 0 | H36: 0 | I36: 0 | K36: =IF(ISERROR(+I36+'App.2-CG_MIFRS_DepExp_2012'!O36-J36), 0, +I36+'App.2-CG_MIFRS_DepExp_2012'!O36-J36) -> 0
A37: 1920 | B37: Computer Equipment - Hardware | E37: 0 | F37: =IF(D37=0,+'App.2-CG_MIFRS_DepExp_2012'!O37,+'App.2-CG_MIFRS_DepExp_2012'!O37+((C37*0.5)/D37)) -> 0 | H37: 0 | I37: 0 | K37: =IF(ISERROR(+I37+'App.2-CG_MIFRS_DepExp_2012'!O37-J37), 0, +I37+'App.2-CG_MIFRS_DepExp_2012'!O37-J37) -> 0
A38: 1920 | B38: Computer Equip.-Hardware(Post Mar. 22/04) | E38: 0 | F38: =IF(D38=0,+'App.2-CG_MIFRS_DepExp_2012'!O38,+'App.2-CG_MIFRS_DepExp_2012'!O38+((C38*0.5)/D38)) -> 0 | H38: 0 | I38: 0 | K38: =IF(ISERROR(+I38+'App.2-CG_MIFRS_DepExp_2012'!O38-J38), 0, +I38+'App.2-CG_MIFRS_DepExp_2012'!O38-J38) -> 0
A39: 1920 | B39: Computer Equip.-Hardware(Post Mar. 19/07) | E39: 0 | F39: =IF(D39=0,+'App.2-CG_MIFRS_DepExp_2012'!O39,+'App.2-CG_MIFRS_DepExp_2012'!O39+((C39*0.5)/D39)) -> 0 | H39: 0 | I39: 0 | K39: =IF(ISERROR(+I39+'App.2-CG_MIFRS_DepExp_2012'!O39-J39), 0, +I39+'App.2-CG_MIFRS_DepExp_2012'!O39-J39) -> 0
A40: 1930 | B40: Transportation Equipment | E40: 0 | F40: =IF(D40=0,+'App.2-CG_MIFRS_DepExp_2012'!O40,+'App.2-CG_MIFRS_DepExp_2012'!O40+((C40*0.5)/D40)) -> 0 | H40: 0 | I40: 0 | K40: =IF(ISERROR(+I40+'App.2-CG_MIFRS_DepExp_2012'!O40-J40), 0, +I40+'App.2-CG_MIFRS_DepExp_2012'!O40-J40) -> 0
A41: 1935 | B41: Stores Equipment | E41: 0 | F41: =IF(D41=0,+'App.2-CG_MIFRS_DepExp_2012'!O41,+'App.2-CG_MIFRS_DepExp_2012'!O41+((C41*0.5)/D41)) -> 0 | H41: 0 | I41: 0 | K41: =IF(ISERROR(+I41+'App.2-CG_MIFRS_DepExp_2012'!O41-J41), 0, +I41+'App.2-CG_MIFRS_DepExp_2012'!O41-J41) -> 0
A42: 1940 | B42: Tools, Shop & Garage Equipment | E42: 0 | F42: =IF(D42=0,+'App.2-CG_MIFRS_DepExp_2012'!O42,+'App.2-CG_MIFRS_DepExp_2012'!O42+((C42*0.5)/D42)) -> 0 | H42: 0 | I42: 0 | K42: =IF(ISERROR(+I42+'App.2-CG_MIFRS_DepExp_2012'!O42-J42), 0, +I42+'App.2-CG_MIFRS_DepExp_2012'!O42-J42) -> 0
A43: 1945 | B43: Measurement & Testing Equipment | E43: 0 | F43: =IF(D43=0,+'App.2-CG_MIFRS_DepExp_2012'!O43,+'App.2-CG_MIFRS_DepExp_2012'!O43+((C43*0.5)/D43)) -> 0 | H43: 0 | I43: 0 | K43: =IF(ISERROR(+I43+'App.2-CG_MIFRS_DepExp_2012'!O43-J43), 0, +I43+'App.2-CG_MIFRS_DepExp_2012'!O43-J43) -> 0
A44: 1950 | B44: Power Operated Equipment | E44: 0 | F44: =IF(D44=0,+'App.2-CG_MIFRS_DepExp_2012'!O44,+'App.2-CG_MIFRS_DepExp_2012'!O44+((C44*0.5)/D44)) -> 0 | H44: 0 | I44: 0 | K44: =IF(ISERROR(+I44+'App.2-CG_MIFRS_DepExp_2012'!O44-J44), 0, +I44+'App.2-CG_MIFRS_DepExp_2012'!O44-J44) -> 0
A45: 1955 | B45: Communications Equipment | E45: 0 | F45: =IF(D45=0,+'App.2-CG_MIFRS_DepExp_2012'!O45,+'App.2-CG_MIFRS_DepExp_2012'!O45+((C45*0.5)/D45)) -> 0 | H45: 0 | I45: 0 | K45: =IF(ISERROR(+I45+'App.2-CG_MIFRS_DepExp_2012'!O45-J45), 0, +I45+'App.2-CG_MIFRS_DepExp_2012'!O45-J45) -> 0
A46: 1955 | B46: Communication Equipment (Smart Meters) | E46: 0 | F46: =IF(D46=0,+'App.2-CG_MIFRS_DepExp_2012'!O46,+'App.2-CG_MIFRS_DepExp_2012'!O46+((C46*0.5)/D46)) -> 0 | H46: 0 | I46: 0 | K46: =IF(ISERROR(+I46+'App.2-CG_MIFRS_DepExp_2012'!O46-J46), 0, +I46+'App.2-CG_MIFRS_DepExp_2012'!O46-J46) -> 0
A47: 1960 | B47: Miscellaneous Equipment | E47: 0 | F47: =IF(D47=0,+'App.2-CG_MIFRS_DepExp_2012'!O47,+'App.2-CG_MIFRS_DepExp_2012'!O47+((C47*0.5)/D47)) -> 0 | H47: 0 | I47: 0 | K47: =IF(ISERROR(+I47+'App.2-CG_MIFRS_DepExp_2012'!O47-J47), 0, +I47+'App.2-CG_MIFRS_DepExp_2012'!O47-J47) -> 0
A48: 1970 | B48: Load Management Controls Customer Premises | E48: 0 | F48: =IF(D48=0,+'App.2-CG_MIFRS_DepExp_2012'!O48,+'App.2-CG_MIFRS_DepExp_2012'!O48+((C48*0.5)/D48)) -> 0 | H48: 0 | I48: 0 | K48: =IF(ISERROR(+I48+'App.2-CG_MIFRS_DepExp_2012'!O48-J48), 0, +I48+'App.2-CG_MIFRS_DepExp_2012'!O48-J48) -> 0
A49: 1975 | B49: Load Management Controls Utility Premises | E49: 0 | F49: =IF(D49=0,+'App.2-CG_MIFRS_DepExp_2012'!O49,+'App.2-CG_MIFRS_DepExp_2012'!O49+((C49*0.5)/D49)) -> 0 | H49: 0 | I49: 0 | K49: =IF(ISERROR(+I49+'App.2-CG_MIFRS_DepExp_2012'!O49-J49), 0, +I49+'App.2-CG_MIFRS_DepExp_2012'!O49-J49) -> 0
A50: 1980 | B50: System Supervisor Equipment | E50: 0 | F50: =IF(D50=0,+'App.2-CG_MIFRS_DepExp_2012'!O50,+'App.2-CG_MIFRS_DepExp_2012'!O50+((C50*0.5)/D50)) -> 0 | H50: 0 | I50: 0 | K50: =IF(ISERROR(+I50+'App.2-CG_MIFRS_DepExp_2012'!O50-J50), 0, +I50+'App.2-CG_MIFRS_DepExp_2012'!O50-J50) -> 0
A51: 1985 | B51: Miscellaneous Fixed Assets | E51: 0 | F51: =IF(D51=0,+'App.2-CG_MIFRS_DepExp_2012'!O51,+'App.2-CG_MIFRS_DepExp_2012'!O51+((C51*0.5)/D51)) -> 0 | H51: 0 | I51: 0 | K51: =IF(ISERROR(+I51+'App.2-CG_MIFRS_DepExp_2012'!O51-J51), 0, +I51+'App.2-CG_MIFRS_DepExp_2012'!O51-J51) -> 0
A52: 1990 | B52: Other Tangible Property | E52: 0 | F52: =IF(D52=0,+'App.2-CG_MIFRS_DepExp_2012'!O52,+'App.2-CG_MIFRS_DepExp_2012'!O52+((C52*0.5)/D52)) -> 0 | H52: 0 | I52: 0 | K52: =IF(ISERROR(+I52+'App.2-CG_MIFRS_DepExp_2012'!O52-J52), 0, +I52+'App.2-CG_MIFRS_DepExp_2012'!O52-J52) -> 0
A53: 1995 | B53: Contributions & Grants | E53: 0 | F53: =IF(D53=0,+'App.2-CG_MIFRS_DepExp_2012'!O53,+'App.2-CG_MIFRS_DepExp_2012'!O53+((C53*0.5)/D53)) -> 0 | H53: 0 | I53: 0 | K53: =IF(ISERROR(+I53+'App.2-CG_MIFRS_DepExp_2012'!O53-J53), 0, +I53+'App.2-CG_MIFRS_DepExp_2012'!O53-J53) -> 0
A54: etc. | E54: 0 | F54: =IF(D54=0,+'App.2-CG_MIFRS_DepExp_2012'!O54,+'App.2-CG_MIFRS_DepExp_2012'!O54+((C54*0.5)/D54)) -> 0 | H54: 0 | I54: 0 | K54: =IF(ISERROR(+I54+'App.2-CG_MIFRS_DepExp_2012'!O54-J54), 0, +I54+'App.2-CG_MIFRS_DepExp_2012'!O54-J54) -> 0
E55: 0 | F55: =IF(D55=0,+'App.2-CG_MIFRS_DepExp_2012'!O55,+'App.2-CG_MIFRS_DepExp_2012'!O55+((C55*0.5)/D55)) -> 0 | H55: 0 | I55: 0 | K55: =IF(ISERROR(+I55+'App.2-CG_MIFRS_DepExp_2012'!O55-J55), 0, +I55+'App.2-CG_MIFRS_DepExp_2012'!O55-J55) -> 0
B56: Total | C56: =SUM(C16:C55) -> 0 | F56: =SUM(F16:F55) -> 0 | G56: 0 | H56: 0 | I56: 0 | J56: 0 | K56: 0
B57: Depreciation exp. adj. from gain or loss on the retirement of assets (pool of like assets) | F57: 0
B58: Total | F58: =+F57+F56 -> 0
A59: Notes:
A60: 1 | B60: Board policy of the "half-year" rule - the applicant must ensure that additions in the year attract a half-year depreciation expense in the first year. Deviations from this standard practice must be supported in the application.
A61: 2 | B61: The applicant must provide an explanation of material variances in evidence.
A62: 3 | B62: This column refers to the calculated full year depreciation but excludes the depreciation expense on assets fully depreciated during the year. This column is used for the purpose of calculating depreciation expense in the following year on the next worksheet.
A64: General: | B64: Applicants must provide a breakdown of depreciation and amortization expense in the above format for all relevant accounts. Asset Retirement Obligations (AROs), depreciation and accretion expense should be disclosed separately consistent with the Notes of historical Audited Financial Statements.

Sheet App.2-CI_MIFRS_DepExp_2014 (hidden)
G1: File Number: | H1: =EBNUMBER -> EB-2013-0116
G2: Exhibit:
G3: Tab:
G4: Schedule:
G5: Page:
G7: Date:
A9: Appendix 2-CI
A10: Depreciation and Amortization Expense
A11: Assumes the applicant adopted IFRS for financial reporting purposes January 1, 2013
C12: 2014 | D12: MIFRS
A14: Account | B14: Description | C14: Additions | D14: Years (new additions only) | E14: Depreciation Rate on New Additions | F14: 2014 Depreciation Expense 1 | G14: 2014 Depreciation Expense per Appendix 2-B Fixed Assets, Column K (l) | H14: Variance 2
C15: (d) | D15: (f) | E15: (g) = 1 / (f) | F15: (h)=2013 Full Year Depreciation + ((d)*0.5)/(f) | H15: (m) = (h) - (l)
A16: 1611 | B16: Computer Software (Formally known as Account 1925) | E16: =IF(D16=0,0,1/D16) -> 0 | F16: =IF(D16=0,'App.2-CH_MIFRS_DepExp_2013'!K16,+'App.2-CH_MIFRS_DepExp_2013'!K16+((C16*0.5)/D16)) -> 0 | H16: =IF(ISERROR(+F16-G16), 0, +F16-G16) -> 0
A17: 1612 | B17: Land Rights (Formally known as Account 1906) | E17: 0 | F17: =IF(D17=0,'App.2-CH_MIFRS_DepExp_2013'!K17,+'App.2-CH_MIFRS_DepExp_2013'!K17+((C17*0.5)/D17)) -> 0 | H17: 0
A18: 1805 | B18: Land | E18: 0 | F18: =IF(D18=0,'App.2-CH_MIFRS_DepExp_2013'!K18,+'App.2-CH_MIFRS_DepExp_2013'!K18+((C18*0.5)/D18)) -> 0 | H18: 0
A19: 1808 | B19: Buildings | E19: 0 | F19: =IF(D19=0,'App.2-CH_MIFRS_DepExp_2013'!K19,+'App.2-CH_MIFRS_DepExp_2013'!K19+((C19*0.5)/D19)) -> 0 | H19: 0
A20: 1810 | B20: Leasehold Improvements | E20: 0 | F20: =IF(D20=0,'App.2-CH_MIFRS_DepExp_2013'!K20,+'App.2-CH_MIFRS_DepExp_2013'!K20+((C20*0.5)/D20)) -> 0 | H20: 0
A21: 1815 | B21: Transformer Station Equipment >50 kV | E21: 0 | F21: =IF(D21=0,'App.2-CH_MIFRS_DepExp_2013'!K21,+'App.2-CH_MIFRS_DepExp_2013'!K21+((C21*0.5)/D21)) -> 0 | H21: 0
A22: 1820 | B22: Distribution Station Equipment <50 kV | E22: 0 | F22: =IF(D22=0,'App.2-CH_MIFRS_DepExp_2013'!K22,+'App.2-CH_MIFRS_DepExp_2013'!K22+((C22*0.5)/D22)) -> 0 | H22: 0
A23: 1825 | B23: Storage Battery Equipment | E23: 0 | F23: =IF(D23=0,'App.2-CH_MIFRS_DepExp_2013'!K23,+'App.2-CH_MIFRS_DepExp_2013'!K23+((C23*0.5)/D23)) -> 0 | H23: 0
A24: 1830 | B24: Poles, Towers & Fixtures | E24: 0 | F24: =IF(D24=0,'App.2-CH_MIFRS_DepExp_2013'!K24,+'App.2-CH_MIFRS_DepExp_2013'!K24+((C24*0.5)/D24)) -> 0 | H24: 0
A25: 1835 | B25: Overhead Conductors & Devices | E25: 0 | F25: =IF(D25=0,'App.2-CH_MIFRS_DepExp_2013'!K25,+'App.2-CH_MIFRS_DepExp_2013'!K25+((C25*0.5)/D25)) -> 0 | H25: 0
A26: 1840 | B26: Underground Conduit | E26: 0 | F26: =IF(D26=0,'App.2-CH_MIFRS_DepExp_2013'!K26,+'App.2-CH_MIFRS_DepExp_2013'!K26+((C26*0.5)/D26)) -> 0 | H26: 0
A27: 1845 | B27: Underground Conductors & Devices | E27: 0 | F27: =IF(D27=0,'App.2-CH_MIFRS_DepExp_2013'!K27,+'App.2-CH_MIFRS_DepExp_2013'!K27+((C27*0.5)/D27)) -> 0 | H27: 0
A28: 1850 | B28: Line Transformers | E28: 0 | F28: =IF(D28=0,'App.2-CH_MIFRS_DepExp_2013'!K28,+'App.2-CH_MIFRS_DepExp_2013'!K28+((C28*0.5)/D28)) -> 0 | H28: 0
A29: 1855 | B29: Services (Overhead & Underground) | E29: 0 | F29: =IF(D29=0,'App.2-CH_MIFRS_DepExp_2013'!K29,+'App.2-CH_MIFRS_DepExp_2013'!K29+((C29*0.5)/D29)) -> 0 | H29: 0
A30: 1860 | B30: Meters | E30: 0 | F30: =IF(D30=0,'App.2-CH_MIFRS_DepExp_2013'!K30,+'App.2-CH_MIFRS_DepExp_2013'!K30+((C30*0.5)/D30)) -> 0 | H30: 0
A31: 1860 | B31: Meters (Smart Meters) | E31: 0 | F31: =IF(D31=0,'App.2-CH_MIFRS_DepExp_2013'!K31,+'App.2-CH_MIFRS_DepExp_2013'!K31+((C31*0.5)/D31)) -> 0 | H31: 0
A32: 1905 | B32: Land | E32: 0 | F32: =IF(D32=0,'App.2-CH_MIFRS_DepExp_2013'!K32,+'App.2-CH_MIFRS_DepExp_2013'!K32+((C32*0.5)/D32)) -> 0 | H32: 0
A33: 1908 | B33: Buildings & Fixtures | E33: 0 | F33: =IF(D33=0,'App.2-CH_MIFRS_DepExp_2013'!K33,+'App.2-CH_MIFRS_DepExp_2013'!K33+((C33*0.5)/D33)) -> 0 | H33: 0
A34: 1910 | B34: Leasehold Improvements | E34: 0 | F34: =IF(D34=0,'App.2-CH_MIFRS_DepExp_2013'!K34,+'App.2-CH_MIFRS_DepExp_2013'!K34+((C34*0.5)/D34)) -> 0 | H34: 0
A35: 1915 | B35: Office Furniture & Equipment (10 years) | E35: 0 | F35: =IF(D35=0,'App.2-CH_MIFRS_DepExp_2013'!K35,+'App.2-CH_MIFRS_DepExp_2013'!K35+((C35*0.5)/D35)) -> 0 | H35: 0
A36: 1915 | B36: Office Furniture & Equipment (5 years) | E36: 0 | F36: =IF(D36=0,'App.2-CH_MIFRS_DepExp_2013'!K36,+'App.2-CH_MIFRS_DepExp_2013'!K36+((C36*0.5)/D36)) -> 0 | H36: 0
A37: 1920 | B37: Computer Equipment - Hardware | E37: 0 | F37: =IF(D37=0,'App.2-CH_MIFRS_DepExp_2013'!K37,+'App.2-CH_MIFRS_DepExp_2013'!K37+((C37*0.5)/D37)) -> 0 | H37: 0
A38: 1920 | B38: Computer Equip.-Hardware(Post Mar. 22/04) | E38: 0 | F38: =IF(D38=0,'App.2-CH_MIFRS_DepExp_2013'!K38,+'App.2-CH_MIFRS_DepExp_2013'!K38+((C38*0.5)/D38)) -> 0 | H38: 0
A39: 1920 | B39: Computer Equip.-Hardware(Post Mar. 19/07) | E39: 0 | F39: =IF(D39=0,'App.2-CH_MIFRS_DepExp_2013'!K39,+'App.2-CH_MIFRS_DepExp_2013'!K39+((C39*0.5)/D39)) -> 0 | H39: 0
A40: 1930 | B40: Transportation Equipment | E40: 0 | F40: =IF(D40=0,'App.2-CH_MIFRS_DepExp_2013'!K40,+'App.2-CH_MIFRS_DepExp_2013'!K40+((C40*0.5)/D40)) -> 0 | H40: 0
A41: 1935 | B41: Stores Equipment | E41: 0 | F41: =IF(D41=0,'App.2-CH_MIFRS_DepExp_2013'!K41,+'App.2-CH_MIFRS_DepExp_2013'!K41+((C41*0.5)/D41)) -> 0 | H41: 0
A42: 1940 | B42: Tools, Shop & Garage Equipment | E42: 0 | F42: =IF(D42=0,'App.2-CH_MIFRS_DepExp_2013'!K42,+'App.2-CH_MIFRS_DepExp_2013'!K42+((C42*0.5)/D42)) -> 0 | H42: 0
A43: 1945 | B43: Measurement & Testing Equipment | E43: 0 | F43: =IF(D43=0,'App.2-CH_MIFRS_DepExp_2013'!K43,+'App.2-CH_MIFRS_DepExp_2013'!K43+((C43*0.5)/D43)) -> 0 | H43: 0
A44: 1950 | B44: Power Operated Equipment | E44: 0 | F44: =IF(D44=0,'App.2-CH_MIFRS_DepExp_2013'!K44,+'App.2-CH_MIFRS_DepExp_2013'!K44+((C44*0.5)/D44)) -> 0 | H44: 0
A45: 1955 | B45: Communications Equipment | E45: 0 | F45: =IF(D45=0,'App.2-CH_MIFRS_DepExp_2013'!K45,+'App.2-CH_MIFRS_DepExp_2013'!K45+((C45*0.5)/D45)) -> 0 | H45: 0
A46: 1955 | B46: Communication Equipment (Smart Meters) | E46: 0 | F46: =IF(D46=0,'App.2-CH_MIFRS_DepExp_2013'!K46,+'App.2-CH_MIFRS_DepExp_2013'!K46+((C46*0.5)/D46)) -> 0 | H46: 0
A47: 1960 | B47: Miscellaneous Equipment | E47: 0 | F47: =IF(D47=0,'App.2-CH_MIFRS_DepExp_2013'!K47,+'App.2-CH_MIFRS_DepExp_2013'!K47+((C47*0.5)/D47)) -> 0 | H47: 0
A48: 1970 | B48: Load Management Controls Customer Premises | E48: 0 | F48: =IF(D48=0,'App.2-CH_MIFRS_DepExp_2013'!K48,+'App.2-CH_MIFRS_DepExp_2013'!K48+((C48*0.5)/D48)) -> 0 | H48: 0
A49: 1975 | B49: Load Management Controls Utility Premises | E49: 0 | F49: =IF(D49=0,'App.2-CH_MIFRS_DepExp_2013'!K49,+'App.2-CH_MIFRS_DepExp_2013'!K49+((C49*0.5)/D49)) -> 0 | H49: 0
A50: 1980 | B50: System Supervisor Equipment | E50: 0 | F50: =IF(D50=0,'App.2-CH_MIFRS_DepExp_2013'!K50,+'App.2-CH_MIFRS_DepExp_2013'!K50+((C50*0.5)/D50)) -> 0 | H50: 0
A51: 1985 | B51: Miscellaneous Fixed Assets | E51: 0 | F51: =IF(D51=0,'App.2-CH_MIFRS_DepExp_2013'!K51,+'App.2-CH_MIFRS_DepExp_2013'!K51+((C51*0.5)/D51)) -> 0 | H51: 0
A52: 1990 | B52: Other Tangible Property | E52: 0 | F52: =IF(D52=0,'App.2-CH_MIFRS_DepExp_2013'!K52,+'App.2-CH_MIFRS_DepExp_2013'!K52+((C52*0.5)/D52)) -> 0 | H52: 0
A53: 1995 | B53: Contributions & Grants | E53: 0 | F53: =IF(D53=0,'App.2-CH_MIFRS_DepExp_2013'!K53,+'App.2-CH_MIFRS_DepExp_2013'!K53+((C53*0.5)/D53)) -> 0 | H53: 0
A54: etc. | E54: 0 | F54: =IF(D54=0,'App.2-CH_MIFRS_DepExp_2013'!K54,+'App.2-CH_MIFRS_DepExp_2013'!K54+((C54*0.5)/D54)) -> 0 | H54: 0
E55: 0 | F55: =IF(D55=0,'App.2-CH_MIFRS_DepExp_2013'!K55,+'App.2-CH_MIFRS_DepExp_2013'!K55+((C55*0.5)/D55)) -> 0 | H55: 0
B56: Total | C56: =SUM(C16:C55) -> 0 | F56: =SUM(F16:F55) -> 0 | G56: =SUM(G16:G55) -> 0 | H56: =SUM(H16:H55) -> 0
B57: Depreciation exp. adj. from gain or loss on the retirement of assets (pool of like assets) | F57: 0
B58: Total Depreciation expense to be included in the test year revenue requirement | F58: =SUM(F56:F57) -> 0
A59: Notes:
A60: 1 | B60: Board policy of the "half-year" rule - the applicant must ensure that additions in the year attract a half-year depreciation expense in the first year. Deviations from this standard practice must be supported in the application.
A61: 2 | B61: The applicant must provide an explanation of material variances in evidence.
A63: General: | B63: Applicants must provide a breakdown of depreciation and amortization expense in the above format for all relevant accounts. Asset Retirement Obligations (AROs), depreciation and accretion expense should be disclosed separately consistent with the Notes of historical Audited Financial Statements.

Sheet App.2-CJ_CGAAP_DepExp_2012 (hidden)
K1: File Number: | L1: =EBNUMBER -> EB-2013-0116
K2: Exhibit:
K3: Tab:
K4: Schedule:
K5: Page:
K7: Date:
A9: Appendix 2-CJ
A10: Depreciation and Amortization Expense
A11: Assumes the applicant adopted IFRS for financial reporting purposes January 1, 2014
C12: Year | D12: 2012 | E12: CGAAP
A14: Account | B14: Description | C14: Opening Regulatory Gross PP&E as at Jan 1, 2012 | D14: Less Fully Depreciated | E14: Net for Depreciation | F14: Additions | G14: Total for Depreciation | H14: Years | I14: Depreciation Rate | J14: 2012 Depreciation Expense | K14: 2012 Depreciation Expense per Appendix 2-B Fixed Assets, Column K (l) | L14: Variance 2
C15: (a) | D15: (b) | E15: (c) | F15: (d) | G15: (e) = (c) + ½ x (d) 1 | H15: (f) | I15: (g) = 1 / (f) | J15: (h) = (e) / (f) | L15: (m) = (h) - (l)
A16: 1611 | B16: Computer Software (Formally known as Account 1925) | E16: =C16-D16 -> 0 | G16: =E16+0.5*F16 -> 0 | I16: =IF(H16=0,"",1/H16) ->  | J16: =IF(H16=0,0,G16/H16) -> 0 | L16: =IF(ISERROR(+J16-K16), "", +J16-K16) -> 0
A17: 1612 | B17: Land Rights (Formally known as Account 1906) | E17: =C17-D17 -> 0 | G17: =E17+0.5*F17 -> 0 | J17: 0 | L17: =IF(ISERROR(+J17-K17), "", +J17-K17) -> 0
A18: 1805 | B18: Land | E18: 0 | G18: 0 | J18: 0 | L18: 0
A19: 1808 | B19: Buildings | E19: 0 | G19: 0 | J19: 0 | L19: 0
A20: 1810 | B20: Leasehold Improvements | E20: 0 | G20: 0 | J20: 0 | L20: 0
A21: 1815 | B21: Transformer Station Equipment >50 kV | E21: 0 | G21: 0 | J21: 0 | L21: 0
A22: 1820 | B22: Distribution Station Equipment <50 kV | E22: 0 | G22: 0 | J22: 0 | L22: 0
A23: 1825 | B23: Storage Battery Equipment | E23: 0 | G23: 0 | J23: 0 | L23: 0
A24: 1830 | B24: Poles, Towers & Fixtures | E24: 0 | G24: 0 | J24: 0 | L24: 0
A25: 1835 | B25: Overhead Conductors & Devices | E25: 0 | G25: 0 | J25: 0 | L25: 0
A26: 1840 | B26: Underground Conduit | E26: 0 | G26: 0 | J26: 0 | L26: 0
A27: 1845 | B27: Underground Conductors & Devices | E27: 0 | G27: 0 | J27: 0 | L27: 0
A28: 1850 | B28: Line Transformers | E28: 0 | G28: 0 | J28: 0 | L28: 0
A29: 1855 | B29: Services (Overhead & Underground) | E29: 0 | G29: 0 | J29: 0 | L29: 0
A30: 1860 | B30: Meters | E30: 0 | G30: 0 | J30: 0 | L30: 0
A31: 1860 | B31: Meters (Smart Meters) | E31: 0 | G31: 0 | J31: 0 | L31: 0
A32: 1905 | B32: Land | E32: 0 | G32: 0 | J32: 0 | L32: 0
A33: 1908 | B33: Buildings & Fixtures | E33: 0 | G33: 0 | J33: 0 | L33: 0
A34: 1910 | B34: Leasehold Improvements | E34: 0 | G34: 0 | J34: 0 | L34: 0
A35: 1915 | B35: Office Furniture & Equipment (10 years) | E35: 0 | G35: 0 | J35: 0 | L35: 0
A36: 1915 | B36: Office Furniture & Equipment (5 years) | E36: 0 | G36: 0 | J36: 0 | L36: 0
A37: 1920 | B37: Computer Equipment - Hardware | E37: 0 | G37: 0 | J37: 0 | L37: 0
A38: 1920 | B38: Computer Equip.-Hardware(Post Mar. 22/04) | E38: 0 | G38: 0 | J38: 0 | L38: 0
A39: 1920 | B39: Computer Equip.-Hardware(Post Mar. 19/07) | E39: 0 | G39: 0 | J39: 0 | L39: 0
A40: 1930 | B40: Transportation Equipment | E40: 0 | G40: 0 | J40: 0 | L40: 0
A41: 1935 | B41: Stores Equipment | E41: 0 | G41: 0 | J41: 0 | L41: 0
A42: 1940 | B42: Tools, Shop & Garage Equipment | E42: 0 | G42: 0 | J42: 0 | L42: 0
A43: 1945 | B43: Measurement & Testing Equipment | E43: 0 | G43: 0 | J43: 0 | L43: 0
A44: 1950 | B44: Power Operated Equipment | E44: 0 | G44: 0 | J44: 0 | L44: 0
A45: 1955 | B45: Communications Equipment | E45: 0 | G45: 0 | J45: 0 | L45: 0
A46: 1955 | B46: Communication Equipment (Smart Meters) | E46: 0 | G46: 0 | J46: 0 | L46: 0
A47: 1960 | B47: Miscellaneous Equipment | E47: 0 | G47: 0 | J47: 0 | L47: 0
A48: 1970 | B48: Load Management Controls Customer Premises | E48: 0 | G48: 0 | J48: 0 | L48: 0
A49: 1975 | B49: Load Management Controls Utility Premises | E49: 0 | G49: 0 | J49: 0 | L49: 0
A50: 1980 | B50: System Supervisor Equipment | E50: 0 | G50: 0 | J50: 0 | L50: 0
A51: 1985 | B51: Miscellaneous Fixed Assets | E51: 0 | G51: 0 | J51: 0 | L51: 0
A52: 1990 | B52: Other Tangible Property | E52: 0 | G52: 0 | J52: 0 | L52: 0
A53: 1995 | B53: Contributions & Grants | E53: 0 | G53: 0 | J53: 0 | L53: 0
A54: etc. | E54: 0 | G54: 0 | J54: 0 | L54: 0
E55: 0 | G55: 0 | J55: 0 | L55: 0
B56: Total | C56: =SUM(C16:C55) -> 0 | D56: =SUM(D16:D55) -> 0 | E56: =SUM(E16:E55) -> 0 | F56: =SUM(F16:F55) -> 0 | G56: =SUM(G16:G55) -> 0 | J56: =SUM(J16:J55) -> 0 | K56: =SUM(K16:K55) -> 0 | L56: =SUM(L16:L55) -> 0
A58: Notes:
A59: 1 | B59: Board policy of the "half-year" rule - the applicant must ensure that additions in the year attract a half-year depreciation expense in the first year. Deviations from this standard practice must be supported in the application.
A60: 2 | B60: The applicant must provide an explanation of material variances in evidence.
A61: General: | B61: Applicants must provide a breakdown of depreciation and amortization expense in the above format for all relevant accounts. Asset Retirement Obligations (AROs), depreciation and accretion expense should be disclosed separately consistent with the Notes of historical Audited Financial Statements.

Sheet App.2-CK_CGAAP_DepExp_2013 (hidden)
K1: File Number: | L1: =EBNUMBER -> EB-2013-0116
K2: Exhibit:
K3: Tab:
K4: Schedule:
K5: Page:
K7: Date:
A9: Appendix 2-CK
A10: Depreciation and Amortization Expense
A11: Assumes the applicant adopted IFRS for financial reporting purposes January 1, 2014
C12: Year | D12: 2013 | E12: CGAAP
A14: Account | B14: Description | C14: Opening Regulatory Gross PP&E as at Jan 1, 2013 | D14: Less Fully Depreciated | E14: Net for Depreciation | F14: Additions | G14: Total for Depreciation | H14: Years | I14: Depreciation Rate | J14: 2013 Depreciation Expense | K14: 2013 Depreciation Expense per Appendix 2-B Fixed Assets, Column K (l) | L14: Variance 2
C15: (a) | D15: (b) | E15: (c) | F15: (d) | G15: (e) = (c) + ½ x (d) 1 | H15: (f) | I15: (g) = 1 / (f) | J15: (h) = (e) / (f) | L15: (m) = (h) - (l)
A16: 1611 | B16: Computer Software (Formally known as Account 1925) | E16: =C16-D16 -> 0 | G16: =E16+0.5*F16 -> 0 | I16: =IF(H16=0,0,1/H16) -> 0 | J16: =IF(H16=0,0,G16/H16) -> 0 | L16: =IF(ISERROR(+J16-K16), 0, +J16-K16) -> 0
A17: 1612 | B17: Land Rights (Formally known as Account 1906) | E17: =C17-D17 -> 0 | G17: =E17+0.5*F17 -> 0 | I17: 0 | J17: 0 | L17: 0
A18: 1805 | B18: Land | E18: 0 | G18: 0 | I18: 0 | J18: 0 | L18: 0
A19: 1808 | B19: Buildings | E19: 0 | G19: 0 | I19: 0 | J19: 0 | L19: 0
A20: 1810 | B20: Leasehold Improvements | E20: 0 | G20: 0 | I20: 0 | J20: 0 | L20: 0
A21: 1815 | B21: Transformer Station Equipment >50 kV | E21: 0 | G21: 0 | I21: 0 | J21: 0 | L21: 0
A22: 1820 | B22: Distribution Station Equipment <50 kV | E22: 0 | G22: 0 | I22: 0 | J22: 0 | L22: 0
A23: 1825 | B23: Storage Battery Equipment | E23: 0 | G23: 0 | I23: 0 | J23: 0 | L23: 0
A24: 1830 | B24: Poles, Towers & Fixtures | E24: 0 | G24: 0 | I24: 0 | J24: 0 | L24: 0
A25: 1835 | B25: Overhead Conductors & Devices | E25: 0 | G25: 0 | I25: 0 | J25: 0 | L25: 0
A26: 1840 | B26: Underground Conduit | E26: 0 | G26: 0 | I26: 0 | J26: 0 | L26: 0
A27: 1845 | B27: Underground Conductors & Devices | E27: 0 | G27: 0 | I27: 0 | J27: 0 | L27: 0
A28: 1850 | B28: Line Transformers | E28: 0 | G28: 0 | I28: 0 | J28: 0 | L28: 0
A29: 1855 | B29: Services (Overhead & Underground) | E29: 0 | G29: 0 | I29: 0 | J29: 0 | L29: 0
A30: 1860 | B30: Meters | E30: 0 | G30: 0 | I30: 0 | J30: 0 | L30: 0
A31: 1860 | B31: Meters (Smart Meters) | E31: 0 | G31: 0 | I31: 0 | J31: 0 | L31: 0
A32: 1905 | B32: Land | E32: 0 | G32: 0 | I32: 0 | J32: 0 | L32: 0
A33: 1908 | B33: Buildings & Fixtures | E33: 0 | G33: 0 | I33: 0 | J33: 0 | L33: 0
A34: 1910 | B34: Leasehold Improvements | E34: 0 | G34: 0 | I34: 0 | J34: 0 | L34: 0
A35: 1915 | B35: Office Furniture & Equipment (10 years) | E35: 0 | G35: 0 | I35: 0 | J35: 0 | L35: 0
A36: 1915 | B36: Office Furniture & Equipment (5 years) | E36: 0 | G36: 0 | I36: 0 | J36: 0 | L36: 0
A37: 1920 | B37: Computer Equipment - Hardware | E37: 0 | G37: 0 | I37: 0 | J37: 0 | L37: 0
A38: 1920 | B38: Computer Equip.-Hardware(Post Mar. 22/04) | E38: 0 | G38: 0 | I38: 0 | J38: 0 | L38: 0
A39: 1920 | B39: Computer Equip.-Hardware(Post Mar. 19/07) | E39: 0 | G39: 0 | I39: 0 | J39: 0 | L39: 0
A40: 1930 | B40: Transportation Equipment | E40: 0 | G40: 0 | I40: 0 | J40: 0 | L40: 0
A41: 1935 | B41: Stores Equipment | E41: 0 | G41: 0 | I41: 0 | J41: 0 | L41: 0
A42: 1940 | B42: Tools, Shop & Garage Equipment | E42: 0 | G42: 0 | I42: 0 | J42: 0 | L42: 0
A43: 1945 | B43: Measurement & Testing Equipment | E43: 0 | G43: 0 | I43: 0 | J43: 0 | L43: 0
A44: 1950 | B44: Power Operated Equipment | E44: 0 | G44: 0 | I44: 0 | J44: 0 | L44: 0
A45: 1955 | B45: Communications Equipment | E45: 0 | G45: 0 | I45: 0 | J45: 0 | L45: 0
A46: 1955 | B46: Communication Equipment (Smart Meters) | E46: 0 | G46: 0 | I46: 0 | J46: 0 | L46: 0
A47: 1960 | B47: Miscellaneous Equipment | E47: 0 | G47: 0 | I47: 0 | J47: 0 | L47: 0
A48: 1970 | B48: Load Management Controls Customer Premises | E48: 0 | G48: 0 | I48: 0 | J48: 0 | L48: 0
A49: 1975 | B49: Load Management Controls Utility Premises | E49: 0 | G49: 0 | I49: 0 | J49: 0 | L49: 0
A50: 1980 | B50: System Supervisor Equipment | E50: 0 | G50: 0 | I50: 0 | J50: 0 | L50: 0
A51: 1985 | B51: Miscellaneous Fixed Assets | E51: 0 | G51: 0 | I51: 0 | J51: 0 | L51: 0
A52: 1990 | B52: Other Tangible Property | E52: 0 | G52: 0 | I52: 0 | J52: 0 | L52: 0
A53: 1995 | B53: Contributions & Grants | E53: 0 | G53: 0 | I53: 0 | J53: 0 | L53: 0
A54: etc. | E54: 0 | G54: 0 | I54: 0 | J54: 0 | L54: 0
E55: 0 | G55: 0 | I55: 0 | J55: 0 | L55: 0
B56: Total | C56: =SUM(C16:C55) -> 0 | D56: =SUM(D16:D55) -> 0 | E56: =SUM(E16:E55) -> 0 | F56: =SUM(F16:F55) -> 0 | G56: =SUM(G16:G55) -> 0 | J56: =SUM(J16:J55) -> 0 | K56: =SUM(K16:K55) -> 0 | L56: =SUM(L16:L55) -> 0
A58: Notes:
A59: 1 | B59: Board policy of the "half-year" rule - the applicant must ensure that additions in the year attract a half-year depreciation expense in the first year. Deviations from this standard practice must be supported in the application.
A60: 2 | B60: The applicant must provide an explanation of material variances in evidence.
A62: General: | B62: Applicants must provide a breakdown of depreciation and amortization expense in the above format for all relevant accounts. Asset Retirement Obligations (AROs), depreciation and accretion expense should be disclosed separately consistent with the Notes of historical Audited Financial Statements.

Sheet App.2-CL_MIFRS_DepExp_2013 (hidden)
N1: File Number: | O1: =EBNUMBER -> EB-2013-0116
N2: Exhibit:
N3: Tab:
N4: Schedule:
N5: Page:
N7: Date:
A9: Appendix 2-CL
A10: Depreciation and Amortization Expense
A11: Assumes the applicant adopted IFRS for financial reporting purposes January 1, 2014
C12: Year | D12: 2013 | E12: MIFRS
A14: Account | B14: Description | C14: Opening NBV as at Jan 1, 2013 5 | D14: Additions | E14: Average Remaining Life of Opening NBV 4 | F14: Years (new additions only) 3 | G14: Depreciation Rate on New Additions | H14: Depreciation Expense on Opening NBV | I14: Depreciation Expense on Additions 1 | J14: 2013 Depreciation Expense | K14: 2013 Depreciation Expense per Appendix 2-B Fixed Assets, Column K (l) | L14: Variance 2 | M14: Depreciation Expense on 2013 Full Year Additions | N14: Less Depreciation Expense on Assets Fully Depreciated during the year (o) | O14: 2013 Full Year Depreciation 6
C15: (a) | D15: (d) | E15: (i) | F15: (f) | G15: (g) = 1 / (f) | H15: (j) = (a) / (i) | I15: (h)=((d)*0.5)/(f) | J15: (k) = (j) + (h) | L15: (m) = (k) - (l) | M15: (n)=((d))/(f) | O15: (p) = (j) + (n) - (o)
A16: 1611 | B16: Computer Software (Formally known as Account 1925) | G16: =IF(F16=0,0,1/F16) -> 0 | H16: =IF(E16=0,0,+C16/E16) -> 0 | I16: =IF(F16=0,0,+(D16*0.5)/F16) -> 0 | J16: =IF(ISERROR(+H16+I16), 0, +H16+I16) -> 0 | L16: =IF(ISERROR(+J16-K16), 0, +J16-K16) -> 0 | M16: =IF(F16=0,0,+(D16)/F16) -> 0 | O16: =IF(ISERROR(+M16+H16-N16), 0, +M16+H16-N16) -> 0
A17: 1612 | B17: Land Rights (Formally known as Account 1906) | G17: 0 | H17: 0 | I17: 0 | J17: 0 | L17: 0 | M17: 0 | O17: =IF(ISERROR(+M17+H17-N17), 0, +M17+H17-N17) -> 0
A18: 1805 | B18: Land | G18: 0 | H18: 0 | I18: 0 | J18: 0 | L18: 0 | M18: 0 | O18: 0
A19: 1808 | B19: Buildings | G19: 0 | H19: 0 | I19: 0 | J19: 0 | L19: 0 | M19: 0 | O19: 0
A20: 1810 | B20: Leasehold Improvements | G20: 0 | H20: 0 | I20: 0 | J20: 0 | L20: 0 | M20: 0 | O20: 0
A21: 1815 | B21: Transformer Station Equipment >50 kV | G21: 0 | H21: 0 | I21: 0 | J21: 0 | L21: 0 | M21: 0 | O21: 0
A22: 1820 | B22: Distribution Station Equipment <50 kV | G22: 0 | H22: 0 | I22: 0 | J22: 0 | L22: 0 | M22: 0 | O22: 0
A23: 1825 | B23: Storage Battery Equipment | G23: 0 | H23: 0 | I23: 0 | J23: 0 | L23: 0 | M23: 0 | O23: 0
A24: 1830 | B24: Poles, Towers & Fixtures | G24: 0 | H24: 0 | I24: 0 | J24: 0 | L24: 0 | M24: 0 | O24: 0
A25: 1835 | B25: Overhead Conductors & Devices | G25: 0 | H25: 0 | I25: 0 | J25: 0 | L25: 0 | M25: 0 | O25: 0
A26: 1840 | B26: Underground Conduit | G26: 0 | H26: 0 | I26: 0 | J26: 0 | L26: 0 | M26: 0 | O26: 0
A27: 1845 | B27: Underground Conductors & Devices | G27: 0 | H27: 0 | I27: 0 | J27: 0 | L27: 0 | M27: 0 | O27: 0
A28: 1850 | B28: Line Transformers | G28: 0 | H28: 0 | I28: 0 | J28: 0 | L28: 0 | M28: 0 | O28: 0
A29: 1855 | B29: Services (Overhead & Underground) | G29: 0 | H29: 0 | I29: 0 | J29: 0 | L29: 0 | M29: 0 | O29: 0
A30: 1860 | B30: Meters | G30: 0 | H30: 0 | I30: 0 | J30: 0 | L30: 0 | M30: 0 | O30: 0
A31: 1860 | B31: Meters (Smart Meters) | G31: 0 | H31: 0 | I31: 0 | J31: 0 | L31: 0 | M31: 0 | O31: 0
A32: 1905 | B32: Land | G32: 0 | H32: 0 | I32: 0 | J32: 0 | L32: 0 | M32: 0 | O32: 0
A33: 1908 | B33: Buildings & Fixtures | G33: 0 | H33: 0 | I33: 0 | J33: 0 | L33: 0 | M33: 0 | O33: 0
A34: 1910 | B34: Leasehold Improvements | G34: 0 | H34: 0 | I34: 0 | J34: 0 | L34: 0 | M34: 0 | O34: 0
A35: 1915 | B35: Office Furniture & Equipment (10 years) | G35: 0 | H35: 0 | I35: 0 | J35: 0 | L35: 0 | M35: 0 | O35: 0
A36: 1915 | B36: Office Furniture & Equipment (5 years) | G36: 0 | H36: 0 | I36: 0 | J36: 0 | L36: 0 | M36: 0 | O36: 0
A37: 1920 | B37: Computer Equipment - Hardware | G37: 0 | H37: 0 | I37: 0 | J37: 0 | L37: 0 | M37: 0 | O37: 0
A38: 1920 | B38: Computer Equip.-Hardware(Post Mar. 22/04) | G38: 0 | H38: 0 | I38: 0 | J38: 0 | L38: 0 | M38: 0 | O38: 0
A39: 1920 | B39: Computer Equip.-Hardware(Post Mar. 19/07) | G39: 0 | H39: 0 | I39: 0 | J39: 0 | L39: 0 | M39: 0 | O39: 0
A40: 1930 | B40: Transportation Equipment | G40: 0 | H40: 0 | I40: 0 | J40: 0 | L40: 0 | M40: 0 | O40: 0
A41: 1935 | B41: Stores Equipment | G41: 0 | H41: 0 | I41: 0 | J41: 0 | L41: 0 | M41: 0 | O41: 0
A42: 1940 | B42: Tools, Shop & Garage Equipment | G42: 0 | H42: 0 | I42: 0 | J42: 0 | L42: 0 | M42: 0 | O42: 0
A43: 1945 | B43: Measurement & Testing Equipment | G43: 0 | H43: 0 | I43: 0 | J43: 0 | L43: 0 | M43: 0 | O43: 0
A44: 1950 | B44: Power Operated Equipment | G44: 0 | H44: 0 | I44: 0 | J44: 0 | L44: 0 | M44: 0 | O44: 0
A45: 1955 | B45: Communications Equipment | G45: 0 | H45: 0 | I45: 0 | J45: 0 | L45: 0 | M45: 0 | O45: 0
A46: 1955 | B46: Communication Equipment (Smart Meters) | G46: 0 | H46: 0 | I46: 0 | J46: 0 | L46: 0 | M46: 0 | O46: 0
A47: 1960 | B47: Miscellaneous Equipment | G47: 0 | H47: 0 | I47: 0 | J47: 0 | L47: 0 | M47: 0 | O47: 0
A48: 1970 | B48: Load Management Controls Customer Premises | G48: 0 | H48: 0 | I48: 0 | J48: 0 | L48: 0 | M48: 0 | O48: 0
A49: 1975 | B49: Load Management Controls Utility Premises | G49: 0 | H49: 0 | I49: 0 | J49: 0 | L49: 0 | M49: 0 | O49: 0
A50: 1980 | B50: System Supervisor Equipment | G50: 0 | H50: 0 | I50: 0 | J50: 0 | L50: 0 | M50: 0 | O50: 0
A51: 1985 | B51: Miscellaneous Fixed Assets | G51: 0 | H51: 0 | I51: 0 | J51: 0 | L51: 0 | M51: 0 | O51: 0
A52: 1990 | B52: Other Tangible Property | G52: 0 | H52: 0 | I52: 0 | J52: 0 | L52: 0 | M52: 0 | O52: 0
A53: 1995 | B53: Contributions & Grants | G53: 0 | H53: 0 | I53: 0 | J53: 0 | L53: 0 | M53: 0 | O53: 0
A54: etc. | G54: 0 | H54: 0 | I54: 0 | J54: 0 | L54: 0 | M54: 0 | O54: 0
G55: 0 | H55: 0 | I55: 0 | J55: 0 | L55: 0 | M55: 0 | O55: 0
B56: Total | C56: =SUM(C16:C55) -> 0 | D56: =SUM(D16:D55) -> 0 | H56: =SUM(H16:H55) -> 0 | I56: 0 | J56: 0 | K56: 0 | L56: 0 | M56: 0 | N56: =SUM(N16:N55) -> 0 | O56: 0
B57: Depreciation exp. adj. from gain or loss on the retirement of assets (pool of like assets) | J57: 0
B58: Total | J58: =+J56+J57 -> 0
A59: Notes:
A61: 1 | B61: Board policy of the "half-year" rule - the applicant must ensure that additions in the year attract a half-year depreciation expense in the first year. Deviations from this standard practice must be supported in the application.
A62: 2 | B62: The applicant must provide an explanation of material variances in evidence.
A63: 3 | B63: The applicant should ensure that the years for new additions of assets are the asset useful lives determined by management in accordance with IFRS.
A64: 4 | B64: A recalculation should be performed to determine the average remaining life of opening balance of assets (i.e. excluding 2013 additions) under IFRS. For example, Asset A had a useful life of 20 years under CGAAP. On January 1, 2013, the date of transition, Asset A was 3 years depreciated. As a result, Asset A would have a remaining service life of 17 years (20 years less 3 years) under CGAAP as of January 1, 2013. Due to the transition to IFRS, management re-assessed the asset useful lives under IFRS principles and concluded that the revised useful life of Asset A is now 30 years. Therefore, the average remaining useful life of opening balance of Asset A is determined to be 27 years (30 years less 3 years) under IFRS as of January 1, 2013.
A65: 5 | B65: NBV must exclude assets still on the books but which have been fully amortized or depreciated.
A66: 6 | B66: This column refers to the calculated full year depreciation but excludes the depreciation expense on assets fully depreciated during the year. This column is used for the purpose of calculating depreciation expense in the following year on the next worksheet.
A68: General: | B68: Applicants must provide a breakdown of depreciation and amortization expense in the above format for all relevant accounts. Asset Retirement Obligations (AROs), depreciation and accretion expense should be disclosed separately consistent with the Notes of historical Audited Financial Statements.

Sheet App.2-CM_MIFRS_DepExp_2014 (hidden)
I1: File Number: | J1: =EBNUMBER -> EB-2013-0116
I2: Exhibit:
I3: Tab:
I4: Schedule:
I5: Page:
I7: Date:
A9: Appendix 2-CM
A10: Depreciation and Amortization Expense
A11: Assumes the applicant adopted IFRS for financial reporting purposes January 1, 2014
C12: Year | D12: 2014 | E12: MIFRS
A14: Account | B14: Description | C14: Additions | D14: Years (new additions only) | E14: Depreciation Rate on New Additions | F14: 2014 Depreciation Expense 1 | G14: 2014 Depreciation Expense per Appendix 2-B Fixed Assets, Column K (l) | H14: Variance 2
C15: (d) | D15: (f) | E15: (g) = 1 / (f) | F15: (h)=2013 Full Year Depreciation + ((d)*0.5)/(f) | H15: (m) = (h) - (l)
A16: 1611 | B16: Computer Software (Formally known as Account 1925) | E16: =IF(D16=0,0,1/D16) -> 0 | F16: =IF(D16=0,'App.2-CL_MIFRS_DepExp_2013'!O16,+'App.2-CL_MIFRS_DepExp_2013'!O16+((C16*0.5)/D16)) -> 0 | H16: =IF(ISERROR(+F16-G16), 0, +F16-G16) -> 0
A17: 1612 | B17: Land Rights (Formally known as Account 1906) | E17: 0 | F17: =IF(D17=0,'App.2-CL_MIFRS_DepExp_2013'!O17,+'App.2-CL_MIFRS_DepExp_2013'!O17+((C17*0.5)/D17)) -> 0 | H17: 0
A18: 1805 | B18: Land | E18: 0 | F18: =IF(D18=0,'App.2-CL_MIFRS_DepExp_2013'!O18,+'App.2-CL_MIFRS_DepExp_2013'!O18+((C18*0.5)/D18)) -> 0 | H18: 0
A19: 1808 | B19: Buildings | E19: 0 | F19: =IF(D19=0,'App.2-CL_MIFRS_DepExp_2013'!O19,+'App.2-CL_MIFRS_DepExp_2013'!O19+((C19*0.5)/D19)) -> 0 | H19: 0
A20: 1810 | B20: Leasehold Improvements | E20: 0 | F20: =IF(D20=0,'App.2-CL_MIFRS_DepExp_2013'!O20,+'App.2-CL_MIFRS_DepExp_2013'!O20+((C20*0.5)/D20)) -> 0 | H20: 0
A21: 1815 | B21: Transformer Station Equipment >50 kV | E21: 0 | F21: =IF(D21=0,'App.2-CL_MIFRS_DepExp_2013'!O21,+'App.2-CL_MIFRS_DepExp_2013'!O21+((C21*0.5)/D21)) -> 0 | H21: 0
A22: 1820 | B22: Distribution Station Equipment <50 kV | E22: 0 | F22: =IF(D22=0,'App.2-CL_MIFRS_DepExp_2013'!O22,+'App.2-CL_MIFRS_DepExp_2013'!O22+((C22*0.5)/D22)) -> 0 | H22: 0
A23: 1825 | B23: Storage Battery Equipment | E23: 0 | F23: =IF(D23=0,'App.2-CL_MIFRS_DepExp_2013'!O23,+'App.2-CL_MIFRS_DepExp_2013'!O23+((C23*0.5)/D23)) -> 0 | H23: 0
A24: 1830 | B24: Poles, Towers & Fixtures | E24: 0 | F24: =IF(D24=0,'App.2-CL_MIFRS_DepExp_2013'!O24,+'App.2-CL_MIFRS_DepExp_2013'!O24+((C24*0.5)/D24)) -> 0 | H24: 0
A25: 1835 | B25: Overhead Conductors & Devices | E25: 0 | F25: =IF(D25=0,'App.2-CL_MIFRS_DepExp_2013'!O25,+'App.2-CL_MIFRS_DepExp_2013'!O25+((C25*0.5)/D25)) -> 0 | H25: 0
A26: 1840 | B26: Underground Conduit | E26: 0 | F26: =IF(D26=0,'App.2-CL_MIFRS_DepExp_2013'!O26,+'App.2-CL_MIFRS_DepExp_2013'!O26+((C26*0.5)/D26)) -> 0 | H26: 0
A27: 1845 | B27: Underground Conductors & Devices | E27: 0 | F27: =IF(D27=0,'App.2-CL_MIFRS_DepExp_2013'!O27,+'App.2-CL_MIFRS_DepExp_2013'!O27+((C27*0.5)/D27)) -> 0 | H27: 0
A28: 1850 | B28: Line Transformers | E28: 0 | F28: =IF(D28=0,'App.2-CL_MIFRS_DepExp_2013'!O28,+'App.2-CL_MIFRS_DepExp_2013'!O28+((C28*0.5)/D28)) -> 0 | H28: 0
A29: 1855 | B29: Services (Overhead & Underground) | E29: 0 | F29: =IF(D29=0,'App.2-CL_MIFRS_DepExp_2013'!O29,+'App.2-CL_MIFRS_DepExp_2013'!O29+((C29*0.5)/D29)) -> 0 | H29: 0
A30: 1860 | B30: Meters | E30: 0 | F30: =IF(D30=0,'App.2-CL_MIFRS_DepExp_2013'!O30,+'App.2-CL_MIFRS_DepExp_2013'!O30+((C30*0.5)/D30)) -> 0 | H30: 0
A31: 1860 | B31: Meters (Smart Meters) | E31: 0 | F31: =IF(D31=0,'App.2-CL_MIFRS_DepExp_2013'!O31,+'App.2-CL_MIFRS_DepExp_2013'!O31+((C31*0.5)/D31)) -> 0 | H31: 0
A32: 1905 | B32: Land | E32: 0 | F32: =IF(D32=0,'App.2-CL_MIFRS_DepExp_2013'!O32,+'App.2-CL_MIFRS_DepExp_2013'!O32+((C32*0.5)/D32)) -> 0 | H32: 0
A33: 1908 | B33: Buildings & Fixtures | E33: 0 | F33: =IF(D33=0,'App.2-CL_MIFRS_DepExp_2013'!O33,+'App.2-CL_MIFRS_DepExp_2013'!O33+((C33*0.5)/D33)) -> 0 | H33: 0
A34: 1910 | B34: Leasehold Improvements | E34: 0 | F34: =IF(D34=0,'App.2-CL_MIFRS_DepExp_2013'!O34,+'App.2-CL_MIFRS_DepExp_2013'!O34+((C34*0.5)/D34)) -> 0 | H34: 0
A35: 1915 | B35: Office Furniture & Equipment (10 years) | E35: 0 | F35: =IF(D35=0,'App.2-CL_MIFRS_DepExp_2013'!O35,+'App.2-CL_MIFRS_DepExp_2013'!O35+((C35*0.5)/D35)) -> 0 | H35: 0
A36: 1915 | B36: Office Furniture & Equipment (5 years) | E36: 0 | F36: =IF(D36=0,'App.2-CL_MIFRS_DepExp_2013'!O36,+'App.2-CL_MIFRS_DepExp_2013'!O36+((C36*0.5)/D36)) -> 0 | H36: 0
A37: 1920 | B37: Computer Equipment - Hardware | E37: 0 | F37: =IF(D37=0,'App.2-CL_MIFRS_DepExp_2013'!O37,+'App.2-CL_MIFRS_DepExp_2013'!O37+((C37*0.5)/D37)) -> 0 | H37: 0
A38: 1920 | B38: Computer Equip.-Hardware(Post Mar. 22/04) | E38: 0 | F38: =IF(D38=0,'App.2-CL_MIFRS_DepExp_2013'!O38,+'App.2-CL_MIFRS_DepExp_2013'!O38+((C38*0.5)/D38)) -> 0 | H38: 0
A39: 1920 | B39: Computer Equip.-Hardware(Post Mar. 19/07) | E39: 0 | F39: =IF(D39=0,'App.2-CL_MIFRS_DepExp_2013'!O39,+'App.2-CL_MIFRS_DepExp_2013'!O39+((C39*0.5)/D39)) -> 0 | H39: 0
A40: 1930 | B40: Transportation Equipment | E40: 0 | F40: =IF(D40=0,'App.2-CL_MIFRS_DepExp_2013'!O40,+'App.2-CL_MIFRS_DepExp_2013'!O40+((C40*0.5)/D40)) -> 0 | H40: 0
A41: 1935 | B41: Stores Equipment | E41: 0 | F41: =IF(D41=0,'App.2-CL_MIFRS_DepExp_2013'!O41,+'App.2-CL_MIFRS_DepExp_2013'!O41+((C41*0.5)/D41)) -> 0 | H41: 0
A42: 1940 | B42: Tools, Shop & Garage Equipment | E42: 0 | F42: =IF(D42=0,'App.2-CL_MIFRS_DepExp_2013'!O42,+'App.2-CL_MIFRS_DepExp_2013'!O42+((C42*0.5)/D42)) -> 0 | H42: 0
A43: 1945 | B43: Measurement & Testing Equipment | E43: 0 | F43: =IF(D43=0,'App.2-CL_MIFRS_DepExp_2013'!O43,+'App.2-CL_MIFRS_DepExp_2013'!O43+((C43*0.5)/D43)) -> 0 | H43: 0
A44: 1950 | B44: Power Operated Equipment | E44: 0 | F44: =IF(D44=0,'App.2-CL_MIFRS_DepExp_2013'!O44,+'App.2-CL_MIFRS_DepExp_2013'!O44+((C44*0.5)/D44)) -> 0 | H44: 0
A45: 1955 | B45: Communications Equipment | E45: 0 | F45: =IF(D45=0,'App.2-CL_MIFRS_DepExp_2013'!O45,+'App.2-CL_MIFRS_DepExp_2013'!O45+((C45*0.5)/D45)) -> 0 | H45: 0
A46: 1955 | B46: Communication Equipment (Smart Meters) | E46: 0 | F46: =IF(D46=0,'App.2-CL_MIFRS_DepExp_2013'!O46,+'App.2-CL_MIFRS_DepExp_2013'!O46+((C46*0.5)/D46)) -> 0 | H46: 0
A47: 1960 | B47: Miscellaneous Equipment | E47: 0 | F47: =IF(D47=0,'App.2-CL_MIFRS_DepExp_2013'!O47,+'App.2-CL_MIFRS_DepExp_2013'!O47+((C47*0.5)/D47)) -> 0 | H47: 0
A48: 1970 | B48: Load Management Controls Customer Premises | E48: 0 | F48: =IF(D48=0,'App.2-CL_MIFRS_DepExp_2013'!O48,+'App.2-CL_MIFRS_DepExp_2013'!O48+((C48*0.5)/D48)) -> 0 | H48: 0
A49: 1975 | B49: Load Management Controls Utility Premises | E49: 0 | F49: =IF(D49=0,'App.2-CL_MIFRS_DepExp_2013'!O49,+'App.2-CL_MIFRS_DepExp_2013'!O49+((C49*0.5)/D49)) -> 0 | H49: 0
A50: 1980 | B50: System Supervisor Equipment | E50: 0 | F50: =IF(D50=0,'App.2-CL_MIFRS_DepExp_2013'!O50,+'App.2-CL_MIFRS_DepExp_2013'!O50+((C50*0.5)/D50)) -> 0 | H50: 0
A51: 1985 | B51: Miscellaneous Fixed Assets | E51: 0 | F51: =IF(D51=0,'App.2-CL_MIFRS_DepExp_2013'!O51,+'App.2-CL_MIFRS_DepExp_2013'!O51+((C51*0.5)/D51)) -> 0 | H51: 0
A52: 1990 | B52: Other Tangible Property | E52: 0 | F52: =IF(D52=0,'App.2-CL_MIFRS_DepExp_2013'!O52,+'App.2-CL_MIFRS_DepExp_2013'!O52+((C52*0.5)/D52)) -> 0 | H52: 0
A53: 1995 | B53: Contributions & Grants | E53: 0 | F53: =IF(D53=0,'App.2-CL_MIFRS_DepExp_2013'!O53,+'App.2-CL_MIFRS_DepExp_2013'!O53+((C53*0.5)/D53)) -> 0 | H53: 0
A54: etc. | E54: 0 | F54: =IF(D54=0,'App.2-CL_MIFRS_DepExp_2013'!O54,+'App.2-CL_MIFRS_DepExp_2013'!O54+((C54*0.5)/D54)) -> 0 | H54: 0
E55: 0 | F55: =IF(D55=0,'App.2-CL_MIFRS_DepExp_2013'!O55,+'App.2-CL_MIFRS_DepExp_2013'!O55+((C55*0.5)/D55)) -> 0 | H55: 0
B56: Total | C56: =SUM(C16:C55) -> 0 | F56: =SUM(F16:F55) -> 0 | G56: =SUM(G16:G55) -> 0 | H56: =SUM(H16:H55) -> 0
B57: Depreciation exp. adj. from gain or loss on the retirement of assets (pool of like assets) | F57: 0
B58: Total Depreciation expense to be included in the test year revenue requirement | F58: =SUM(F56:F57) -> 0
A60: Notes:
A61: 1 | B61: Board policy of the "half-year" rule - the applicant must ensure that additions in the year attract a half-year depreciation expense in the first year. Deviations from this standard practice must be supported in the application.
A62: 2 | B62: The applicant must provide an explanation of material variances in evidence.
A65: General: | B65: Applicants must provide a breakdown of depreciation and amortization expense in the above format for all relevant accounts. Asset Retirement Obligations (AROs), depreciation and accretion expense should be disclosed separately consistent with the Notes of historical Audited Financial Statements.

Sheet Instruction for App. 2-C CGAAP
A1: General Instructions to CGAAP - ASPE Appendices
A2: Types of Schedules to File
A5: Applicants filing a CGAAP or ASPE application should provide the following information:
A7: Depreciation and Amortization - Appendix 2-C
A8: If an applicant chooses to remain on CGAAP or adopt ASPE and make the changes to capitalization and depreciation expense policies in 2012, the applicant must complete Appendix 2-CN to Appendix 2-CQ (inclusive).
A9: If an applicant chooses to remain on CGAAP or adopt ASPE and make the changes to capitalization and depreciation expense policies in 2013, the applicant must complete Appendix 2-CR to Appendix 2-CU (inclusive).
A11: Account 1576, Accounting Changes Under CGAAP - Appendix 2-ED, Appendix 2-EE
A12: Please refer to section 2.12.5 of the Filing Requirements.

Sheet App.2-CN_OldCGAAP_DepExp_2012
K1: Cambridge and North Dumfries Hydro Inc.
L2: File Number: | M2: =EBNUMBER -> EB-2013-0116
L3: Exhibit: | M3: 4
L4: Appendix: | M4: 4-17
L5: Page: | M5: 1 of 1
L7: Filed: | M7: October 1,2013
B9: Appendix 2-CN
B10: Depreciation and Amortization Expense
B11: Assumes the applicant made capitalization and depreciation expense accounting policy changes under CGAAP effective January 1, 2012
D12: Year | E12: 2012 | F12: Former CGAAP - CGAAP without the changes to the policies
B14: Account | C14: Description | D14: Opening Regulatory Gross PP&E as at Jan 1, 2012 | E14: Less Fully Depreciated | F14: Net for Depreciation | G14: Additions | H14: Total for Depreciation | I14: Years | J14: Depreciation Rate | K14: Depreciation Expense | L14: 2012 Depreciation Expense per Appendix 2-B Fixed Assets, Column K (l) | M14: Variance 2
D15: (a) | E15: (b) | F15: (c) | G15: (d) | H15: (e) = (c) + ½ x (d) 1 | I15: (f) | J15: (g) = 1 / (f) | K15: (h) = (e) / (f) | M15: (m) = (h) - (l)
B16: 1611 | C16: Computer Software (Formally known as Account 1925) | D16: 2402039 | E16: 299133 | F16: =D16-E16 -> 2102906 | G16: 815301 | H16: =F16+0.5*G16 -> 2510556.5 | I16: 5 | J16: =IF(I16=0,0,1/I16) -> 0.2 | K16: =IF(I16=0,0,H16/I16) -> 502111.3 | L16: 478385 | M16: =IF(ISERROR(+K16-L16), 0, +K16-L16) -> 23726.3
B17: 1612 | C17: Land Rights (Formally known as Account 1906) | F17: =D17-E17 -> 0 | H17: =F17+0.5*G17 -> 0 | J17: 0 | K17: 0 | M17: 0
B18: 1805 | C18: Land | D18: 252923 | F18: 252923 | H18: 252923 | J18: 0 | K18: 0 | M18: 0
B19: 1808 | C19: Buildings | D19: 1190197 | F19: 1190197 | H19: 1190197 | I19: 50 | J19: 0.02 | K19: 23803.94 | L19: 25577 | M19: -1773.06
B20: 1810 | C20: Leasehold Improvements | F20: 0 | H20: 0 | J20: 0 | K20: 0 | M20: 0
B21: 1815 | C21: Transformer Station Equipment >50 kV | D21: 9777744 | F21: 9777744 | G21: 236836 | H21: 9896162 | I21: 40 | J21: 0.025 | K21: 247404.05 | L21: 247404 | M21: 0.04999999999
B22: 1820 | C22: Distribution Station Equipment <50 kV | F22: 0 | H22: 0 | J22: 0 | K22: 0 | M22: 0
B23: 1825 | C23: Storage Battery Equipment | F23: 0 | H23: 0 | J23: 0 | K23: 0 | M23: 0
B24: 1830 | C24: Poles, Towers & Fixtures | D24: 27673333 | F24: 27673333 | G24: 524147 | H24: 27935406.5 | I24: 25 | J24: 0.04 | K24: 1117416.26 | L24: 950632 | M24: 166784.26
B25: 1835 | C25: Overhead Conductors & Devices | D25: 32247582 | F25: 32247582 | G25: 849102 | H25: 32672133 | I25: 25 | J25: 0.04 | K25: 1306885.32 | L25: 1112532 | M25: 194353.32
B26: 1840 | C26: Underground Conduit | D26: 25645937 | F26: 25645937 | G26: 232094 | H26: 25761984 | I26: 25 | J26: 0.04 | K26: 1030479.36 | L26: 875914 | M26: 154565.36
B27: 1845 | C27: Underground Conductors & Devices | D27: 36168760 | F27: 36168760 | G27: 902037 | H27: 36619778.5 | I27: 25 | J27: 0.04 | K27: 1464791.14 | L27: 1246805 | M27: 217986.14
B28: 1850 | C28: Line Transformers | D28: 43046097 | F28: 43046097 | G28: 1167732 | H28: 43629963 | I28: 25 | J28: 0.04 | K28: 1745198.52 | L28: 1337317 | M28: 407881.52
B29: 1855 | C29: Services (Overhead & Underground) | F29: 0 | H29: 0 | J29: 0 | K29: 0 | M29: 0
B30: 1860 | C30: Meters | D30: 847732 | F30: 847732 | G30: 8667394 | H30: 5181429 | I30: 25 | J30: 0.04 | K30: 207257.16 | L30: 575340 | M30: -368082.84
B31: 1860 | C31: Meters (Smart Meters) | F31: 0 | H31: 0 | J31: 0 | K31: 0 | M31: 0
B32: 1905 | C32: Land | D32: 213797 | F32: 213797 | H32: 213797 | J32: 0 | K32: 0 | M32: 0
B33: 1908 | C33: Buildings & Fixtures | D33: 4693847 | F33: 4693847 | G33: 493500 | H33: 4940597 | I33: 50 | J33: 0.02 | K33: 98811.94 | L33: 114591 | M33: -15779.06
B34: 1910 | C34: Leasehold Improvements | F34: 0 | H34: 0 | J34: 0 | K34: 0 | M34: 0
B35: 1915 | C35: Office Furniture & Equipment (10 years) | D35: 565368 | E35: 25580 | F35: 539788 | G35: 46010 | H35: 562793 | I35: 10 | J35: 0.1 | K35: 56279.3 | L35: 18585 | M35: 37694.3
B36: 1915 | C36: Office Furniture & Equipment (5 years) | F36: 0 | H36: 0 | J36: 0 | K36: 0 | M36: 0
B37: 1920 | C37: Computer Equipment - Hardware | D37: 1950065 | E37: 105068 | F37: 1844997 | G37: 434387 | H37: 2062190.5 | I37: 5 | J37: 0.2 | K37: 412438.1 | L37: 209681 | M37: 202757.1
B38: 1920 | C38: Computer Equip.-Hardware(Post Mar. 22/04) | F38: 0 | H38: 0 | J38: 0 | K38: 0 | M38: 0
B39: 1920 | C39: Computer Equip.-Hardware(Post Mar. 19/07) | F39: 0 | H39: 0 | J39: 0 | K39: 0 | M39: 0
B40: 1930 | C40: Transportation Equipment | D40: 3844415 | E40: 75130 | F40: 3769285 | G40: 22863 | H40: 3780716.5 | I40: 6 | J40: 0.1666666667 | K40: 630119.4167 | L40: 273940 | M40: 356179.4167
B41: 1935 | C41: Stores Equipment | D41: 93729 | E41: 93729 | F41: 0 | H41: 0 | J41: 0 | K41: 0 | M41: 0
B42: 1940 | C42: Tools, Shop & Garage Equipment | D42: 1023853 | E42: 12565 | F42: 1011288 | G42: 59566 | H42: 1041071 | I42: 10 | J42: 0.1 | K42: 104107.1 | L42: 71801 | M42: 32306.1
B43: 1945 | C43: Measurement & Testing Equipment | F43: 0 | H43: 0 | J43: 0 | K43: 0 | M43: 0
B44: 1950 | C44: Power Operated Equipment | F44: 0 | H44: 0 | J44: 0 | K44: 0 | M44: 0
B45: 1955 | C45: Communications Equipment | F45: 0 | H45: 0 | J45: 0 | K45: 0 | M45: 0
B46: 1955 | C46: Communication Equipment (Smart Meters) | F46: 0 | H46: 0 | J46: 0 | K46: 0 | M46: 0
B47: 1960 | C47: Miscellaneous Equipment | F47: 0 | H47: 0 | J47: 0 | K47: 0 | M47: 0
B48: 1970 | C48: Load Management Controls - Customer Premises | F48: 0 | H48: 0 | J48: 0 | K48: 0 | M48: 0
B49: 1975 | C49: Load Management Controls Utility Premises | F49: 0 | H49: 0 | J49: 0 | K49: 0 | M49: 0
B50: 1980 | C50: System Supervisor Equipment | D50: 714214 | E50: 714214 | F50: 0 | H50: 0 | J50: 0 | K50: 0 | M50: 0
B51: 1985 | C51: Miscellaneous Fixed Assets | F51: 0 | H51: 0 | J51: 0 | K51: 0 | M51: 0
B52: 1990 | C52: Other Tangible Property | F52: 0 | H52: 0 | J52: 0 | K52: 0 | M52: 0
B53: 1995 | C53: Contributions & Grants | D53: -16891915 | F53: -16891915 | G53: -367721 | H53: -17075775.5 | I53: 25 | J53: 0.04 | K53: -683031.02 | L53: -687947 | M53: 4915.98
B54: 2005 | C54: Property under Capital Lease | D54: 61873 | E54: 61873 | F54: 0 | H54: 0 | J54: 0 | K54: 0 | M54: 0
B55: 2055 | C55: Work in Process | D55: 197130 | F55: 197130 | G55: 3601772 | H55: 1998016 | J55: 0 | K55: 0 | M55: 0
B56: 2070 | C56: Other Utility Plant | D56: 619296 | F56: 619296 | G56: -590602 | H56: 323995 | J56: 0 | K56: 0 | M56: 0
C57: Total | D57: =SUM(D16:D56) -> 176338016 | E57: =SUM(E16:E56) -> 1387292 | F57: =SUM(F16:F56) -> 174950724 | G57: =SUM(G16:G56) -> 17094418 | H57: =SUM(H16:H56) -> 183497933 | K57: =SUM(K16:K56) -> 8264071.887 | L57: =SUM(L16:L56) -> 6850557 | M57: =SUM(M16:M56) -> 1413514.887
B59: Notes:
B61: 1 | C61: Board policy of the "half-year" rule - the applicant must ensure that additions in the year attract a half-year depreciation expense in the first year. Deviations from this standard practice must be supported in the application.
B62: 2 | C62: The applicant must provide an explanation of material variances in evidence.
B64: General | C64: Applicants must provide a breakdown of depreciation and amortization expense in the above format for all relevant accounts. Asset Retirement Obligations (AROs), depreciation and accretion expense should be disclosed separately consistent with the Notes of historical Audited Financial Statements.

Sheet App.2-CO_NewCGAAP_DepExp_2012
O1: Cambridge and North Dumfries Hydro Inc.
O2: File Number: | P2: =EBNUMBER -> EB-2013-0116
O3: Exhibit: | P3: 4
O4: Appendix: | P4: 4-18
O5: Page: | P5: 1 of 1
O7: Filed: | P7: October 1,2013
B9: Appendix 2-CO
B10: Depreciation and Amortization Expense
B11: Assumes the applicant made capitalization and depreciation expense accounting policy changes under CGAAP effective January 1, 2012
D13: Year | E13: 2012 | F13: Revised CGAAP or ASPE - CGAAP or ASPE with the changes to the policies
B15: Account | C15: Description | D15: Opening NBV as at Jan 1, 2012 5 | E15: Additions | F15: Average Remaining Life of Opening NBV 4 | G15: Years (new additions only) 3 | H15: Depreciation Rate on New Additions | I15: Depreciation Expense on Opening NBV | J15: Depreciation Expense on Additions 1 | K15: 2012 Depreciation Expense | L15: 2012 Depreciation Expense per Appendix 2-B Fixed Assets, Column K (l) | M15: Variance 2 | N15: Depreciation Expense on 2012 Full Year Additions | O15: Less Depreciation Expense on Assets Fully Depreciated during the year (o) | P15: 2012 Full Year Depreciation 6
D16: (a) | E16: (d) | F16: (i) | G16: (f) | H16: (g) = 1 / (f) | I16: (j) = (a) / (i) | J16: (h)=((d)*0.5)/(f) | K16: (k) = (j) + (h) | M16: (m) = (k) - (l) | N16: (n) = (d)/(f) | P16: (p) = (j) + (n) - (o)
B17: 1611 | C17: Computer Software (Formally known as Account 1925) | D17: 2402039 | E17: 815301 | F17: 4.79 | G17: 5 | H17: =IF(G17=0,0,1/G17) -> 0.2 | I17: =IF(F17=0,0,+D17/F17) -> 501469.5198 | J17: =IF(G17=0,0,+(E17*0.5)/G17) -> 81530.1 | K17: =IF(ISERROR(+I17+J17), 0, +I17+J17) -> 582999.6198 | L17: 503248 | M17: =IF(ISERROR(+K17-L17), 0, +K17-L17) -> 79751.61983 | N17: =IF(G17=0,0,+(E17)/G17) -> 163060.2 | P17: =IF(ISERROR(+N17+I17-O17), 0, +N17+I17-O17) -> 664529.7198
B18: 1612 | C18: Land Rights (Formally known as Account 1906) | H18: 0 | I18: 0 | J18: 0 | K18: 0 | M18: 0 | N18: 0 | P18: =IF(ISERROR(+N18+I18-O18), 0, +N18+I18-O18) -> 0
B19: 1805 | C19: Land | D19: 252923 | H19: 0 | I19: 0 | J19: 0 | K19: 0 | M19: 0 | N19: 0 | P19: 0
B20: 1808 | C20: Buildings | D20: 1190197 | F20: 58.41 | H20: 0 | I20: 20376.59647 | J20: 0 | K20: 20376.59647 | L20: 21409 | M20: -1032.403527 | N20: 0 | P20: 20376.59647
B21: 1810 | C21: Leasehold Improvements | H21: 0 | I21: 0 | J21: 0 | K21: 0 | M21: 0 | N21: 0 | P21: 0
B22: 1815 | C22: Transformer Station Equipment >50 kV | D22: 9777744 | E22: 236836 | F22: 36.26 | G22: 39.06 | H22: 0.0256016385 | I22: 269656.481 | J22: 3031.694828 | K22: 272688.1758 | L22: 364369 | M22: -91680.8242 | N22: 6063.389657 | P22: 275719.8706
B23: 1820 | C23: Distribution Station Equipment <50 kV | H23: 0 | I23: 0 | J23: 0 | K23: 0 | M23: 0 | N23: 0 | P23: 0
B24: 1825 | C24: Storage Battery Equipment | H24: 0 | I24: 0 | J24: 0 | K24: 0 | M24: 0 | N24: 0 | P24: 0
B25: 1830 | C25: Poles, Towers & Fixtures | D25: 27673333 | E25: 396281 | F25: 41.74 | G25: 42.5 | H25: 0.02352941176 | I25: 662993.1241 | J25: 4662.129412 | K25: 667655.2535 | L25: 347909 | M25: 319746.2535 | N25: 9324.258824 | P25: 672317.3829
B26: 1835 | C26: Overhead Conductors & Devices | D26: 32247582 | E26: 700100 | F26: 39.26 | G26: 36.88 | H26: 0.02711496746 | I26: 821385.1758 | J26: 9491.59436 | K26: 830876.7701 | L26: 474929 | M26: 355947.7701 | N26: 18983.18872 | O26: 2789 | P26: 837579.3645
B27: 1840 | C27: Underground Conduit | D27: 25645937 | E27: 113596 | F27: 72.89 | G27: 78.5 | H27: 0.0127388535 | I27: 351844.3819 | J27: 723.5414013 | K27: 352567.9233 | L27: 176381 | M27: 176186.9233 | N27: 1447.082803 | P27: 353291.4647
B28: 1845 | C28: Underground Conductors & Devices | D28: 36168760 | E28: 734917 | F28: 46.51 | G28: 41.43 | H28: 0.02413709872 | I28: 777655.5579 | J28: 8869.38209 | K28: 786524.94 | L28: 436101 | M28: 350423.94 | N28: 17738.76418 | O28: 3198 | P28: 792196.3221
B29: 1850 | C29: Line Transformers | D29: 43046097 | E29: 968835 | F29: 41.87 | G29: 42.92 | H29: 0.02329916123 | I29: 1028089.252 | J29: 11286.52144 | K29: 1039375.774 | L29: 568317 | M29: 471058.7739 | N29: 22573.04287 | O29: 934 | P29: 1049728.295
B30: 1855 | C30: Services (Overhead & Underground) | H30: 0 | I30: 0 | J30: 0 | K30: 0 | M30: 0 | N30: 0 | P30: 0
B31: 1860 | C31: Meters | D31: 847732 | E31: 986343 | F31: 18.51 | G31: 30 | H31: 0.03333333333 | I31: 45798.59535 | J31: 16439.05 | K31: 62237.64535 | L31: 143924 | M31: -81686.35465 | N31: 32878.1 | O31: 22763 | P31: 55913.69535
B32: 1860 | C32: Meters (Smart Meters) | E32: 7681051 | F32: 13.5 | G32: 15 | H32: 0.06666666667 | I32: 0 | J32: 256035.0333 | K32: 256035.0333 | L32: 1245373 | M32: -989337.9667 | N32: 512070.0667 | P32: 512070.0667
B33: 1905 | C33: Land | D33: 213797 | H33: 0 | I33: 0 | J33: 0 | K33: 0 | M33: 0 | N33: 0 | P33: 0
B34: 1908 | C34: Buildings & Fixtures | D34: 4693847 | E34: 493500 | F34: 31.16 | G34: 34.38 | H34: 0.0290866783 | I34: 150636.9384 | J34: 7177.137871 | K34: 157814.0763 | L34: 1321253 | M34: -1163438.924 | N34: 14354.27574 | O34: 0 | P34: 164991.2141
B35: 1910 | C35: Leasehold Improvements | H35: 0 | I35: 0 | J35: 0 | K35: 0 | M35: 0 | N35: 0 | P35: 0
B36: 1915 | C36: Office Furniture & Equipment (10 years) | D36: 565368 | E36: 46010 | F36: 8.74 | G36: 10 | H36: 0.1 | I36: 64687.41419 | J36: 2300.5 | K36: 66987.91419 | L36: 16482 | M36: 50505.91419 | N36: 4601 | P36: 69288.41419
B37: 1915 | C37: Office Furniture & Equipment (5 years) | H37: 0 | I37: 0 | J37: 0 | K37: 0 | M37: 0 | N37: 0 | P37: 0
B38: 1920 | C38: Computer Equipment - Hardware | D38: 1950065 | E38: 434387 | F38: 3.64 | G38: 4 | H38: 0.25 | I38: 535732.1429 | J38: 54298.375 | K38: 590030.5179 | L38: 291588 | M38: 298442.5179 | N38: 108596.75 | O38: 7614 | P38: 636714.8929
B39: 1920 | C39: Computer Equip.-Hardware(Post Mar. 22/04) | H39: 0 | I39: 0 | J39: 0 | K39: 0 | M39: 0 | N39: 0 | P39: 0
B40: 1920 | C40: Computer Equip.-Hardware(Post Mar. 19/07) | H40: 0 | I40: 0 | J40: 0 | K40: 0 | M40: 0 | N40: 0 | P40: 0
B41: 1930 | C41: Transportation Equipment | D41: 3844415 | E41: 22863 | F41: 9.87 | G41: 12 | H41: 0.08333333333 | I41: 389505.0659 | J41: 952.625 | K41: 390457.6909 | L41: 141103 | M41: 249354.6909 | N41: 1905.25 | P41: 391410.3159
B42: 1935 | C42: Stores Equipment | D42: 93729 | H42: 0 | I42: 0 | J42: 0 | K42: 0 | M42: 0 | N42: 0 | P42: 0
B43: 1940 | C43: Tools, Shop & Garage Equipment | D43: 1023853 | E43: 59566 | F43: 7.82 | G43: 10 | H43: 0.1 | I43: 130927.4936 | J43: 2978.3 | K43: 133905.7936 | L43: 66778 | M43: 67127.79361 | N43: 5956.6 | P43: 136884.0936
B44: 1945 | C44: Measurement & Testing Equipment | H44: 0 | I44: 0 | J44: 0 | K44: 0 | M44: 0 | N44: 0 | P44: 0
B45: 1950 | C45: Power Operated Equipment | H45: 0 | I45: 0 | J45: 0 | K45: 0 | M45: 0 | N45: 0 | P45: 0
B46: 1955 | C46: Communications Equipment | H46: 0 | I46: 0 | J46: 0 | K46: 0 | M46: 0 | N46: 0 | P46: 0
B47: 1955 | C47: Communication Equipment (Smart Meters) | H47: 0 | I47: 0 | J47: 0 | K47: 0 | M47: 0 | N47: 0 | P47: 0
B48: 1960 | C48: Miscellaneous Equipment | H48: 0 | I48: 0 | J48: 0 | K48: 0 | M48: 0 | N48: 0 | P48: 0
B49: 1970 | C49: Load Management Controls - Customer Premises | H49: 0 | I49: 0 | J49: 0 | K49: 0 | M49: 0 | N49: 0 | P49: 0
B50: 1975 | C50: Load Management Controls Utility Premises | H50: 0 | I50: 0 | J50: 0 | K50: 0 | M50: 0 | N50: 0 | P50: 0
B51: 1980 | C51: System Supervisor Equipment | D51: 714214 | H51: 0 | I51: 0 | J51: 0 | K51: 0 | M51: 0 | N51: 0 | P51: 0
B52: 1985 | C52: Miscellaneous Fixed Assets | H52: 0 | I52: 0 | J52: 0 | K52: 0 | M52: 0 | N52: 0 | P52: 0
B53: 1990 | C53: Other Tangible Property | H53: 0 | I53: 0 | J53: 0 | K53: 0 | M53: 0 | N53: 0 | P53: 0
B54: 1995 | C54: Contributions & Grants | D54: -16891915 | E54: -367721 | F54: 42.42 | G54: 43.57 | H54: 0.02295157218 | I54: -398206.3885 | J54: -4219.887537 | K54: -402426.276 | L54: -331862 | M54: -70564.27603 | N54: -8439.775075 | P54: -406646.1636
B55: 2005 | C55: Property under Capital Lease | D55: 61873 | H55: 0 | I55: =IF(F55=0,0,+D55/F55) -> 0 | J55: =IF(G55=0,0,+(E55*0.5)/G55) -> 0 | K55: =IF(ISERROR(+I55+J55), 0, +I55+J55) -> 0 | M55: =IF(ISERROR(+K55-L55), 0, +K55-L55) -> 0 | N55: =IF(G55=0,0,+(E55)/G55) -> 0 | P55: 0
B56: 2055 | C56: Work in Process | D56: 197130 | E56: 3601772 | H56: 0 | I56: 0 | J56: 0 | K56: 0 | M56: 0 | N56: 0 | P56: 0
B57: 2070 | C57: Other Utility Plant | D57: 619296 | E57: -590602 | H57: 0 | I57: 0 | J57: 0 | K57: 0 | M57: 0 | N57: 0 | P57: 0
C58: Total | D58: =SUM(D17:D57) -> 176338016 | E58: =SUM(E17:E57) -> 16333035 | I58: =SUM(I17:I57) -> 5352551.351 | J58: 455556.0972 | K58: 5808107.448 | L58: 5787302 | M58: 20805.44841 | N58: 911112.1944 | O58: =SUM(O17:O57) -> 37298 | P58: 6226365.546
J60: Less: Fully Allocated Depreciation
J61: Transportation | L61: 141103
J62: Smart Meters | L62: 873857
J63: Difference | L63: 1714
J64: Net Depreciation | L64: =L58-L61-L62+L63 -> 4774056
B65: Notes:
B67: 1 | C67: Board policy of the "half-year" rule - the applicant must ensure that additions in the year attract a half-year depreciation expense in the first year. Deviations from this standard practice must be supported in the application.
B68: 2 | C68: The applicant must provide an explanation of material variances in evidence.
B69: 3 | C69: The applicant should ensure that the years for new additions of assets are the asset useful lives determined by management in accordance with the Board's regulatory accounting policies. The capitalization and depreciation expense accounting changes should be implemented consistent with the Board’s regulatory accounting policies as set out for modified IFRS as contained in the Report of the Board, Transition to International Financial Reporting Standards, EB-2008-0408, the Kinectrics Report, and the Revised 2012 Accounting Procedures Handbook for Electricity Distributors (“APH”).
B70: 4 | C70: A recalculation should be performed to determine the average remaining life of opening balance of assets (i.e. excluding 2012 additions) under the change in policies under CGAAP. For example, Asset A had a useful life of 20 years under CGAAP without the change in policies. On January 1, 2012, the effective date of the changes in policies, Asset A was 3 years depreciated. As a result, Asset A would have a remaining service life of 17 years (20 years less 3 years) as of January 1, 2012. Due to making the change in policies under CGAAP, management re-assessed the asset useful lives and concluded that the revised useful life of Asset A is now 30 years. Therefore, the average remaining useful life of the opening balance of Asset A is determined to be 27 years (30 years less 3 years) under the revised CGAAP as of January 1, 2012.
B71: 5 | C71: NBV must exclude assets still on the books but which have been fully amortized or depreciated.
B72: 6 | C72: This column refers to the calculated full year depreciation but excludes the depreciation expense on assets fully depreciated during the year. This column is used for the purpose of calculating depreciation expense in the following year on the next worksheet.
B74: General: | C74: Applicants must provide a breakdown of depreciation and amortization expense in the above format for all relevant accounts. Asset Retirement Obligations (AROs), depreciation and accretion expense should be disclosed separately consistent with the Notes of historical Audited Financial Statements.

Sheet App.2-CP_NewCGAAP_DepExp_2013
J1: Cambridge and North Dumfries Hydro Inc.
K2: File Number: | L2: =EBNUMBER -> EB-2013-0116
K3: Exhibit: | L3: 4
K4: Appendix: | L4: 4-19
K5: Page: | L5: 1 of 1
K7: Filed: | L7: October 1,2013
B9: Appendix 2-CP
B10: Depreciation and Amortization Expense
B11: Assumes the applicant made capitalization and depreciation expense accounting policy changes under CGAAP effective January 1, 2012
D12: 2013 | E12: Revised CGAAP or ASPE - CGAAP or ASPE with the changes to the policies
B14: Account | C14: Description | D14: Additions | E14: Years (new additions only) | F14: Depreciation Rate on New Additions | G14: 2013 Depreciation Expense 1 | H14: 2013 Depreciation Expense per Apppendix 2-B Fixed Assets, Column K (l) | I14: Variance 2 | J14: Depreciation Expense on 2013 Full Year Additions | K14: Less Depreciation Expense on Assets Fully Depreciated during the year (o) | L14: 2013 Full Year Depreciation 3
D15: (d) | E15: (f) | F15: (g) = 1 / (f) | G15: (h)=2012 Full Year Deprecation + ((d)*0.5)/(f) | I15: (m) = (h) - (l) | J15: (n)=((d))/(f) | L15: (p) = 2012 Full Year Depreciation + (n) - (o)
B16: 1611 | C16: Computer Software (Formally known as Account 1925) | D16: 312900 | E16: 5 | F16: =IF(E16=0,0,1/E16) -> 0.2 | G16: =IF(E16=0,+'App.2-CO_NewCGAAP_DepExp_2012'!P17,+'App.2-CO_NewCGAAP_DepExp_2012'!P17+((D16*0.5)/E16)) -> 695819.7198 | H16: 512400 | I16: =IF(ISERROR(+G16-H16), 0, +G16-H16) -> 183419.7198 | J16: =IF(E16=0,0,+(D16)/E16) -> 62580 | K16: 19796 | L16: =IF(ISERROR(+J16+'App.2-CO_NewCGAAP_DepExp_2012'!P17-K16), 0, +J16+'App.2-CO_NewCGAAP_DepExp_2012'!P17-K16) -> 707313.7198
B17: 1612 | C17: Land Rights (Formally known as Account 1906) | F17: 0 | G17: =IF(E17=0,+'App.2-CO_NewCGAAP_DepExp_2012'!P18,+'App.2-CO_NewCGAAP_DepExp_2012'!P18+((D17*0.5)/E17)) -> 0 | I17: 0 | J17: 0 | L17: =IF(ISERROR(+J17+'App.2-CO_NewCGAAP_DepExp_2012'!P18-K17), 0, +J17+'App.2-CO_NewCGAAP_DepExp_2012'!P18-K17) -> 0
B18: 1805 | C18: Land | F18: 0 | G18: =IF(E18=0,+'App.2-CO_NewCGAAP_DepExp_2012'!P19,+'App.2-CO_NewCGAAP_DepExp_2012'!P19+((D18*0.5)/E18)) -> 0 | I18: 0 | J18: 0 | L18: =IF(ISERROR(+J18+'App.2-CO_NewCGAAP_DepExp_2012'!P19-K18), 0, +J18+'App.2-CO_NewCGAAP_DepExp_2012'!P19-K18) -> 0
B19: 1808 | C19: Buildings | F19: 0 | G19: =IF(E19=0,+'App.2-CO_NewCGAAP_DepExp_2012'!P20,+'App.2-CO_NewCGAAP_DepExp_2012'!P20+((D19*0.5)/E19)) -> 20376.59647 | H19: 21351 | I19: -974.4035268 | J19: 0 | L19: =IF(ISERROR(+J19+'App.2-CO_NewCGAAP_DepExp_2012'!P20-K19), 0, +J19+'App.2-CO_NewCGAAP_DepExp_2012'!P20-K19) -> 20376.59647
B20: 1810 | C20: Leasehold Improvements | F20: 0 | G20: =IF(E20=0,+'App.2-CO_NewCGAAP_DepExp_2012'!P21,+'App.2-CO_NewCGAAP_DepExp_2012'!P21+((D20*0.5)/E20)) -> 0 | I20: 0 | J20: 0 | L20: =IF(ISERROR(+J20+'App.2-CO_NewCGAAP_DepExp_2012'!P21-K20), 0, +J20+'App.2-CO_NewCGAAP_DepExp_2012'!P21-K20) -> 0
B21: 1815 | C21: Transformer Station Equipment >50 kV | D21: 3600 | E21: 39.06 | F21: 0.0256016385 | G21: =IF(E21=0,+'App.2-CO_NewCGAAP_DepExp_2012'!P22,+'App.2-CO_NewCGAAP_DepExp_2012'!P22+((D21*0.5)/E21)) -> 275765.9536 | H21: 365399 | I21: -89633.04642 | J21: 92.16589862 | L21: =IF(ISERROR(+J21+'App.2-CO_NewCGAAP_DepExp_2012'!P22-K21), 0, +J21+'App.2-CO_NewCGAAP_DepExp_2012'!P22-K21) -> 275812.0365
B22: 1820 | C22: Distribution Station Equipment <50 kV | F22: 0 | G22: =IF(E22=0,+'App.2-CO_NewCGAAP_DepExp_2012'!P23,+'App.2-CO_NewCGAAP_DepExp_2012'!P23+((D22*0.5)/E22)) -> 0 | I22: 0 | J22: 0 | L22: =IF(ISERROR(+J22+'App.2-CO_NewCGAAP_DepExp_2012'!P23-K22), 0, +J22+'App.2-CO_NewCGAAP_DepExp_2012'!P23-K22) -> 0
B23: 1825 | C23: Storage Battery Equipment | F23: 0 | G23: =IF(E23=0,+'App.2-CO_NewCGAAP_DepExp_2012'!P24,+'App.2-CO_NewCGAAP_DepExp_2012'!P24+((D23*0.5)/E23)) -> 0 | I23: 0 | J23: 0 | L23: =IF(ISERROR(+J23+'App.2-CO_NewCGAAP_DepExp_2012'!P24-K23), 0, +J23+'App.2-CO_NewCGAAP_DepExp_2012'!P24-K23) -> 0
B24: 1830 | C24: Poles, Towers & Fixtures | D24: 4436401 | E24: 42.5 | F24: 0.02352941176 | G24: =IF(E24=0,+'App.2-CO_NewCGAAP_DepExp_2012'!P25,+'App.2-CO_NewCGAAP_DepExp_2012'!P25+((D24*0.5)/E24)) -> 724510.3359 | H24: 404621 | I24: 319889.3359 | J24: 104385.9059 | L24: =IF(ISERROR(+J24+'App.2-CO_NewCGAAP_DepExp_2012'!P25-K24), 0, +J24+'App.2-CO_NewCGAAP_DepExp_2012'!P25-K24) -> 776703.2888
B25: 1835 | C25: Overhead Conductors & Devices | D25: 5166199 | E25: 36.88 | F25: 0.02711496746 | G25: =IF(E25=0,+'App.2-CO_NewCGAAP_DepExp_2012'!P26,+'App.2-CO_NewCGAAP_DepExp_2012'!P26+((D25*0.5)/E25)) -> 907620.0234 | H25: 550383 | I25: 357237.0234 | J25: 140081.3178 | K25: 1358 | L25: =IF(ISERROR(+J25+'App.2-CO_NewCGAAP_DepExp_2012'!P26-K25), 0, +J25+'App.2-CO_NewCGAAP_DepExp_2012'!P26-K25) -> 976302.6823
B26: 1840 | C26: Underground Conduit | D26: 1869990 | E26: 78.5 | F26: 0.0127388535 | G26: =IF(E26=0,+'App.2-CO_NewCGAAP_DepExp_2012'!P27,+'App.2-CO_NewCGAAP_DepExp_2012'!P27+((D26*0.5)/E26)) -> 365202.2291 | H26: 188599 | I26: 176603.2291 | J26: 23821.52866 | L26: =IF(ISERROR(+J26+'App.2-CO_NewCGAAP_DepExp_2012'!P27-K26), 0, +J26+'App.2-CO_NewCGAAP_DepExp_2012'!P27-K26) -> 377112.9934
B27: 1845 | C27: Underground Conductors & Devices | D27: 2636010 | E27: 41.43 | F27: 0.02413709872 | G27: =IF(E27=0,+'App.2-CO_NewCGAAP_DepExp_2012'!P28,+'App.2-CO_NewCGAAP_DepExp_2012'!P28+((D27*0.5)/E27)) -> 824009.1389 | H27: 470342 | I27: 353667.1389 | J27: 63625.6336 | K27: 737 | L27: =IF(ISERROR(+J27+'App.2-CO_NewCGAAP_DepExp_2012'!P28-K27), 0, +J27+'App.2-CO_NewCGAAP_DepExp_2012'!P28-K27) -> 855084.9557
B28: 1850 | C28: Line Transformers | D28: 2147400 | E28: 42.92 | F28: 0.02329916123 | G28: =IF(E28=0,+'App.2-CO_NewCGAAP_DepExp_2012'!P29,+'App.2-CO_NewCGAAP_DepExp_2012'!P29+((D28*0.5)/E28)) -> 1074744.605 | H28: 602986 | I28: 471758.6047 | J28: 50032.61883 | K28: 1103 | L28: =IF(ISERROR(+J28+'App.2-CO_NewCGAAP_DepExp_2012'!P29-K28), 0, +J28+'App.2-CO_NewCGAAP_DepExp_2012'!P29-K28) -> 1098657.914
B29: 1855 | C29: Services (Overhead & Underground) | F29: 0 | G29: =IF(E29=0,+'App.2-CO_NewCGAAP_DepExp_2012'!P30,+'App.2-CO_NewCGAAP_DepExp_2012'!P30+((D29*0.5)/E29)) -> 0 | I29: 0 | J29: 0 | L29: =IF(ISERROR(+J29+'App.2-CO_NewCGAAP_DepExp_2012'!P30-K29), 0, +J29+'App.2-CO_NewCGAAP_DepExp_2012'!P30-K29) -> 0
B30: 1860 | C30: Meters | D30: 915017 | E30: 30 | F30: 0.03333333333 | G30: =IF(E30=0,+'App.2-CO_NewCGAAP_DepExp_2012'!P31,+'App.2-CO_NewCGAAP_DepExp_2012'!P31+((D30*0.5)/E30)) -> 71163.97869 | H30: 667073 | I30: -595909.0213 | J30: 30500.56667 | K30: 10046 | L30: =IF(ISERROR(+J30+'App.2-CO_NewCGAAP_DepExp_2012'!P31-K30), 0, +J30+'App.2-CO_NewCGAAP_DepExp_2012'!P31-K30) -> 76368.26202
B31: 1860 | C31: Meters (Smart Meters) | F31: 0 | G31: =IF(E31=0,+'App.2-CO_NewCGAAP_DepExp_2012'!P32,+'App.2-CO_NewCGAAP_DepExp_2012'!P32+((D31*0.5)/E31)) -> 512070.0667 | I31: 512070.0667 | J31: 0 | L31: =IF(ISERROR(+J31+'App.2-CO_NewCGAAP_DepExp_2012'!P32-K31), 0, +J31+'App.2-CO_NewCGAAP_DepExp_2012'!P32-K31) -> 512070.0667
B32: 1905 | C32: Land | F32: 0 | G32: =IF(E32=0,+'App.2-CO_NewCGAAP_DepExp_2012'!P33,+'App.2-CO_NewCGAAP_DepExp_2012'!P33+((D32*0.5)/E32)) -> 0 | I32: 0 | J32: 0 | L32: =IF(ISERROR(+J32+'App.2-CO_NewCGAAP_DepExp_2012'!P33-K32), 0, +J32+'App.2-CO_NewCGAAP_DepExp_2012'!P33-K32) -> 0
B33: 1908 | C33: Buildings & Fixtures | D33: 448000 | E33: 34.38 | F33: 0.0290866783 | G33: =IF(E33=0,+'App.2-CO_NewCGAAP_DepExp_2012'!P34,+'App.2-CO_NewCGAAP_DepExp_2012'!P34+((D33*0.5)/E33)) -> 171506.6301 | H33: 142804 | I33: 28702.63006 | J33: 13030.83188 | L33: =IF(ISERROR(+J33+'App.2-CO_NewCGAAP_DepExp_2012'!P34-K33), 0, +J33+'App.2-CO_NewCGAAP_DepExp_2012'!P34-K33) -> 178022.046
B34: 1910 | C34: Leasehold Improvements | F34: 0 | G34: =IF(E34=0,+'App.2-CO_NewCGAAP_DepExp_2012'!P35,+'App.2-CO_NewCGAAP_DepExp_2012'!P35+((D34*0.5)/E34)) -> 0 | I34: 0 | J34: 0 | L34: =IF(ISERROR(+J34+'App.2-CO_NewCGAAP_DepExp_2012'!P35-K34), 0, +J34+'App.2-CO_NewCGAAP_DepExp_2012'!P35-K34) -> 0
B35: 1915 | C35: Office Furniture & Equipment (10 years) | D35: 187301 | E35: 10 | F35: 0.1 | G35: =IF(E35=0,+'App.2-CO_NewCGAAP_DepExp_2012'!P36,+'App.2-CO_NewCGAAP_DepExp_2012'!P36+((D35*0.5)/E35)) -> 78653.46419 | H35: 27011 | I35: 51642.46419 | J35: 18730.1 | K35: 1080 | L35: =IF(ISERROR(+J35+'App.2-CO_NewCGAAP_DepExp_2012'!P36-K35), 0, +J35+'App.2-CO_NewCGAAP_DepExp_2012'!P36-K35) -> 86938.51419
B36: 1915 | C36: Office Furniture & Equipment (5 years) | F36: 0 | G36: =IF(E36=0,+'App.2-CO_NewCGAAP_DepExp_2012'!P37,+'App.2-CO_NewCGAAP_DepExp_2012'!P37+((D36*0.5)/E36)) -> 0 | I36: 0 | J36: 0 | L36: =IF(ISERROR(+J36+'App.2-CO_NewCGAAP_DepExp_2012'!P37-K36), 0, +J36+'App.2-CO_NewCGAAP_DepExp_2012'!P37-K36) -> 0
B37: 1920 | C37: Computer Equipment - Hardware | D37: 296500 | E37: 4 | F37: 0.25 | G37: =IF(E37=0,+'App.2-CO_NewCGAAP_DepExp_2012'!P38,+'App.2-CO_NewCGAAP_DepExp_2012'!P38+((D37*0.5)/E37)) -> 673777.3929 | H37: 339547 | I37: 334230.3929 | J37: 74125 | K37: 8107 | L37: =IF(ISERROR(+J37+'App.2-CO_NewCGAAP_DepExp_2012'!P38-K37), 0, +J37+'App.2-CO_NewCGAAP_DepExp_2012'!P38-K37) -> 702732.8929
B38: 1920 | C38: Computer Equip.-Hardware(Post Mar. 22/04) | F38: 0 | G38: =IF(E38=0,+'App.2-CO_NewCGAAP_DepExp_2012'!P39,+'App.2-CO_NewCGAAP_DepExp_2012'!P39+((D38*0.5)/E38)) -> 0 | I38: 0 | J38: 0 | L38: =IF(ISERROR(+J38+'App.2-CO_NewCGAAP_DepExp_2012'!P39-K38), 0, +J38+'App.2-CO_NewCGAAP_DepExp_2012'!P39-K38) -> 0
B39: 1920 | C39: Computer Equip.-Hardware(Post Mar. 19/07) | F39: 0 | G39: =IF(E39=0,+'App.2-CO_NewCGAAP_DepExp_2012'!P40,+'App.2-CO_NewCGAAP_DepExp_2012'!P40+((D39*0.5)/E39)) -> 0 | I39: 0 | J39: 0 | L39: =IF(ISERROR(+J39+'App.2-CO_NewCGAAP_DepExp_2012'!P40-K39), 0, +J39+'App.2-CO_NewCGAAP_DepExp_2012'!P40-K39) -> 0
B40: 1930 | C40: Transportation Equipment | D40: 587785 | E40: 12 | F40: 0.08333333333 | G40: =IF(E40=0,+'App.2-CO_NewCGAAP_DepExp_2012'!P41,+'App.2-CO_NewCGAAP_DepExp_2012'!P41+((D40*0.5)/E40)) -> 415901.3575 | H40: 182646 | I40: 233255.3575 | J40: 48982.08333 | L40: =IF(ISERROR(+J40+'App.2-CO_NewCGAAP_DepExp_2012'!P41-K40), 0, +J40+'App.2-CO_NewCGAAP_DepExp_2012'!P41-K40) -> 440392.3992
B41: 1935 | C41: Stores Equipment | F41: 0 | G41: =IF(E41=0,+'App.2-CO_NewCGAAP_DepExp_2012'!P42,+'App.2-CO_NewCGAAP_DepExp_2012'!P42+((D41*0.5)/E41)) -> 0 | I41: 0 | J41: 0 | L41: =IF(ISERROR(+J41+'App.2-CO_NewCGAAP_DepExp_2012'!P42-K41), 0, +J41+'App.2-CO_NewCGAAP_DepExp_2012'!P42-K41) -> 0
B42: 1940 | C42: Tools, Shop & Garage Equipment | D42: 116650 | E42: 10 | F42: 0.1 | G42: =IF(E42=0,+'App.2-CO_NewCGAAP_DepExp_2012'!P43,+'App.2-CO_NewCGAAP_DepExp_2012'!P43+((D42*0.5)/E42)) -> 142716.5936 | H42: 74628 | I42: 68088.59361 | J42: 11665 | K42: 774 | L42: =IF(ISERROR(+J42+'App.2-CO_NewCGAAP_DepExp_2012'!P43-K42), 0, +J42+'App.2-CO_NewCGAAP_DepExp_2012'!P43-K42) -> 147775.0936
B43: 1945 | C43: Measurement & Testing Equipment | F43: 0 | G43: =IF(E43=0,+'App.2-CO_NewCGAAP_DepExp_2012'!P44,+'App.2-CO_NewCGAAP_DepExp_2012'!P44+((D43*0.5)/E43)) -> 0 | I43: 0 | J43: 0 | L43: =IF(ISERROR(+J43+'App.2-CO_NewCGAAP_DepExp_2012'!P44-K43), 0, +J43+'App.2-CO_NewCGAAP_DepExp_2012'!P44-K43) -> 0
B44: 1950 | C44: Power Operated Equipment | F44: 0 | G44: =IF(E44=0,+'App.2-CO_NewCGAAP_DepExp_2012'!P45,+'App.2-CO_NewCGAAP_DepExp_2012'!P45+((D44*0.5)/E44)) -> 0 | I44: 0 | J44: 0 | L44: =IF(ISERROR(+J44+'App.2-CO_NewCGAAP_DepExp_2012'!P45-K44), 0, +J44+'App.2-CO_NewCGAAP_DepExp_2012'!P45-K44) -> 0
B45: 1955 | C45: Communications Equipment | F45: 0 | G45: =IF(E45=0,+'App.2-CO_NewCGAAP_DepExp_2012'!P46,+'App.2-CO_NewCGAAP_DepExp_2012'!P46+((D45*0.5)/E45)) -> 0 | I45: 0 | J45: 0 | L45: =IF(ISERROR(+J45+'App.2-CO_NewCGAAP_DepExp_2012'!P46-K45), 0, +J45+'App.2-CO_NewCGAAP_DepExp_2012'!P46-K45) -> 0
B46: 1955 | C46: Communication Equipment (Smart Meters) | F46: 0 | G46: =IF(E46=0,+'App.2-CO_NewCGAAP_DepExp_2012'!P47,+'App.2-CO_NewCGAAP_DepExp_2012'!P47+((D46*0.5)/E46)) -> 0 | I46: 0 | J46: 0 | L46: =IF(ISERROR(+J46+'App.2-CO_NewCGAAP_DepExp_2012'!P47-K46), 0, +J46+'App.2-CO_NewCGAAP_DepExp_2012'!P47-K46) -> 0
B47: 1960 | C47: Miscellaneous Equipment | F47: 0 | G47: =IF(E47=0,+'App.2-CO_NewCGAAP_DepExp_2012'!P48,+'App.2-CO_NewCGAAP_DepExp_2012'!P48+((D47*0.5)/E47)) -> 0 | I47: 0 | J47: 0 | L47: =IF(ISERROR(+J47+'App.2-CO_NewCGAAP_DepExp_2012'!P48-K47), 0, +J47+'App.2-CO_NewCGAAP_DepExp_2012'!P48-K47) -> 0
B48: 1970 | C48: Load Management Controls - Customer Premises | F48: 0 | G48: =IF(E48=0,+'App.2-CO_NewCGAAP_DepExp_2012'!P49,+'App.2-CO_NewCGAAP_DepExp_2012'!P49+((D48*0.5)/E48)) -> 0 | I48: 0 | J48: 0 | L48: =IF(ISERROR(+J48+'App.2-CO_NewCGAAP_DepExp_2012'!P49-K48), 0, +J48+'App.2-CO_NewCGAAP_DepExp_2012'!P49-K48) -> 0
B49: 1975 | C49: Load Management Controls Utility Premises | F49: 0 | G49: =IF(E49=0,+'App.2-CO_NewCGAAP_DepExp_2012'!P50,+'App.2-CO_NewCGAAP_DepExp_2012'!P50+((D49*0.5)/E49)) -> 0 | I49: 0 | J49: 0 | L49: =IF(ISERROR(+J49+'App.2-CO_NewCGAAP_DepExp_2012'!P50-K49), 0, +J49+'App.2-CO_NewCGAAP_DepExp_2012'!P50-K49) -> 0
B50: 1980 | C50: System Supervisor Equipment | F50: 0 | G50: =IF(E50=0,+'App.2-CO_NewCGAAP_DepExp_2012'!P51,+'App.2-CO_NewCGAAP_DepExp_2012'!P51+((D50*0.5)/E50)) -> 0 | I50: 0 | J50: 0 | L50: =IF(ISERROR(+J50+'App.2-CO_NewCGAAP_DepExp_2012'!P51-K50), 0, +J50+'App.2-CO_NewCGAAP_DepExp_2012'!P51-K50) -> 0
B51: 1985 | C51: Miscellaneous Fixed Assets | F51: 0 | G51: =IF(E51=0,+'App.2-CO_NewCGAAP_DepExp_2012'!P52,+'App.2-CO_NewCGAAP_DepExp_2012'!P52+((D51*0.5)/E51)) -> 0 | I51: 0 | J51: 0 | L51: =IF(ISERROR(+J51+'App.2-CO_NewCGAAP_DepExp_2012'!P52-K51), 0, +J51+'App.2-CO_NewCGAAP_DepExp_2012'!P52-K51) -> 0
B52: 1990 | C52: Other Tangible Property | F52: 0 | G52: =IF(E52=0,+'App.2-CO_NewCGAAP_DepExp_2012'!P53,+'App.2-CO_NewCGAAP_DepExp_2012'!P53+((D52*0.5)/E52)) -> 0 | I52: 0 | J52: 0 | L52: =IF(ISERROR(+J52+'App.2-CO_NewCGAAP_DepExp_2012'!P53-K52), 0, +J52+'App.2-CO_NewCGAAP_DepExp_2012'!P53-K52) -> 0
B53: 1995 | C53: Contributions & Grants | D53: -3041000 | E53: 43.57 | F53: 0.02295157218 | G53: =IF(E53=0,+'App.2-CO_NewCGAAP_DepExp_2012'!P54,+'App.2-CO_NewCGAAP_DepExp_2012'!P54+((D53*0.5)/E53)) -> -441544.0291 | H53: -368521 | I53: -73023.02907 | J53: -69795.73101 | L53: =IF(ISERROR(+J53+'App.2-CO_NewCGAAP_DepExp_2012'!P54-K53), 0, +J53+'App.2-CO_NewCGAAP_DepExp_2012'!P54-K53) -> -476441.8946
B54: 2005 | C54: Property under Capital Lease | F54: 0 | G54: =IF(E54=0,+'App.2-CO_NewCGAAP_DepExp_2012'!P55,+'App.2-CO_NewCGAAP_DepExp_2012'!P55+((D54*0.5)/E54)) -> 0 | I54: 0 | J54: 0 | L54: =IF(ISERROR(+J54+'App.2-CO_NewCGAAP_DepExp_2012'!P55-K54), 0, +J54+'App.2-CO_NewCGAAP_DepExp_2012'!P55-K54) -> 0
B55: 2055 | C55: Work in Process | F55: 0 | G55: =IF(E55=0,+'App.2-CO_NewCGAAP_DepExp_2012'!P56,+'App.2-CO_NewCGAAP_DepExp_2012'!P56+((D55*0.5)/E55)) -> 0 | I55: 0 | J55: 0 | L55: =IF(ISERROR(+J55+'App.2-CO_NewCGAAP_DepExp_2012'!P56-K55), 0, +J55+'App.2-CO_NewCGAAP_DepExp_2012'!P56-K55) -> 0
B56: 2070 | C56: Other Utility Plant | F56: 0 | G56: =IF(E56=0,+'App.2-CO_NewCGAAP_DepExp_2012'!P57,+'App.2-CO_NewCGAAP_DepExp_2012'!P57+((D56*0.5)/E56)) -> 0 | I56: 0 | J56: 0 | L56: =IF(ISERROR(+J56+'App.2-CO_NewCGAAP_DepExp_2012'!P57-K56), 0, +J56+'App.2-CO_NewCGAAP_DepExp_2012'!P57-K56) -> 0
C57: Total | D57: =SUM(D16:D56) -> 16082753 | G57: =SUM(G16:G56) -> 6512294.056 | H57: 4181269 | I57: 2331025.056 | J57: 571857.0215 | K57: 43001 | L57: 6755221.567
F59: Less: Fully Allocated Depreciation
F60: Transportation | H60: 182646
F61: Communication | H61: 0
F62: Net Depreciation | H62: =H57-H60 -> 3998623
B64: Notes:
B65: 1 | C65: Board policy of the "half-year" rule - the applicant must ensure that additions in the year attract a half-year depreciation expense in the first year. Deviations from this standard practice must be supported in the application.
B66: 2 | C66: The applicant must provide an explanation of material variances in evidence.
B67: 3 | C67: This column refers to the calculated full year depreciation but excludes the depreciation expense on assets fully depreciated during the year. This column is used for the purpose of calculating depreciation expense in the following year on the next worksheet.
B69: General: | C69: Applicants must provide a breakdown of depreciation and amortization expense in the above format for all relevant accounts. Asset Retirement Obligations (AROs), depreciation and accretion expense should be disclosed separately consistent with the Notes of historical Audited Financial Statements.

Sheet App.2-CQ NewCGAAP_DepExp_2014
H1: Cambridge and North Dumfries Hydro Inc.
H2: File Number: | I2: =EBNUMBER -> EB-2013-0116
H3: Exhibit: | I3: 4
H4: Appendix: | I4: 4-20
H5: Page: | I5: 1 of 1
H7: Filed: | I7: October 1,2013
B9: Appendix 2-CQ
B10: Depreciation and Amortization Expense
B11: Assumes the applicant made capitalization and depreciation expense accounting policy changes under CGAAP effective January 1, 2012
C12: 2014 | D12: Revised CGAAP or ASPE - CGAAP or ASPE with the changes to the policies
B14: Account | C14: Description | D14: Additions | E14: Years (new additions only) | F14: Depreciation Rate on New Additions | G14: 2014 Depreciation Expense 1 | H14: 2014 Depreciation Expense per Appendix 2-B Fixed Assets, Column K (l) | I14: Variance 2
D15: (d) | E15: (f) | F15: (g) = 1 / (f) | G15: (h)=2013 Full Year Depreciation + ((d)*0.5)/(f) | I15: (m) = (h) - (l)
B16: 1611 | C16: Computer Software (Formally known as Account 1925) | D16: 1334048 | E16: 5 | F16: =IF(E16=0,0,1/E16) -> 0.2 | G16: =IF(E16=0,'App.2-CP_NewCGAAP_DepExp_2013'!L16,+'App.2-CP_NewCGAAP_DepExp_2013'!L16+((D16*0.5)/E16)) -> 840718.5198 | H16: 677095 | I16: =IF(ISERROR(+G16-H16), 0, +G16-H16) -> 163623.5198
B17: 1612 | C17: Land Rights (Formally known as Account 1906) | F17: 0 | G17: =IF(E17=0,'App.2-CP_NewCGAAP_DepExp_2013'!L17,+'App.2-CP_NewCGAAP_DepExp_2013'!L17+((D17*0.5)/E17)) -> 0 | I17: 0
B18: 1805 | C18: Land | F18: 0 | G18: =IF(E18=0,'App.2-CP_NewCGAAP_DepExp_2013'!L18,+'App.2-CP_NewCGAAP_DepExp_2013'!L18+((D18*0.5)/E18)) -> 0 | I18: 0
B19: 1808 | C19: Buildings | F19: 0 | G19: =IF(E19=0,'App.2-CP_NewCGAAP_DepExp_2013'!L19,+'App.2-CP_NewCGAAP_DepExp_2013'!L19+((D19*0.5)/E19)) -> 20376.59647 | H19: 21351 | I19: -974.4035268
B20: 1810 | C20: Leasehold Improvements | F20: 0 | G20: =IF(E20=0,'App.2-CP_NewCGAAP_DepExp_2013'!L20,+'App.2-CP_NewCGAAP_DepExp_2013'!L20+((D20*0.5)/E20)) -> 0 | I20: 0
B21: 1815 | C21: Transformer Station Equipment >50 kV | F21: 0 | G21: =IF(E21=0,'App.2-CP_NewCGAAP_DepExp_2013'!L21,+'App.2-CP_NewCGAAP_DepExp_2013'!L21+((D21*0.5)/E21)) -> 275812.0365 | H21: 365445 | I21: -89632.96347
B22: 1820 | C22: Distribution Station Equipment <50 kV | F22: 0 | G22: =IF(E22=0,'App.2-CP_NewCGAAP_DepExp_2013'!L22,+'App.2-CP_NewCGAAP_DepExp_2013'!L22+((D22*0.5)/E22)) -> 0 | I22: 0
B23: 1825 | C23: Storage Battery Equipment | F23: 0 | G23: =IF(E23=0,'App.2-CP_NewCGAAP_DepExp_2013'!L23,+'App.2-CP_NewCGAAP_DepExp_2013'!L23+((D23*0.5)/E23)) -> 0 | I23: 0
B24: 1830 | C24: Poles, Towers & Fixtures | D24: 4538305 | E24: 42.5 | F24: 0.02352941176 | G24: =IF(E24=0,'App.2-CP_NewCGAAP_DepExp_2013'!L24,+'App.2-CP_NewCGAAP_DepExp_2013'!L24+((D24*0.5)/E24)) -> 830095.1123 | H24: 511463 | I24: 318632.1123
B25: 1835 | C25: Overhead Conductors & Devices | D25: 5284867 | E25: 36.88 | F25: 0.02711496746 | G25: =IF(E25=0,'App.2-CP_NewCGAAP_DepExp_2013'!L25,+'App.2-CP_NewCGAAP_DepExp_2013'!L25+((D25*0.5)/E25)) -> 1047952.181 | H25: 695537 | I25: 352415.1806
B26: 1840 | C26: Underground Conduit | D26: 1831237 | E26: 78.5 | F26: 0.0127388535 | G26: =IF(E26=0,'App.2-CP_NewCGAAP_DepExp_2013'!L26,+'App.2-CP_NewCGAAP_DepExp_2013'!L26+((D26*0.5)/E26)) -> 388776.9233 | H26: 212324 | I26: 176452.9233
B27: 1845 | C27: Underground Conductors & Devices | D27: 2581383 | E27: 41.43 | F27: 0.02413709872 | G27: =IF(E27=0,'App.2-CP_NewCGAAP_DepExp_2013'!L27,+'App.2-CP_NewCGAAP_DepExp_2013'!L27+((D27*0.5)/E27)) -> 886238.5039 | H27: 533968 | I27: 352270.5039
B28: 1850 | C28: Line Transformers | D28: 2003000 | E28: 42.92 | F28: 0.02329916123 | G28: =IF(E28=0,'App.2-CP_NewCGAAP_DepExp_2013'!L28,+'App.2-CP_NewCGAAP_DepExp_2013'!L28+((D28*0.5)/E28)) -> 1121992.024 | H28: 651246 | I28: 470746.0241
B29: 1855 | C29: Services (Overhead & Underground) | F29: 0 | G29: =IF(E29=0,'App.2-CP_NewCGAAP_DepExp_2013'!L29,+'App.2-CP_NewCGAAP_DepExp_2013'!L29+((D29*0.5)/E29)) -> 0 | I29: 0
B30: 1860 | C30: Meters | D30: 966643 | E30: 30 | F30: 0.03333333333 | G30: =IF(E30=0,'App.2-CP_NewCGAAP_DepExp_2013'!L30,+'App.2-CP_NewCGAAP_DepExp_2013'!L30+((D30*0.5)/E30)) -> 92478.97869 | H30: 717254 | I30: -624775.0213
B31: 1860 | C31: Meters (Smart Meters) | F31: 0 | G31: =IF(E31=0,'App.2-CP_NewCGAAP_DepExp_2013'!L31,+'App.2-CP_NewCGAAP_DepExp_2013'!L31+((D31*0.5)/E31)) -> 512070.0667 | I31: 512070.0667
B32: 1905 | C32: Land | F32: 0 | G32: =IF(E32=0,'App.2-CP_NewCGAAP_DepExp_2013'!L32,+'App.2-CP_NewCGAAP_DepExp_2013'!L32+((D32*0.5)/E32)) -> 0 | I32: 0
B33: 1908 | C33: Buildings & Fixtures | D33: 55000 | E33: 34.38 | F33: 0.0290866783 | G33: =IF(E33=0,'App.2-CP_NewCGAAP_DepExp_2013'!L33,+'App.2-CP_NewCGAAP_DepExp_2013'!L33+((D33*0.5)/E33)) -> 178821.9297 | H33: 155304 | I33: 23517.92966
B34: 1910 | C34: Leasehold Improvements | F34: 0 | G34: =IF(E34=0,'App.2-CP_NewCGAAP_DepExp_2013'!L34,+'App.2-CP_NewCGAAP_DepExp_2013'!L34+((D34*0.5)/E34)) -> 0 | I34: 0
B35: 1915 | C35: Office Furniture & Equipment (10 years) | D35: 80400 | E35: 10 | F35: 0.1 | G35: =IF(E35=0,'App.2-CP_NewCGAAP_DepExp_2013'!L35,+'App.2-CP_NewCGAAP_DepExp_2013'!L35+((D35*0.5)/E35)) -> 90958.51419 | H35: 40396 | I35: 50562.51419
B36: 1915 | C36: Office Furniture & Equipment (5 years) | F36: 0 | G36: =IF(E36=0,'App.2-CP_NewCGAAP_DepExp_2013'!L36,+'App.2-CP_NewCGAAP_DepExp_2013'!L36+((D36*0.5)/E36)) -> 0 | I36: 0
B37: 1920 | C37: Computer Equipment - Hardware | D37: 751500 | E37: 4 | F37: 0.25 | G37: =IF(E37=0,'App.2-CP_NewCGAAP_DepExp_2013'!L37,+'App.2-CP_NewCGAAP_DepExp_2013'!L37+((D37*0.5)/E37)) -> 796670.3929 | H37: 514213 | I37: 282457.3929
B38: 1920 | C38: Computer Equip.-Hardware(Post Mar. 22/04) | F38: 0 | G38: =IF(E38=0,'App.2-CP_NewCGAAP_DepExp_2013'!L38,+'App.2-CP_NewCGAAP_DepExp_2013'!L38+((D38*0.5)/E38)) -> 0 | I38: 0
B39: 1920 | C39: Computer Equip.-Hardware(Post Mar. 19/07) | F39: 0 | G39: =IF(E39=0,'App.2-CP_NewCGAAP_DepExp_2013'!L39,+'App.2-CP_NewCGAAP_DepExp_2013'!L39+((D39*0.5)/E39)) -> 0 | I39: 0
B40: 1930 | C40: Transportation Equipment | D40: 520000 | E40: 12 | F40: 0.08333333333 | G40: =IF(E40=0,'App.2-CP_NewCGAAP_DepExp_2013'!L40,+'App.2-CP_NewCGAAP_DepExp_2013'!L40+((D40*0.5)/E40)) -> 462059.0659 | H40: 233631 | I40: 228428.0659
B41: 1935 | C41: Stores Equipment | F41: 0 | G41: =IF(E41=0,'App.2-CP_NewCGAAP_DepExp_2013'!L41,+'App.2-CP_NewCGAAP_DepExp_2013'!L41+((D41*0.5)/E41)) -> 0 | I41: 0
B42: 1940 | C42: Tools, Shop & Garage Equipment | D42: 109000 | E42: 10 | F42: 0.1 | G42: =IF(E42=0,'App.2-CP_NewCGAAP_DepExp_2013'!L42,+'App.2-CP_NewCGAAP_DepExp_2013'!L42+((D42*0.5)/E42)) -> 153225.0936 | H42: 85910 | I42: 67315.09361
B43: 1945 | C43: Measurement & Testing Equipment | F43: 0 | G43: =IF(E43=0,'App.2-CP_NewCGAAP_DepExp_2013'!L43,+'App.2-CP_NewCGAAP_DepExp_2013'!L43+((D43*0.5)/E43)) -> 0 | I43: 0
B44: 1950 | C44: Power Operated Equipment | F44: 0 | G44: =IF(E44=0,'App.2-CP_NewCGAAP_DepExp_2013'!L44,+'App.2-CP_NewCGAAP_DepExp_2013'!L44+((D44*0.5)/E44)) -> 0 | I44: 0
B45: 1955 | C45: Communications Equipment | F45: 0 | G45: =IF(E45=0,'App.2-CP_NewCGAAP_DepExp_2013'!L45,+'App.2-CP_NewCGAAP_DepExp_2013'!L45+((D45*0.5)/E45)) -> 0 | I45: 0
B46: 1955 | C46: Communication Equipment (Smart Meters) | F46: 0 | G46: =IF(E46=0,'App.2-CP_NewCGAAP_DepExp_2013'!L46,+'App.2-CP_NewCGAAP_DepExp_2013'!L46+((D46*0.5)/E46)) -> 0 | I46: 0
B47: 1960 | C47: Miscellaneous Equipment | F47: 0 | G47: =IF(E47=0,'App.2-CP_NewCGAAP_DepExp_2013'!L47,+'App.2-CP_NewCGAAP_DepExp_2013'!L47+((D47*0.5)/E47)) -> 0 | I47: 0
B48: 1970 | C48: Load Management Controls - Customer Premises | F48: 0 | G48: =IF(E48=0,'App.2-CP_NewCGAAP_DepExp_2013'!L48,+'App.2-CP_NewCGAAP_DepExp_2013'!L48+((D48*0.5)/E48)) -> 0 | I48: 0
B49: 1975 | C49: Load Management Controls Utility Premises | F49: 0 | G49: =IF(E49=0,'App.2-CP_NewCGAAP_DepExp_2013'!L49,+'App.2-CP_NewCGAAP_DepExp_2013'!L49+((D49*0.5)/E49)) -> 0 | I49: 0
B50: 1980 | C50: System Supervisor Equipment | F50: 0 | G50: =IF(E50=0,'App.2-CP_NewCGAAP_DepExp_2013'!L50,+'App.2-CP_NewCGAAP_DepExp_2013'!L50+((D50*0.5)/E50)) -> 0 | I50: 0
B51: 1985 | C51: Miscellaneous Fixed Assets | F51: 0 | G51: =IF(E51=0,'App.2-CP_NewCGAAP_DepExp_2013'!L51,+'App.2-CP_NewCGAAP_DepExp_2013'!L51+((D51*0.5)/E51)) -> 0 | I51: 0
B52: 1990 | C52: Other Tangible Property | F52: 0 | G52: =IF(E52=0,'App.2-CP_NewCGAAP_DepExp_2013'!L52,+'App.2-CP_NewCGAAP_DepExp_2013'!L52+((D52*0.5)/E52)) -> 0 | I52: 0
B53: 1995 | C53: Contributions & Grants | D53: -2406000 | E53: 43.57 | F53: 0.02295157218 | G53: =IF(E53=0,'App.2-CP_NewCGAAP_DepExp_2013'!L53,+'App.2-CP_NewCGAAP_DepExp_2013'!L53+((D53*0.5)/E53)) -> -504052.6359 | H53: -425260 | I53: -78792.63591
B54: etc. | F54: 0 | G54: =IF(E54=0,'App.2-CP_NewCGAAP_DepExp_2013'!L55,+'App.2-CP_NewCGAAP_DepExp_2013'!L55+((D54*0.5)/E54)) -> 0 | I54: 0
F55: 0 | G55: =IF(E55=0,'App.2-CP_NewCGAAP_DepExp_2013'!L56,+'App.2-CP_NewCGAAP_DepExp_2013'!L56+((D55*0.5)/E55)) -> 0 | I55: 0
C56: Total | D56: =SUM(D16:D55) -> 17649383 | G56: =SUM(G16:G55) -> 7194193.303 | H56: =SUM(H16:H55) -> 4989877 | I56: =SUM(I16:I55) -> 2204316.303
C57: Total Depreciation expense to be included in the test year revenue requirement | G57: =+G56 -> 7194193.303
F59: Less: Fully Allocated Depreciation
F60: Transportation | H60: 233631
F61: Net Depreciation | H61: =H56-H60 -> 4756246
B62: Notes:
B63: 1 | C63: Board policy of the "half-year" rule - the applicant must ensure that additions in the year attract a half-year depreciation expense in the first year. Deviations from this standard practice must be supported in the application.
B64: 2 | C64: The applicant must provide an explanation of material variances in evidence.
B66: General: | C66: Applicants must provide a breakdown of depreciation and amortization expense in the above format for all relevant accounts. Asset Retirement Obligations (AROs), depreciation and accretion expense should be disclosed separately consistent with the Notes of historical Audited Financial Statements.

Sheet App.2-CR_OldCGAAP_DepExp_2012 (hidden)
K1: File Number: | L1: =EBNUMBER -> EB-2013-0116
K2: Exhibit:
K3: Tab:
K4: Schedule:
K5: Page:
K7: Date:
A9: Appendix 2-CR
A10: Depreciation and Amortization Expense
A11: Assumes the applicant made capitalization and depreciation expense accounting policy changes under CGAAP effective January 1, 2013
C12: Year | D12: 2012 | E12: Former CGAAP - CGAAP without the changes to the policies
A14: Account | B14: Description | C14: Opening Regulatory Gross PP&E as at Jan 1, 2012 | D14: Less Fully Depreciated | E14: Net for Depreciation | F14: Additions | G14: Total for Depreciation | H14: Years | I14: Depreciation Rate | J14: 2012 Depreciation Expense | K14: 2012 Depreciation Expense per Appendix 2-B Fixed Assets, Column K (l) | L14: Variance 2
C15: (a) | D15: (b) | E15: (c) | F15: (d) | G15: (e) = (c) + ½ x (d) 1 | H15: (f) | I15: (g) = 1 / (f) | J15: (h) = (e) / (f) | L15: (m) = (h) - (l)
A16: 1611 | B16: Computer Software (Formally known as Account 1925) | E16: =C16-D16 -> 0 | G16: =E16+0.5*F16 -> 0 | I16: =IF(H16=0,"",1/H16) ->  | J16: =IF(H16=0,0,G16/H16) -> 0 | L16: =IF(ISERROR(+J16-K16), "", +J16-K16) -> 0
A17: 1612 | B17: Land Rights (Formally known as Account 1906) | E17: =C17-D17 -> 0 | G17: =E17+0.5*F17 -> 0 | J17: 0 | L17: =IF(ISERROR(+J17-K17), "", +J17-K17) -> 0
A18: 1805 | B18: Land | E18: 0 | G18: 0 | J18: 0 | L18: 0
A19: 1808 | B19: Buildings | E19: 0 | G19: 0 | J19: 0 | L19: 0
A20: 1810 | B20: Leasehold Improvements | E20: 0 | G20: 0 | J20: 0 | L20: 0
A21: 1815 | B21: Transformer Station Equipment >50 kV | E21: 0 | G21: 0 | J21: 0 | L21: 0
A22: 1820 | B22: Distribution Station Equipment <50 kV | E22: 0 | G22: 0 | J22: 0 | L22: 0
A23: 1825 | B23: Storage Battery Equipment | E23: 0 | G23: 0 | J23: 0 | L23: 0
A24: 1830 | B24: Poles, Towers & Fixtures | E24: 0 | G24: 0 | J24: 0 | L24: 0
A25: 1835 | B25: Overhead Conductors & Devices | E25: 0 | G25: 0 | J25: 0 | L25: 0
A26: 1840 | B26: Underground Conduit | E26: 0 | G26: 0 | J26: 0 | L26: 0
A27: 1845 | B27: Underground Conductors & Devices | E27: 0 | G27: 0 | J27: 0 | L27: 0
A28: 1850 | B28: Line Transformers | E28: 0 | G28: 0 | J28: 0 | L28: 0
A29: 1855 | B29: Services (Overhead & Underground) | E29: 0 | G29: 0 | J29: 0 | L29: 0
A30: 1860 | B30: Meters | E30: 0 | G30: 0 | J30: 0 | L30: 0
A31: 1860 | B31: Meters (Smart Meters) | E31: 0 | G31: 0 | J31: 0 | L31: 0
A32: 1905 | B32: Land | E32: 0 | G32: 0 | J32: 0 | L32: 0
A33: 1908 | B33: Buildings & Fixtures | E33: 0 | G33: 0 | J33: 0 | L33: 0
A34: 1910 | B34: Leasehold Improvements | E34: 0 | G34: 0 | J34: 0 | L34: 0
A35: 1915 | B35: Office Furniture & Equipment (10 years) | E35: 0 | G35: 0 | J35: 0 | L35: 0
A36: 1915 | B36: Office Furniture & Equipment (5 years) | E36: 0 | G36: 0 | J36: 0 | L36: 0
A37: 1920 | B37: Computer Equipment - Hardware | E37: 0 | G37: 0 | J37: 0 | L37: 0
A38: 1920 | B38: Computer Equip.-Hardware(Post Mar. 22/04) | E38: 0 | G38: 0 | J38: 0 | L38: 0
A39: 1920 | B39: Computer Equip.-Hardware(Post Mar. 19/07) | E39: 0 | G39: 0 | J39: 0 | L39: 0
A40: 1930 | B40: Transportation Equipment | E40: 0 | G40: 0 | J40: 0 | L40: 0
A41: 1935 | B41: Stores Equipment | E41: 0 | G41: 0 | J41: 0 | L41: 0
A42: 1940 | B42: Tools, Shop & Garage Equipment | E42: 0 | G42: 0 | J42: 0 | L42: 0
A43: 1945 | B43: Measurement & Testing Equipment | E43: 0 | G43: 0 | J43: 0 | L43: 0
A44: 1950 | B44: Power Operated Equipment | E44: 0 | G44: 0 | J44: 0 | L44: 0
A45: 1955 | B45: Communications Equipment | E45: 0 | G45: 0 | J45: 0 | L45: 0
A46: 1955 | B46: Communication Equipment (Smart Meters) | E46: 0 | G46: 0 | J46: 0 | L46: 0
A47: 1960 | B47: Miscellaneous Equipment | E47: 0 | G47: 0 | J47: 0 | L47: 0
A48: 1970 | B48: Load Management Controls - Customer Premises | E48: 0 | G48: 0 | J48: 0 | L48: 0
A49: 1975 | B49: Load Management Controls Utility Premises | E49: 0 | G49: 0 | J49: 0 | L49: 0
A50: 1980 | B50: System Supervisor Equipment | E50: 0 | G50: 0 | J50: 0 | L50: 0
A51: 1985 | B51: Miscellaneous Fixed Assets | E51: 0 | G51: 0 | J51: 0 | L51: 0
A52: 1990 | B52: Other Tangible Property | E52: 0 | G52: 0 | J52: 0 | L52: 0
A53: 1995 | B53: Contributions & Grants | E53: 0 | G53: 0 | J53: 0 | L53: 0
A54: etc. | E54: 0 | G54: 0 | J54: 0 | L54: 0
E55: 0 | G55: 0 | J55: 0 | L55: 0
B56: Total | C56: =SUM(C16:C55) -> 0 | D56: =SUM(D16:D55) -> 0 | E56: =SUM(E16:E55) -> 0 | F56: =SUM(F16:F55) -> 0 | G56: =SUM(G16:G55) -> 0 | J56: =SUM(J16:J55) -> 0 | K56: =SUM(K16:K55) -> 0 | L56: =SUM(L16:L55) -> 0
A58: Notes:
A59: 1 | B59: Board policy of the "half-year" rule - the applicant must ensure that additions in the year attract a half-year depreciation expense in the first year. Deviations from this standard practice must be supported in the application.
A60: 2 | B60: The applicant must provide an explanation of material variances in evidence.
A62: General: | B62: Applicants must provide a breakdown of depreciation and amortization expense in the above format for all relevant accounts. Asset Retirement Obligations (AROs), depreciation and accretion expense should be disclosed separately consistent with the Notes of historical Audited Financial Statements.

Sheet App.2-CS_OldCGAAP_DepExp_2013 (hidden)
K1: File Number: | L1: =EBNUMBER -> EB-2013-0116
K2: Exhibit:
K3: Tab:
K4: Schedule:
K5: Page:
K7: Date:
A9: Appendix 2-CS
A10: Depreciation and Amortization Expense
A11: Assumes the applicant made capitalization and depreciation expense accounting policy changes under CGAAP effective January 1, 2013
C12: Year | D12: 2013 | E12: Former CGAAP - CGAAP without the changes to the policies
A14: Account | B14: Description | C14: Opening Regulatory Gross PP&E as at Jan 1, 2013 | D14: Less Fully Depreciated | E14: Net for Depreciation | F14: Additions | G14: Total for Depreciation | H14: Years | I14: Depreciation Rate | J14: 2013 Depreciation Expense | K14: 2013 Depreciation Expense per Appendix 2-B Fixed Assets, Column K (l) | L14: Variance 2
C15: (a) | D15: (b) | E15: (c) | F15: (d) | G15: (e) = (c) + ½ x (d) 1 | H15: (f) | I15: (g) = 1 / (f) | J15: (h) = (e) / (f) | L15: (m) = (h) - (l)
A16: 1611 | B16: Computer Software (Formally known as Account 1925) | E16: =C16-D16 -> 0 | G16: =E16+0.5*F16 -> 0 | I16: =IF(H16=0,0,1/H16) -> 0 | J16: =IF(H16=0,0,G16/H16) -> 0 | L16: =IF(ISERROR(+J16-K16), 0, +J16-K16) -> 0
A17: 1612 | B17: Land Rights (Formally known as Account 1906) | E17: =C17-D17 -> 0 | G17: =E17+0.5*F17 -> 0 | I17: 0 | J17: 0 | L17: 0
A18: 1805 | B18: Land | E18: 0 | G18: 0 | I18: 0 | J18: 0 | L18: 0
A19: 1808 | B19: Buildings | E19: 0 | G19: 0 | I19: 0 | J19: 0 | L19: 0
A20: 1810 | B20: Leasehold Improvements | E20: 0 | G20: 0 | I20: 0 | J20: 0 | L20: 0
A21: 1815 | B21: Transformer Station Equipment >50 kV | E21: 0 | G21: 0 | I21: 0 | J21: 0 | L21: 0
A22: 1820 | B22: Distribution Station Equipment <50 kV | E22: 0 | G22: 0 | I22: 0 | J22: 0 | L22: 0
A23: 1825 | B23: Storage Battery Equipment | E23: 0 | G23: 0 | I23: 0 | J23: 0 | L23: 0
A24: 1830 | B24: Poles, Towers & Fixtures | E24: 0 | G24: 0 | I24: 0 | J24: 0 | L24: 0
A25: 1835 | B25: Overhead Conductors & Devices | E25: 0 | G25: 0 | I25: 0 | J25: 0 | L25: 0
A26: 1840 | B26: Underground Conduit | E26: 0 | G26: 0 | I26: 0 | J26: 0 | L26: 0
A27: 1845 | B27: Underground Conductors & Devices | E27: 0 | G27: 0 | I27: 0 | J27: 0 | L27: 0
A28: 1850 | B28: Line Transformers | E28: 0 | G28: 0 | I28: 0 | J28: 0 | L28: 0
A29: 1855 | B29: Services (Overhead & Underground) | E29: 0 | G29: 0 | I29: 0 | J29: 0 | L29: 0
A30: 1860 | B30: Meters | E30: 0 | G30: 0 | I30: 0 | J30: 0 | L30: 0
A31: 1860 | B31: Meters (Smart Meters) | E31: 0 | G31: 0 | I31: 0 | J31: 0 | L31: 0
A32: 1905 | B32: Land | E32: 0 | G32: 0 | I32: 0 | J32: 0 | L32: 0
A33: 1908 | B33: Buildings & Fixtures | E33: 0 | G33: 0 | I33: 0 | J33: 0 | L33: 0
A34: 1910 | B34: Leasehold Improvements | E34: 0 | G34: 0 | I34: 0 | J34: 0 | L34: 0
A35: 1915 | B35: Office Furniture & Equipment (10 years) | E35: 0 | G35: 0 | I35: 0 | J35: 0 | L35: 0
A36: 1915 | B36: Office Furniture & Equipment (5 years) | E36: 0 | G36: 0 | I36: 0 | J36: 0 | L36: 0
A37: 1920 | B37: Computer Equipment - Hardware | E37: 0 | G37: 0 | I37: 0 | J37: 0 | L37: 0
A38: 1920 | B38: Computer Equip.-Hardware(Post Mar. 22/04) | E38: 0 | G38: 0 | I38: 0 | J38: 0 | L38: 0
A39: 1920 | B39: Computer Equip.-Hardware(Post Mar. 19/07) | E39: 0 | G39: 0 | I39: 0 | J39: 0 | L39: 0
A40: 1930 | B40: Transportation Equipment | E40: 0 | G40: 0 | I40: 0 | J40: 0 | L40: 0
A41: 1935 | B41: Stores Equipment | E41: 0 | G41: 0 | I41: 0 | J41: 0 | L41: 0
A42: 1940 | B42: Tools, Shop & Garage Equipment | E42: 0 | G42: 0 | I42: 0 | J42: 0 | L42: 0
A43: 1945 | B43: Measurement & Testing Equipment | E43: 0 | G43: 0 | I43: 0 | J43: 0 | L43: 0
A44: 1950 | B44: Power Operated Equipment | E44: 0 | G44: 0 | I44: 0 | J44: 0 | L44: 0
A45: 1955 | B45: Communications Equipment | E45: 0 | G45: 0 | I45: 0 | J45: 0 | L45: 0
A46: 1955 | B46: Communication Equipment (Smart Meters) | E46: 0 | G46: 0 | I46: 0 | J46: 0 | L46: 0
A47: 1960 | B47: Miscellaneous Equipment | E47: 0 | G47: 0 | I47: 0 | J47: 0 | L47: 0
A48: 1970 | B48: Load Management Controls - Customer Premises | E48: 0 | G48: 0 | I48: 0 | J48: 0 | L48: 0
A49: 1975 | B49: Load Management Controls Utility Premises | E49: 0 | G49: 0 | I49: 0 | J49: 0 | L49: 0
A50: 1980 | B50: System Supervisor Equipment | E50: 0 | G50: 0 | I50: 0 | J50: 0 | L50: 0
A51: 1985 | B51: Miscellaneous Fixed Assets | E51: 0 | G51: 0 | I51: 0 | J51: 0 | L51: 0
A52: 1990 | B52: Other Tangible Property | E52: 0 | G52: 0 | I52: 0 | J52: 0 | L52: 0
A53: 1995 | B53: Contributions & Grants | E53: 0 | G53: 0 | I53: 0 | J53: 0 | L53: 0
A54: etc. | E54: 0 | G54: 0 | I54: 0 | J54: 0 | L54: 0
E55: 0 | G55: 0 | I55: 0 | J55: 0 | L55: 0
B56: Total | C56: =SUM(C16:C55) -> 0 | D56: =SUM(D16:D55) -> 0 | E56: =SUM(E16:E55) -> 0 | F56: =SUM(F16:F55) -> 0 | G56: =SUM(G16:G55) -> 0 | J56: =SUM(J16:J55) -> 0 | K56: =SUM(K16:K55) -> 0 | L56: =SUM(L16:L55) -> 0
A58: Notes:
A59: 1 | B59: Board policy of the "half-year" rule - the applicant must ensure that additions in the year attract a half-year depreciation expense in the first year. Deviations from this standard practice must be supported in the application.
A60: 2 | B60: The applicant must provide an explanation of material variances in evidence.
A62: General: | B62: Applicants must provide a breakdown of depreciation and amortization expense in the above format for all relevant accounts. Asset Retirement Obligations (AROs), depreciation and accretion expense should be disclosed separately consistent with the Notes of historical Audited Financial Statements.

Sheet App.2-CT_NewCGAAP_DepExp_2013 (hidden)
N1: File Number: | O1: =EBNUMBER -> EB-2013-0116
N2: Exhibit:
N3: Tab:
N4: Schedule:
N5: Page:
N7: Date:
A9: Appendix 2-CT
A10: Depreciation and Amortization Expense
A11: Assumes the applicant made capitalization and depreciation expense accounting policy changes under CGAAP effective January 1, 2013
C12: Year | D12: 2013 | E12: Revised CGAAP or ASPE - CGAAP or ASPE with the changes to the policies
A14: Account | B14: Description | C14: Opening NBV as at Jan 1, 2013 5 | D14: Additions | E14: Average Remaining Life of Opening NBV 4 | F14: Years (new additions only) 3 | G14: Depreciation Rate on New Additions | H14: Depreciation Expense on Opening NBV | I14: Depreciation Expense on Additions 1 | J14: 2013 Depreciation Expense | K14: 2013 Depreciation Expense per Appendix 2-B Fixed Assets, Column K (l) | L14: Variance 2 | M14: Depreciation Expense on 2013 Full Year Additions | N14: Less Depreciation Expense on Assets Fully Depreciated during the year (o) | O14: 2013 Full Year Depreciation 6
C15: (a) | D15: (d) | E15: (i) | F15: (f) | G15: (g) = 1 / (f) | H15: (j) = (a) / (i) | I15: (h)=((d)*0.5)/(f) | J15: (k) = (j) + (h) | L15: (m) = (k) - (l) | M15: (n)=((d))/(f) | O15: (p) = (j) + (n) - (o)
A16: 1611 | B16: Computer Software (Formally known as Account 1925) | G16: =IF(F16=0,0,1/F16) -> 0 | H16: =IF(E16=0,0,+C16/E16) -> 0 | I16: =IF(F16=0,0,+(D16*0.5)/F16) -> 0 | J16: =IF(ISERROR(+H16+I16), 0, +H16+I16) -> 0 | L16: =IF(ISERROR(+J16-K16), 0, +J16-K16) -> 0 | M16: =IF(F16=0,0,+(D16)/F16) -> 0 | O16: =IF(ISERROR(+M16+H16-N16), 0, +M16+H16-N16) -> 0
A17: 1612 | B17: Land Rights (Formally known as Account 1906) | G17: 0 | H17: 0 | I17: 0 | J17: 0 | L17: 0 | M17: 0 | O17: =IF(ISERROR(+M17+H17-N17), 0, +M17+H17-N17) -> 0
A18: 1805 | B18: Land | G18: 0 | H18: 0 | I18: 0 | J18: 0 | L18: 0 | M18: 0 | O18: 0
A19: 1808 | B19: Buildings | G19: 0 | H19: 0 | I19: 0 | J19: 0 | L19: 0 | M19: 0 | O19: 0
A20: 1810 | B20: Leasehold Improvements | G20: 0 | H20: 0 | I20: 0 | J20: 0 | L20: 0 | M20: 0 | O20: 0
A21: 1815 | B21: Transformer Station Equipment >50 kV | G21: 0 | H21: 0 | I21: 0 | J21: 0 | L21: 0 | M21: 0 | O21: 0
A22: 1820 | B22: Distribution Station Equipment <50 kV | G22: 0 | H22: 0 | I22: 0 | J22: 0 | L22: 0 | M22: 0 | O22: 0
A23: 1825 | B23: Storage Battery Equipment | G23: 0 | H23: 0 | I23: 0 | J23: 0 | L23: 0 | M23: 0 | O23: 0
A24: 1830 | B24: Poles, Towers & Fixtures | G24: 0 | H24: 0 | I24: 0 | J24: 0 | L24: 0 | M24: 0 | O24: 0
A25: 1835 | B25: Overhead Conductors & Devices | G25: 0 | H25: 0 | I25: 0 | J25: 0 | L25: 0 | M25: 0 | O25: 0
A26: 1840 | B26: Underground Conduit | G26: 0 | H26: 0 | I26: 0 | J26: 0 | L26: 0 | M26: 0 | O26: 0
A27: 1845 | B27: Underground Conductors & Devices | G27: 0 | H27: 0 | I27: 0 | J27: 0 | L27: 0 | M27: 0 | O27: 0
A28: 1850 | B28: Line Transformers | G28: 0 | H28: 0 | I28: 0 | J28: 0 | L28: 0 | M28: 0 | O28: 0
A29: 1855 | B29: Services (Overhead & Underground) | G29: 0 | H29: 0 | I29: 0 | J29: 0 | L29: 0 | M29: 0 | O29: 0
A30: 1860 | B30: Meters | G30: 0 | H30: 0 | I30: 0 | J30: 0 | L30: 0 | M30: 0 | O30: 0
A31: 1860 | B31: Meters (Smart Meters) | G31: 0 | H31: 0 | I31: 0 | J31: 0 | L31: 0 | M31: 0 | O31: 0
A32: 1905 | B32: Land | G32: 0 | H32: 0 | I32: 0 | J32: 0 | L32: 0 | M32: 0 | O32: 0
A33: 1908 | B33: Buildings & Fixtures | G33: 0 | H33: 0 | I33: 0 | J33: 0 | L33: 0 | M33: 0 | O33: 0
A34: 1910 | B34: Leasehold Improvements | G34: 0 | H34: 0 | I34: 0 | J34: 0 | L34: 0 | M34: 0 | O34: 0
A35: 1915 | B35: Office Furniture & Equipment (10 years) | G35: 0 | H35: 0 | I35: 0 | J35: 0 | L35: 0 | M35: 0 | O35: 0
A36: 1915 | B36: Office Furniture & Equipment (5 years) | G36: 0 | H36: 0 | I36: 0 | J36: 0 | L36: 0 | M36: 0 | O36: 0
A37: 1920 | B37: Computer Equipment - Hardware | G37: 0 | H37: 0 | I37: 0 | J37: 0 | L37: 0 | M37: 0 | O37: 0
A38: 1920 | B38: Computer Equip.-Hardware(Post Mar. 22/04) | G38: 0 | H38: 0 | I38: 0 | J38: 0 | L38: 0 | M38: 0 | O38: 0
A39: 1920 | B39: Computer Equip.-Hardware(Post Mar. 19/07) | G39: 0 | H39: 0 | I39: 0 | J39: 0 | L39: 0 | M39: 0 | O39: 0
A40: 1930 | B40: Transportation Equipment | G40: 0 | H40: 0 | I40: 0 | J40: 0 | L40: 0 | M40: 0 | O40: 0
A41: 1935 | B41: Stores Equipment | G41: 0 | H41: 0 | I41: 0 | J41: 0 | L41: 0 | M41: 0 | O41: 0
A42: 1940 | B42: Tools, Shop & Garage Equipment | G42: 0 | H42: 0 | I42: 0 | J42: 0 | L42: 0 | M42: 0 | O42: 0
A43: 1945 | B43: Measurement & Testing Equipment | G43: 0 | H43: 0 | I43: 0 | J43: 0 | L43: 0 | M43: 0 | O43: 0
A44: 1950 | B44: Power Operated Equipment | G44: 0 | H44: 0 | I44: 0 | J44: 0 | L44: 0 | M44: 0 | O44: 0
A45: 1955 | B45: Communications Equipment | G45: 0 | H45: 0 | I45: 0 | J45: 0 | L45: 0 | M45: 0 | O45: 0
A46: 1955 | B46: Communication Equipment (Smart Meters) | G46: 0 | H46: 0 | I46: 0 | J46: 0 | L46: 0 | M46: 0 | O46: 0
A47: 1960 | B47: Miscellaneous Equipment | G47: 0 | H47: 0 | I47: 0 | J47: 0 | L47: 0 | M47: 0 | O47: 0
A48: 1970 | B48: Load Management Controls - Customer Premises | G48: 0 | H48: 0 | I48: 0 | J48: 0 | L48: 0 | M48: 0 | O48: 0
A49: 1975 | B49: Load Management Controls Utility Premises | G49: 0 | H49: 0 | I49: 0 | J49: 0 | L49: 0 | M49: 0 | O49: 0
A50: 1980 | B50: System Supervisor Equipment | G50: 0 | H50: 0 | I50: 0 | J50: 0 | L50: 0 | M50: 0 | O50: 0
A51: 1985 | B51: Miscellaneous Fixed Assets | G51: 0 | H51: 0 | I51: 0 | J51: 0 | L51: 0 | M51: 0 | O51: 0
A52: 1990 | B52: Other Tangible Property | G52: 0 | H52: 0 | I52: 0 | J52: 0 | L52: 0 | M52: 0 | O52: 0
A53: 1995 | B53: Contributions & Grants | G53: 0 | H53: 0 | I53: 0 | J53: 0 | L53: 0 | M53: 0 | O53: 0
A54: etc. | G54: 0 | H54: 0 | I54: 0 | J54: 0 | L54: 0 | M54: 0 | O54: 0
G55: 0 | H55: 0 | I55: 0 | J55: 0 | L55: 0 | M55: 0 | O55: 0
B56: Total | C56: =SUM(C16:C55) -> 0 | D56: =SUM(D16:D55) -> 0 | H56: =SUM(H16:H55) -> 0 | I56: 0 | J56: 0 | K56: 0 | L56: 0 | M56: 0 | N56: =SUM(N16:N55) -> 0 | O56: 0
A58: Notes:
A60: 1 | B60: Board policy of the "half-year" rule - the applicant must ensure that additions in the year attract a half-year depreciation expense in the first year. Deviations from this standard practice must be supported in the application.
A61: 2 | B61: The applicant must provide an explanation of material variances in evidence.
A62: 3 | B62: The applicant should ensure that the years for new additions of assets are the asset useful lives determined by management in accordance with the Board's regulatory accounting policies. The capitalization and depreciation expense accounting changes should be implemented consistent with the Board’s regulatory accounting policies as set out for modified IFRS as contained in the Report of the Board, Transition to International Financial Reporting Standards, EB-2008-0408, the Kinectrics Report, and the Revised 2012 Accounting Procedures Handbook for Electricity Distributors (“APH”).
A63: 4 | B63: A recalculation should be performed to determine the average remaining life of opening balance of assets (i.e. excluding 2013 additions) under the change in policies under CGAAP. For example, Asset A had a useful life of 20 years under CGAAP without the change in policies. On January 1, 2013, the effective date of the changes in poliices, Asset A was 3 years depreciated. As a result, Asset A would have a remaining service life of 17 years (20 years less 3 years) as of January 1, 2013. Due to making the change in policies under CGAAP, management re-assessed the asset useful lives and concluded that the revised useful life of Asset A is now 30 years. Therefore, the average remaining useful life of the opening balance of Asset A is determined to be 27 years (30 years less 3 years) under the revised CGAAP as of January 1, 2013.
A64: 5 | B64: NBV must exclude assets still on the books but which have been fully amortized or depreciated.
A65: 6 | B65: This column refers to the calculated full year depreciation but excludes the depreciation expense on assets fully depreciated during the year. This column is used for the purpose of calculating depreciation expense in the following year on the next worksheet.
A67: General: | B67: Applicants must provide a breakdown of depreciation and amortization expense in the above format for all relevant accounts. Asset Retirement Obligations (AROs), depreciation and accretion expense should be disclosed separately consistent with the Notes of historical Audited Financial Statements.

Sheet App.2-CU_NewCGAAP_DepExp_2014 (hidden)
I1: File Number: | J1: =EBNUMBER -> EB-2013-0116
I2: Exhibit:
I3: Tab:
I4: Schedule:
I5: Page:
I7: Date:
A9: Appendix 2-CU
A10: Depreciation and Amortization Expense
A11: Assumes the applicant made capitalization and depreciation expense accounting policy changes under CGAAP effective January 1, 2013
C12: Year | D12: 2014 | E12: Revised CGAAP or ASPE - CGAAP or ASPE with the changes to the policies
A14: Account | B14: Description | C14: Additions | D14: Years (new additions only) | E14: Depreciation Rate on New Additions | F14: 2014 Depreciation Expense 1 | G14: 2014 Depreciation Expense per Appendix 2-B Fixed Assets, Column K (l) | H14: Variance 2
C15: (d) | D15: (f) | E15: (g) = 1 / (f) | F15: (h)=2013 Full Year Depreciation + ((d)*0.5)/(f) | H15: (m) = (h) - (l)
A16: 1611 | B16: Computer Software (Formally known as Account 1925) | E16: =IF(D16=0,0,1/D16) -> 0 | F16: =IF(D16=0,'App.2-CT_NewCGAAP_DepExp_2013'!O16,+'App.2-CT_NewCGAAP_DepExp_2013'!O16+((C16*0.5)/D16)) -> 0 | H16: =IF(ISERROR(+F16-G16), 0, +F16-G16) -> 0
A17: 1612 | B17: Land Rights (Formally known as Account 1906) | E17: 0 | F17: =IF(D17=0,'App.2-CT_NewCGAAP_DepExp_2013'!O17,+'App.2-CT_NewCGAAP_DepExp_2013'!O17+((C17*0.5)/D17)) -> 0 | H17: 0
A18: 1805 | B18: Land | E18: 0 | F18: =IF(D18=0,'App.2-CT_NewCGAAP_DepExp_2013'!O18,+'App.2-CT_NewCGAAP_DepExp_2013'!O18+((C18*0.5)/D18)) -> 0 | H18: 0
A19: 1808 | B19: Buildings | E19: 0 | F19: =IF(D19=0,'App.2-CT_NewCGAAP_DepExp_2013'!O19,+'App.2-CT_NewCGAAP_DepExp_2013'!O19+((C19*0.5)/D19)) -> 0 | H19: 0
A20: 1810 | B20: Leasehold Improvements | E20: 0 | F20: =IF(D20=0,'App.2-CT_NewCGAAP_DepExp_2013'!O20,+'App.2-CT_NewCGAAP_DepExp_2013'!O20+((C20*0.5)/D20)) -> 0 | H20: 0
A21: 1815 | B21: Transformer Station Equipment >50 kV | E21: 0 | F21: =IF(D21=0,'App.2-CT_NewCGAAP_DepExp_2013'!O21,+'App.2-CT_NewCGAAP_DepExp_2013'!O21+((C21*0.5)/D21)) -> 0 | H21: 0
A22: 1820 | B22: Distribution Station Equipment <50 kV | E22: 0 | F22: =IF(D22=0,'App.2-CT_NewCGAAP_DepExp_2013'!O22,+'App.2-CT_NewCGAAP_DepExp_2013'!O22+((C22*0.5)/D22)) -> 0 | H22: 0
A23: 1825 | B23: Storage Battery Equipment | E23: 0 | F23: =IF(D23=0,'App.2-CT_NewCGAAP_DepExp_2013'!O23,+'App.2-CT_NewCGAAP_DepExp_2013'!O23+((C23*0.5)/D23)) -> 0 | H23: 0
A24: 1830 | B24: Poles, Towers & Fixtures | E24: 0 | F24: =IF(D24=0,'App.2-CT_NewCGAAP_DepExp_2013'!O24,+'App.2-CT_NewCGAAP_DepExp_2013'!O24+((C24*0.5)/D24)) -> 0 | H24: 0
A25: 1835 | B25: Overhead Conductors & Devices | E25: 0 | F25: =IF(D25=0,'App.2-CT_NewCGAAP_DepExp_2013'!O25,+'App.2-CT_NewCGAAP_DepExp_2013'!O25+((C25*0.5)/D25)) -> 0 | H25: 0
A26: 1840 | B26: Underground Conduit | E26: 0 | F26: =IF(D26=0,'App.2-CT_NewCGAAP_DepExp_2013'!O26,+'App.2-CT_NewCGAAP_DepExp_2013'!O26+((C26*0.5)/D26)) -> 0 | H26: 0
A27: 1845 | B27: Underground Conductors & Devices | E27: 0 | F27: =IF(D27=0,'App.2-CT_NewCGAAP_DepExp_2013'!O27,+'App.2-CT_NewCGAAP_DepExp_2013'!O27+((C27*0.5)/D27)) -> 0 | H27: 0
A28: 1850 | B28: Line Transformers | E28: 0 | F28: =IF(D28=0,'App.2-CT_NewCGAAP_DepExp_2013'!O28,+'App.2-CT_NewCGAAP_DepExp_2013'!O28+((C28*0.5)/D28)) -> 0 | H28: 0
A29: 1855 | B29: Services (Overhead & Underground) | E29: 0 | F29: =IF(D29=0,'App.2-CT_NewCGAAP_DepExp_2013'!O29,+'App.2-CT_NewCGAAP_DepExp_2013'!O29+((C29*0.5)/D29)) -> 0 | H29: 0
A30: 1860 | B30: Meters | E30: 0 | F30: =IF(D30=0,'App.2-CT_NewCGAAP_DepExp_2013'!O30,+'App.2-CT_NewCGAAP_DepExp_2013'!O30+((C30*0.5)/D30)) -> 0 | H30: 0
A31: 1860 | B31: Meters (Smart Meters) | E31: 0 | F31: =IF(D31=0,'App.2-CT_NewCGAAP_DepExp_2013'!O31,+'App.2-CT_NewCGAAP_DepExp_2013'!O31+((C31*0.5)/D31)) -> 0 | H31: 0
A32: 1905 | B32: Land | E32: 0 | F32: =IF(D32=0,'App.2-CT_NewCGAAP_DepExp_2013'!O32,+'App.2-CT_NewCGAAP_DepExp_2013'!O32+((C32*0.5)/D32)) -> 0 | H32: 0
A33: 1908 | B33: Buildings & Fixtures | E33: 0 | F33: =IF(D33=0,'App.2-CT_NewCGAAP_DepExp_2013'!O33,+'App.2-CT_NewCGAAP_DepExp_2013'!O33+((C33*0.5)/D33)) -> 0 | H33: 0
A34: 1910 | B34: Leasehold Improvements | E34: 0 | F34: =IF(D34=0,'App.2-CT_NewCGAAP_DepExp_2013'!O34,+'App.2-CT_NewCGAAP_DepExp_2013'!O34+((C34*0.5)/D34)) -> 0 | H34: 0
A35: 1915 | B35: Office Furniture & Equipment (10 years) | E35: 0 | F35: =IF(D35=0,'App.2-CT_NewCGAAP_DepExp_2013'!O35,+'App.2-CT_NewCGAAP_DepExp_2013'!O35+((C35*0.5)/D35)) -> 0 | H35: 0
A36: 1915 | B36: Office Furniture & Equipment (5 years) | E36: 0 | F36: =IF(D36=0,'App.2-CT_NewCGAAP_DepExp_2013'!O36,+'App.2-CT_NewCGAAP_DepExp_2013'!O36+((C36*0.5)/D36)) -> 0 | H36: 0
A37: 1920 | B37: Computer Equipment - Hardware | E37: 0 | F37: =IF(D37=0,'App.2-CT_NewCGAAP_DepExp_2013'!O37,+'App.2-CT_NewCGAAP_DepExp_2013'!O37+((C37*0.5)/D37)) -> 0 | H37: 0
A38: 1920 | B38: Computer Equip.-Hardware(Post Mar. 22/04) | E38: 0 | F38: =IF(D38=0,'App.2-CT_NewCGAAP_DepExp_2013'!O38,+'App.2-CT_NewCGAAP_DepExp_2013'!O38+((C38*0.5)/D38)) -> 0 | H38: 0
A39: 1920 | B39: Computer Equip.-Hardware(Post Mar. 19/07) | E39: 0 | F39: =IF(D39=0,'App.2-CT_NewCGAAP_DepExp_2013'!O39,+'App.2-CT_NewCGAAP_DepExp_2013'!O39+((C39*0.5)/D39)) -> 0 | H39: 0
A40: 1930 | B40: Transportation Equipment | E40: 0 | F40: =IF(D40=0,'App.2-CT_NewCGAAP_DepExp_2013'!O40,+'App.2-CT_NewCGAAP_DepExp_2013'!O40+((C40*0.5)/D40)) -> 0 | H40: 0
A41: 1935 | B41: Stores Equipment | E41: 0 | F41: =IF(D41=0,'App.2-CT_NewCGAAP_DepExp_2013'!O41,+'App.2-CT_NewCGAAP_DepExp_2013'!O41+((C41*0.5)/D41)) -> 0 | H41: 0
A42: 1940 | B42: Tools, Shop & Garage Equipment | E42: 0 | F42: =IF(D42=0,'App.2-CT_NewCGAAP_DepExp_2013'!O42,+'App.2-CT_NewCGAAP_DepExp_2013'!O42+((C42*0.5)/D42)) -> 0 | H42: 0
A43: 1945 | B43: Measurement & Testing Equipment | E43: 0 | F43: =IF(D43=0,'App.2-CT_NewCGAAP_DepExp_2013'!O43,+'App.2-CT_NewCGAAP_DepExp_2013'!O43+((C43*0.5)/D43)) -> 0 | H43: 0
A44: 1950 | B44: Power Operated Equipment | E44: 0 | F44: =IF(D44=0,'App.2-CT_NewCGAAP_DepExp_2013'!O44,+'App.2-CT_NewCGAAP_DepExp_2013'!O44+((C44*0.5)/D44)) -> 0 | H44: 0
A45: 1955 | B45: Communications Equipment | E45: 0 | F45: =IF(D45=0,'App.2-CT_NewCGAAP_DepExp_2013'!O45,+'App.2-CT_NewCGAAP_DepExp_2013'!O45+((C45*0.5)/D45)) -> 0 | H45: 0
A46: 1955 | B46: Communication Equipment (Smart Meters) | E46: 0 | F46: =IF(D46=0,'App.2-CT_NewCGAAP_DepExp_2013'!O46,+'App.2-CT_NewCGAAP_DepExp_2013'!O46+((C46*0.5)/D46)) -> 0 | H46: 0
A47: 1960 | B47: Miscellaneous Equipment | E47: 0 | F47: =IF(D47=0,'App.2-CT_NewCGAAP_DepExp_2013'!O47,+'App.2-CT_NewCGAAP_DepExp_2013'!O47+((C47*0.5)/D47)) -> 0 | H47: 0
A48: 1970 | B48: Load Management Controls - Customer Premises | E48: 0 | F48: =IF(D48=0,'App.2-CT_NewCGAAP_DepExp_2013'!O48,+'App.2-CT_NewCGAAP_DepExp_2013'!O48+((C48*0.5)/D48)) -> 0 | H48: 0
A49: 1975 | B49: Load Management Controls Utility Premises | E49: 0 | F49: =IF(D49=0,'App.2-CT_NewCGAAP_DepExp_2013'!O49,+'App.2-CT_NewCGAAP_DepExp_2013'!O49+((C49*0.5)/D49)) -> 0 | H49: 0
A50: 1980 | B50: System Supervisor Equipment | E50: 0 | F50: =IF(D50=0,'App.2-CT_NewCGAAP_DepExp_2013'!O50,+'App.2-CT_NewCGAAP_DepExp_2013'!O50+((C50*0.5)/D50)) -> 0 | H50: 0
A51: 1985 | B51: Miscellaneous Fixed Assets | E51: 0 | F51: =IF(D51=0,'App.2-CT_NewCGAAP_DepExp_2013'!O51,+'App.2-CT_NewCGAAP_DepExp_2013'!O51+((C51*0.5)/D51)) -> 0 | H51: 0
A52: 1990 | B52: Other Tangible Property | E52: 0 | F52: =IF(D52=0,'App.2-CT_NewCGAAP_DepExp_2013'!O52,+'App.2-CT_NewCGAAP_DepExp_2013'!O52+((C52*0.5)/D52)) -> 0 | H52: 0
A53: 1995 | B53: Contributions & Grants | E53: 0 | F53: =IF(D53=0,'App.2-CT_NewCGAAP_DepExp_2013'!O53,+'App.2-CT_NewCGAAP_DepExp_2013'!O53+((C53*0.5)/D53)) -> 0 | H53: 0
A54: etc. | E54: 0 | F54: =IF(D54=0,'App.2-CT_NewCGAAP_DepExp_2013'!O54,+'App.2-CT_NewCGAAP_DepExp_2013'!O54+((C54*0.5)/D54)) -> 0 | H54: 0
E55: 0 | F55: =IF(D55=0,'App.2-CT_NewCGAAP_DepExp_2013'!O55,+'App.2-CT_NewCGAAP_DepExp_2013'!O55+((C55*0.5)/D55)) -> 0 | H55: 0
B56: Total | C56: =SUM(C16:C55) -> 0 | F56: =SUM(F16:F55) -> 0 | G56: =SUM(G16:G55) -> 0 | H56: =SUM(H16:H55) -> 0
B57: Total Depreciation expense to be included in the test year revenue requirement | F57: =+F56 -> 0
A59: Notes:
A60: 1 | B60: Board policy of the "half-year" rule - the applicant must ensure that additions in the year attract a half-year depreciation expense in the first year. Deviations from this standard practice must be supported in the application.
A61: 2 | B61: The applicant must provide an explanation of material variances in evidence.
A63: General: | B63: Applicants must provide a breakdown of depreciation and amortization expense in the above format for all relevant accounts. Asset Retirement Obligations (AROs), depreciation and accretion expense should be disclosed separately consistent with the Notes of historical Audited Financial Statements.

Sheet App.2-CV_USGAAP_DepExp (hidden)
K1: File Number: | L1: =EBNUMBER -> EB-2013-0116
K2: Exhibit:
K3: Tab:
K4: Schedule:
K5: Page:
K7: Date:
A9: Appendix 2-CV
A10: Depreciation and Amortization Expense
A11: Assumes the applicant adopted USGAAP for financial reporting purposes. For applicants adopting USGAAP for financial reporting purposes January 1, 2012, applicants must complete 5 versions of the table below (2011 CGAAP, 2011 USGAAP, 2012 USGAAP, 2013 USGAAP, and 2014 USGAAP). For applicants adopting USGAAP for financial reporting purposes January 1, 2013, applicants must complete 4 versions of the table below (2012 CGAAP, 2012 USGAAP, 2013 USGAAP, and 2014 USGAAP). For applicants adopting USGAAP for financial reporting purposes January 1, 2014, applicants must complete 4 versions of the table below (2012 CGAAP, 2013 CGAAP, 2013 USGAAP, and 2014 USGAAP).
B12: Year | D12: USGAAP
A14: Account | B14: Description | C14: Opening Regulatory Gross PP&E | D14: Less Fully Depreciated | E14: Net for Depreciation | F14: Additions | G14: Total for Depreciation | H14: Years | I14: Depreciation Rate | J14: Depreciation Expense | K14: Depreciation Expense per Appendix 2-B Fixed Assets, Column K (l) | L14: Variance 2
C15: (a) | D15: (b) | E15: (c) | F15: (d) | G15: (e) = (c) + ½ x (d) 1 | H15: (f) | I15: (g) = 1 / (f) | J15: (h) = (e) / (f) | L15: (m) = (h) - (l)
A16: 1611 | B16: Computer Software (Formally known as Account 1925) | E16: =C16-D16 -> 0 | G16: =E16+0.5*F16 -> 0 | I16: =IF(H16=0,0,1/H16) -> 0 | J16: =IF(H16=0,0,G16/H16) -> 0 | L16: =IF(ISERROR(+J16-K16), 0, +J16-K16) -> 0
A17: 1612 | B17: Land Rights (Formally known as Account 1906) | E17: =C17-D17 -> 0 | G17: =E17+0.5*F17 -> 0 | I17: 0 | J17: 0 | L17: 0
A18: 1805 | B18: Land | E18: 0 | G18: 0 | I18: 0 | J18: 0 | L18: 0
A19: 1808 | B19: Buildings | E19: 0 | G19: 0 | I19: 0 | J19: 0 | L19: 0
A20: 1810 | B20: Leasehold Improvements | E20: 0 | G20: 0 | I20: 0 | J20: 0 | L20: 0
A21: 1815 | B21: Transformer Station Equipment >50 kV | E21: 0 | G21: 0 | I21: 0 | J21: 0 | L21: 0
A22: 1820 | B22: Distribution Station Equipment <50 kV | E22: 0 | G22: 0 | I22: 0 | J22: 0 | L22: 0
A23: 1825 | B23: Storage Battery Equipment | E23: 0 | G23: 0 | I23: 0 | J23: 0 | L23: 0
A24: 1830 | B24: Poles, Towers & Fixtures | E24: 0 | G24: 0 | I24: 0 | J24: 0 | L24: 0
A25: 1835 | B25: Overhead Conductors & Devices | E25: 0 | G25: 0 | I25: 0 | J25: 0 | L25: 0
A26: 1840 | B26: Underground Conduit | E26: 0 | G26: 0 | I26: 0 | J26: 0 | L26: 0
A27: 1845 | B27: Underground Conductors & Devices | E27: 0 | G27: 0 | I27: 0 | J27: 0 | L27: 0
A28: 1850 | B28: Line Transformers | E28: 0 | G28: 0 | I28: 0 | J28: 0 | L28: 0
A29: 1855 | B29: Services (Overhead & Underground) | E29: 0 | G29: 0 | I29: 0 | J29: 0 | L29: 0
A30: 1860 | B30: Meters | E30: 0 | G30: 0 | I30: 0 | J30: 0 | L30: 0
A31: 1860 | B31: Meters (Smart Meters) | E31: 0 | G31: 0 | I31: 0 | J31: 0 | L31: 0
A32: 1905 | B32: Land | E32: 0 | G32: 0 | I32: 0 | J32: 0 | L32: 0
A33: 1908 | B33: Buildings & Fixtures | E33: 0 | G33: 0 | I33: 0 | J33: 0 | L33: 0
A34: 1910 | B34: Leasehold Improvements | E34: 0 | G34: 0 | I34: 0 | J34: 0 | L34: 0
A35: 1915 | B35: Office Furniture & Equipment (10 years) | E35: 0 | G35: 0 | I35: 0 | J35: 0 | L35: 0
A36: 1915 | B36: Office Furniture & Equipment (5 years) | E36: 0 | G36: 0 | I36: 0 | J36: 0 | L36: 0
A37: 1920 | B37: Computer Equipment - Hardware | E37: 0 | G37: 0 | I37: 0 | J37: 0 | L37: 0
A38: 1920 | B38: Computer Equip.-Hardware(Post Mar. 22/04) | E38: 0 | G38: 0 | I38: 0 | J38: 0 | L38: 0
A39: 1920 | B39: Computer Equip.-Hardware(Post Mar. 19/07) | E39: 0 | G39: 0 | I39: 0 | J39: 0 | L39: 0
A40: 1930 | B40: Transportation Equipment | E40: 0 | G40: 0 | I40: 0 | J40: 0 | L40: 0
A41: 1935 | B41: Stores Equipment | E41: 0 | G41: 0 | I41: 0 | J41: 0 | L41: 0
A42: 1940 | B42: Tools, Shop & Garage Equipment | E42: 0 | G42: 0 | I42: 0 | J42: 0 | L42: 0
A43: 1945 | B43: Measurement & Testing Equipment | E43: 0 | G43: 0 | I43: 0 | J43: 0 | L43: 0
A44: 1950 | B44: Power Operated Equipment | E44: 0 | G44: 0 | I44: 0 | J44: 0 | L44: 0
A45: 1955 | B45: Communications Equipment | E45: 0 | G45: 0 | I45: 0 | J45: 0 | L45: 0
A46: 1955 | B46: Communication Equipment (Smart Meters) | E46: 0 | G46: 0 | I46: 0 | J46: 0 | L46: 0
A47: 1960 | B47: Miscellaneous Equipment | E47: 0 | G47: 0 | I47: 0 | J47: 0 | L47: 0
A48: 1970 | B48: Load Management Controls - Customer Premises | E48: 0 | G48: 0 | I48: 0 | J48: 0 | L48: 0
A49: 1975 | B49: Load Management Controls Utility Premises | E49: 0 | G49: 0 | I49: 0 | J49: 0 | L49: 0
A50: 1980 | B50: System Supervisor Equipment | E50: 0 | G50: 0 | I50: 0 | J50: 0 | L50: 0
A51: 1985 | B51: Miscellaneous Fixed Assets | E51: 0 | G51: 0 | I51: 0 | J51: 0 | L51: 0
A52: 1990 | B52: Other Tangible Property | E52: 0 | G52: 0 | I52: 0 | J52: 0 | L52: 0
A53: 1995 | B53: Contributions & Grants | E53: 0 | G53: 0 | I53: 0 | J53: 0 | L53: 0
A54: etc. | E54: 0 | G54: 0 | I54: 0 | J54: 0 | L54: 0
E55: 0 | G55: 0 | I55: 0 | J55: 0 | L55: 0
B56: Total | C56: =SUM(C16:C55) -> 0 | D56: =SUM(D16:D55) -> 0 | E56: =SUM(E16:E55) -> 0 | F56: 0 | G56: 0 | J56: =SUM(J16:J55) -> 0 | K56: =SUM(K16:K55) -> 0 | L56: =SUM(L16:L55) -> 0
A58: Notes:
A60: 1 | B60: Board policy of the "half-year" rule - the applicant must ensure that additions in the year attract a half-year depreciation expense in the first year. Deviations from this standard practice must be supported in the application.
A61: 2 | B61: The applicant must provide an explanation of material variances in evidence.
A64: General: | B64: Applicants must provide a breakdown of depreciation and amortization expense in the above format for all relevant accounts. Asset Retirement Obligations (AROs), depreciation and accretion expense should be disclosed separately consistent with the Notes of historical Audited Financial Statements.

Sheet App.2-DA_Overhead (hidden)
L1: File Number: | M1: =EBNUMBER -> EB-2013-0116
L2: Exhibit:
L3: Tab:
L4: Schedule:
L5: Page:
L7: Date:
A9: Appendix 2-DA
A10: Overhead Expense
A12: The following table should be completed based on the information requested below. An explanation should be provided for any blank entries. The entries should include overhead costs that are currently capitalized on self-constructed assets under MIFRS.
E13: (A) 1 | F13: (B) | G13: (C) | H13: (D) | I13: (E) 1 | J13: (F) | K13: (G)
A14: Nature of the Overhead Costs | E14: Dollar | F14: Dollar | G14: Dollar | H14: Dollar Impact - | I14: Dollar Impact - | J14: Directly | K14: Reasons why the overhead costs are allowed to be
E15: Impact on PP&E | F15: Impact on PP&E | G15: Impact on PP&E | H15: PP&E Variance | I15: PP&E Variance | J15: Attributable? | K15: capitalized under MIFRS or an alternate accounting
E16: Historic Year | F16: Bridge Year | G16: Test Year | H16: Test versus Bridge | I16: Test versus Historic | J16: (Y/N) | K16: standard given limitations on capitalized overhead
A17: employee benefits | H17: =+G17-F17 -> 0 | I17: =+G17-E17 -> 0
A18: costs of site preparation | H18: 0 | I18: 0
A19: initial delivery and handling costs | H19: 0 | I19: 0
A20: costs of testing whether the asset is functioning properly | H20: 0 | I20: 0
A21: professional fees | H21: 0 | I21: 0
H22: 0 | I22: 0
A23: costs of opening a new facility | H23: 0 | I23: 0
A24: costs of introducing a new product or service (including costs of advertising and promotional activities) | H24: 0 | I24: 0
A25: costs of conducting business in a new location or with a new class of customer (including costs of staff training) | H25: 0 | I25: 0
A26: administration and other general overhead costs | H26: 0 | I26: 0
H27: 0 | I27: 0
H28: 0 | I28: 0
H29: 0 | I29: 0
A30: Insert description of additional item(s) and new rows if needed. | H30: 0 | I30: 0
A31: Total | E31: =SUM(E17:E30) -> 0 | F31: =SUM(F17:F30) -> 0 | G31: =SUM(G17:G30) -> 0 | H31: =SUM(H17:H30) -> 0 | I31: =SUM(I17:I30) -> 0
A34: The following table should be completed based on the information requested below. An explanation should be provided for any blank entries. The entries should include overhead costs that were capitalized on self-constructed assets under CGAAP but are no longer capitalized under MIFRS or an alternate accounting standard and are included in OM&A.
E35: (A) 1 | F35: (B) | G35: (C) | H35: (D) | I35: (E) 1 | J35: (F) | K35: (G)
A36: Nature of the Overhead Costs | E36: Dollar | F36: Dollar | G36: Dollar | H36: Dollar Impact - | I36: Dollar Impact - | J36: Directly | K36: Reasons why the overhead costs are not allowed to be
E37: Impact on OM&A | F37: Impact on OM&A | G37: Impact on OM&A | H37: OM&A Variance | I37: OM&A Variance | J37: Attributable? | K37: capitalized under MIFRS or an alternate accounting
E38: Historic Year | F38: Bridge Year | G38: Test Year | H38: Test versus Bridge | I38: Test versus Historic | J38: (Y/N) | K38: standard given limitations on capitalized overhead
A39: employee benefits | H39: =+G39-F39 -> 0 | I39: =+G39-E39 -> 0
A40: costs of site preparation | H40: =+G40-F40 -> 0 | I40: =+G40-E40 -> 0
A41: initial delivery and handling costs | H41: =+G41-F41 -> 0 | I41: =+G41-E41 -> 0
A42: costs of testing whether the asset is functioning properly | H42: =+G42-F42 -> 0 | I42: =+G42-E42 -> 0
A43: professional fees | H43: =+G43-F43 -> 0 | I43: =+G43-E43 -> 0
A45: costs of opening a new facility | H45: =+G45-F45 -> 0 | I45: =+G45-E45 -> 0
A46: costs of introducing a new product or service (including costs of advertising and promotional activities) | H46: 0 | I46: 0
A47: costs of conducting business in a new location or with a new class of customer (including costs of staff training) | H47: 0 | I47: 0
A48: administration and other general overhead costs | H48: 0 | I48: 0
H49: 0 | I49: 0
H50: 0 | I50: 0
H51: 0 | I51: 0
A52: Insert description of additional item(s) and new rows if needed. | H52: 0 | I52: 0
A53: Total | E53: =SUM(E39:E52) -> 0 | F53: =SUM(F39:F52) -> 0 | G53: =SUM(G39:G52) -> 0 | H53: =SUM(H39:H52) -> 0 | I53: =SUM(I39:I52) -> 0
A55: Notes:
A56: 1 | B56: If the applicant chooses to adopt IFRS for financial reporting purposes in 2014, the applicant does not need to complete Columns A, E. If the applicant adopts IFRS for financial reporting purposes in 2012 or 2013, the applicant must complete all columns.

Sheet App.2-DB_Overhead
N1: Cambridge and North Dumfries Hydro Inc.
M2: File Number: | N2: =EBNUMBER -> EB-2013-0116
M3: Exhibit: | N3: 2 and 4
M4: Appendix: | N4: 2-9 / 4-5
M5: Page: | N5: 1 of 1
M7: Filed: | N7: October 1,2013
B9: Appendix 2-DB
B10: Overhead Expense
B12: The following table should be completed based on the information requested below. An explanation should be provided for any blank entries. The entries should include overhead costs that are currently capitalized on self-constructed assets under revised CGAAP or ASPE (with the changes in capitalization and depreciation expense policies).
F13: (A) | G13: (B) | H13: (C) | I13: (D) | J13: (E) | K13: (F) | L13: (G)
B14: Nature of the Overhead Costs | F14: Dollar | G14: Dollar | H14: Dollar | I14: Dollar Impact - | J14: Dollar Impact - | K14: Directly | L14: Reasons why the overhead costs are allowed to be
F15: Impact on PP&E | G15: Impact on PP&E | H15: Impact on PP&E | I15: PP&E Variance | J15: PP&E Variance | K15: Attributable? | L15: capitalized under CGAAP or ASPE (with the changes in
F16: Historic Year | G16: Bridge Year | H16: Test Year | I16: Test versus Bridge | J16: Test versus Historic | K16: (Y/N) | L16: policies) given limitations on capitalized overhead
B17: employee benefits | I17: =+H17-G17 -> 0 | J17: =+H17-F17 -> 0
B18: costs of site preparation | I18: 0 | J18: 0
B19: initial delivery and handling costs | I19: 0 | J19: 0
B20: costs of testing whether the asset is functioning properly | I20: 0 | J20: 0
B21: professional fees | I21: 0 | J21: 0
I22: 0 | J22: 0
B23: costs of opening a new facility | I23: 0 | J23: 0
B24: costs of introducing a new product or service (including costs of advertising and promotional activities) | I24: 0 | J24: 0
B25: costs of conducting business in a new location or with a new class of customer (including costs of staff training) | I25: 0 | J25: 0
B26: administration and other general overhead costs | I26: 0 | J26: 0
I27: 0 | J27: 0
I28: 0 | J28: 0
I29: 0 | J29: 0
B30: Insert description of additional item(s) and new rows if needed. | I30: 0 | J30: 0
B31: Total | F31: =SUM(F17:F30) -> 0 | G31: =SUM(G17:G30) -> 0 | H31: =SUM(H17:H30) -> 0 | I31: =SUM(I17:I30) -> 0 | J31: =SUM(J17:J30) -> 0
B34: The following table should be completed based on the information requested below. An explanation should be provided for any blank entries. The entries should include overhead costs that were capitalized on self-constructed assets under CGAAP but are no longer capitalized under revised CGAAP or ASPE (with the changes in capitalization and depreciation expense policies) and are included in OM&A.
F35: (A) | G35: (B) | H35: (C) | I35: (D) | J35: (E) | K35: (F) | L35: (G)
B36: Nature of the Overhead Costs | F36: Dollar | G36: Dollar | H36: Dollar | I36: Dollar Impact - | J36: Dollar Impact - | K36: Directly | L36: Reasons why the overhead costs are allowed to be
F37: Impact on OM&A | G37: Impact on OM&A | H37: Impact on OM&A | I37: OM&A Variance | J37: OM&A Variance | K37: Attributable? | L37: capitalized under CGAAP or ASPE (with the changes in
F38: Historic Year | G38: Bridge Year | H38: Test Year | I38: Test versus Bridge | J38: Test versus Historic | K38: (Y/N) | L38: policies) given limitations on capitalized overhead
B39: employee benefits - health and safety | F39: 226413 | G39: 258705 | H39: 281255 | I39: =+H39-G39 -> 22550 | J39: =+H39-F39 -> 54842 | K39: N
B40: costs of site preparation - removal costs | F40: 333253 | G40: 600835 | H40: 806208 | I40: =+H40-G40 -> 205373 | J40: =+H40-F40 -> 472955 | K40: N
B41: initial delivery and handling costs - stores | I41: =+H41-G41 -> 0 | J41: =+H41-F41 -> 0 | L41: Stores/purchasing /inventory costs that are directly attributable to a capital project are capitalized;otherwise such costs are expensed through OM&A
B42: costs of testing whether the asset is functioning properly | I42: =+H42-G42 -> 0 | J42: =+H42-F42 -> 0 | L42: If the testing of the asset is prior to installation,it is capitalized;otherwise such costs are expensed through OM&A
B43: professional fees | I43: =+H43-G43 -> 0 | J43: =+H43-F43 -> 0 | L43: Professional fees are capitalized if they specifically relate to a capital project;otherwise theyare expensed through OM&A
L44: N/A - no new facilities have been opened
B45: costs of opening a new facility | I45: =+H45-G45 -> 0 | J45: =+H45-F45 -> 0 | L45: N/A - no new products or services have been introduced
B46: costs of introducing a new product or service (including costs of advertising and promotional activities) | I46: 0 | J46: 0 | L46: N/A - no business in a new location has occurred and no new customer classes have been introduced
B47: costs of conducting business in a new location or with a new class of customer (including costs of staff training) | I47: 0 | J47: 0
B48: administration and other general overhead costs - municipal taxes | F48: 70581 | G48: 72652 | H48: 74832 | I48: 2180 | J48: 4251 | K48: N
B49: Building expense | F49: 131135 | G49: 172913 | H49: 186368 | I49: 13455 | J49: 55233 | K49: N
I50: 0 | J50: 0
I51: 0 | J51: 0
B52: Insert description of additional item(s) and new rows if needed. | I52: 0 | J52: 0
B53: Total | F53: =SUM(F39:F52) -> 761382 | G53: =SUM(G39:G52) -> 1105105 | H53: =SUM(H39:H52) -> 1348663 | I53: =SUM(I39:I52) -> 243558 | J53: =SUM(J39:J52) -> 587281

Sheet App.2-EA_PP&E Deferral Account (hidden)
H1: File Number: | I1: =EBNUMBER -> EB-2013-0116
H2: Exhibit:
H3: Tab:
H4: Schedule:
H5: Page:
H7: Date:
A9: Appendix 2-EA
A10: Account 1575 - IFRS-CGAAP Transitional PP&E Amounts
A11: 2012 Adopters of IFRS for Financial Reporting Purposes
A13: For applicants that adopt IFRS on January 1, 2012 for financial reporting purposes
A15: Note: this sheet should be filled out if the applicant adopts IFRS for its financial reporting purpose as of January 1, 2012.
B17: 2010 Rebasing Year | C17: 2011 | D17: 2012 | E17: 2013 | F17: 2014 Rebasing Year | G17: 2015 | H17: 2016 | I17: 2017 | J17: 2018
A18: Reporting Basis | B18: CGAAP | C18: IRM | D18: IRM | E18: IRM | F18: MIFRS | G18: IRM | H18: IRM | I18: IRM | J18: IRM
A19: Forecast vs. Actual Used in Rebasing Year | B19: Forecast | C19: Actual | D19: Actual | E19: Forecast | F19: Forecast
C20: $ | D20: $ | E20: $ | F20: $ | G20: $ | H20: $ | I20: $ | J20: $
A21: PP&E Values under CGAAP
A22: Opening net PP&E - Note 1 | D22: =+C25 -> 0 | E22: =+D25 -> 0
A23: Net Additions - Note 4
A24: Net Depreciation (amounts should be negative) - Note 4
A25: Closing net PP&E (1) | C25: =C22+C23+C24 -> 0 | D25: =D22+D23+D24 -> 0 | E25: =E22+E23+E24 -> 0
A27: PP&E Values under MIFRS (Starts from 2011, the transition year)
A28: Opening net PP&E - Note 1 | D28: =+C31 -> 0 | E28: =+D31 -> 0
A29: Net Additions - Note 4
A30: Net Depreciation (amounts should be negative) - Note 4
A31: Closing net PP&E (2) | C31: =SUM(C28:C30) -> 0 | D31: =SUM(D28:D30) -> 0 | E31: =SUM(E28:E30) -> 0
A33: Difference in Closing net PP&E, CGAAP vs. MIFRS | C33: =C25-C31 -> 0 | D33: =D25-D31 -> 0 | E33: =E25-E31 -> 0
A36: Effect on Deferral and Variance Account Rate Riders
A37: Closing balance in deferral account | F37: =IF(ISERROR(E33), 0, E33) -> 0 | H37: WACC
A38: Return on Rate Base Associated with deferred PP&E balance at WACC - Note 2 | F38: =E33*I37*I38 -> 0 | G38: # of years of rate rider disposition period
A39: Amount included in Deferral and Variance Account Rate Rider Calculation | F39: =F37+F38 -> 0
A41: Notes:
A42: 1 For an applicant that adopts IFRS on January 1, 2012, the PP&E values as of January 1, 2011 under both CGAAP and MIFRS should be the same.
A43: 2 Return on rate base associated with deferred balance is calculated as:
A44: the deferral account opening balance as of 2014 rebasing year x WACC X # of years of rate rider disposition period
A45: * Please note that the calculation should be adjusted once WACC is updated and finalized in the rate application.
A46: 3 The PP&E deferral account is cleared by including the total balance in the deferral and variance account rate rider calculation.
A47: 4 Net additions are additions net of disposals; Net depreciation is additions to depreciation net of disposals.

Sheet App.2-EB_PP&E Deferral Account (hidden)
H1: File Number: | I1: =EBNUMBER -> EB-2013-0116
H2: Exhibit:
H3: Tab:
H4: Schedule:
H5: Page:
H7: Date:
A9: Appendix 2-EB
A10: Account 1575 - IFRS-CGAAP Transitional PP&E Amounts
A11: 2013 Adopters of IFRS for Financial Reporting Purposes
A13: For applicants that adopt IFRS on January 1, 2013 for financial reporting purposes
A15: Note: this sheet should be filled out if the applicant adopts IFRS for its financial reporting purpose as of January 1, 2013.
B17: 2010 Rebasing Year | C17: 2011 | D17: 2012 | E17: 2013 | F17: 2014 Rebasing Year | G17: 2015 | H17: 2016 | I17: 2017 | J17: 2018
A18: Reporting Basis | B18: CGAAP | C18: IRM | D18: IRM | E18: IRM | F18: MIFRS | G18: IRM | H18: IRM | I18: IRM | J18: IRM
A19: Forecast vs. Actual Used in Rebasing Year | B19: Forecast | C19: Actual | D19: Actual | E19: Forecast | F19: Forecast
D20: $ | E20: $ | F20: $ | G20: $ | H20: $ | I20: $ | J20: $
A21: PP&E Values under CGAAP
A22: Opening net PP&E - Note 1 | E22: =+D25 -> 0
A23: Net Additions - Note 4
A24: Net Depreciation (amounts should be negative) - Note 4
A25: Closing net PP&E (1) | D25: =D22+D23+D24 -> 0 | E25: =E22+E23+E24 -> 0
A27: PP&E Values under MIFRS (Starts from 2012, the transition year)
A28: Opening net PP&E - Note 1 | E28: =+D31 -> 0
A29: Net Additions - Note 4
A30: Net Depreciation (amounts should be negative) - Note 4
A31: Closing net PP&E (2) | D31: =SUM(D28:D30) -> 0 | E31: =SUM(E28:E30) -> 0
A33: Difference in Closing net PP&E, CGAAP vs. MIFRS | D33: =D25-D31 -> 0 | E33: =E25-E31 -> 0
A36: Effect on Deferral and Variance Account Rate Riders
A37: Closing balance in deferral account | F37: =IF(ISERROR(E33), 0, E33) -> 0 | H37: WACC
A38: Return on Rate Base Associated with deferred PP&E balance at WACC - Note 2 | F38: =E33*I37*I38 -> 0 | G38: # of years of rate rider disposition period
A39: Amount included in Deferral and Variance Account Rate Rider Calculation | F39: =F37+F38 -> 0
A41: Notes:
A42: 1 For an applicant that adopts IFRS on January 1, 2013, the PP&E values as of January 1, 2012 under both CGAAP and MIFRS should be the same.
A43: 2 Return on rate base associated with deferred balance is calculated as:
A44: the deferral account opening balance as of 2014 rebasing year x WACC X # of years of rate rider disposition period
A45: * Please note that the calculation should be adjusted once WACC is updated and finalized in the rate application.
A46: 3 The PP&E deferral account is cleared by including the total balance in the deferral and variance account rate rider calculation.
A47: 4 Net additions are additions net of disposals; Net depreciation is additions to depreciation net of disposals.

Sheet App.2-EC_PP&E Deferral Account (hidden)
H1: File Number: | I1: =EBNUMBER -> EB-2013-0116
H2: Exhibit:
H3: Tab:
H4: Schedule:
H5: Page:
H7: Date:
A9: Appendix 2-EC
A10: Account 1575 - IFRS-CGAAP Transitional PP&E Amounts
A11: 2014 Adopters of IFRS for Financial Reporting Purposes
A13: For applicants that adopt IFRS on January 1, 2014 for financial reporting purposes
A15: Note: this sheet should be filled out if the applicant adopts IFRS for its financial reporting purpose as of January 1, 2014.
B17: 2010 Rebasing Year | C17: 2011 | D17: 2012 | E17: 2013 | F17: 2014 Rebasing Year | G17: 2015 | H17: 2016 | I17: 2016 | J17: 2017
A18: Reporting Basis | B18: CGAAP | C18: IRM | D18: IRM | E18: IRM | F18: MIFRS | G18: IRM | H18: IRM | I18: IRM | J18: IRM
A19: Forecast vs. Actual Used in Rebasing Year | B19: Forecast | C19: Actual | D19: Actual | E19: Forecast | F19: Forecast
E20: $ | F20: $ | G20: $ | H20: $ | I20: $ | J20: $
A21: PP&E Values under CGAAP
A22: Opening net PP&E - Note 1
A23: Net Additions - Note 4
A24: Net Depreciation (amounts should be negative) - Note 4
A25: Closing net PP&E (1) | E25: =SUM(E22:E24) -> 0
A27: PP&E Values under MIFRS (Starts from 2013, the transition year)
A28: Opening net PP&E - Note 1
A29: Net Additions - Note 4
A30: Net Depreciation (amounts should be negative) - Note 4
A31: Closing net PP&E (2) | E31: =SUM(E28:E30) -> 0
A33: Difference in Closing net PP&E, CGAAP vs. MIFRS | E33: =E25-E31 -> 0
A36: Effect on Deferral and Variance Account Rate Riders
A37: Closing balance in deferral account | F37: =IF(ISERROR(E33), 0, E33) -> 0 | H37: WACC
A38: Return on Rate Base Associated with deferred PP&E balance at WACC - Note 2 | F38: =E33*I37*I38 -> 0 | G38: # of years of rate rider disposition period
A39: Amount included in Deferral and Variance Account Rate Rider Calculation | F39: =F37+F38 -> 0
A41: Notes:
A42: 1 For an applicant that adopts IFRS on January 1, 2014, the PP&E values as of January 1, 2013 under both CGAAP and MIFRS should be the same.
A43: 2 Return on rate base associated with deferred balance is calculated as:
A44: the deferral account opening balance as of 2014 rebasing year x WACC X # of years of rate rider disposition period
A45: * Please note that the calculation should be adjusted once WACC is updated and finalized in the rate application.
A46: 3 The PP&E deferral account is cleared by including the total balance in the deferral and variance account rate rider calculation.
A47: 4 Net additions are additions net of disposals; Net depreciation is additions to depreciation net of disposals.

Sheet App.2-ED_Account 1576 (2012)
I1: Cambridge and North Dumfries Hyro Inc.
J2: File Number: | K2: =EBNUMBER -> EB-2013-0116
J3: Exhibit: | K3: 9
J4: Appendix: | K4: 9-3
J5: Page: | K5: 1 of 1
J7: Filed: | K7: October 1,2013
B9: Appendix 2-ED
B10: Account 1576 - Accounting Changes under CGAAP
B11: 2012 Changes in Accounting Policies under CGAAP
B13: Assumes the applicant made capitalization and depreciation expense accounting policy changes under CGAAP effective January 1, 2012
C17: 2010 Rebasing Year | D17: 2011 | E17: 2012 | F17: 2013 | G17: 2014 Rebasing Year | H17: 2015 | I17: 2016 | J17: 2017 | K17: 2018
B18: Reporting Basis | C18: CGAAP | D18: IRM | E18: IRM | F18: IRM | G18: CGAAP - ASPE | H18: IRM | I18: IRM | J18: IRM | K18: IRM
B19: Forecast vs. Actual Used in Rebasing Year | C19: Forecast | D19: Actual | E19: Actual | F19: Forecast | G19: Forecast
E20: $ | F20: $ | G20: $ | H20: $ | I20: $ | J20: $ | K20: $
B21: PP&E Values under former CGAAP
B22: Opening net PP&E - Note 1 | E22: 85389555 | F22: =+E25 -> 94917343
B23: Net Additions - Note 4 | E23: 17094417 | F23: 17187858
B24: Net Depreciation (amounts should be negative) - Note 4 | E24: -7566629 | F24: -7361335
B25: Closing net PP&E (1) | E25: =E22+E23+E24 -> 94917343 | F25: =F22+F23+F24 -> 104743866
B27: PP&E Values under revised CGAAP (Starts from 2012)
B28: Opening net PP&E - Note 1 | E28: 85389555 | F28: =+E31 -> 96084161
B29: Net Additions - Note 4 | E29: 16333035 | F29: 16082753
B30: Net Depreciation (amounts should be negative) - Note 4 | E30: -5638429 | F30: -4181269
B31: Closing net PP&E (2) | E31: =SUM(E28:E30) -> 96084161 | F31: =SUM(F28:F30) -> 107985645
B33: Difference in Closing net PP&E, former CGAAP vs. revised CGAAP | E33: =E25-E31 -> -1166818 | F33: =F25-F31 -> -3241779
B36: Effect on Deferral and Variance Account Rate Riders
B37: Closing balance in Account 1576 | G37: =IF(ISERROR(F33), 0, F33) -> -3241779 | I37: WACC | J37: 0.0646
B38: Return on Rate Base Associated with Account 1576 balance at WACC - Note 2 | G38: =F33*J37*J38 -> -209418.9234 | H38: # of years of rate rider disposition period | J38: 1
B39: Amount included in Deferral and Variance Account Rate Rider Calculation | G39: =G37+G38 -> -3451197.923
B41: Notes:
B42: 1 For an applicant that made the capitalization and depreciation expense accounting policy changes on January 1, 2012, the PP&E values as of January 1, 2012 under both former CGAAP and revised CGAAP should be the same.
B43: 2 Return on rate base associated with Account 1576 balance is calculated as:
B44: the variance account opening balance as of 2014 rebasing year x WACC X # of years of rate rider disposition period
B45: * Please note that the calculation should be adjusted once WACC is updated and finalized in the rate application.
B46: 3 Account 1576 is cleared by including the total balance in the deferral and variance account rate rider calculation.
B47: 4 Net additions are additions net of disposals; Net depreciation is additions to depreciation net of disposals.

Sheet App.2-EE_Account 1576 (2013) (hidden)
H1: File Number: | I1: =EBNUMBER -> EB-2013-0116
H2: Exhibit:
H3: Tab:
H4: Schedule:
H5: Page:
H7: Date:
A9: Appendix 2-EE
A10: Account 1576 - Accounting Changes under CGAAP
A11: 2013 Changes in Accounting Policies under CGAAP
A13: Assumes the applicant made capitalization and depreciation expense accounting policy changes under CGAAP effective January 1, 2013
B17: 2010 Rebasing Year | C17: 2011 | D17: 2012 | E17: 2013 | F17: 2014 Rebasing Year | G17: 2015 | H17: 2016 | I17: 2016 | J17: 2017
A18: Reporting Basis | B18: CGAAP | C18: IRM | D18: IRM | E18: IRM | F18: CGAAP - ASPE | G18: IRM | H18: IRM | I18: IRM | J18: IRM
A19: Forecast vs. Actual Used in Rebasing Year | B19: Forecast | C19: Actual | D19: Actual | E19: Forecast | F19: Forecast
E20: $ | F20: $ | G20: $ | H20: $ | I20: $ | J20: $
A21: PP&E Values under former CGAAP
A22: Opening net PP&E - Note 1
A23: Net Additions - Note 4
A24: Net Depreciation (amounts should be negative) - Note 4
A25: Closing net PP&E (1) | E25: =SUM(E22:E24) -> 0
A27: PP&E Values under revised CGAAP (Starts from 2013)
A28: Opening net PP&E - Note 1
A29: Net Additions - Note 4
A30: Net Depreciation (amounts should be negative) - Note 4
A31: Closing net PP&E (2) | E31: =SUM(E28:E30) -> 0
A33: Difference in Closing net PP&E, former CGAAP vs. revised CGAAP | E33: =E25-E31 -> 0
A36: Effect on Deferral and Variance Account Rate Riders
A37: Closing balance in Account 1576 | F37: =IF(ISERROR(E33), 0, E33) -> 0 | H37: WACC
A38: Return on Rate Base Associated with Account 1576 balance at WACC - Note 2 | F38: =E33*I37*I38 -> 0 | G38: # of years of rate rider disposition period
A39: Amount included in Deferral and Variance Account Rate Rider Calculation | F39: =F37+F38 -> 0
A41: Notes:
A42: 1 For an applicant that made the capitalization and depreciation expense accounting policy changes on January 1, 2013, the PP&E values as of January 1, 2013 under both former CGAAP and revised CGAAP should be the same.
A43: 2 Return on rate base associated with Account 1576 balance is calculated as:
A44: the variance account opening balance as of 2014 rebasing year x WACC X # of years of rate rider disposition period
A45: * Please note that the calculation should be adjusted once WACC is updated and finalized in the rate application.
A46: 3 Account 1576 is cleared by including the total balance in the deferral and variance account rate rider calculation.
A47: 4 Net additions are additions net of disposals; Net depreciation is additions to depreciation net of disposals.

Sheet App.2-FA Proposed REG Invest. (hidden)
F1: File Number: | G1: =EBNUMBER -> EB-2013-0116
F2: Exhibit:
F3: Tab:
F4: Schedule:
F5: Page:
F7: Date:
A9: Appendix 2-FA
A10: Renewable Generation Connection Investment Summary (over the rate setting period)
A12: Enter the details of the Renewable Generation Connection projects as described in Section 2.5.2.5 of the Filing Requirements.
A13: All costs entered on this page will be transferred to the appropriate cells in the appendices that follow.
A14: For Part A, Renewable Enabling Improvements (REI), these amounts will be transferred to Appendix 2 - FB
A15: For Part B, Expansions, these amounts will be transferred to Appendix 2 - FC
A17: If there is more than one project proposed to be in-service in a certain year, please amend the tables below so that the totals appear in the designated sections of the appropriate tables in Appendix 2-FB and Appendix 2-FC.
A18: Based on the current methodology and allocation, amounts allocated represent 6% for REI Connection Investments and 17% for Expansion Investments. (pg 15, EB-2009-0349)
A21: Part A
A22: REI Investments (Direct Benefit at 6%) | C22: 2014 | D22: 2015 | E22: 2016 | F22: 2017 | G22: 2018
A23: Project 1
A24: Name: 2014 REI Connection Project
A25: Capital Costs | C25: 0
A26: OM&A (Start-Up) | C26: 0
A27: OM&A (Ongoing) | C27: 0
A29: Project 2
A30: Name: 2015 REI Connection Project
A31: Capital Costs | D31: 0
A32: OM&A (Start-Up) | D32: 0
A33: OM&A (Ongoing) | D33: 0
A35: Project 3
A36: Name: 2016 REI Connection Project
A37: Capital Costs | E37: 0
A38: OM&A (Start-Up) | E38: 0
A39: OM&A (Ongoing) | E39: 0
A41: Project 4
A42: Name: 2017 REI Connection Project
A43: Capital Costs | F43: 0
A44: OM&A (Start-Up) | F44: 0
A45: OM&A (Ongoing) | F45: 0
A47: Project 5
A48: Name: 2018 REI Connection Project
A49: Capital Costs | G49: 0
A50: OM&A (Start-Up) | G50: 0
A51: OM&A (Ongoing) | G51: 0
A55: Part B
A56: Expansion Investments (Direct Benefit at 17%) | C56: 2014 | D56: 2015 | E56: 2016 | F56: 2017 | G56: 2018
A57: Project 1
A58: Name: 2014 Expansion Connection Project
A59: Capital Costs | C59: 0
A60: OM&A (Start-Up) | C60: 0
A61: OM&A (Ongoing) | C61: 0
A63: Project 2
A64: Name: 2015 Expansion Connection Project
A65: Capital Costs | D65: 0
A66: OM&A (Start-Up) | D66: 0
A67: OM&A (Ongoing) | D67: 0
A69: Project 3
A70: Name: 2016 Expansion Connection Project
A71: Capital Costs | E71: 0
A72: OM&A (Start-Up) | E72: 0
A73: OM&A (Ongoing) | E73: 0
A75: Project 4
A76: Name: 2017 Expansion Connection Project
A77: Capital Costs | F77: 0
A78: OM&A (Start-Up) | F78: 0
A79: OM&A (Ongoing) | F79: 0
A81: Project 5
A82: Name: 2018 Expansion Connection Project
A83: Capital Costs | G83: 0
A84: OM&A (Start-Up) | G84: 0
A85: OM&A (Ongoing) | G85: 0

Sheet App.2-FB Calc of REG Improvemnt (hidden)
F1: File Number: | G1: =EBNUMBER -> EB-2013-0116
F2: Exhibit:
F3: Tab:
F4: Schedule:
F5: Page:
F7: Date:
A9: Appendix 2-FB
A10: Calculation of Renewable Generation Connection Direct Benefits/Provincial Amount: Renewable Enabling Improvement Investments
A12: This table will calculate the distributor/provincial shares of the investments entered in Part A of Appendix 2-FA.
A13: Enter values in green shaded cells: WCA percentage, debt percentages, interest rates, kWh, tax rates, amortization period, CCA Class and percentage.
A14: Rate Riders are not calculated for Test Year as these assets and costs are already in the distributor's rate base/revenue requirement.
D16: 2014 Test Year | G16: 2015 | J16: 2016 | K16: 2016 | M16: 2017 | P16: 2018
E17: Direct Benefit | F17: Provincial | H17: Direct Benefit | I17: Provincial | K17: Direct Benefit | L17: Provincial | N17: Direct Benefit | O17: Provincial | Q17: Direct Benefit | R17: Provincial
D18: Total | E18: 0.06 | F18: 0.94 | G18: Total | H18: 0.06 | I18: 0.94 | J18: Total | K18: 0.06 | L18: 0.94 | M18: Total | N18: 0.06 | O18: 0.94 | P18: Total | Q18: 0.06 | R18: 0.94
A19: Net Fixed Assets (average) | D19: =D80 -> 0 | E19: =D19*E18 -> 0 | F19: =D19*F18 -> 0 | G19: =E80 -> 0 | H19: =G19*H18 -> 0 | I19: =G19*I18 -> 0 | J19: =F80 -> 0 | K19: =J19*K18 -> 0 | L19: =J19*L18 -> 0 | M19: =G80 -> 0 | N19: =M19*N18 -> 0 | O19: =M19*O18 -> 0 | P19: =H80 -> 0 | Q19: =P19*Q18 -> 0 | R19: =P19*R18 -> 0
A20: Incremental OM&A (on-going, N/A for Provincial Recovery) | D20: ='App.2-FA Proposed REG Invest.'!C27 -> 0 | E20: =D20 -> 0 | G20: ='App.2-FA Proposed REG Invest.'!D33 -> 0 | H20: 15000 | J20: ='App.2-FA Proposed REG Invest.'!E39 -> 0 | K20: =J20 -> 0 | M20: ='App.2-FA Proposed REG Invest.'!F45 -> 0 | N20: =M20 -> 0 | P20: ='App.2-FA Proposed REG Invest.'!G51 -> 0 | Q20: =P20 -> 0
A21: Incremental OM&A (start-up, applicable for Provincial Recovery) | D21: ='App.2-FA Proposed REG Invest.'!C26 -> 0 | E21: =D21*E18 -> 0 | F21: =D21*F18 -> 0 | G21: ='App.2-FA Proposed REG Invest.'!D32 -> 0 | H21: =G21*H18 -> 0 | I21: =G21*I18 -> 0 | J21: ='App.2-FA Proposed REG Invest.'!E38 -> 0 | K21: =J21*K18 -> 0 | L21: =J21*L18 -> 0 | M21: ='App.2-FA Proposed REG Invest.'!F44 -> 0 | N21: =M21*N18 -> 0 | O21: =M21*O18 -> 0 | P21: ='App.2-FA Proposed REG Invest.'!G50 -> 0 | Q21: =P21*Q18 -> 0 | R21: =P21*R18 -> 0
A22: WCA | B22: 0.13 | E22: =(E20+E21)*$C$14 -> 0 | F22: =F21*$C$14 -> 0 | H22: =(H20+H21)*$C$14 -> 0 | I22: =I21*$C$14 -> 0 | K22: =(K20+K21)*$C$14 -> 0 | L22: =L21*$C$14 -> 0 | N22: =(N20+N21)*$C$14 -> 0 | O22: =O21*$C$14 -> 0 | Q22: =(Q20+Q21)*$C$14 -> 0 | R22: =R21*$C$14 -> 0
A23: Rate Base | E23: =SUM(E19+E22) -> 0 | F23: =SUM(F19+F22) -> 0 | H23: =SUM(H19+H22) -> 0 | I23: =SUM(I19+I22) -> 0 | K23: =SUM(K19+K22) -> 0 | L23: =SUM(L19+L22) -> 0 | N23: =SUM(N19+N22) -> 0 | O23: =SUM(O19+O22) -> 0 | Q23: =SUM(Q19+Q22) -> 0 | R23: =SUM(R19+R22) -> 0
A26: Deemed ST Debt | B26: 0 | E26: =E23*$C$18 -> 0 | F26: =F23*$C$18 -> 0 | H26: =H23*$C$18 -> 0 | I26: =I23*$C$18 -> 0 | K26: =K23*$C$18 -> 0 | L26: =L23*$C$18 -> 0 | N26: =N23*$C$18 -> 0 | O26: =O23*$C$18 -> 0 | Q26: =Q23*$C$18 -> 0 | R26: =R23*$C$18 -> 0
A27: Deemed LT Debt | B27: 0 | E27: =E23*$C$19 -> 0 | F27: =F23*$C$19 -> 0 | H27: =H23*$C$19 -> 0 | I27: =I23*$C$19 -> 0 | K27: =K23*$C$19 -> 0 | L27: =L23*$C$19 -> 0 | N27: =N23*$C$19 -> 0 | O27: =O23*$C$19 -> 0 | Q27: =Q23*$C$19 -> 0 | R27: =R23*$C$19 -> 0
A28: Deemed Equity | B28: 0 | E28: =E23*$C$20 -> 0 | F28: =F23*$C$20 -> 0 | H28: =H23*$C$20 -> 0 | I28: =I23*$C$20 -> 0 | K28: =K23*$C$20 -> 0 | L28: =L23*$C$20 -> 0 | N28: =N23*$C$20 -> 0 | O28: =O23*$C$20 -> 0 | Q28: =Q23*$C$20 -> 0 | R28: =R23*$C$20 -> 0
A30: ST Interest | B30: 0 | E30: =E26*$C$22 -> 0 | F30: =F26*$C$22 -> 0 | H30: =H26*$C$22 -> 0 | I30: =I26*$C$22 -> 0 | K30: =K26*$C$22 -> 0 | L30: =L26*$C$22 -> 0 | N30: =N26*$C$22 -> 0 | O30: =O26*$C$22 -> 0 | Q30: =Q26*$C$22 -> 0 | R30: =R26*$C$22 -> 0
A31: LT Interest | B31: 0 | E31: =E27*$C$23 -> 0 | F31: =F27*$C$23 -> 0 | H31: =H27*$C$23 -> 0 | I31: =I27*$C$23 -> 0 | K31: =K27*$C$23 -> 0 | L31: =L27*$C$23 -> 0 | N31: =N27*$C$23 -> 0 | O31: =O27*$C$23 -> 0 | Q31: =Q27*$C$23 -> 0 | R31: =R27*$C$23 -> 0
A32: ROE | B32: 0 | E32: =E28*$C$24 -> 0 | F32: =F28*$C$24 -> 0 | H32: =H28*$C$24 -> 0 | I32: =I28*$C$24 -> 0 | K32: =K28*$C$24 -> 0 | L32: =L28*$C$24 -> 0 | N32: =N28*$C$24 -> 0 | O32: =O28*$C$24 -> 0 | Q32: =Q28*$C$24 -> 0 | R32: =R28*$C$24 -> 0
A33: Cost of Capital Total | E33: =SUM(E30:E32) -> 0 | F33: =SUM(F30:F32) -> 0 | H33: =SUM(H30:H32) -> 0 | I33: =SUM(I30:I32) -> 0 | K33: =SUM(K30:K32) -> 0 | L33: =SUM(L30:L32) -> 0 | N33: =SUM(N30:N32) -> 0 | O33: =SUM(O30:O32) -> 0 | Q33: =SUM(Q30:Q32) -> 0 | R33: =SUM(R30:R32) -> 0
A35: OM&A | E35: =E20+E21 -> 0 | F35: =F21 -> 0 | H35: =H20+H21 -> 15000 | I35: =I21 -> 0 | K35: =K20+K21 -> 0 | L35: =L21 -> 0 | N35: =N20+N21 -> 0 | O35: =O21 -> 0 | Q35: =Q20+Q21 -> 0 | R35: =R21 -> 0
A36: Amortization | D36: =D75 -> 0 | E36: =D36*$F$10 -> 0 | F36: =D36*$G$10 -> 0 | G36: =E74+E75 -> 0 | H36: =G36*$F$10 -> 0 | I36: =G36*$G$10 -> 0 | J36: =F74+F75 -> 0 | K36: =J36*$F$10 -> 0 | L36: =J36*$G$10 -> 0 | M36: =G74+G75 -> 0 | N36: =M36*$F$10 -> 0 | O36: =M36*$G$10 -> 0 | P36: =H74+H75 -> 0 | Q36: =P36*$F$10 -> 0 | R36: =P36*$G$10 -> 0
A37: Grossed-up PILs | E37: =E63 -> 0 | F37: =F63 -> 0 | H37: =H63 -> 0 | I37: =I63 -> 0 | K37: =K63 -> 0 | L37: =L63 -> 0 | N37: =N63 -> 0 | O37: =O63 -> 0 | Q37: =Q63 -> 0 | R37: =R63 -> 0
A39: Revenue Requirement | E39: =SUM(E33:E37) -> 0 | F39: =SUM(F33:F37) -> 0 | H39: =SUM(H33:H37) -> 15000 | I39: =SUM(I33:I37) -> 0 | K39: =SUM(K33:K37) -> 0 | L39: =SUM(L33:L37) -> 0 | N39: =SUM(N33:N37) -> 0 | O39: =SUM(O33:O37) -> 0 | Q39: =SUM(Q33:Q37) -> 0 | R39: =SUM(R33:R37) -> 0
A42: Provincial Rate Protection | F42: =F39 -> 0 | I42: =I39 -> 0 | L42: =L39 -> 0 | O42: =O39 -> 0 | R42: =R39 -> 0
A44: Monthly Amount Paid by IESO | F44: =F42/12 -> 0 | I44: =I42/12 -> 0 | L44: =L42/12 -> 0 | O44: =O42/12 -> 0 | R44: =R42/12 -> 0
A46: Note 1: Revenue collected to be recorded in Account 1533 Renewable Generation Connection Funding Adder Deferral - Subaccount Revenue Collected from IESO.
A47: Note 2: For the 2014 Test Year, Costs and Revenues of the Direct Benefit are to be included in the test year applicant Rate Base and Revenues.
A49: PILs Calculation
E50: 2014 | H50: 2015 | K50: 2016 | N50: 2017 | Q50: 2018
A51: Income Tax | E51: Direct Benefit | F51: Provincial | H51: Direct Benefit | I51: Provincial | K51: Direct Benefit | L51: Provincial | N51: Direct Benefit | O51: Provincial | Q51: Direct Benefit | R51: Provincial
M52: Total | P52: Total
A53: Net Income - ROE on Rate Base | E53: =E32 -> 0 | F53: =F32 -> 0 | H53: =H32 -> 0 | I53: =I32 -> 0 | K53: =K32 -> 0 | L53: =L32 -> 0 | N53: =N32 -> 0 | O53: =O32 -> 0 | Q53: =Q32 -> 0 | R53: =R32 -> 0
A54: Amortization (6% DB and 94% P) | E54: =E36 -> 0 | F54: =F36 -> 0 | H54: =H36 -> 0 | I54: =I36 -> 0 | K54: =K36 -> 0 | L54: =L36 -> 0 | N54: =N36 -> 0 | O54: =O36 -> 0 | Q54: =Q36 -> 0 | R54: =R36 -> 0
A55: CCA (6% DB and 94% P) | E55: =-D92*$F$10 -> 0 | F55: =-D92*$G$10 -> 0 | H55: =-E92*$F$10 -> 0 | I55: =-E92*$G$10 -> 0 | K55: =-F92*$F$10 -> 0 | L55: =-F92*$G$10 -> 0 | N55: =-G92*$F$10 -> 0 | O55: =-G92*$G$10 -> 0 | Q55: =-H92*$F$10 -> 0 | R55: =-H92*$G$10 -> 0
A56: Taxable income | E56: =SUM(E53:E55) -> 0 | F56: =SUM(F53:F55) -> 0 | H56: =SUM(H53:H55) -> 0 | I56: =SUM(I53:I55) -> 0 | K56: =SUM(K53:K55) -> 0 | L56: =SUM(L53:L55) -> 0 | N56: =SUM(N53:N55) -> 0 | O56: =SUM(O53:O55) -> 0 | Q56: =SUM(Q53:Q55) -> 0 | R56: =SUM(R53:R55) -> 0
A58: Tax Rate (to be entered) | E58: 0 | F58: 0 | H58: 0 | I58: 0 | K58: 0 | L58: 0 | N58: 0 | O58: 0 | Q58: 0 | R58: 0
A60: Income Taxes Payable | E60: =E56*E58 -> 0 | F60: =F56*F58 -> 0 | H60: =H56*H58 -> 0 | I60: =I56*I58 -> 0 | K60: =K56*K58 -> 0 | L60: =L56*L58 -> 0 | N60: =N56*N58 -> 0 | O60: =O56*O58 -> 0 | Q60: =Q56*Q58 -> 0 | R60: =R56*R58 -> 0
A61: Gross Up
A62: Income Taxes Payable | E62: =E60/(1-E58) -> 0 | F62: =F60/(1-F58) -> 0 | H62: =H60/(1-H58) -> 0 | I62: =I60/(1-I58) -> 0 | K62: =K60/(1-K58) -> 0 | L62: =L60/(1-L58) -> 0 | N62: =N60/(1-N58) -> 0 | O62: =O60/(1-O58) -> 0 | Q62: =Q60/(1-Q58) -> 0 | R62: =R60/(1-R58) -> 0
A63: Grossed Up PILs | E63: =SUM(E62:E62) -> 0 | F63: =SUM(F62:F62) -> 0 | H63: =SUM(H62:H62) -> 0 | I63: =SUM(I62:I62) -> 0 | K63: =SUM(K62:K62) -> 0 | L63: =SUM(L62:L62) -> 0 | N63: =SUM(N62:N62) -> 0 | O63: =SUM(O62:O62) -> 0 | Q63: =SUM(Q62:Q62) -> 0 | R63: =SUM(R62:R62) -> 0
D66: 2014 | E66: 2015 | F66: 2016 | G66: 2017 | H66: 2018
A67: Net Fixed Assets
B68: Enter applicable amortization in years: | C68: 25
A69: Opening Gross Fixed Assets | D69: =C71 -> 0 | E69: =D71 -> 0 | F69: =E71 -> 0 | G69: =F71 -> 0 | H69: =G71 -> 0
A70: Gross Capital Additions | D70: ='App.2-FA Proposed REG Invest.'!C25 -> 0 | E70: ='App.2-FA Proposed REG Invest.'!D31 -> 0 | F70: ='App.2-FA Proposed REG Invest.'!E37 -> 0 | G70: ='App.2-FA Proposed REG Invest.'!F43 -> 0 | H70: ='App.2-FA Proposed REG Invest.'!F49 -> 0
A71: Closing Gross Fixed Assets | D71: =SUM(D69:D70) -> 0 | E71: =SUM(E69:E70) -> 0 | F71: =SUM(F69:F70) -> 0 | G71: =SUM(G69:G70) -> 0 | H71: =SUM(H69:H70) -> 0
A73: Opening Accumulated Amortization | D73: =C76 -> 0 | E73: =D76 -> 0 | F73: =E76 -> 0 | G73: =F76 -> 0 | H73: =G76 -> 0
A74: Current Year Amortization (before additions) | D74: - | E74: =IF(ISERROR(E69/$C$68), 0, E69/$C$68) -> 0 | F74: =IF(ISERROR(F69/$C$68), 0, F69/$C$68) -> 0 | G74: =IF(ISERROR(G69/$C$68), 0, G69/$C$68) -> 0 | H74: =IF(ISERROR(H69/$C$68), 0, H69/$C$68) -> 0
A75: Additions (half year) | D75: =D70/C68/2 -> 0 | E75: =E70/C68/2 -> 0 | F75: =F70/C68/2 -> 0 | G75: =G70/C68/2 -> 0 | H75: =H70/C68/2 -> 0
A76: Closing Accumulated Amortization | D76: =SUM(D73+D75) -> 0 | E76: =SUM(E73:E75) -> 0 | F76: =SUM(F73:F75) -> 0 | G76: =SUM(G73:G75) -> 0 | H76: =SUM(H73:H75) -> 0
A78: Opening Net Fixed Assets | D78: =D69-D73 -> 0 | E78: =D79 -> 0 | F78: =E79 -> 0 | G78: =F79 -> 0 | H78: =G79 -> 0
A79: Closing Net Fixed Assets | D79: =D71-D76 -> 0 | E79: =E71-E76 -> 0 | F79: =F71-F76 -> 0 | G79: =G71-G76 -> 0 | H79: =H71-H76 -> 0
A80: Average Net Fixed Assets | D80: =SUM(D78:D79)/2 -> 0 | E80: =SUM(E78:E79)/2 -> 0 | F80: =SUM(F78:F79)/2 -> 0 | G80: =SUM(G78:G79)/2 -> 0 | H80: =SUM(H78:H79)/2 -> 0
A82: UCC for PILs Calculation
D83: 2014 | E83: 2015 | F83: 2016 | G83: 2017 | H83: 2018
A85: Opening UCC | D85: 0 | E85: =D93 -> 0 | F85: =E93 -> 0 | G85: =F93 -> 0 | H85: =G93 -> 0
A86: Capital Additions (from Appendix 2-FA) | D86: ='App.2-FA Proposed REG Invest.'!C25 -> 0 | E86: ='App.2-FA Proposed REG Invest.'!D31 -> 0 | F86: ='App.2-FA Proposed REG Invest.'!E31 -> 0 | G86: ='App.2-FA Proposed REG Invest.'!F31 -> 0 | H86: ='App.2-FA Proposed REG Invest.'!G31 -> 0
A87: UCC Before Half Year Rule | D87: =SUM(D85:D86) -> 0 | E87: =SUM(E85:E86) -> 0 | F87: =SUM(F85:F86) -> 0 | G87: =SUM(G85:G86) -> 0 | H87: =SUM(H85:H86) -> 0
A88: Half Year Rule (1/2 Additions - Disposals) | D88: =D86/2 -> 0 | E88: =E86/2 -> 0 | F88: =F86/2 -> 0 | G88: =G86/2 -> 0 | H88: =H86/2 -> 0
A89: Reduced UCC | D89: =D87-D88 -> 0 | E89: =E87-E88 -> 0 | F89: =F87-F88 -> 0 | G89: =G87-G88 -> 0 | H89: =H87-H88 -> 0
A90: CCA Rate Class (to be entered) | C90: 47 | D90: =C90 -> 47 | E90: =C90 -> 47 | F90: =C90 -> 47 | G90: =C90 -> 47 | H90: =C90 -> 47
A91: CCA Rate (to be entered) | C91: 0.08 | D91: =C91 -> 0.08 | E91: =C91 -> 0.08 | F91: =C91 -> 0.08 | G91: =C91 -> 0.08 | H91: =C91 -> 0.08
A92: CCA | D92: =D89*$D$83 -> 0 | E92: =E89*$D$83 -> 0 | F92: =F89*$D$83 -> 0 | G92: =G89*$D$83 -> 0 | H92: =H89*$D$83 -> 0
A93: Closing UCC | D93: =D87-D92 -> 0 | E93: =E87-E92 -> 0 | F93: =F87-F92 -> 0 | G93: =G87-G92 -> 0 | H93: =H87-H92 -> 0

Sheet App.2-FC Calc of REG Expansion (hidden)
E1: File Number: | F1: =EBNUMBER -> EB-2013-0116
E2: Exhibit:
E3: Tab:
E4: Schedule:
E5: Page:
E7: Date:
A9: Appendix 2-FC
A10: Calculation of Renewable Generation Connection Direct Benefits/Provincial Amount: Renewable Expansion Investments
A12: This table will calculate the distributor/provincial shares of the investments entered in Part B of Appendix 2-FA.
A13: Enter values in green shaded cells: WCA percentage, debt percentages, interest rates, kWh, tax rates, amortization period, CCA Class and percentage.
A14: Rate Riders are not calculated for Test Year as these assets and costs are already in the distributors rate base.
D17: 2014 Test Year | G17: 2015 | J17: 2016 | K17: 2016 | M17: 2017 | P17: 2018
E18: Direct Benefit | F18: Provincial | H18: Direct Benefit | I18: Provincial | K18: Direct Benefit | L18: Provincial | N18: Direct Benefit | O18: Provincial | Q18: Direct Benefit | R18: Provincial
D19: Total | E19: 0.17 | F19: 0.83 | G19: Total | H19: 0.17 | I19: 0.83 | J19: Total | K19: 0.17 | L19: 0.83 | M19: Total | N19: 0.17 | O19: 0.83 | P19: Total | Q19: 0.17 | R19: 0.83
A20: Net Fixed Assets (average) | D20: =D79 -> 0 | E20: =D20*E19 -> 0 | F20: =D20*F19 -> 0 | G20: =E79 -> 0 | H20: =G20*H19 -> 0 | I20: =G20*I19 -> 0 | J20: =F79 -> 0 | K20: =J20*K19 -> 0 | L20: =J20*L19 -> 0 | M20: =G79 -> 0 | N20: =M20*N19 -> 0 | O20: =M20*O19 -> 0 | P20: =H79 -> 0 | Q20: =P20*Q19 -> 0 | R20: =P20*R19 -> 0
A21: Incremental OM&A (on-going, N/A for Provincial Recovery) | D21: ='App.2-FA Proposed REG Invest.'!C61 -> 0 | E21: =D21 -> 0 | G21: ='App.2-FA Proposed REG Invest.'!D67 -> 0 | H21: =G21 -> 0 | J21: ='App.2-FA Proposed REG Invest.'!E73 -> 0 | K21: =J21 -> 0 | M21: ='App.2-FA Proposed REG Invest.'!F79 -> 0 | N21: =M21 -> 0 | P21: ='App.2-FA Proposed REG Invest.'!G85 -> 0 | Q21: =P21 -> 0
A22: Incremental OM&A (start-up, applicable for Provincial Recovery) | D22: ='App.2-FA Proposed REG Invest.'!C60 -> 0 | E22: =D22*E19 -> 0 | F22: =D22*F19 -> 0 | G22: ='App.2-FA Proposed REG Invest.'!D66 -> 0 | H22: =G22*H19 -> 0 | I22: =G22*I19 -> 0 | J22: ='App.2-FA Proposed REG Invest.'!E72 -> 0 | K22: =J22*K19 -> 0 | L22: =J22*L19 -> 0 | M22: ='App.2-FA Proposed REG Invest.'!F78 -> 0 | N22: =M22*N19 -> 0 | O22: =M22*O19 -> 0 | P22: ='App.2-FA Proposed REG Invest.'!G84 -> 0 | Q22: =P22*Q19 -> 0 | R22: =P22*R19 -> 0
A23: WCA | B23: 0.13 | E23: =(E21+E22)*$B$23 -> 0 | F23: =F22*$B$23 -> 0 | H23: =(H21+H22)*$B$23 -> 0 | I23: =I22*$B$23 -> 0 | K23: =(K21+K22)*$B$23 -> 0 | L23: =L22*$B$23 -> 0 | N23: =(N21+N22)*$B$23 -> 0 | O23: =O22*$B$23 -> 0 | Q23: =(Q21+Q22)*$B$23 -> 0 | R23: =R22*$B$23 -> 0
A24: Rate Base | E24: =SUM(E20+E23) -> 0 | F24: =SUM(F20+F23) -> 0 | H24: =SUM(H20+H23) -> 0 | I24: =SUM(I20+I23) -> 0 | K24: =SUM(K20+K23) -> 0 | L24: =SUM(L20+L23) -> 0 | N24: =SUM(N20+N23) -> 0 | O24: =SUM(O20+O23) -> 0 | Q24: =SUM(Q20+Q23) -> 0 | R24: =SUM(R20+R23) -> 0
A27: Deemed ST Debt | B27: 0 | E27: =E24*$B$27 -> 0 | F27: =F24*$B$27 -> 0 | H27: =H24*$B$27 -> 0 | I27: =I24*$B$27 -> 0 | K27: =K24*$B$27 -> 0 | L27: =L24*$B$27 -> 0 | N27: =N24*$B$27 -> 0 | O27: =O24*$B$27 -> 0 | Q27: =Q24*$B$27 -> 0 | R27: =R24*$B$27 -> 0
A28: Deemed LT Debt | B28: 0 | E28: =E24*$B$28 -> 0 | F28: =F24*$B$28 -> 0 | H28: =H24*$B$28 -> 0 | I28: =I24*$B$28 -> 0 | K28: =K24*$B$28 -> 0 | L28: =L24*$B$28 -> 0 | N28: =N24*$B$28 -> 0 | O28: =O24*$B$28 -> 0 | Q28: =Q24*$B$28 -> 0 | R28: =R24*$B$28 -> 0
A29: Deemed Equity | B29: 0 | E29: =E24*$B$29 -> 0 | F29: =F24*$B$29 -> 0 | H29: =H24*$B$29 -> 0 | I29: =I24*$B$29 -> 0 | K29: =K24*$B$29 -> 0 | L29: =L24*$B$29 -> 0 | N29: =N24*$B$29 -> 0 | O29: =O24*$B$29 -> 0 | Q29: =Q24*$B$29 -> 0 | R29: =R24*$B$29 -> 0
A31: ST Interest | B31: 0 | E31: =E27*$B$31 -> 0 | F31: =F27*$B$31 -> 0 | H31: =H27*$B$31 -> 0 | I31: =I27*$B$31 -> 0 | K31: =K27*$B$31 -> 0 | L31: =L27*$B$31 -> 0 | N31: =N27*$B$31 -> 0 | O31: =O27*$B$31 -> 0 | Q31: =Q27*$B$31 -> 0 | R31: =R27*$B$31 -> 0
A32: LT Interest | B32: 0 | E32: =E28*$B$32 -> 0 | F32: =F28*$B$32 -> 0 | H32: =H28*$B$32 -> 0 | I32: =I28*$B$32 -> 0 | K32: =K28*$B$32 -> 0 | L32: =L28*$B$32 -> 0 | N32: =N28*$B$32 -> 0 | O32: =O28*$B$32 -> 0 | Q32: =Q28*$B$32 -> 0 | R32: =R28*$B$32 -> 0
A33: ROE | B33: 0 | E33: =E29*$B$33 -> 0 | F33: =F29*$B$33 -> 0 | H33: =H29*$B$33 -> 0 | I33: =I29*$B$33 -> 0 | K33: =K29*$B$33 -> 0 | L33: =L29*$B$33 -> 0 | N33: =N29*$B$33 -> 0 | O33: =O29*$B$33 -> 0 | Q33: =Q29*$B$33 -> 0 | R33: =R29*$B$33 -> 0
A34: Cost of Capital Total | E34: =SUM(E31:E33) -> 0 | F34: =SUM(F31:F33) -> 0 | H34: =SUM(H31:H33) -> 0 | I34: =SUM(I31:I33) -> 0 | K34: =SUM(K31:K33) -> 0 | L34: =SUM(L31:L33) -> 0 | N34: =SUM(N31:N33) -> 0 | O34: =SUM(O31:O33) -> 0 | Q34: =SUM(Q31:Q33) -> 0 | R34: =SUM(R31:R33) -> 0
A36: OM&A | E36: =E21+E22 -> 0 | F36: =F22 -> 0 | H36: =H21+H22 -> 0 | I36: =I22 -> 0 | K36: =K21+K22 -> 0 | L36: =L22 -> 0 | N36: =N21+N22 -> 0 | O36: =O22 -> 0 | Q36: =Q21+Q22 -> 0 | R36: =R22 -> 0
A37: Amortization | D37: =D75 -> 0 | E37: =D37*$E$19 -> 0 | F37: =D37*$F$19 -> 0 | G37: =E73+E74 -> 0 | H37: =G37*$E$19 -> 0 | I37: =G37*$F$19 -> 0 | J37: =F73+F74 -> 0 | K37: =J37*$E$19 -> 0 | L37: =J37*$F$19 -> 0 | M37: =G73+G74 -> 0 | N37: =M37*$E$19 -> 0 | O37: =M37*$F$19 -> 0 | P37: =H73+H74 -> 0 | Q37: =P37*$E$19 -> 0 | R37: =P37*$F$19 -> 0
A38: Grossed-up PILs | E38: =E63 -> 0 | F38: =F63 -> 0 | H38: =H63 -> 0 | I38: =I63 -> 0 | K38: =K63 -> 0 | L38: =L63 -> 0 | N38: =N63 -> 0 | O38: =O63 -> 0 | Q38: =Q63 -> 0 | R38: =R63 -> 0
A40: Revenue Requirement | E40: =SUM(E34:E38) -> 0 | F40: =SUM(F34:F38) -> 0 | H40: =SUM(H34:H38) -> 0 | I40: =SUM(I34:I38) -> 0 | K40: =SUM(K34:K38) -> 0 | L40: =SUM(L34:L38) -> 0 | N40: =SUM(N34:N38) -> 0 | O40: =SUM(O34:O38) -> 0 | Q40: =SUM(Q34:Q38) -> 0 | R40: =SUM(R34:R38) -> 0
A43: Provincial Rate Protection | F43: =F40 -> 0 | I43: =I40 -> 0 | L43: =L40 -> 0 | O43: =O40 -> 0 | R43: =R40 -> 0
A45: Monthly Amount Paid by IESO | F45: =F43/12 -> 0 | I45: =I43/12 -> 0 | L45: =L43/12 -> 0 | O45: =O43/12 -> 0 | R45: =R43/12 -> 0
A47: Note 1: Revenue collected to be recorded in Account 1533 Renewable Generation Connection Funding Adder Deferral - Subaccount Revenue Collected from IESO.
A48: Note 2: For the 2014 Test Year, Costs and Revenues of the Direct Benefit are to be included in the test year applicant Rate Base and Revenues.
A50: PILs Calculation
E51: 2014 | H51: 2015 | K51: 2016 | N51: 2017 | Q51: 2018
A52: Income Tax | E52: Direct Benefit | F52: Provincial | H52: Direct Benefit | I52: Provincial | K52: Direct Benefit | L52: Provincial | N52: Direct Benefit | O52: Provincial | Q52: Direct Benefit | R52: Provincial
M53: Total | P53: Total
A54: Net Income - ROE on Rate Base | E54: =E33 -> 0 | F54: =F33 -> 0 | H54: =H33 -> 0 | I54: =I33 -> 0 | K54: =K33 -> 0 | L54: =L33 -> 0 | N54: =N33 -> 0 | O54: =O33 -> 0 | Q54: =Q33 -> 0 | R54: =R33 -> 0
A55: Amortization (6% DB and 94% P) | E55: =E37 -> 0 | F55: =F37 -> 0 | H55: =H37 -> 0 | I55: =I37 -> 0 | K55: =K37 -> 0 | L55: =L37 -> 0 | N55: =N37 -> 0 | O55: =O37 -> 0 | Q55: =Q37 -> 0 | R55: =R37 -> 0
A56: CCA (6% DB and 94% P) | E56: =-D91*$E$19 -> 0 | F56: =-D91*$F$19 -> 0 | H56: =-E91*$E$19 -> 0 | I56: =-E91*$F$19 -> 0 | K56: =-F91*$E$19 -> 0 | L56: =-F91*$F$19 -> 0 | N56: =-G91*$E$19 -> 0 | O56: =-G91*$F$19 -> 0 | Q56: =-H91*$E$19 -> 0 | R56: =-H91*$F$19 -> 0
A57: Taxable income | E57: =SUM(E54:E56) -> 0 | F57: =SUM(F54:F56) -> 0 | H57: =SUM(H54:H56) -> 0 | I57: =SUM(I54:I56) -> 0 | K57: =SUM(K54:K56) -> 0 | L57: =SUM(L54:L56) -> 0 | N57: =SUM(N54:N56) -> 0 | O57: =SUM(O54:O56) -> 0 | Q57: =SUM(Q54:Q56) -> 0 | R57: =SUM(R54:R56) -> 0
A59: Tax Rate (to be entered) | E59: 0 | F59: 0 | H59: 0 | I59: 0 | K59: 0 | L59: 0 | N59: 0 | O59: 0 | Q59: 0 | R59: 0
A60: Income Taxes Payable | E60: =E57*E59 -> 0 | F60: =F57*F59 -> 0 | H60: =H57*H59 -> 0 | I60: =I57*I59 -> 0 | K60: =K57*K59 -> 0 | L60: =L57*L59 -> 0 | N60: =N57*N59 -> 0 | O60: =O57*O59 -> 0 | Q60: =Q57*Q59 -> 0 | R60: =R57*R59 -> 0
A61: Gross Up
A62: Income Taxes Payable | E62: =E60/(1-E59) -> 0 | F62: =F60/(1-F59) -> 0 | H62: =H60/(1-H59) -> 0 | I62: =I60/(1-I59) -> 0 | K62: =K60/(1-K59) -> 0 | L62: =L60/(1-L59) -> 0 | N62: =N60/(1-N59) -> 0 | O62: =O60/(1-O59) -> 0 | Q62: =Q60/(1-Q59) -> 0 | R62: =R60/(1-R59) -> 0
A63: Grossed Up PILs | E63: =SUM(E62:E62) -> 0 | F63: =SUM(F62:F62) -> 0 | H63: =SUM(H62:H62) -> 0 | I63: =SUM(I62:I62) -> 0 | K63: =SUM(K62:K62) -> 0 | L63: =SUM(L62:L62) -> 0 | N63: =SUM(N62:N62) -> 0 | O63: =SUM(O62:O62) -> 0 | Q63: =SUM(Q62:Q62) -> 0 | R63: =SUM(R62:R62) -> 0
A66: Net Fixed Assets | D66: 2014 | E66: 2015 | F66: 2016 | G66: 2017 | H66: 2018
B67: Enter applicable amortization in years: | C67: 25
A68: Opening Gross Fixed Assets | D68: =C70 -> 0 | E68: =D70 -> 0 | F68: =E70 -> 0 | G68: =F70 -> 0 | H68: =G70 -> 0
A69: Gross Capital Additions | D69: ='App.2-FA Proposed REG Invest.'!C59 -> 0 | E69: ='App.2-FA Proposed REG Invest.'!D65 -> 0 | F69: ='App.2-FA Proposed REG Invest.'!E71 -> 0 | G69: ='App.2-FA Proposed REG Invest.'!F77 -> 0 | H69: ='App.2-FA Proposed REG Invest.'!G83 -> 0
A70: Closing Gross Fixed Assets | D70: =SUM(D68:D69) -> 0 | E70: =SUM(E68:E69) -> 0 | F70: =SUM(F68:F69) -> 0 | G70: =SUM(G68:G69) -> 0 | H70: =SUM(H68:H69) -> 0
A72: Opening Accumulated Amortization | D72: =C75 -> 0 | E72: =D75 -> 0 | F72: =E75 -> 0 | G72: =F75 -> 0 | H72: =G75 -> 0
A73: Current Year Amortization (before additions) | D73: - | E73: =E68/$C$67 -> 0 | F73: =F68/$C$67 -> 0 | G73: =G68/$C$67 -> 0 | H73: =H68/$C$67 -> 0
A74: Additions (half year) | D74: =D69/C67/2 -> 0 | E74: =E69/C67/2 -> 0 | F74: =F69/C67/2 -> 0 | G74: =G69/C67/2 -> 0 | H74: =H69/C67/2 -> 0
A75: Closing Accumulated Amortization | D75: =SUM(D72+D74) -> 0 | E75: =SUM(E72:E74) -> 0 | F75: =SUM(F72:F74) -> 0 | G75: =SUM(G72:G74) -> 0 | H75: =SUM(H72:H74) -> 0
A77: Opening Net Fixed Assets | D77: =D68-D72 -> 0 | E77: =D78 -> 0 | F77: =E78 -> 0 | G77: =F78 -> 0 | H77: =G78 -> 0
A78: Closing Net Fixed Assets | D78: =D70-D75 -> 0 | E78: =E70-E75 -> 0 | F78: =F70-F75 -> 0 | G78: =G70-G75 -> 0 | H78: =H70-H75 -> 0
A79: Average Net Fixed Assets | D79: =SUM(D77:D78)/2 -> 0 | E79: =SUM(E77:E78)/2 -> 0 | F79: =SUM(F77:F78)/2 -> 0 | G79: =SUM(G77:G78)/2 -> 0 | H79: =SUM(H77:H78)/2 -> 0
A81: UCC for PILs Calculation
D82: 2014 | E82: 2015 | F82: 2016 | G82: 2017 | H82: 2018
A84: Opening UCC | D84: 0 | E84: =D92 -> 0 | F84: =E92 -> 0 | G84: =F92 -> 0 | H84: =G92 -> 0
